Workbook

Sheet Disclaimer
B2: Important Notice
B5: Purpose
B7: AEMO publishes this 2025 Inputs and Assumptions Workbook in accordance with National Electricity Rules (NER) 5.22.8. This workbook includes key information and context for the inputs and assumptions used in AEMO’s Forecasting and Planning publications for the National Electricity Market (NEM) and the Wholesale Electricity Market (WEM) in Western Australia. This publication is generally based on information available to AEMO as at 31 July 2025 unless otherwise indicated.
B10: Disclaimer
B12: The 2025 Inputs and Assumptions Workbook contains data provided by or collected from third
B13: parties, and conclusions, opinions, assumptions or forecasts that are based on that data.
B15: AEMO has made reasonable efforts to ensure the quality of the information in this publication but cannot
B16: guarantee that information, forecasts and assumptions are accurate, complete or appropriate for your
B17: circumstances.
B19: Modelling work performed as part of preparing this publication inherently requires assumptions about future
B20: behaviours and market interactions, which may result in forecasts that deviate from future conditions. There
B21: will usually be differences between estimated and actual results, because events and circumstances
B22: frequently do not occur as expected, and those differences may be material.
B24: This publication does not include all of the information that an investor, participant or potential participant in
B25: the National Electricity Market might require, and does not amount to a recommendation of any investment.
B27: Anyone proposing to use the information in this publication (which includes information and forecasts from
B28: third parties) should independently verify its accuracy, completeness and suitability for purpose, and obtain
B29: independent and specific advice from appropriate experts.
B31: Accordingly, to the maximum extent permitted by law, AEMO and its officers, employees and consultants
B32: involved in the preparation of this publication:
B34: • make no representation or warranty, express or implied, as to the currency, accuracy, reliability or
B35: completeness of the information in this publication; and
B36: • are not liable (whether by reason of negligence or otherwise) for any statements, opinions, information
B37: or other matters contained in or derived from this publication, or any omissions from it, or in respect of
B38: a person’s use of the information in this publication.

Sheet Change Log
B2: Version History
B3: Version Number | C3: Date | D3: Description
B4: 1 | C4: 2019-02-05 | D4: First industry release of draft 2019 market modelling assumptions for consultation.
B5: 1.1 | C5: 2019-08-16 | D5: Scenarios tab updated with final 2019-20 modelling scenarios settings
D6: Existing and committed generator lists reflect the 8th August release of Generation Information.
D7: Minimum stable levels and capacity constraints have been updated in the "Generation limits" sheet
D8: Forced outage rates have been updated consistent with the ESOO 2019.
D9: Coal prices have been updated to reflect Wood Mackenzie's final 2019 forecast for AEMO.
D10: Updated closure dates to those submitted by generators in the 8th August release of Generation Information
D11: Fixed O&M cost for existing OCGT's has been changed to correct an error in previous version.
D12: Offshore Wind has been included as a build candidate in the Gippsland REZ.
D13: Included Snowy 2.0 and Battery of the Nation in the "Storage properties" sheet.
D14: Demand forecasting components reflect DRAFT 2019 forecasts. Final forecasts will be available from http://forecasting.aemo.com.au upon publication of the ESOO.
D15: Corrected Pumped Hydro connection costs, as these costs are included in the build costs.
D16: Capacity factors are now available for all available reference years.
D17: WACC updated following consultation feedback.
D18: Charge and Discharge efficiency has been added to the "Storage properties" sheet
D19: Economic and Technical life of Pumped Hydro and Batteries have been corrected after being mislabelled in the previous version
D20: Summary sheets have been added for Demand, Existing Generator Data, New Entrant data, Fuel Prices and Regional Build costs
D21: Technology specific regional cost factors have been included
D22: Hydro inflows and hydro inflow factors added
D23: The following candidate Renewable Energy Zones have been added: • Wide Bay (QLD) • Wagga Wagga (NSW) • Central North Vic (VIC) The following modifications have occurred: The former Northern New South Wales Tablelands and New England REZs have been joined and redrawn • The former Central New South Wales Tablelands and Central West New South Wales REZs have been joined and redrawn • The former Murray River REZ was split into two separate zones and redrawn • The Gippsland REZ in Victoria was expanded to include off-shore wind capability. • The former Moyne REZ was expanded to include a greater area of South West Victoria. • Tasmanian REZs were refined to focus on areas with observed generator connection interest.
D24: The Interconnector capability has been changed to reflect operational and planning updates.
D25: Interconnector augmentation options have been updated to reflect best information from TNSPs and AEMO.
D26: Generator operating limits and behaviours have been updated to reflect latest data and technical information.
D27: Resource limits have been revised to reflect updated methodology. See section 5.4.2 in 2019 Planning and Forecasting Consultation responses on Scenarios, Inputs, Assumptions and Methodology.
D28: REZ expansion costs, Network Capacity, and Additional Network Capacity with IC augmentations have been updated following additional work to refine expansion options for specific REZ, and in consultation with stakeholders.
D29: Shadow generators for committed and candidate generators have been updated based on review and new options (given new generation has been commissioned).
B30: 1.2 | C30: 2019-09-13 | D30: Labels have been updated to $/kW for all technologies in the Build Cost sheet to reflect reported values.
D31: Mount Emerald Wind farm was incorrectly listed as a NSW generator in the 'Summary Mapping' sheet, this has been corrected to QLD.
D32: VIC to NSW forward direction was incorrectly labelled as VIC to SA forward direction. Note 4 in 'Augmentation options' sheet has been corrected.
D33: AC network expansion of VIC-TAS Second IC Option 1 and 2 in 'Augmentation options' sheet has been clarified.
D34: Corrected MLF shadow connection point for Cattle Hill and North West Tas Solar and Wind Candidates
D35: Updated Seasonal Ratings to reflect August release of Generation information for Murra Warra Wind Farm – stage 1 and Lincoln Gap Wind Farm – stage 1
D36: Updated Max Capacity to reflect August release of Generation information for Bogong / Mackay, Trevallyn, Oakey Power Station, Berrybank Wind Farm, Capital Wind Farm, Lake Bonney 1 Wind Farm, Starfish Hill Wind Farm, Wattle Point Wind Farm, Challicum Hills Wind Farm, Mortons Lane Wind Farm, Mt Gellibrand Wind Farm, Portland Wind Farm, Yaloak South Wind Farm and Gannawarra Energy Storage System.
D37: A note has been added to the "Existing Gen Data Summary" that the expected retirement date in this summary sheet is indicative of the first unit's retirement date.
D38: Additional VIC-TAS options included in Augmentation Options work sheet. Split VIC-NSW augmentation options to consider HumeLink separately, and removal of option 11. Correction of typo in Note 4 in Augmentation Options work sheet. Updated proportioning factors work sheet including revision to interconnector augmentation options. Included new interconnector options in build limits information.
D39: The New South Wales government has advised AEMO that development in the Southern NSW Tablelands (N4) REZ is to be precluded due to poor community support and high quality agricultural land. As advised, development in other areas of New South Wales would be more conducive to substantive development of renewables.
D40: Updates to the 'Build Limits' sheet to reflect revised HumeLink and VNI augmentation approach.
D41: Updated Millmerran unit MPP_1 Minimum stable level value in the 'Generation Limits' sheet.
D42: Hydro climate factors updated to present specific factor trajectory for Tasmania
D43: Added note to; Augmentation Options, Firm Capacity, Max Capacity, Seasonal Ratings sheets - "With the introduction of MarinusLink, the capacities of the following generators increase by: 100 MW across the west coast, 130 MW for Tarraleah and 90 MW capacity for Gordon."
D44: Note added to Seasonal Rating: "Tamar Valley CCGT seasonal rating is based on being in a mothballed state. This unit can be recalled and may be explored in sensitivity analysis."
D45: Updated calculation for PV uptake percentage for Demand Input Summary sheet.
D46: Revised shadow MLF from Regional Reference Node to 1.0 for a number of projects.
D47: Maximum demand has been updated to align PV generation with battery charging. Also, LIL in South Australia has increased.
D48: Revised Electric Vehicle proportioning factors due to rounding errors.
D49: Updated Tamer Valley CCGT FOM based on stakeholder feedback
D50: Revised retirement and refurbishment dates for CS Power Stations based on stakeholder feedback.
D51: Hydro Inflows update to capture historical observations for the Snowy scheme.
B52: 1.3 | C52: 2019-12-12 | D52: Waubra and Yambuk wind farm retirement dates corrected to capture 30 year technical life based on generic wind farm parameters.
D53: Heat rate sheet updated to include "sent-out" note.
D54: Added additional interconnector options QNI 2E and QNI 3E on Augmentation options and Proportioning factors
D55: Revision of QNI Option 3D - Wollar used in place of Bayswater
D56: Revision of VIC-NSW Option 5A - additional South Morang Transformer and cut in of Rowville-Thomastown 220 kV at South Morang, and change to Indicative Cost.
D57: Revision of VIC-NSW Option 6 - location of powerflow controllers updated
D58: Revision of VIC-NSW Option 7 - location of powerflow controllers updated
D59: Revision of VIC-NSW Option 8 - location of powerflow controllers updated
D60: Revision of VIC-NSW Option 11
D61: Update of Build Limits Tab to reflect new IC options QNI 2E and 3E, update on EnergyConnect's impact on Riverland REZ
D62: Update of Build Limits Tab to reflect group constraints for QLD
D63: Update of Build Limits Tab to reflect additional capacity in V2 provided by VNI Option 8
D64: Update to Electric Vehicles sheet to include % of fleet values for Residential, Vehicle to Home
D65: Update to cost estimates to reflect latest advice from TNSPs on Augmentation options tab
D66: Update of Energy Consumption tab for Operational Consumption as Sent-Out and Underlying Consumption.
B67: 1.4 | C67: 2020-04-17 | D67: Proportioning Factors tab: Update loss proportioning factors to include upgrade option QNI 2E.
D68: Build Limits tab: Reduced cost/MW as a result of committed project for S8 (Eastern Eyre Peninsula)
D69: Build Limits tab: Changed the Cost/MW for S6 and S7 (Leigh Creek) as a result of group constraint for S3 (Mid North SA) as well as dual pole changed to tower
D70: Build Limits tab: Moved 500 MW capacity from Southern NSW tablelands to Wagga Wagga for HumeLink
D71: Build Limits tab: Updated Riverland REZ from 1000 MW capacity gain for SA-NSW interconnector to 800 MW.
D72: Build Limits tab: Solar resource capacity for V2 was increased as previously was not reflective of true interest in the area
D73: Build Limits tab: Updated QLD REZ build limits to reflect calculation done in the MM
D74: Build Limits tab: Updated Q1 cost/MW to remove small build uprate Woree 132 kV network to 275 kV network, as no longer considered feasible by Powerlink
D75: Build Limits tab: Update N4 to have no cost/MW associated as no extra generation is allowed in the zone
D76: Build Limits tab: Updated costing for TAS Midlands and North West - updated REZ capacity increase for MarinusLink for these two REZ zones too as per advice received from TasNetworks
D77: Build Limits tab: Western Eyre, Eastern Eyre, Mid-North and Northern SA cost/MW changed to reflect costing for towers not dual pole
D78: Build Limits tab: Yorke Peninsula cost/MW increased
D79: Build Limits tab: South West Victoria cost/MW increased to accommodate 500 kV line from Moorabool to Sydenham
D80: Build Limits tab: Central West transmission build limit decreased from 700 MW to 500 MW to account for newly committed generation
D81: Build Limits tab: Mid North SA PV resource limit increased to 1300 MW to reflect updated generation information
D82: Build Limits tab: Increase Central West Build Limit to 3000 MW to incorporate the NSW state government policy
D83: Augmentation options tab: Increase transmission cost and REZ build costs
D84: Augmentation options tab: Marinus Link cost estimate updated as per TasNetworks' advice on 28/02/2020.
D85: Augmentation options tab: QNI options 2E, 3E and 3D limits changed.
D86: Augmentation options tab: VNI Option 11 HVDC limits and cost estimates updated.
D87: Update to Generation Information based on the 26th February release of Generation Information: •Added new Committed Projects (Goonumbla Solar Farm, Crudine Ridge Wind Farm, Gangarri Solar Farm, Lake Bonney BESS1) •Added Anticipated Projects (Berrybank Wind Farm - Stage 2, Murra Warra Wind Farm - Stage 2, Broadsound Solar Farm, Cape York Battery Power Plant - Storage, Cape York Battery Power Plant - Solar, Collector, Gunnedah Solar Farm, Metz Solar Farm, Suntop Solar Farm) •Update to Commission Dates and Installed Capacity of Committed Projects •Update to Expected Closure Dates •Update to Seasonal ratings •Update of Site Names
D88: Renewable Policy Targets tab: Added TRET and edited VRET to apply to all scenarios
D89: Scenarios policy tab: Added TRET and edited VRET to apply to all scenarios
D90: Build Costs tab: updated to be based on draft CSIRO GenCost 2019-20
D91: Renewable Energy Zones tab: V6 cost increased from medium to high based on consultation feedback
D92: Generation Limits tab: Edited description following consultation feedback
D93: Augmentation options tab: QNI Minor (Option 1A) now committed, removed alternative QNI Minor options from workbook.
D94: Augmentation options tab: Update interconnector options for QNI 2E/3E/3D to reflect a terminal station at Boggabri rather than Gunnedah/Narrabri.
D95: Augmentation options tab: Update to Option 3D and 2E on Augmentation tab: removed cut-in for second Bayswater-Mt Piper 500 kV line at Wollar (this is no longer included in QNI augmentation cost).
D96: Augmentation options tab: VNI-NSW Option 11 (HVDC option between Victoria and New South Wales) included.
D97: Augmentation options tab: Updated earliest service date for augmentation options to reflect latest into from TNSPs and potential for expedited processes in some scenarios. Estimates for inter-network testing have been incorporated into the timing (network capacity may be released in stages).
D98: Augmentation options tab: Removed HVDC alternative for HumeLink to reflect latest outcomes from the RIT-T.
D99: Max capacity and related tabs: Added MacIntyre Wind Farm to Anticipated projects
B100: 1.5 | C100: 2020-07-30 | D100: Build Limits tab: Changed footnote on Pumped Hydro Build limits to reflect updated approach.
D101: Augmentation options tab: Added technical details for VIC-NSW Option 11.
D102: Augmentation options tab: Minor wording changes to clarify options for VNI Option 1, QNI Option 3C, QNI option 2E.
D103: Augmentations option tab: Power flow controller on Bannaby-Sydney West 330 kV line is removed from HumeLink for consistency with Transgrid's HumeLink PADR.
D104: Augmentations option tab: Second 500/330 kV transformer at Wagga is removed from VNI Option 6, 7 and 8. This has been included with HumeLink option.
D105: Augmentations option tab: Note 13 included in relation to SA-NSW option.
D106: Additional Tab added: Interconnector representation. This describes how the interconnectors are represented in the capacity expansion models
D107: Additional Tab added: Transmission component costs – this describes the unit costs for transmission build used in cost estimates.
D108: Updated REZ name Central West NSW to Central-West Orana throughout workbook.
D109: Augmentations option tab: Updated SA-NSW to reflect new terminal station at Bundey,
D110: Augmentations option tab: Updated descriptions for VNI 6 and VNI 7 to reflect the new terminal station north of Ballarat
D111: Build costs tab: deleted the repeated build cost table from CSIRO GenCost 2019-20
D112: Additional Tab added: CCGT Unit Maximum Capacity. This tab provides the maximum capacity (MW) of CCGT gas and steam turbines separately.
D113: Additional Tab added: GPG_Min Stable Level. This tab provides the minimum operating levels (MW) for large GPG units.
D114: Additional Tab added: Max Ramp Rates. This tab provides the maximum rates of change (MW/min) for thermal unit output up and down.
D115: Additional Tab added: Min Up&Down Times. This tab provides the minimum time (h) online or offline for large GPG units.
D116: Additional Tab added: Complex Heat rates. This tab provides parameters to produce heat rate curves for thermal units.
D117: Additional Tab added: Start Cost of GPG. This tab provides the notification time (h) and start up costs ($/MW) for CCGTs and gas-powered steam turbines.
D118: Minimum capacity factor information provided for GPG units, represented in the DLT model
D119: Additional clarity provided on TRET and VRET implementation
B120: 2.0 | C120: 2020-09-01 | D120: Demand forecast tabs (orange): Updated to reflect 2020 ESOO consumption and demand forecast
D121: Gas and Liquid fuel price tab: Update Gas prices based on December 2019 Core Energy Gas price outlook
D122: Build Costs tab: updated to be based on CSIRO GenCost 2019-20 final report
D123: Maximum capacity tab: Updated based on July 2020 GenInfo
D124: Firm capacity tab: Updated based on July 2020 GenInfo
D125: Seasonal ratings tab: Updated based on July 2020 GenInfo
... 155 more rows

Sheet Assumptions Summary
B2: 2024-25 Modelling Assumptions
B3: This file presents tables of input data for 2023-24 market modelling studies. It is a compilation of data from a number of sources, listed below.
B4: All values in this workbook are as at 30 June 2025 real dollars except were explicitly noted otherwise.
B6: Version History
B7: Version Number | C7: Date | D7: Description
B8: 1 | C8: 2019-02-05 | D8: First industry release of draft 2019 market modelling assumptions for consultation.
B9: 1.1 | C9: 2019-09-03 | D9: Updates based on 2019 Consultation feedback, updated information from stakeholders and 2019 forecasting components.
B10: 1.2 | C10: 2019-09-13 | D10: Revisions based on feedback from publication of 1.1
B11: 1.3 | C11: 2019-12-12 | D11: Issued to accompany Draft ISP publication
B12: 1.4 | C12: 2020-04-17 | D12: Updates following Draft ISP publication feedback
B13: 1.5 | C13: 2020-07-30 | D13: Issued to accompany 2020 ISP publication
B14: 2 | C14: 2020-09-01 | D14: Issued to accompany 2020 ESOO
B15: 2.1 | C15: 2020-11-27 | D15: Revisions to 2020 ESOO assumptions - error corrections and clarifications
B16: 2.2 | C16: 2020-12-11 | D16: Revisions to 2020 ESOO assumptions - error corrections and clarifications
B17: 3 | C17: 2020-12-11 | D17: Issued to accompany Draft 2021 IASR
B18: 3.1 | C18: 2021-07-31 | D18: Released to accompany the release of the Final 2021 IASR Report
B19: 3.2 | C19: 2021-08-10 | D19: Minor corrections of prior release.
B20: 3.3 | C20: 2021-12-10 | D20: Issued to accompany Draft 2022 ISP publication
B21: 3.4 | C21: 2022-06-30 | D21: Issued to accompany Final 2022 ISP publication
B22: 3.5 | C22: 2022-08-31 | D22: Issued to accompany 2022 ESOO
B23: 4 | C23: 2022-12-16 | D23: Issued to accompany Draft 2023 IASR publication
B24: 5 | C24: 2023-07-28 | D24: 2023 IASR Assumptions Workbook
B25: 5.1 | C25: 2023-08-07 | D25: Minor corrections of prior release.
B26: 5.2 | C26: 2023-09-05 | D26: Minor updates of prior release.
B27: 5.3 | C27: 2023-12-15 | D27: Minor updates of prior release.
B28: 6 | C28: 2024-07-19 | D28: 2024 ISP Assumptions Workbook
B29: 7 | C29: 2024-12-11 | D29: Draft 2025 Inputs and Assumptions Workbook
B30: 7.3 | C30: 2025-07-31 | D30: 2025 Inputs and Assumptions Workbook
B32: Worksheet Descriptions
B33: Worksheet | C33: Assumptions Grouping | D33: Description | E33: Source
B34: Scenarios | C34: Scenario | D34: Summary of scenario dimensions and parameters | E34: AEMO
B35: Existing Gen Data Summary | C35: Summaries | D35: Summary (calculated) of the generator technical data | E35: Calculated data
B36: New Entrant Data Summary | D36: Summary (calculated) of the new entrant generation and storage technical data
B37: New Electrolyser Data Summary | D37: Summary (calculated) of the new entrant electrolyser technical data
B38: Fuel Price Summary | D38: Summary (calculated) of generator fuel costs
B39: Regional Build Costs Summary | D39: Summary (calculated) of regional build costs for a selectable scenario / technology.
B40: Summary Mapping | D40: Master look-up table for generator, storage, and electrolyser assets
B41: Energy Policy Targets | C41: Policy settings | D41: Target renewable settings for NEM-wide, Queensland, New South Wales, Victoria, South Australia and Tasmania energy policy targets | E41: Federal and state government legislation and publications, AEMO Services.
B42: Carbon Budgets | D42: Global mean temperature increases by 2100 aligned with each scenario, and cumulative carbon budgets over the period to 2050. | E42: CSIRO, Multi-sectoral modelling (2024)
B43: Demand And Energy Forecasts | C43: Consumptions and demand-side factors | D43: Electricity consumption forecasts | E43: AEMO forecasts (2025 IASR) Deloitte Access Economics (DAE) (2024) CSIRO, 2024 Solar PV and Battery Projections Report GEM, 2024 Solar PV and Battery Projections Report CSIRO, Multi-sectoral modelling (2024) Demand Side Participation data enetered by participants through Markets Portal (2024) Department of Climate Change, Energy, the Environment and Water (DCCEEW) in New South Wales (2024) CSIRO, Electric vehicle projections 2024 SPR, 2025 Energy Efficiency Forecasts Final Report OEA, 2025 Data Centre Energy Consumption Final Report
B44: End Use Fuel Consumption Data | D44: Data for end-use fuel consumption by scenario across the NEM chart, identified by multi-sectoral modelling conducted by CSIRO (Figure 1 in IASR)
B45: Economic Growth Forecasts | D45: Forecasts of Gross State Product (GSP) and Household Disposable Income (HDI)
B46: Appliance Uptake Forecasts | D46: Residential appliance uptake forecasts, impacts relative to base year
B47: Electricity Retail Price Indices | D47: Residential electricity retail price indices, relative to base year
B48: Connections Forecasts | D48: Residential connections forecasts
B49: Energy Efficiency | D49: Forecast of energy efficiency impact on annual consumption forecasts
B50: Rooftop PV | D50: Rooftop PV capacity and generation forecast
B51: PVNSG | D51: PV non-scheduled generation (PVNSG) capacity and generation forecast
B52: ONSG | D52: Other non-scheduled generation (ONSG) capacity forecast
B53: DSP | D53: Demand side participation forecast
B54: Battery & Plug-In Evs | D54: Battery and plug-in electric vehicles uptake and energy consumption for driving purposes
B55: EV V2G | D55: Vehicle to Grid battery characteristics
B56: Fuel Cell EVs | D56: Fuel cell electric vehicles uptake
B57: Data Centre Forecasts | D57: Forecast of electricity consumption from data centre growth
B58: Electrification | D58: Electrification in all sectors excluding road transportation
B59: Embedded Energy Storages | D59: Embedded consumer energy storage (battery) forecast
B60: Aggregated Energy Storages | D60: The 'aggregated' share of embedded energy storages that is modelled like a Virtual Power Plant (VPP).
B61: Network Representation | C61: Transmission Network Settings | D61: Description of how the network is modelled in the capacity expansion models. | E61: AEMO (Following consultation on IASR)
B62: Renewable Energy Zones | D62: Renewable energy zones | E62: AEMO (Review from TNSPs and jurisdictional planning bodies and consultation via IASR)
B63: Network Capability | D63: Maximum forward and reverse flow path capability for capacity expansion modelling. | E63: AEMO (Review by TNSPs and jurisdictional planning bodies and consultation via IASR) AEMO NEM public data
B64: Network Losses | D64: Proportion of interconnector losses applied to regional reference nodes and loss equations. | E64: Marginal Loss Factors: Financial Year 2024-25
B65: Transmission Reliability | D65: Defines the outage rates modelled to key flowpaths in the ESOO. | E65: AEMO internal study
B66: Connection Cost | C66: Network Cost Forecasts | D66: Cost to connect different generation technologies. | E66: AEMO internal study
B67: Connection Cost Forecasts | D67: Forecast of transmission connection cost | E67: AEMO internal study
B68: Flow Path Augmentation Options | D68: Capability, cost and timing for flow path augmentation options. | E68: AEMO (Following consultation on IASR and 2025 Network Expansion Options Report)
B69: Flow Path Cost Forecasts | D69: Forecast of transmission flow path cost | E69: AEMO internal study
B70: REZ Augmentations Options | D70: Capability, cost and timing for REZ augmentation options. | E70: AEMO (Following consultation on IASR and 2025 Network Expansion Options Report)
B71: REZ Cost Forecasts | D71: Forecast of REZ augmentation cost | E71: AEMO internal study
B72: Maximum Capacity | C72: Generator and storage availability and reliability settings | D72: Installed capacity of existing, committed and anticipated generators. | E72: AEMO Generation Information (July 2025 release)
B73: Seasonal Ratings | D73: Winter and summer ratings for existing, committed, advanced and new entrant generators | E73: AEMO Generation Information (July 2025 release), Aurecon, 2024 Energy Technology Cost and Technical Parameter Review
B74: Maintenance | D74: The percentage of time per year that a generator is expected to be out of service for maintenance. De-rating applied to generators under maintenance, staged construction or to track age-related degradation | E74: GHD, 2018 AEMO costs and technical parameter review, Aurecon, 2024 Energy Technology Cost and Technical Parameter Review
B75: Generator Reliability Settings | D75: Defines a generators' unplanned outage rate, mean time to repair after an outage, and the derating experienced during a partial outage | E75: Aurecon, 2024 Energy Technology Cost and Technical Parameter Review, AEMO Internal study, AEMO data (ESOO 2024)
B76: Retirement | D76: Announced and end-of-technical-life generator retirement | E76: AEMO Generation Information (July 2025 release), Aurecon, 2024 Energy Technology Cost and Technical Parameter Review, GHD, 2025 Energy Technology Retirement Cost and O&M Estimate Review
B77: Hydro Scheme Inflows | D77: Monthly aggregated inflow trends for reference years | E77: AEMO internal study, Water Data Online (Bureau of Meteorology), Hydro Tasmania
B78: Capacity Factors | D78: Capacity factors for renewable generators in the renewable energy zones | E78: AEMO analysis outcomes
B79: Heat Rates | C79: Generator and storage technical parameters | D79: Efficiency of conversion of fuel to output for thermal generators | E79: GHD, 2018 AEMO costs and technical parameter review, Aurecon, 2024 Energy Technology Cost and Technical Parameter Review
B80: Auxiliary | D80: Auxiliary (self) load for each generator or generator class | E80: AEMO Generation Information (July 2025 release), Aurecon, 2024 Energy Technology Cost and Technical Parameter Review
B81: Emissions Intensity | D81: Emissions production per MWh of output for each generator or generator class | E81: CER - Greenhouse and energy information by designated generation facility 2023-24, Aurecon, 2024 Energy Technology Cost and Technical Parameter Review, DCCEEW, 2023 Australian National Greenhouse Accounts Factors
B82: Storage Properties | D82: Battery storage to power ratio and round-trip efficiency | E82: Aurecon, 2024 Energy Technology Cost and Technical Parameter Review, CSIRO, Small-scale solar and battery projections 2022, Snowy Hydro Hydro Tasmania QLD QEJP, Queensland SuperGrid Infrastructure Blueprint Kidston Pumped Storage Hydro Project Financial Close Report August 2021
B83: Build Costs | C83: Generator andstorage economic parameters | D83: Capital Cost projections for new entrant generators | E83: Aurecon, 2024 Energy Technology Cost and Technical Parameter Review, CSIRO, GenCost 2024-25 Final report, Hydro Tasmania
B84: Fixed Opex | D84: Fixed operating cost regardless of output for each generator or generator class | E84: Aurecon, 2024 Energy Technology Cost and Technical Parameter Review, GHD, 2025 Energy Technology Retirement Cost and O&M Estimate Review
B85: Variable Opex | D85: Variable operating cost per MWh of output for each generator or generator class | E85: Aurecon, 2024 Energy Technology Cost and Technical Parameter Review, GHD, 2025 Energy Technology Retirement Cost and O&M Estimate Review
B86: Marginal Loss Factors | D86: Marginal loss factors for each generator | E86: Regions and Marginal Loss Factors: FY 2024-25 (2024 November release)
B87: Locational Cost Factors | D87: Locational cost factors provide an indication of the variation in new entrants generators cost based on the shift in labour, equipment and shipping/delivery cost between regions. | E87: Aurecon, 2024 Energy Technology Cost and Technical Parameter Review, GHD, 2025 Pumped Hydro Energy Storage Parameter Review, AEMO Internal study
B88: Build Limits - REZs | D88: Modelled limitations for REZs impacting build constraints within the expansion modelling | E88: AEMO (Review by TNSPs and jurisdictional planning bodies and consultation via IASR)
B89: Build Limits - PHES | D89: Modelled limitations for PHES impacting build constraints within the expansion modelling | E89: GHD, 2025 Pumped Hydro Energy Storage Parameter Review
B90: First-Of-A-Kind Premium | D90: Premiums applied to emerging generation technologies to reflect the tendency of first-of-a-kind installations to exceed estimated costs. | E90: CSIRO, GenCost 2024-25 Final report
B91: Lead Time And Project Life | D91: Modelled limitations impacting build timings within the expansion modelling | E91: Aurecon, 2024 Energy Technology Cost and Technical Parameter Review
B92: Financial Parameters | D92: Financial parameters (discount rate, weighted average cost of capital, value of customer reliability, and value of emissions reductions) used during cost benefit analysis | E92: AER, Values of Customer Reliability, December 2024, Oxford Economics Australia, Discount Rates For Energy Infrastructure, 2024, AER - Transgrid FD PTRM - 2024-25 RoD update - Humelink S2 - August 2024 - Public, August 2024, AER, Valuing emissions reduction - AER guidance and explanatory statement, May 2024
B93: Affine Heat Rates | C93: ST model properties | D93: Heat rate curves for large thermal units | E93: GHD, 2018 AEMO costs and technical parameter review, Aurecon, 2024 Energy Technology Cost and Technical Parameter Review, AEMO Internal study
B94: Max Ramp Rates | D94: Maximum rates of change for thermal unit output up and down | E94: Aurecon, 2024 Energy Technology Cost and Technical Parameter Review, AEMO Internal study
B95: Coal Min Stable Level | D95: Coal generator minimum stable levels | E95: AEMO internal study
B96: GPG Min Stable Level | D96: Minimum operating levels for large GPG units | E96: Aurecon, 2024 Energy Technology Cost and Technical Parameter Review, AEMO Internal study
B97: Coal and Biomass Price | C97: Fuel and gas system properties | D97: Coal fuel price for each coal generator | E97: ACIL Allen, 2024 Coal Price Forecasts
B98: Gas, Liquid Fuel, H2 Price | D98: Fuel price for each gas and liquid fuel generator | E98: ACIL Allen, 2024 Natural Gas Price Forecasts, ACIL Allen, 2024 Diesel Price Forecasts, CSIRO, Multi-sectoral modelling (2024)(H2 prices)
B99: Gas System Properties | D99: Key properties of Natural Gas Pipelines, Processing Facilities, Storage Facilities, Reserves and Resources, Pipeline Transmission Tariffs, and Production Costs | E99: AEMO 2025 GSOO (any material changes to be updated following the publication of the 2026 GSOO)
B100: GPG Emissions Reduction - Biom | D100: Factors projecting emissions reduction from GPG due to blending of biomethane into fuel gas | E100: CSIRO, Multi-sectoral modelling (2024), AEMO internal study
B101: Power System Security | C101: Power system requirements | D101: Reflect power system constraints to reflect secure operating limits | E101: AEMO internal study
B102: Reserves | D102: Minimum reserve levels for reliable regional supply | E102: AEMO Generation Information (July 2025 release)
B103: Hydrogen Demand - Domestic | C103: Hydrogen system parameters | D103: Projections of domestic hydrogen demand | E103: CSIRO, Multi-sectoral modelling (2024), AEMO internal study
B104: Hydrogen Monthly Profiles | D104: Projections of monthly profiles of export/commodities hydrogen demand | E104: CSIRO, Multi-sectoral modelling (2024), AEMO internal study
B105: Hydrogen Demand-Export&Commod | D105: Projections of demand for export hydrogen and green commodities production | E105: CSIRO, Multi-sectoral modelling (2024), ACIL Allen (2025), AEMO internal study
B106: Hydrogen Consumption Locations | D106: Location of hydrogen consumption and candidate hydrogen hubs and ports | E106: AEMO internal study
B107: Water For Hydrogen | D107: Projections of treated water required for electrolytic hydrogen production | E107: AEMO internal study
B108: Desalination Demand For H2 | D108: Projections of electricity required for water treatment associated with electrolytic hydrogen production | E108: AEMO internal study
B109: H2 As Fuel For GPG Limit | D109: Maximum fuel limit applied to hydrogen for GPG | E109: CSIRO, Multi-sectoral modelling (2024), AEMO internal study
B110: Build Cost - Hydrogen Pipeline | D110: Projections of cost to build hydrogen pipelines in a given REZ | E110: AEMO internal study
B111: Other Hydrogen Assumptions | D111: Various hydrogen-related assumptions | E111: Aurecon, 2024 Energy Technology Cost and Technical Parameter Review, Bloomberg New Energy Finance: Electrolyzer Price Survey 2024: Rising Costs, Glitchy Tech (March 2024), Stakeholder engagement
B113: Supporting Materials
B114: Source | C114: Materials
B115: Aurecon, 2024 Energy Technology Cost and Technical Parameter Review | C115: https://aemo.com.au/energy-systems/major-publications/integrated-system-plan-isp/2026-integrated-system-plan-isp/2025-26-inputs-assumptions-and-scenarios
B116: Aurecon, 2024 Energy Technology Cost and Technical Parameter Review – Mid Size Solar PV and BESS
B117: Deloitte Access Economics, 2024, Economic Forecasts 2024-25
B118: CSIRO, GenCost 2024-25 Final Report
B119: CSIRO, 2024 Electric Vehicle Projections Report
B120: CSIRO, Multi-sectoral modelling (2024)
B121: CSIRO, 2024 Solar PV and Battery Projections Report
B122: GEM, 2024 Solar PV and Battery Projections Report
B123: Oxford Economics Australia, Discount Rates For Energy Infrastructure
B124: Oxford Economics Australia, 2025 IASR Planning And Installation Cost Escalation Factors
B125: Oxford Economics Australia, 2025 Data Centre Energy Consumption Final Report
B126: SPR, 2025 Energy Efficiency Forecasts Final Report
B127: GHD, Pumped Hydro Energy Storage Parameter Review
B128: GHD, 2025 Energy Technology Retirement Cost & O&M Estimate Review
B129: AEMO, Generator information (AEMO Generation Information (July 2025 release)) | C129: https://www.aemo.com.au/energy-systems/electricity/national-electricity-market-nem/nem-forecasting-and-planning/forecasting-and-planning-data/generation-information
B130: AEMO, Transmission Cost Database | C130: https://aemo.com.au/energy-systems/major-publications/integrated-system-plan-isp/2026-integrated-system-plan-isp/2025-26-inputs-assumptions-and-scenarios/transmission-cost-database
B131: AEMO, 2025 Electricity Network Options Report | C131: https://aemo.com.au/energy-systems/major-publications/integrated-system-plan-isp/2026-integrated-system-plan-isp/2025-26-inputs-assumptions-and-scenarios
B132: ACIL Allen, 2014 Fuel and Technology Cost Review | C132: https://aemo.com.au/-/media/files/electricity/nem/planning_and_forecasting/ntndp/2014/data-sources/fuel_and_technology_cost_review_report_acil_allen.pdf
B133: ACIL Allen, 2024 Fuel price forecast workbook | C133: https://aemo.com.au/energy-systems/major-publications/integrated-system-plan-isp/2026-integrated-system-plan-isp/2025-26-inputs-assumptions-and-scenarios
B134: AEMO, 2025 GSOO stakeholder surveys and gas supply input data | C134: 2025 Gas Statement of Opportunities supply input data files. Available at: https://aemo.com.au/-/media/files/gas/national_planning_and_forecasting/gsoo/2025/gsoo-supply-data.zip?la=en
B135: AEP Elical, 2020 Assessment of Ageing Coal-Fired Generation Reliability | C135: https://aemo.com.au/-/media/files/electricity/nem/planning_and_forecasting/inputs-assumptions-methodologies/2020/aep-elical-assessment-of-ageing-coal-fired-generation-reliability.pdf?la=en

Sheet Scenarios
B1: Go to Assumptions Summary
B2: Summary of scenario parameters
B3: Summary of parameters for scenarios in the 2025 IASR
B5: Parameter | C5: Slower Growth | D5: Step Change | E5: Accelerated Transition
B6: National decarbonisation targets
B7: National Decarbonisation target | C7: 43% emissions reduction by 2030.​ Net zero by 2050. | D7: At least 43% emissions reduction by 2030.​ Net zero by 2050. | E7: At least 43% emissions reduction by 2030.​ Net zero by 2050.
B8: Demand drivers
B9: Global economic growth and policy coordination​ | C9: Slower economic growth, lesser coordination | D9: Moderate economic growth, stronger coordination | E9: High economic growth, stronger coordination
B10: Australian economic and demographic drivers​ | C10: Lower, with near-term economic growth calibrated with current economic conditions | D10: Moderate economic growth, with near-term economic growth calibrated with current economic conditions | E10: Higher, with near-term economic growth calibrated with current economic conditions
B11: Energy Efficiency | C11: Moderate | D11: High | E11: Higher​
B12: Coordination of CER (VPP and V2G) | C12: Low long-term coordination, with gradual acceptance of coordination | D12: Moderate long-term coordination, with gradual acceptance of coordination | E12: High long-term coordination, with faster acceptance of coordination
B13: CER uptake
B14: Consumer energy resource investments (batteries, PV and EVs) | C14: Lower​ | D14: High | E14: Higher​
B15: Hydrogen and Biomethane
B16: Hydrogen use and availability | C16: Low production for domestic use, with no export hydrogen | D16: Moderate-low production for domestic use, with no export hydrogen | E16: Moderate production for domestic industries and green commodities, with no export hydrogen
B17: Renewable gas blending in the gas distribution network (vol%)* | C17: Up to 5% hydrogen blending by 2050, with unlimited blending opportunity for biomethane and other renewable gases | D17: Up to 2% hydrogen blending by 2050, with unlimited blending opportunity for biomethane and other renewable gases | E17: Negligible hydrogen blending by 2050, with unlimited blending opportunity for biomethane and other renewable gases
B18: Scenario alignment
B19: Global/domestic temperature settings and outcomes | C19: Applies Representative Concentration Pathway (RCP) 4.5 where relevant, consistent with a global temperature rise of ~ 2.6°C by 2100 | D19: Applies RCP 2.6 where relevant, consistent with a global temperature rise of ~ 1.8°C by 2100 | E19: Applies Representative Concentration Pathway (RCP) 1.9 where relevant, consistent with a global temperature rise of ~ 1.5°C by 2100
B20: International Energy Agency (IEA) 2024 World Energy Outlook scenario alignment | C20: Stated Policies Scenario (STEPS) | D20: Announced Pledges Scenario (APS) | E20: Net Zero Emissions by 2050 (NZE)
B21: Build cost trajectories
B22: Generator and storage build costs (GenCost 2024-25 Final Report) | C22: CSIRO GenCost Current Policies | D22: CSIRO GenCost NZE post 2050 | E22: CSIRO GenCost NZE by 2050
B23: Fuel price settings
B24: Gas prices | C24: ACIL Allen (2024), Progressive Change | D24: ACIL Allen (2024), Step Change | E24: ACIL Allen (2024), Green Energy Exports
B25: Coal prices | C25: ACIL Allen (2024), Progressive Change | D25: ACIL Allen (2024), Step Change | E25: ACIL Allen (2024), Green Energy Exports
B26: Gas Market Settings
B27: New gas supplies | C27: As forecast in AEMO's 2025 GSOO
B28: All other gas market settings | C28: Consistent with AEMO's 2025 GSOO Progressive Change scenario | D28: Consistent with AEMO's 2025 GSOO Step Change scenario | E28: Consistent with AEMO's 2025 GSOO Green Energy Exports scenario
B29: * Hydrogen blending into the gas distribution network will need to accommodate the technical requirements of distribution pipelines, as well as the capabilities of connected gas appliances.
D199: 360
D200: =950-660 -> 290
D201: =SUM(D199:D200) -> 650
D202: 540

Sheet Existing Gen Data Summary
B1: Go to Assumptions Summary
B2: Generator Summary - Existing, Committed and Anticipated generators
B3: Notes
B4: 1. Fuel costs represent the selected Scenario on the Fuel Price summary sheet and the selected year in cell Q12.
B5: 2. Seasonal ratings represent the selected year in Cell J12 to Cell L12.
B6: 3. SRMC is a calculation involving fuel costs, and as such will vary across scenario and year.
B7: 4. Expected retirement date in this summary sheet is indicative of the first unit's retirement date.
B10: IASR ID | C10: Power Station | D10: Technology Type | E10: Region | F10: Sub-region | G10: REZ Location | H10: REZ ID | I10: Status | J10: Regional build cost zone | K10: Maximum capacity (MW) | L10: Storage capacity (MWh) | M10: Summer peak rating (MW) | N10: Summer typical rating (MW) | O10: Winter rating (MW) | P10: Minimum Stable Limit | Q10: No-Load Heat Rate | R10: Marginal Heat Rate | S10: Pumping efficiency (%) | T10: Charge efficiency (%) | U10: Discharge efficiency (%) | V10: Allowable max state of charge (%) | W10: Allowable min state of charge (%) | X10: Round trip efficiency (%) | Y10: Annual degradation (%) | Z10: Max Ramp Up (MW/min) | AA10: Max Ramp Down (MW/min) | AB10: Maintenance - Proportion of time out (%) | AC10: Maintenance - Equivalent average days per year on planned outage | AD10: Forced Outage Rate (%) | AF10: Mean time to repair (hrs) | AH10: Derating Factor (%) | AI10: FOM ($/kW/annum) | AJ10: VOM ($/MWh sent-out) | AK10: Heat rate (GJ/MWh HHV s.o.) | AL10: Fuel cost ($/GJ) | AM10: Scope 1 Emissions (kg/MWh) | AN10: MLF | AO10: Auxiliary load (% of nameplate capacity) | AP10: SRMC ($/MWh) | AQ10: Expected Closure Year (Calendar year) | AR10: Retirement / Rehabilitation cost ($/MW) | AS10: Fault Level Replacement Cost ($M)
AD11: Full outage (% of time) | AE11: Partial outage (% of time) | AF11: Full outage MTTR (hrs) | AG11: Partial outage MTTR (hrs) | AH11: Partial Outage Derating Factor (%) | AL11: ='Fuel Price Summary'!C7 -> Step Change | AM11: Accelerated Transition
M12: 2025-26 | N12: 2032-33 | O12: 2033 | AD12: 2025-26 | AE12: 2025-26 | AF12: 2025-26 | AG12: 2025-26 | AH12: 2025-26 | AL12: 2025-26 | AM12: 2038-39
B13: ='Summary Mapping'!C7 -> BW01 | C13: ='Summary Mapping'!D7 -> Bayswater | D13: ='Summary Mapping'!E7 -> Steam Sub Critical | E13: ='Summary Mapping'!F7 -> NSW | F13: ='Summary Mapping'!G7 -> CNSW | G13: ='Summary Mapping'!H7 -> Not Applicable | H13: ='Summary Mapping'!I7 -> Not Applicable | I13: ='Summary Mapping'!J7 -> Existing | J13: ='Summary Mapping'!K7 -> Not Applicable | K13: =_xlfn.XLOOKUP(B13,'Maximum capacity'!$B$10:$B$665,'Maximum capacity'!$G$10:$G$665,"not found",0) -> 660 | L13: =_xlfn.XLOOKUP(B13,'Maximum capacity'!$B$10:$B$665,'Maximum capacity'!$H$10:$H$665,"not found",0) ->  | M13: =VLOOKUP($B13,'Seasonal ratings'!$B$45:$AI$700,(MATCH(M$12,'Seasonal ratings'!$F$44:$O$44,0)+COLUMN('Seasonal ratings'!$F$44)-COLUMN('Seasonal ratings'!$B$44)),FALSE) -> 630 | N13: =VLOOKUP($B13,'Seasonal ratings'!$B$45:$AI$700,(MATCH(N$12,'Seasonal ratings'!$P$44:$Y$44,0)+COLUMN('Seasonal ratings'!$P$44)-COLUMN('Seasonal ratings'!$B$44)),FALSE) -> 660 | O13: =VLOOKUP($B13,'Seasonal ratings'!$B$45:$AI$700,(MATCH(O$12,'Seasonal ratings'!$Z$44:$AI$44,0)+COLUMN('Seasonal ratings'!$Z$44)-COLUMN('Seasonal ratings'!$B$44)),FALSE) -> 660 | P13: =_xlfn.XLOOKUP($B13,'Coal Min Stable Level'!$B$14:$B$57,'Coal Min Stable Level'!$G$14:$G$57,_xlfn.XLOOKUP($B13,'GPG Min Stable Level'!$B$12:$B$148,'GPG Min Stable Level'!$E$12:$E$148,"not found",0),0) -> 170 | Q13: =_xlfn.XLOOKUP($B13,'Affine Heat rates'!$B$8:$B$188,'Affine Heat rates'!$E$8:$E$188,"not found",0) -> 540 | R13: =_xlfn.XLOOKUP($B13,'Affine Heat rates'!$B$8:$B$188,'Affine Heat rates'!$F$8:$F$188,"not found",0) -> 9.233753179 | S13: =_xlfn.XLOOKUP(_xlfn.XLOOKUP($B13,'Summary Mapping'!$C$7:$C$662,'Summary Mapping'!$Y$7:$Y$662,"not found",0),'Storage properties'!$B$22:$B$28,'Storage properties'!$E$22:$E$28,"not found",0) -> not found | T13: =_xlfn.XLOOKUP($D13,'Storage properties'!$B$6:$B$12,'Storage properties'!$E$6:$E$12, "not found",0) -> not found | U13: =_xlfn.XLOOKUP($D13,'Storage properties'!$B$6:$B$12,'Storage properties'!$F$6:$F$12, "not found",0) -> not found | V13: =_xlfn.XLOOKUP($D13,'Storage properties'!$B$6:$B$12,'Storage properties'!$G$6:$G$12, "not found",0) -> not found | W13: =_xlfn.XLOOKUP($D13,'Storage properties'!$B$6:$B$12,'Storage properties'!$H$6:$H$12, "not found",0) -> not found | X13: =_xlfn.XLOOKUP($D13,'Storage properties'!$B$6:$B$12,'Storage properties'!$I$6:$I$12, "not found",0) -> not found | Y13: =_xlfn.XLOOKUP($D13,'Storage properties'!$B$6:$B$12,'Storage properties'!$J$6:$J$12, "not found",0) -> not found | Z13: =_xlfn.XLOOKUP($B13,'Max Ramp Rates'!$B$9:$B$189,'Max Ramp Rates'!$E$9:$E$189, "not found", 0) -> 5 | AA13: =_xlfn.XLOOKUP($B13,'Max Ramp Rates'!$B$9:$B$189,'Max Ramp Rates'!$F$9:$F$189, "not found", 0) -> 5 | AB13: =_xlfn.XLOOKUP(_xlfn.XLOOKUP($B13,'Summary Mapping'!$C$7:$C$662,'Summary Mapping'!$O$7:$O$662,"not found",0),Maintenance!$B$7:$B$24,Maintenance!$C$7:$C$24,"not found",0) -> 5.479452055 | AC13: =_xlfn.XLOOKUP(_xlfn.XLOOKUP($B13,'Summary Mapping'!$C$7:$C$662,'Summary Mapping'!$O$7:$O$662,"not found",0),Maintenance!$B$7:$B$24,Maintenance!$D$7:$D$24,"not found",0) -> 20 | AD13: =IF($D13="Biomass",IFERROR(VLOOKUP($D13,'Generator Reliability Settings'!$B$58:$G$79,MATCH(AD$11,'Generator Reliability Settings'!$B$58:$G$58,0),FALSE),"not found"),IFERROR(INDEX('Generator Reliability Settings'!$B$23:$M$52,MATCH(_xlfn.XLOOKUP($B13,'Summary Mapping'!$C$7:$C$662,'Summary Mapping'!$P$7:$P$662,"not found",0)&AD$11,'Generator Reliability Settings'!$B$23:$B$52&'Generator Reliability Settings'!$C$23:$C$52,0),MIN(COLUMNS('Generator Reliability Settings'!$B$22:$M$52),MATCH(AD$12,'Generator Reliability Settings'!$B$22:$M$22,0))), "not found")) -> 0.05327398277 | AE13: =IF($D13="Biomass",IFERROR(VLOOKUP($D13,'Generator Reliability Settings'!$B$58:$G$79,MATCH(AE$11,'Generator Reliability Settings'!$B$58:$G$58,0),FALSE),"not found"),IFERROR(INDEX('Generator Reliability Settings'!$B$23:$M$52,MATCH(_xlfn.XLOOKUP($B13,'Summary Mapping'!$C$7:$C$662,'Summary Mapping'!$P$7:$P$662,"not found",0)&AE$11,'Generator Reliability Settings'!$B$23:$B$52&'Generator Reliability Settings'!$C$23:$C$52,0),MIN(COLUMNS('Generator Reliability Settings'!$B$22:$M$52),MATCH(AE$12,'Generator Reliability Settings'!$B$22:$M$22,0))), "not found")) -> 0.30516105 | AF13: =IF($D13="Biomass",IFERROR(VLOOKUP($D13,'Generator Reliability Settings'!$B$58:$G$79,MATCH(AF$11,'Generator Reliability Settings'!$B$58:$G$58,0),FALSE),"not found"),IFERROR(INDEX('Generator Reliability Settings'!$B$23:$M$52,MATCH(_xlfn.XLOOKUP($B13,'Summary Mapping'!$C$7:$C$662,'Summary Mapping'!$P$7:$P$662,"not found",0)&AF$11,'Generator Reliability Settings'!$B$23:$B$52&'Generator Reliability Settings'!$C$23:$C$52,0),MIN(COLUMNS('Generator Reliability Settings'!$B$22:$M$52),MATCH(AF$12,'Generator Reliability Settings'!$B$22:$M$22,0))), "not found")) -> 148.7062284 | AG13: =IF($D13="Biomass",IFERROR(VLOOKUP($D13,'Generator Reliability Settings'!$B$58:$G$79,MATCH(AG$11,'Generator Reliability Settings'!$B$58:$G$58,0),FALSE),"not found"),IFERROR(INDEX('Generator Reliability Settings'!$B$23:$M$52,MATCH(_xlfn.XLOOKUP($B13,'Summary Mapping'!$C$7:$C$662,'Summary Mapping'!$P$7:$P$662,"not found",0)&AG$11,'Generator Reliability Settings'!$B$23:$B$52&'Generator Reliability Settings'!$C$23:$C$52,0),MIN(COLUMNS('Generator Reliability Settings'!$B$22:$M$52),MATCH(AG$12,'Generator Reliability Settings'!$B$22:$M$22,0))), "not found")) -> 27.53229991 | AH13: =IF($D13="Biomass",IFERROR(VLOOKUP($D13,'Generator Reliability Settings'!$B$58:$G$79,MATCH(AH$11,'Generator Reliability Settings'!$B$58:$G$58,0),FALSE),"not found"),IFERROR(INDEX('Generator Reliability Settings'!$B$23:$M$52,MATCH(_xlfn.XLOOKUP($B13,'Summary Mapping'!$C$7:$C$662,'Summary Mapping'!$P$7:$P$662,"not found",0)&AH$11,'Generator Reliability Settings'!$B$23:$B$52&'Generator Reliability Settings'!$C$23:$C$52,0),MIN(COLUMNS('Generator Reliability Settings'!$B$22:$M$52),MATCH(AH$12,'Generator Reliability Settings'!$B$22:$M$22,0))), "not found")) -> 0.1864730238 | AI13: =_xlfn.XLOOKUP($B13,'Fixed OPEX'!$B$8:$B$663,'Fixed OPEX'!$E$8:$E$663,"not found", 0) -> 28 | AJ13: =_xlfn.XLOOKUP($B13,'Variable OPEX'!$B$8:$B$663,'Variable OPEX'!$E$8:$E$663,"not found",0) -> 8 | AK13: =_xlfn.XLOOKUP($B13,'Heat rates'!$B$9:$B$664,'Heat rates'!$E$9:$E$664,"not found", 0) -> 10.051935 | AL13: =INDEX('Fuel Price Summary'!$H$12:$AK$668,MATCH($B13,'Fuel Price Summary'!$B$12:$B$668,0),MATCH($AL$12,'Fuel Price Summary'!$H$12:$AK$12,0)) -> 4.124115 | AM13: =_xlfn.XLOOKUP($B13,'Emissions intensity'!$B$8:$B$664,'Emissions intensity'!$E$8:$E$664,"not found",0)*SUMPRODUCT((('GPG emissions reduction - BioM'!$B$9:$B$11)=AM$11)*(('GPG emissions reduction - BioM'!$C$8:$AF$8)=AM$12),'GPG emissions reduction - BioM'!$C$9:$AF$11) +N("this term is the emission intensity as at the current year") -> 581.3546833 | AN13: =_xlfn.XLOOKUP($B13,'Marginal Loss Factors'!$B$13:$B$668,'Marginal Loss Factors'!$F$13:$F$668, "not found", 0) -> 0.9637 | AO13: =_xlfn.XLOOKUP($B13,Auxiliary!$B$7:$B$662,Auxiliary!$E$7:$E$662,"not found",0) -> 5.48025286 | AP13: =AK13*AL13+AJ13 -> 49.4553359 | AQ13: =_xlfn.XLOOKUP($B13,Retirement!$B$14:$B$669,Retirement!$F$14:$F$669, "not found", 0) -> 2033 | AR13: =_xlfn.XLOOKUP($D13,Retirement!$I$14:$I$44,Retirement!$J$14:$J$44,"not found",0) -> 254000 | AS13: =_xlfn.XLOOKUP($B13,'Power System Security'!$B$6:$B$49,'Power System Security'!$D$6:$D$49,"not found",0) -> 112.7013642
B14: ='Summary Mapping'!C8 -> BW02 | C14: ='Summary Mapping'!D8 -> Bayswater | D14: ='Summary Mapping'!E8 -> Steam Sub Critical | E14: ='Summary Mapping'!F8 -> NSW | F14: ='Summary Mapping'!G8 -> CNSW | G14: ='Summary Mapping'!H8 -> Not Applicable | H14: ='Summary Mapping'!I8 -> Not Applicable | I14: ='Summary Mapping'!J8 -> Existing | J14: ='Summary Mapping'!K8 -> Not Applicable | K14: =_xlfn.XLOOKUP(B14,'Maximum capacity'!$B$10:$B$665,'Maximum capacity'!$G$10:$G$665,"not found",0) -> 685 | L14: =_xlfn.XLOOKUP(B14,'Maximum capacity'!$B$10:$B$665,'Maximum capacity'!$H$10:$H$665,"not found",0) ->  | M14: =VLOOKUP($B14,'Seasonal ratings'!$B$45:$AI$700,(MATCH(M$12,'Seasonal ratings'!$F$44:$O$44,0)+COLUMN('Seasonal ratings'!$F$44)-COLUMN('Seasonal ratings'!$B$44)),FALSE) -> 655 | N14: =VLOOKUP($B14,'Seasonal ratings'!$B$45:$AI$700,(MATCH(N$12,'Seasonal ratings'!$P$44:$Y$44,0)+COLUMN('Seasonal ratings'!$P$44)-COLUMN('Seasonal ratings'!$B$44)),FALSE) -> 685 | O14: =VLOOKUP($B14,'Seasonal ratings'!$B$45:$AI$700,(MATCH(O$12,'Seasonal ratings'!$Z$44:$AI$44,0)+COLUMN('Seasonal ratings'!$Z$44)-COLUMN('Seasonal ratings'!$B$44)),FALSE) -> 685 | P14: =_xlfn.XLOOKUP($B14,'Coal Min Stable Level'!$B$14:$B$57,'Coal Min Stable Level'!$G$14:$G$57,_xlfn.XLOOKUP($B14,'GPG Min Stable Level'!$B$12:$B$148,'GPG Min Stable Level'!$E$12:$E$148,"not found",0),0) -> 170 | Q14: =_xlfn.XLOOKUP($B14,'Affine Heat rates'!$B$8:$B$188,'Affine Heat rates'!$E$8:$E$188,"not found",0) -> 540 | R14: =_xlfn.XLOOKUP($B14,'Affine Heat rates'!$B$8:$B$188,'Affine Heat rates'!$F$8:$F$188,"not found",0) -> 9.26361383 | S14: =_xlfn.XLOOKUP(_xlfn.XLOOKUP($B14,'Summary Mapping'!$C$7:$C$662,'Summary Mapping'!$Y$7:$Y$662,"not found",0),'Storage properties'!$B$22:$B$28,'Storage properties'!$E$22:$E$28,"not found",0) -> not found | T14: =_xlfn.XLOOKUP($D14,'Storage properties'!$B$6:$B$12,'Storage properties'!$E$6:$E$12, "not found",0) -> not found | U14: =_xlfn.XLOOKUP($D14,'Storage properties'!$B$6:$B$12,'Storage properties'!$F$6:$F$12, "not found",0) -> not found | V14: =_xlfn.XLOOKUP($D14,'Storage properties'!$B$6:$B$12,'Storage properties'!$G$6:$G$12, "not found",0) -> not found | W14: =_xlfn.XLOOKUP($D14,'Storage properties'!$B$6:$B$12,'Storage properties'!$H$6:$H$12, "not found",0) -> not found | X14: =_xlfn.XLOOKUP($D14,'Storage properties'!$B$6:$B$12,'Storage properties'!$I$6:$I$12, "not found",0) -> not found | Y14: =_xlfn.XLOOKUP($D14,'Storage properties'!$B$6:$B$12,'Storage properties'!$J$6:$J$12, "not found",0) -> not found | Z14: =_xlfn.XLOOKUP($B14,'Max Ramp Rates'!$B$9:$B$189,'Max Ramp Rates'!$E$9:$E$189, "not found", 0) -> 5 | AA14: =_xlfn.XLOOKUP($B14,'Max Ramp Rates'!$B$9:$B$189,'Max Ramp Rates'!$F$9:$F$189, "not found", 0) -> 5 | AB14: =_xlfn.XLOOKUP(_xlfn.XLOOKUP($B14,'Summary Mapping'!$C$7:$C$662,'Summary Mapping'!$O$7:$O$662,"not found",0),Maintenance!$B$7:$B$24,Maintenance!$C$7:$C$24,"not found",0) -> 5.479452055 | AC14: =_xlfn.XLOOKUP(_xlfn.XLOOKUP($B14,'Summary Mapping'!$C$7:$C$662,'Summary Mapping'!$O$7:$O$662,"not found",0),Maintenance!$B$7:$B$24,Maintenance!$D$7:$D$24,"not found",0) -> 20 | AD14: =IF($D14="Biomass",IFERROR(VLOOKUP($D14,'Generator Reliability Settings'!$B$58:$G$79,MATCH(AD$11,'Generator Reliability Settings'!$B$58:$G$58,0),FALSE),"not found"),IFERROR(INDEX('Generator Reliability Settings'!$B$23:$M$52,MATCH(_xlfn.XLOOKUP($B14,'Summary Mapping'!$C$7:$C$662,'Summary Mapping'!$P$7:$P$662,"not found",0)&AD$11,'Generator Reliability Settings'!$B$23:$B$52&'Generator Reliability Settings'!$C$23:$C$52,0),MIN(COLUMNS('Generator Reliability Settings'!$B$22:$M$52),MATCH(AD$12,'Generator Reliability Settings'!$B$22:$M$22,0))), "not found")) -> 0.05327398277 | AE14: =IF($D14="Biomass",IFERROR(VLOOKUP($D14,'Generator Reliability Settings'!$B$58:$G$79,MATCH(AE$11,'Generator Reliability Settings'!$B$58:$G$58,0),FALSE),"not found"),IFERROR(INDEX('Generator Reliability Settings'!$B$23:$M$52,MATCH(_xlfn.XLOOKUP($B14,'Summary Mapping'!$C$7:$C$662,'Summary Mapping'!$P$7:$P$662,"not found",0)&AE$11,'Generator Reliability Settings'!$B$23:$B$52&'Generator Reliability Settings'!$C$23:$C$52,0),MIN(COLUMNS('Generator Reliability Settings'!$B$22:$M$52),MATCH(AE$12,'Generator Reliability Settings'!$B$22:$M$22,0))), "not found")) -> 0.30516105 | AF14: =IF($D14="Biomass",IFERROR(VLOOKUP($D14,'Generator Reliability Settings'!$B$58:$G$79,MATCH(AF$11,'Generator Reliability Settings'!$B$58:$G$58,0),FALSE),"not found"),IFERROR(INDEX('Generator Reliability Settings'!$B$23:$M$52,MATCH(_xlfn.XLOOKUP($B14,'Summary Mapping'!$C$7:$C$662,'Summary Mapping'!$P$7:$P$662,"not found",0)&AF$11,'Generator Reliability Settings'!$B$23:$B$52&'Generator Reliability Settings'!$C$23:$C$52,0),MIN(COLUMNS('Generator Reliability Settings'!$B$22:$M$52),MATCH(AF$12,'Generator Reliability Settings'!$B$22:$M$22,0))), "not found")) -> 148.7062284 | AG14: =IF($D14="Biomass",IFERROR(VLOOKUP($D14,'Generator Reliability Settings'!$B$58:$G$79,MATCH(AG$11,'Generator Reliability Settings'!$B$58:$G$58,0),FALSE),"not found"),IFERROR(INDEX('Generator Reliability Settings'!$B$23:$M$52,MATCH(_xlfn.XLOOKUP($B14,'Summary Mapping'!$C$7:$C$662,'Summary Mapping'!$P$7:$P$662,"not found",0)&AG$11,'Generator Reliability Settings'!$B$23:$B$52&'Generator Reliability Settings'!$C$23:$C$52,0),MIN(COLUMNS('Generator Reliability Settings'!$B$22:$M$52),MATCH(AG$12,'Generator Reliability Settings'!$B$22:$M$22,0))), "not found")) -> 27.53229991 | AH14: =IF($D14="Biomass",IFERROR(VLOOKUP($D14,'Generator Reliability Settings'!$B$58:$G$79,MATCH(AH$11,'Generator Reliability Settings'!$B$58:$G$58,0),FALSE),"not found"),IFERROR(INDEX('Generator Reliability Settings'!$B$23:$M$52,MATCH(_xlfn.XLOOKUP($B14,'Summary Mapping'!$C$7:$C$662,'Summary Mapping'!$P$7:$P$662,"not found",0)&AH$11,'Generator Reliability Settings'!$B$23:$B$52&'Generator Reliability Settings'!$C$23:$C$52,0),MIN(COLUMNS('Generator Reliability Settings'!$B$22:$M$52),MATCH(AH$12,'Generator Reliability Settings'!$B$22:$M$22,0))), "not found")) -> 0.1864730238 | AI14: =_xlfn.XLOOKUP($B14,'Fixed OPEX'!$B$8:$B$663,'Fixed OPEX'!$E$8:$E$663,"not found", 0) -> 28 | AJ14: =_xlfn.XLOOKUP($B14,'Variable OPEX'!$B$8:$B$663,'Variable OPEX'!$E$8:$E$663,"not found",0) -> 8 | AK14: =_xlfn.XLOOKUP($B14,'Heat rates'!$B$9:$B$664,'Heat rates'!$E$9:$E$664,"not found", 0) -> 10.051935 | AL14: =INDEX('Fuel Price Summary'!$H$12:$AK$668,MATCH($B14,'Fuel Price Summary'!$B$12:$B$668,0),MATCH($AL$12,'Fuel Price Summary'!$H$12:$AK$12,0)) -> 4.124115 | AM14: =_xlfn.XLOOKUP($B14,'Emissions intensity'!$B$8:$B$664,'Emissions intensity'!$E$8:$E$664,"not found",0)*SUMPRODUCT((('GPG emissions reduction - BioM'!$B$9:$B$11)=AM$11)*(('GPG emissions reduction - BioM'!$C$8:$AF$8)=AM$12),'GPG emissions reduction - BioM'!$C$9:$AF$11) +N("this term is the emission intensity as at the current year") -> 581.3546833 | AN14: =_xlfn.XLOOKUP($B14,'Marginal Loss Factors'!$B$13:$B$668,'Marginal Loss Factors'!$F$13:$F$668, "not found", 0) -> 0.9637 | AO14: =_xlfn.XLOOKUP($B14,Auxiliary!$B$7:$B$662,Auxiliary!$E$7:$E$662,"not found",0) -> 5.48025286 | AP14: =AK14*AL14+AJ14 -> 49.4553359 | AQ14: =_xlfn.XLOOKUP($B14,Retirement!$B$14:$B$669,Retirement!$F$14:$F$669, "not found", 0) -> 2033 | AR14: =_xlfn.XLOOKUP($D14,Retirement!$I$14:$I$44,Retirement!$J$14:$J$44,"not found",0) -> 254000 | AS14: =_xlfn.XLOOKUP($B14,'Power System Security'!$B$6:$B$49,'Power System Security'!$D$6:$D$49,"not found",0) -> 116.9703553
B15: ='Summary Mapping'!C9 -> BW03 | C15: ='Summary Mapping'!D9 -> Bayswater | D15: ='Summary Mapping'!E9 -> Steam Sub Critical | E15: ='Summary Mapping'!F9 -> NSW | F15: ='Summary Mapping'!G9 -> CNSW | G15: ='Summary Mapping'!H9 -> Not Applicable | H15: ='Summary Mapping'!I9 -> Not Applicable | I15: ='Summary Mapping'!J9 -> Existing | J15: ='Summary Mapping'!K9 -> Not Applicable | K15: =_xlfn.XLOOKUP(B15,'Maximum capacity'!$B$10:$B$665,'Maximum capacity'!$G$10:$G$665,"not found",0) -> 685 | L15: =_xlfn.XLOOKUP(B15,'Maximum capacity'!$B$10:$B$665,'Maximum capacity'!$H$10:$H$665,"not found",0) ->  | M15: =VLOOKUP($B15,'Seasonal ratings'!$B$45:$AI$700,(MATCH(M$12,'Seasonal ratings'!$F$44:$O$44,0)+COLUMN('Seasonal ratings'!$F$44)-COLUMN('Seasonal ratings'!$B$44)),FALSE) -> 655 | N15: =VLOOKUP($B15,'Seasonal ratings'!$B$45:$AI$700,(MATCH(N$12,'Seasonal ratings'!$P$44:$Y$44,0)+COLUMN('Seasonal ratings'!$P$44)-COLUMN('Seasonal ratings'!$B$44)),FALSE) -> 685 | O15: =VLOOKUP($B15,'Seasonal ratings'!$B$45:$AI$700,(MATCH(O$12,'Seasonal ratings'!$Z$44:$AI$44,0)+COLUMN('Seasonal ratings'!$Z$44)-COLUMN('Seasonal ratings'!$B$44)),FALSE) -> 685 | P15: =_xlfn.XLOOKUP($B15,'Coal Min Stable Level'!$B$14:$B$57,'Coal Min Stable Level'!$G$14:$G$57,_xlfn.XLOOKUP($B15,'GPG Min Stable Level'!$B$12:$B$148,'GPG Min Stable Level'!$E$12:$E$148,"not found",0),0) -> 170 | Q15: =_xlfn.XLOOKUP($B15,'Affine Heat rates'!$B$8:$B$188,'Affine Heat rates'!$E$8:$E$188,"not found",0) -> 540 | R15: =_xlfn.XLOOKUP($B15,'Affine Heat rates'!$B$8:$B$188,'Affine Heat rates'!$F$8:$F$188,"not found",0) -> 9.26361383 | S15: =_xlfn.XLOOKUP(_xlfn.XLOOKUP($B15,'Summary Mapping'!$C$7:$C$662,'Summary Mapping'!$Y$7:$Y$662,"not found",0),'Storage properties'!$B$22:$B$28,'Storage properties'!$E$22:$E$28,"not found",0) -> not found | T15: =_xlfn.XLOOKUP($D15,'Storage properties'!$B$6:$B$12,'Storage properties'!$E$6:$E$12, "not found",0) -> not found | U15: =_xlfn.XLOOKUP($D15,'Storage properties'!$B$6:$B$12,'Storage properties'!$F$6:$F$12, "not found",0) -> not found | V15: =_xlfn.XLOOKUP($D15,'Storage properties'!$B$6:$B$12,'Storage properties'!$G$6:$G$12, "not found",0) -> not found | W15: =_xlfn.XLOOKUP($D15,'Storage properties'!$B$6:$B$12,'Storage properties'!$H$6:$H$12, "not found",0) -> not found | X15: =_xlfn.XLOOKUP($D15,'Storage properties'!$B$6:$B$12,'Storage properties'!$I$6:$I$12, "not found",0) -> not found | Y15: =_xlfn.XLOOKUP($D15,'Storage properties'!$B$6:$B$12,'Storage properties'!$J$6:$J$12, "not found",0) -> not found | Z15: =_xlfn.XLOOKUP($B15,'Max Ramp Rates'!$B$9:$B$189,'Max Ramp Rates'!$E$9:$E$189, "not found", 0) -> 5 | AA15: =_xlfn.XLOOKUP($B15,'Max Ramp Rates'!$B$9:$B$189,'Max Ramp Rates'!$F$9:$F$189, "not found", 0) -> 5 | AB15: =_xlfn.XLOOKUP(_xlfn.XLOOKUP($B15,'Summary Mapping'!$C$7:$C$662,'Summary Mapping'!$O$7:$O$662,"not found",0),Maintenance!$B$7:$B$24,Maintenance!$C$7:$C$24,"not found",0) -> 5.479452055 | AC15: =_xlfn.XLOOKUP(_xlfn.XLOOKUP($B15,'Summary Mapping'!$C$7:$C$662,'Summary Mapping'!$O$7:$O$662,"not found",0),Maintenance!$B$7:$B$24,Maintenance!$D$7:$D$24,"not found",0) -> 20 | AD15: =IF($D15="Biomass",IFERROR(VLOOKUP($D15,'Generator Reliability Settings'!$B$58:$G$79,MATCH(AD$11,'Generator Reliability Settings'!$B$58:$G$58,0),FALSE),"not found"),IFERROR(INDEX('Generator Reliability Settings'!$B$23:$M$52,MATCH(_xlfn.XLOOKUP($B15,'Summary Mapping'!$C$7:$C$662,'Summary Mapping'!$P$7:$P$662,"not found",0)&AD$11,'Generator Reliability Settings'!$B$23:$B$52&'Generator Reliability Settings'!$C$23:$C$52,0),MIN(COLUMNS('Generator Reliability Settings'!$B$22:$M$52),MATCH(AD$12,'Generator Reliability Settings'!$B$22:$M$22,0))), "not found")) -> 0.05327398277 | AE15: =IF($D15="Biomass",IFERROR(VLOOKUP($D15,'Generator Reliability Settings'!$B$58:$G$79,MATCH(AE$11,'Generator Reliability Settings'!$B$58:$G$58,0),FALSE),"not found"),IFERROR(INDEX('Generator Reliability Settings'!$B$23:$M$52,MATCH(_xlfn.XLOOKUP($B15,'Summary Mapping'!$C$7:$C$662,'Summary Mapping'!$P$7:$P$662,"not found",0)&AE$11,'Generator Reliability Settings'!$B$23:$B$52&'Generator Reliability Settings'!$C$23:$C$52,0),MIN(COLUMNS('Generator Reliability Settings'!$B$22:$M$52),MATCH(AE$12,'Generator Reliability Settings'!$B$22:$M$22,0))), "not found")) -> 0.30516105 | AF15: =IF($D15="Biomass",IFERROR(VLOOKUP($D15,'Generator Reliability Settings'!$B$58:$G$79,MATCH(AF$11,'Generator Reliability Settings'!$B$58:$G$58,0),FALSE),"not found"),IFERROR(INDEX('Generator Reliability Settings'!$B$23:$M$52,MATCH(_xlfn.XLOOKUP($B15,'Summary Mapping'!$C$7:$C$662,'Summary Mapping'!$P$7:$P$662,"not found",0)&AF$11,'Generator Reliability Settings'!$B$23:$B$52&'Generator Reliability Settings'!$C$23:$C$52,0),MIN(COLUMNS('Generator Reliability Settings'!$B$22:$M$52),MATCH(AF$12,'Generator Reliability Settings'!$B$22:$M$22,0))), "not found")) -> 148.7062284 | AG15: =IF($D15="Biomass",IFERROR(VLOOKUP($D15,'Generator Reliability Settings'!$B$58:$G$79,MATCH(AG$11,'Generator Reliability Settings'!$B$58:$G$58,0),FALSE),"not found"),IFERROR(INDEX('Generator Reliability Settings'!$B$23:$M$52,MATCH(_xlfn.XLOOKUP($B15,'Summary Mapping'!$C$7:$C$662,'Summary Mapping'!$P$7:$P$662,"not found",0)&AG$11,'Generator Reliability Settings'!$B$23:$B$52&'Generator Reliability Settings'!$C$23:$C$52,0),MIN(COLUMNS('Generator Reliability Settings'!$B$22:$M$52),MATCH(AG$12,'Generator Reliability Settings'!$B$22:$M$22,0))), "not found")) -> 27.53229991 | AH15: =IF($D15="Biomass",IFERROR(VLOOKUP($D15,'Generator Reliability Settings'!$B$58:$G$79,MATCH(AH$11,'Generator Reliability Settings'!$B$58:$G$58,0),FALSE),"not found"),IFERROR(INDEX('Generator Reliability Settings'!$B$23:$M$52,MATCH(_xlfn.XLOOKUP($B15,'Summary Mapping'!$C$7:$C$662,'Summary Mapping'!$P$7:$P$662,"not found",0)&AH$11,'Generator Reliability Settings'!$B$23:$B$52&'Generator Reliability Settings'!$C$23:$C$52,0),MIN(COLUMNS('Generator Reliability Settings'!$B$22:$M$52),MATCH(AH$12,'Generator Reliability Settings'!$B$22:$M$22,0))), "not found")) -> 0.1864730238 | AI15: =_xlfn.XLOOKUP($B15,'Fixed OPEX'!$B$8:$B$663,'Fixed OPEX'!$E$8:$E$663,"not found", 0) -> 28 | AJ15: =_xlfn.XLOOKUP($B15,'Variable OPEX'!$B$8:$B$663,'Variable OPEX'!$E$8:$E$663,"not found",0) -> 8 | AK15: =_xlfn.XLOOKUP($B15,'Heat rates'!$B$9:$B$664,'Heat rates'!$E$9:$E$664,"not found", 0) -> 10.051935 | AL15: =INDEX('Fuel Price Summary'!$H$12:$AK$668,MATCH($B15,'Fuel Price Summary'!$B$12:$B$668,0),MATCH($AL$12,'Fuel Price Summary'!$H$12:$AK$12,0)) -> 4.124115 | AM15: =_xlfn.XLOOKUP($B15,'Emissions intensity'!$B$8:$B$664,'Emissions intensity'!$E$8:$E$664,"not found",0)*SUMPRODUCT((('GPG emissions reduction - BioM'!$B$9:$B$11)=AM$11)*(('GPG emissions reduction - BioM'!$C$8:$AF$8)=AM$12),'GPG emissions reduction - BioM'!$C$9:$AF$11) +N("this term is the emission intensity as at the current year") -> 581.3546833 | AN15: =_xlfn.XLOOKUP($B15,'Marginal Loss Factors'!$B$13:$B$668,'Marginal Loss Factors'!$F$13:$F$668, "not found", 0) -> 0.9637 | AO15: =_xlfn.XLOOKUP($B15,Auxiliary!$B$7:$B$662,Auxiliary!$E$7:$E$662,"not found",0) -> 5.48025286 | AP15: 49.4553359 | AQ15: =_xlfn.XLOOKUP($B15,Retirement!$B$14:$B$669,Retirement!$F$14:$F$669, "not found", 0) -> 2033 | AR15: =_xlfn.XLOOKUP($D15,Retirement!$I$14:$I$44,Retirement!$J$14:$J$44,"not found",0) -> 254000 | AS15: =_xlfn.XLOOKUP($B15,'Power System Security'!$B$6:$B$49,'Power System Security'!$D$6:$D$49,"not found",0) -> 116.9703553
B16: ='Summary Mapping'!C10 -> BW04 | C16: ='Summary Mapping'!D10 -> Bayswater | D16: ='Summary Mapping'!E10 -> Steam Sub Critical | E16: ='Summary Mapping'!F10 -> NSW | F16: ='Summary Mapping'!G10 -> CNSW | G16: ='Summary Mapping'!H10 -> Not Applicable | H16: ='Summary Mapping'!I10 -> Not Applicable | I16: ='Summary Mapping'!J10 -> Existing | J16: ='Summary Mapping'!K10 -> Not Applicable | K16: =_xlfn.XLOOKUP(B16,'Maximum capacity'!$B$10:$B$665,'Maximum capacity'!$G$10:$G$665,"not found",0) -> 685 | L16: =_xlfn.XLOOKUP(B16,'Maximum capacity'!$B$10:$B$665,'Maximum capacity'!$H$10:$H$665,"not found",0) ->  | M16: =VLOOKUP($B16,'Seasonal ratings'!$B$45:$AI$700,(MATCH(M$12,'Seasonal ratings'!$F$44:$O$44,0)+COLUMN('Seasonal ratings'!$F$44)-COLUMN('Seasonal ratings'!$B$44)),FALSE) -> 655 | N16: =VLOOKUP($B16,'Seasonal ratings'!$B$45:$AI$700,(MATCH(N$12,'Seasonal ratings'!$P$44:$Y$44,0)+COLUMN('Seasonal ratings'!$P$44)-COLUMN('Seasonal ratings'!$B$44)),FALSE) -> 685 | O16: =VLOOKUP($B16,'Seasonal ratings'!$B$45:$AI$700,(MATCH(O$12,'Seasonal ratings'!$Z$44:$AI$44,0)+COLUMN('Seasonal ratings'!$Z$44)-COLUMN('Seasonal ratings'!$B$44)),FALSE) -> 685 | P16: =_xlfn.XLOOKUP($B16,'Coal Min Stable Level'!$B$14:$B$57,'Coal Min Stable Level'!$G$14:$G$57,_xlfn.XLOOKUP($B16,'GPG Min Stable Level'!$B$12:$B$148,'GPG Min Stable Level'!$E$12:$E$148,"not found",0),0) -> 170 | Q16: =_xlfn.XLOOKUP($B16,'Affine Heat rates'!$B$8:$B$188,'Affine Heat rates'!$E$8:$E$188,"not found",0) -> 540 | R16: =_xlfn.XLOOKUP($B16,'Affine Heat rates'!$B$8:$B$188,'Affine Heat rates'!$F$8:$F$188,"not found",0) -> 9.26361383 | S16: =_xlfn.XLOOKUP(_xlfn.XLOOKUP($B16,'Summary Mapping'!$C$7:$C$662,'Summary Mapping'!$Y$7:$Y$662,"not found",0),'Storage properties'!$B$22:$B$28,'Storage properties'!$E$22:$E$28,"not found",0) -> not found | T16: =_xlfn.XLOOKUP($D16,'Storage properties'!$B$6:$B$12,'Storage properties'!$E$6:$E$12, "not found",0) -> not found | U16: =_xlfn.XLOOKUP($D16,'Storage properties'!$B$6:$B$12,'Storage properties'!$F$6:$F$12, "not found",0) -> not found | V16: =_xlfn.XLOOKUP($D16,'Storage properties'!$B$6:$B$12,'Storage properties'!$G$6:$G$12, "not found",0) -> not found | W16: =_xlfn.XLOOKUP($D16,'Storage properties'!$B$6:$B$12,'Storage properties'!$H$6:$H$12, "not found",0) -> not found | X16: =_xlfn.XLOOKUP($D16,'Storage properties'!$B$6:$B$12,'Storage properties'!$I$6:$I$12, "not found",0) -> not found | Y16: =_xlfn.XLOOKUP($D16,'Storage properties'!$B$6:$B$12,'Storage properties'!$J$6:$J$12, "not found",0) -> not found | Z16: =_xlfn.XLOOKUP($B16,'Max Ramp Rates'!$B$9:$B$189,'Max Ramp Rates'!$E$9:$E$189, "not found", 0) -> 5 | AA16: =_xlfn.XLOOKUP($B16,'Max Ramp Rates'!$B$9:$B$189,'Max Ramp Rates'!$F$9:$F$189, "not found", 0) -> 5 | AB16: =_xlfn.XLOOKUP(_xlfn.XLOOKUP($B16,'Summary Mapping'!$C$7:$C$662,'Summary Mapping'!$O$7:$O$662,"not found",0),Maintenance!$B$7:$B$24,Maintenance!$C$7:$C$24,"not found",0) -> 5.479452055 | AC16: =_xlfn.XLOOKUP(_xlfn.XLOOKUP($B16,'Summary Mapping'!$C$7:$C$662,'Summary Mapping'!$O$7:$O$662,"not found",0),Maintenance!$B$7:$B$24,Maintenance!$D$7:$D$24,"not found",0) -> 20 | AD16: =IF($D16="Biomass",IFERROR(VLOOKUP($D16,'Generator Reliability Settings'!$B$58:$G$79,MATCH(AD$11,'Generator Reliability Settings'!$B$58:$G$58,0),FALSE),"not found"),IFERROR(INDEX('Generator Reliability Settings'!$B$23:$M$52,MATCH(_xlfn.XLOOKUP($B16,'Summary Mapping'!$C$7:$C$662,'Summary Mapping'!$P$7:$P$662,"not found",0)&AD$11,'Generator Reliability Settings'!$B$23:$B$52&'Generator Reliability Settings'!$C$23:$C$52,0),MIN(COLUMNS('Generator Reliability Settings'!$B$22:$M$52),MATCH(AD$12,'Generator Reliability Settings'!$B$22:$M$22,0))), "not found")) -> 0.05327398277 | AE16: =IF($D16="Biomass",IFERROR(VLOOKUP($D16,'Generator Reliability Settings'!$B$58:$G$79,MATCH(AE$11,'Generator Reliability Settings'!$B$58:$G$58,0),FALSE),"not found"),IFERROR(INDEX('Generator Reliability Settings'!$B$23:$M$52,MATCH(_xlfn.XLOOKUP($B16,'Summary Mapping'!$C$7:$C$662,'Summary Mapping'!$P$7:$P$662,"not found",0)&AE$11,'Generator Reliability Settings'!$B$23:$B$52&'Generator Reliability Settings'!$C$23:$C$52,0),MIN(COLUMNS('Generator Reliability Settings'!$B$22:$M$52),MATCH(AE$12,'Generator Reliability Settings'!$B$22:$M$22,0))), "not found")) -> 0.30516105 | AF16: =IF($D16="Biomass",IFERROR(VLOOKUP($D16,'Generator Reliability Settings'!$B$58:$G$79,MATCH(AF$11,'Generator Reliability Settings'!$B$58:$G$58,0),FALSE),"not found"),IFERROR(INDEX('Generator Reliability Settings'!$B$23:$M$52,MATCH(_xlfn.XLOOKUP($B16,'Summary Mapping'!$C$7:$C$662,'Summary Mapping'!$P$7:$P$662,"not found",0)&AF$11,'Generator Reliability Settings'!$B$23:$B$52&'Generator Reliability Settings'!$C$23:$C$52,0),MIN(COLUMNS('Generator Reliability Settings'!$B$22:$M$52),MATCH(AF$12,'Generator Reliability Settings'!$B$22:$M$22,0))), "not found")) -> 148.7062284 | AG16: =IF($D16="Biomass",IFERROR(VLOOKUP($D16,'Generator Reliability Settings'!$B$58:$G$79,MATCH(AG$11,'Generator Reliability Settings'!$B$58:$G$58,0),FALSE),"not found"),IFERROR(INDEX('Generator Reliability Settings'!$B$23:$M$52,MATCH(_xlfn.XLOOKUP($B16,'Summary Mapping'!$C$7:$C$662,'Summary Mapping'!$P$7:$P$662,"not found",0)&AG$11,'Generator Reliability Settings'!$B$23:$B$52&'Generator Reliability Settings'!$C$23:$C$52,0),MIN(COLUMNS('Generator Reliability Settings'!$B$22:$M$52),MATCH(AG$12,'Generator Reliability Settings'!$B$22:$M$22,0))), "not found")) -> 27.53229991 | AH16: =IF($D16="Biomass",IFERROR(VLOOKUP($D16,'Generator Reliability Settings'!$B$58:$G$79,MATCH(AH$11,'Generator Reliability Settings'!$B$58:$G$58,0),FALSE),"not found"),IFERROR(INDEX('Generator Reliability Settings'!$B$23:$M$52,MATCH(_xlfn.XLOOKUP($B16,'Summary Mapping'!$C$7:$C$662,'Summary Mapping'!$P$7:$P$662,"not found",0)&AH$11,'Generator Reliability Settings'!$B$23:$B$52&'Generator Reliability Settings'!$C$23:$C$52,0),MIN(COLUMNS('Generator Reliability Settings'!$B$22:$M$52),MATCH(AH$12,'Generator Reliability Settings'!$B$22:$M$22,0))), "not found")) -> 0.1864730238 | AI16: =_xlfn.XLOOKUP($B16,'Fixed OPEX'!$B$8:$B$663,'Fixed OPEX'!$E$8:$E$663,"not found", 0) -> 28 | AJ16: =_xlfn.XLOOKUP($B16,'Variable OPEX'!$B$8:$B$663,'Variable OPEX'!$E$8:$E$663,"not found",0) -> 8 | AK16: =_xlfn.XLOOKUP($B16,'Heat rates'!$B$9:$B$664,'Heat rates'!$E$9:$E$664,"not found", 0) -> 10.051935 | AL16: =INDEX('Fuel Price Summary'!$H$12:$AK$668,MATCH($B16,'Fuel Price Summary'!$B$12:$B$668,0),MATCH($AL$12,'Fuel Price Summary'!$H$12:$AK$12,0)) -> 4.124115 | AM16: =_xlfn.XLOOKUP($B16,'Emissions intensity'!$B$8:$B$664,'Emissions intensity'!$E$8:$E$664,"not found",0)*SUMPRODUCT((('GPG emissions reduction - BioM'!$B$9:$B$11)=AM$11)*(('GPG emissions reduction - BioM'!$C$8:$AF$8)=AM$12),'GPG emissions reduction - BioM'!$C$9:$AF$11) +N("this term is the emission intensity as at the current year") -> 581.3546833 | AN16: =_xlfn.XLOOKUP($B16,'Marginal Loss Factors'!$B$13:$B$668,'Marginal Loss Factors'!$F$13:$F$668, "not found", 0) -> 0.9637 | AO16: =_xlfn.XLOOKUP($B16,Auxiliary!$B$7:$B$662,Auxiliary!$E$7:$E$662,"not found",0) -> 5.48025286 | AP16: 49.4553359 | AQ16: =_xlfn.XLOOKUP($B16,Retirement!$B$14:$B$669,Retirement!$F$14:$F$669, "not found", 0) -> 2033 | AR16: =_xlfn.XLOOKUP($D16,Retirement!$I$14:$I$44,Retirement!$J$14:$J$44,"not found",0) -> 254000 | AS16: =_xlfn.XLOOKUP($B16,'Power System Security'!$B$6:$B$49,'Power System Security'!$D$6:$D$49,"not found",0) -> 116.9703553
B17: ='Summary Mapping'!C11 -> CALL_B_1 | C17: ='Summary Mapping'!D11 -> Callide B | D17: ='Summary Mapping'!E11 -> Steam Sub Critical | E17: ='Summary Mapping'!F11 -> QLD | F17: ='Summary Mapping'!G11 -> CQ | G17: ='Summary Mapping'!H11 -> Not Applicable | H17: ='Summary Mapping'!I11 -> Not Applicable | I17: ='Summary Mapping'!J11 -> Existing | J17: ='Summary Mapping'!K11 -> Not Applicable | K17: =_xlfn.XLOOKUP(B17,'Maximum capacity'!$B$10:$B$665,'Maximum capacity'!$G$10:$G$665,"not found",0) -> 350 | L17: =_xlfn.XLOOKUP(B17,'Maximum capacity'!$B$10:$B$665,'Maximum capacity'!$H$10:$H$665,"not found",0) ->  | M17: =VLOOKUP($B17,'Seasonal ratings'!$B$45:$AI$700,(MATCH(M$12,'Seasonal ratings'!$F$44:$O$44,0)+COLUMN('Seasonal ratings'!$F$44)-COLUMN('Seasonal ratings'!$B$44)),FALSE) -> 325 | N17: =VLOOKUP($B17,'Seasonal ratings'!$B$45:$AI$700,(MATCH(N$12,'Seasonal ratings'!$P$44:$Y$44,0)+COLUMN('Seasonal ratings'!$P$44)-COLUMN('Seasonal ratings'!$B$44)),FALSE) -> 0 | O17: =VLOOKUP($B17,'Seasonal ratings'!$B$45:$AI$700,(MATCH(O$12,'Seasonal ratings'!$Z$44:$AI$44,0)+COLUMN('Seasonal ratings'!$Z$44)-COLUMN('Seasonal ratings'!$B$44)),FALSE) -> 0 | P17: =_xlfn.XLOOKUP($B17,'Coal Min Stable Level'!$B$14:$B$57,'Coal Min Stable Level'!$G$14:$G$57,_xlfn.XLOOKUP($B17,'GPG Min Stable Level'!$B$12:$B$148,'GPG Min Stable Level'!$E$12:$E$148,"not found",0),0) -> 140 | Q17: =_xlfn.XLOOKUP($B17,'Affine Heat rates'!$B$8:$B$188,'Affine Heat rates'!$E$8:$E$188,"not found",0) -> 504 | R17: =_xlfn.XLOOKUP($B17,'Affine Heat rates'!$B$8:$B$188,'Affine Heat rates'!$F$8:$F$188,"not found",0) -> 8.626269608 | S17: =_xlfn.XLOOKUP(_xlfn.XLOOKUP($B17,'Summary Mapping'!$C$7:$C$662,'Summary Mapping'!$Y$7:$Y$662,"not found",0),'Storage properties'!$B$22:$B$28,'Storage properties'!$E$22:$E$28,"not found",0) -> not found | T17: =_xlfn.XLOOKUP($D17,'Storage properties'!$B$6:$B$12,'Storage properties'!$E$6:$E$12, "not found",0) -> not found | U17: =_xlfn.XLOOKUP($D17,'Storage properties'!$B$6:$B$12,'Storage properties'!$F$6:$F$12, "not found",0) -> not found | V17: =_xlfn.XLOOKUP($D17,'Storage properties'!$B$6:$B$12,'Storage properties'!$G$6:$G$12, "not found",0) -> not found | W17: =_xlfn.XLOOKUP($D17,'Storage properties'!$B$6:$B$12,'Storage properties'!$H$6:$H$12, "not found",0) -> not found | X17: =_xlfn.XLOOKUP($D17,'Storage properties'!$B$6:$B$12,'Storage properties'!$I$6:$I$12, "not found",0) -> not found | Y17: =_xlfn.XLOOKUP($D17,'Storage properties'!$B$6:$B$12,'Storage properties'!$J$6:$J$12, "not found",0) -> not found | Z17: =_xlfn.XLOOKUP($B17,'Max Ramp Rates'!$B$9:$B$189,'Max Ramp Rates'!$E$9:$E$189, "not found", 0) -> 4 | AA17: =_xlfn.XLOOKUP($B17,'Max Ramp Rates'!$B$9:$B$189,'Max Ramp Rates'!$F$9:$F$189, "not found", 0) -> 4 | AB17: =_xlfn.XLOOKUP(_xlfn.XLOOKUP($B17,'Summary Mapping'!$C$7:$C$662,'Summary Mapping'!$O$7:$O$662,"not found",0),Maintenance!$B$7:$B$24,Maintenance!$C$7:$C$24,"not found",0) -> 5.479452055 | AC17: =_xlfn.XLOOKUP(_xlfn.XLOOKUP($B17,'Summary Mapping'!$C$7:$C$662,'Summary Mapping'!$O$7:$O$662,"not found",0),Maintenance!$B$7:$B$24,Maintenance!$D$7:$D$24,"not found",0) -> 20 | AD17: =IF($D17="Biomass",IFERROR(VLOOKUP($D17,'Generator Reliability Settings'!$B$58:$G$79,MATCH(AD$11,'Generator Reliability Settings'!$B$58:$G$58,0),FALSE),"not found"),IFERROR(INDEX('Generator Reliability Settings'!$B$23:$M$52,MATCH(_xlfn.XLOOKUP($B17,'Summary Mapping'!$C$7:$C$662,'Summary Mapping'!$P$7:$P$662,"not found",0)&AD$11,'Generator Reliability Settings'!$B$23:$B$52&'Generator Reliability Settings'!$C$23:$C$52,0),MIN(COLUMNS('Generator Reliability Settings'!$B$22:$M$52),MATCH(AD$12,'Generator Reliability Settings'!$B$22:$M$22,0))), "not found")) -> 0.09270884418 | AE17: =IF($D17="Biomass",IFERROR(VLOOKUP($D17,'Generator Reliability Settings'!$B$58:$G$79,MATCH(AE$11,'Generator Reliability Settings'!$B$58:$G$58,0),FALSE),"not found"),IFERROR(INDEX('Generator Reliability Settings'!$B$23:$M$52,MATCH(_xlfn.XLOOKUP($B17,'Summary Mapping'!$C$7:$C$662,'Summary Mapping'!$P$7:$P$662,"not found",0)&AE$11,'Generator Reliability Settings'!$B$23:$B$52&'Generator Reliability Settings'!$C$23:$C$52,0),MIN(COLUMNS('Generator Reliability Settings'!$B$22:$M$52),MATCH(AE$12,'Generator Reliability Settings'!$B$22:$M$22,0))), "not found")) -> 0.2043810551 | AF17: =IF($D17="Biomass",IFERROR(VLOOKUP($D17,'Generator Reliability Settings'!$B$58:$G$79,MATCH(AF$11,'Generator Reliability Settings'!$B$58:$G$58,0),FALSE),"not found"),IFERROR(INDEX('Generator Reliability Settings'!$B$23:$M$52,MATCH(_xlfn.XLOOKUP($B17,'Summary Mapping'!$C$7:$C$662,'Summary Mapping'!$P$7:$P$662,"not found",0)&AF$11,'Generator Reliability Settings'!$B$23:$B$52&'Generator Reliability Settings'!$C$23:$C$52,0),MIN(COLUMNS('Generator Reliability Settings'!$B$22:$M$52),MATCH(AF$12,'Generator Reliability Settings'!$B$22:$M$22,0))), "not found")) -> 153.2102879 | AG17: =IF($D17="Biomass",IFERROR(VLOOKUP($D17,'Generator Reliability Settings'!$B$58:$G$79,MATCH(AG$11,'Generator Reliability Settings'!$B$58:$G$58,0),FALSE),"not found"),IFERROR(INDEX('Generator Reliability Settings'!$B$23:$M$52,MATCH(_xlfn.XLOOKUP($B17,'Summary Mapping'!$C$7:$C$662,'Summary Mapping'!$P$7:$P$662,"not found",0)&AG$11,'Generator Reliability Settings'!$B$23:$B$52&'Generator Reliability Settings'!$C$23:$C$52,0),MIN(COLUMNS('Generator Reliability Settings'!$B$22:$M$52),MATCH(AG$12,'Generator Reliability Settings'!$B$22:$M$22,0))), "not found")) -> 49.09239354 | AH17: =IF($D17="Biomass",IFERROR(VLOOKUP($D17,'Generator Reliability Settings'!$B$58:$G$79,MATCH(AH$11,'Generator Reliability Settings'!$B$58:$G$58,0),FALSE),"not found"),IFERROR(INDEX('Generator Reliability Settings'!$B$23:$M$52,MATCH(_xlfn.XLOOKUP($B17,'Summary Mapping'!$C$7:$C$662,'Summary Mapping'!$P$7:$P$662,"not found",0)&AH$11,'Generator Reliability Settings'!$B$23:$B$52&'Generator Reliability Settings'!$C$23:$C$52,0),MIN(COLUMNS('Generator Reliability Settings'!$B$22:$M$52),MATCH(AH$12,'Generator Reliability Settings'!$B$22:$M$22,0))), "not found")) -> 0.2685711543 | AI17: =_xlfn.XLOOKUP($B17,'Fixed OPEX'!$B$8:$B$663,'Fixed OPEX'!$E$8:$E$663,"not found", 0) -> 38 | AJ17: =_xlfn.XLOOKUP($B17,'Variable OPEX'!$B$8:$B$663,'Variable OPEX'!$E$8:$E$663,"not found",0) -> 7 | AK17: =_xlfn.XLOOKUP($B17,'Heat rates'!$B$9:$B$664,'Heat rates'!$E$9:$E$664,"not found", 0) -> 10.06626961 | AL17: =INDEX('Fuel Price Summary'!$H$12:$AK$668,MATCH($B17,'Fuel Price Summary'!$B$12:$B$668,0),MATCH($AL$12,'Fuel Price Summary'!$H$12:$AK$12,0)) -> 3.319658 | AM17: =_xlfn.XLOOKUP($B17,'Emissions intensity'!$B$8:$B$664,'Emissions intensity'!$E$8:$E$664,"not found",0)*SUMPRODUCT((('GPG emissions reduction - BioM'!$B$9:$B$11)=AM$11)*(('GPG emissions reduction - BioM'!$C$8:$AF$8)=AM$12),'GPG emissions reduction - BioM'!$C$9:$AF$11) +N("this term is the emission intensity as at the current year") -> 619.1141283 | AN17: =_xlfn.XLOOKUP($B17,'Marginal Loss Factors'!$B$13:$B$668,'Marginal Loss Factors'!$F$13:$F$668, "not found", 0) -> 0.9252 | AO17: =_xlfn.XLOOKUP($B17,Auxiliary!$B$7:$B$662,Auxiliary!$E$7:$E$662,"not found",0) -> 6.67097171 | AP17: 40.41657244 | AQ17: =_xlfn.XLOOKUP($B17,Retirement!$B$14:$B$669,Retirement!$F$14:$F$669, "not found", 0) -> 2031 | AR17: =_xlfn.XLOOKUP($D17,Retirement!$I$14:$I$44,Retirement!$J$14:$J$44,"not found",0) -> 254000 | AS17: =_xlfn.XLOOKUP($B17,'Power System Security'!$B$6:$B$49,'Power System Security'!$D$6:$D$49,"not found",0) -> 59.76587497
B18: ='Summary Mapping'!C12 -> CALL_B_2 | C18: ='Summary Mapping'!D12 -> Callide B | D18: ='Summary Mapping'!E12 -> Steam Sub Critical | E18: ='Summary Mapping'!F12 -> QLD | F18: ='Summary Mapping'!G12 -> CQ | G18: ='Summary Mapping'!H12 -> Not Applicable | H18: ='Summary Mapping'!I12 -> Not Applicable | I18: ='Summary Mapping'!J12 -> Existing | J18: ='Summary Mapping'!K12 -> Not Applicable | K18: =_xlfn.XLOOKUP(B18,'Maximum capacity'!$B$10:$B$665,'Maximum capacity'!$G$10:$G$665,"not found",0) -> 350 | L18: =_xlfn.XLOOKUP(B18,'Maximum capacity'!$B$10:$B$665,'Maximum capacity'!$H$10:$H$665,"not found",0) ->  | M18: =VLOOKUP($B18,'Seasonal ratings'!$B$45:$AI$700,(MATCH(M$12,'Seasonal ratings'!$F$44:$O$44,0)+COLUMN('Seasonal ratings'!$F$44)-COLUMN('Seasonal ratings'!$B$44)),FALSE) -> 325 | N18: =VLOOKUP($B18,'Seasonal ratings'!$B$45:$AI$700,(MATCH(N$12,'Seasonal ratings'!$P$44:$Y$44,0)+COLUMN('Seasonal ratings'!$P$44)-COLUMN('Seasonal ratings'!$B$44)),FALSE) -> 0 | O18: =VLOOKUP($B18,'Seasonal ratings'!$B$45:$AI$700,(MATCH(O$12,'Seasonal ratings'!$Z$44:$AI$44,0)+COLUMN('Seasonal ratings'!$Z$44)-COLUMN('Seasonal ratings'!$B$44)),FALSE) -> 0 | P18: =_xlfn.XLOOKUP($B18,'Coal Min Stable Level'!$B$14:$B$57,'Coal Min Stable Level'!$G$14:$G$57,_xlfn.XLOOKUP($B18,'GPG Min Stable Level'!$B$12:$B$148,'GPG Min Stable Level'!$E$12:$E$148,"not found",0),0) -> 140 | Q18: =_xlfn.XLOOKUP($B18,'Affine Heat rates'!$B$8:$B$188,'Affine Heat rates'!$E$8:$E$188,"not found",0) -> 504 | R18: =_xlfn.XLOOKUP($B18,'Affine Heat rates'!$B$8:$B$188,'Affine Heat rates'!$F$8:$F$188,"not found",0) -> 8.626269608 | S18: =_xlfn.XLOOKUP(_xlfn.XLOOKUP($B18,'Summary Mapping'!$C$7:$C$662,'Summary Mapping'!$Y$7:$Y$662,"not found",0),'Storage properties'!$B$22:$B$28,'Storage properties'!$E$22:$E$28,"not found",0) -> not found | T18: =_xlfn.XLOOKUP($D18,'Storage properties'!$B$6:$B$12,'Storage properties'!$E$6:$E$12, "not found",0) -> not found | U18: =_xlfn.XLOOKUP($D18,'Storage properties'!$B$6:$B$12,'Storage properties'!$F$6:$F$12, "not found",0) -> not found | V18: =_xlfn.XLOOKUP($D18,'Storage properties'!$B$6:$B$12,'Storage properties'!$G$6:$G$12, "not found",0) -> not found | W18: =_xlfn.XLOOKUP($D18,'Storage properties'!$B$6:$B$12,'Storage properties'!$H$6:$H$12, "not found",0) -> not found | X18: =_xlfn.XLOOKUP($D18,'Storage properties'!$B$6:$B$12,'Storage properties'!$I$6:$I$12, "not found",0) -> not found | Y18: =_xlfn.XLOOKUP($D18,'Storage properties'!$B$6:$B$12,'Storage properties'!$J$6:$J$12, "not found",0) -> not found | Z18: =_xlfn.XLOOKUP($B18,'Max Ramp Rates'!$B$9:$B$189,'Max Ramp Rates'!$E$9:$E$189, "not found", 0) -> 4 | AA18: =_xlfn.XLOOKUP($B18,'Max Ramp Rates'!$B$9:$B$189,'Max Ramp Rates'!$F$9:$F$189, "not found", 0) -> 4 | AB18: =_xlfn.XLOOKUP(_xlfn.XLOOKUP($B18,'Summary Mapping'!$C$7:$C$662,'Summary Mapping'!$O$7:$O$662,"not found",0),Maintenance!$B$7:$B$24,Maintenance!$C$7:$C$24,"not found",0) -> 5.479452055 | AC18: =_xlfn.XLOOKUP(_xlfn.XLOOKUP($B18,'Summary Mapping'!$C$7:$C$662,'Summary Mapping'!$O$7:$O$662,"not found",0),Maintenance!$B$7:$B$24,Maintenance!$D$7:$D$24,"not found",0) -> 20 | AD18: =IF($D18="Biomass",IFERROR(VLOOKUP($D18,'Generator Reliability Settings'!$B$58:$G$79,MATCH(AD$11,'Generator Reliability Settings'!$B$58:$G$58,0),FALSE),"not found"),IFERROR(INDEX('Generator Reliability Settings'!$B$23:$M$52,MATCH(_xlfn.XLOOKUP($B18,'Summary Mapping'!$C$7:$C$662,'Summary Mapping'!$P$7:$P$662,"not found",0)&AD$11,'Generator Reliability Settings'!$B$23:$B$52&'Generator Reliability Settings'!$C$23:$C$52,0),MIN(COLUMNS('Generator Reliability Settings'!$B$22:$M$52),MATCH(AD$12,'Generator Reliability Settings'!$B$22:$M$22,0))), "not found")) -> 0.09270884418 | AE18: =IF($D18="Biomass",IFERROR(VLOOKUP($D18,'Generator Reliability Settings'!$B$58:$G$79,MATCH(AE$11,'Generator Reliability Settings'!$B$58:$G$58,0),FALSE),"not found"),IFERROR(INDEX('Generator Reliability Settings'!$B$23:$M$52,MATCH(_xlfn.XLOOKUP($B18,'Summary Mapping'!$C$7:$C$662,'Summary Mapping'!$P$7:$P$662,"not found",0)&AE$11,'Generator Reliability Settings'!$B$23:$B$52&'Generator Reliability Settings'!$C$23:$C$52,0),MIN(COLUMNS('Generator Reliability Settings'!$B$22:$M$52),MATCH(AE$12,'Generator Reliability Settings'!$B$22:$M$22,0))), "not found")) -> 0.2043810551 | AF18: =IF($D18="Biomass",IFERROR(VLOOKUP($D18,'Generator Reliability Settings'!$B$58:$G$79,MATCH(AF$11,'Generator Reliability Settings'!$B$58:$G$58,0),FALSE),"not found"),IFERROR(INDEX('Generator Reliability Settings'!$B$23:$M$52,MATCH(_xlfn.XLOOKUP($B18,'Summary Mapping'!$C$7:$C$662,'Summary Mapping'!$P$7:$P$662,"not found",0)&AF$11,'Generator Reliability Settings'!$B$23:$B$52&'Generator Reliability Settings'!$C$23:$C$52,0),MIN(COLUMNS('Generator Reliability Settings'!$B$22:$M$52),MATCH(AF$12,'Generator Reliability Settings'!$B$22:$M$22,0))), "not found")) -> 153.2102879 | AG18: =IF($D18="Biomass",IFERROR(VLOOKUP($D18,'Generator Reliability Settings'!$B$58:$G$79,MATCH(AG$11,'Generator Reliability Settings'!$B$58:$G$58,0),FALSE),"not found"),IFERROR(INDEX('Generator Reliability Settings'!$B$23:$M$52,MATCH(_xlfn.XLOOKUP($B18,'Summary Mapping'!$C$7:$C$662,'Summary Mapping'!$P$7:$P$662,"not found",0)&AG$11,'Generator Reliability Settings'!$B$23:$B$52&'Generator Reliability Settings'!$C$23:$C$52,0),MIN(COLUMNS('Generator Reliability Settings'!$B$22:$M$52),MATCH(AG$12,'Generator Reliability Settings'!$B$22:$M$22,0))), "not found")) -> 49.09239354 | AH18: =IF($D18="Biomass",IFERROR(VLOOKUP($D18,'Generator Reliability Settings'!$B$58:$G$79,MATCH(AH$11,'Generator Reliability Settings'!$B$58:$G$58,0),FALSE),"not found"),IFERROR(INDEX('Generator Reliability Settings'!$B$23:$M$52,MATCH(_xlfn.XLOOKUP($B18,'Summary Mapping'!$C$7:$C$662,'Summary Mapping'!$P$7:$P$662,"not found",0)&AH$11,'Generator Reliability Settings'!$B$23:$B$52&'Generator Reliability Settings'!$C$23:$C$52,0),MIN(COLUMNS('Generator Reliability Settings'!$B$22:$M$52),MATCH(AH$12,'Generator Reliability Settings'!$B$22:$M$22,0))), "not found")) -> 0.2685711543 | AI18: =_xlfn.XLOOKUP($B18,'Fixed OPEX'!$B$8:$B$663,'Fixed OPEX'!$E$8:$E$663,"not found", 0) -> 38 | AJ18: =_xlfn.XLOOKUP($B18,'Variable OPEX'!$B$8:$B$663,'Variable OPEX'!$E$8:$E$663,"not found",0) -> 7 | AK18: =_xlfn.XLOOKUP($B18,'Heat rates'!$B$9:$B$664,'Heat rates'!$E$9:$E$664,"not found", 0) -> 10.06626961 | AL18: =INDEX('Fuel Price Summary'!$H$12:$AK$668,MATCH($B18,'Fuel Price Summary'!$B$12:$B$668,0),MATCH($AL$12,'Fuel Price Summary'!$H$12:$AK$12,0)) -> 3.319658 | AM18: =_xlfn.XLOOKUP($B18,'Emissions intensity'!$B$8:$B$664,'Emissions intensity'!$E$8:$E$664,"not found",0)*SUMPRODUCT((('GPG emissions reduction - BioM'!$B$9:$B$11)=AM$11)*(('GPG emissions reduction - BioM'!$C$8:$AF$8)=AM$12),'GPG emissions reduction - BioM'!$C$9:$AF$11) +N("this term is the emission intensity as at the current year") -> 619.1141283 | AN18: =_xlfn.XLOOKUP($B18,'Marginal Loss Factors'!$B$13:$B$668,'Marginal Loss Factors'!$F$13:$F$668, "not found", 0) -> 0.9252 | AO18: =_xlfn.XLOOKUP($B18,Auxiliary!$B$7:$B$662,Auxiliary!$E$7:$E$662,"not found",0) -> 6.67097171 | AP18: 40.41657244 | AQ18: =_xlfn.XLOOKUP($B18,Retirement!$B$14:$B$669,Retirement!$F$14:$F$669, "not found", 0) -> 2031 | AR18: =_xlfn.XLOOKUP($D18,Retirement!$I$14:$I$44,Retirement!$J$14:$J$44,"not found",0) -> 254000 | AS18: =_xlfn.XLOOKUP($B18,'Power System Security'!$B$6:$B$49,'Power System Security'!$D$6:$D$49,"not found",0) -> 59.76587497
B19: ='Summary Mapping'!C13 -> CPP_3 | C19: ='Summary Mapping'!D13 -> Callide C | D19: ='Summary Mapping'!E13 -> Steam Super Critical | E19: ='Summary Mapping'!F13 -> QLD | F19: ='Summary Mapping'!G13 -> CQ | G19: ='Summary Mapping'!H13 -> Not Applicable | H19: ='Summary Mapping'!I13 -> Not Applicable | I19: ='Summary Mapping'!J13 -> Existing | J19: ='Summary Mapping'!K13 -> Not Applicable | K19: =_xlfn.XLOOKUP(B19,'Maximum capacity'!$B$10:$B$665,'Maximum capacity'!$G$10:$G$665,"not found",0) -> 424 | L19: =_xlfn.XLOOKUP(B19,'Maximum capacity'!$B$10:$B$665,'Maximum capacity'!$H$10:$H$665,"not found",0) ->  | M19: =VLOOKUP($B19,'Seasonal ratings'!$B$45:$AI$700,(MATCH(M$12,'Seasonal ratings'!$F$44:$O$44,0)+COLUMN('Seasonal ratings'!$F$44)-COLUMN('Seasonal ratings'!$B$44)),FALSE) -> 434 | N19: =VLOOKUP($B19,'Seasonal ratings'!$B$45:$AI$700,(MATCH(N$12,'Seasonal ratings'!$P$44:$Y$44,0)+COLUMN('Seasonal ratings'!$P$44)-COLUMN('Seasonal ratings'!$B$44)),FALSE) -> 466 | O19: =VLOOKUP($B19,'Seasonal ratings'!$B$45:$AI$700,(MATCH(O$12,'Seasonal ratings'!$Z$44:$AI$44,0)+COLUMN('Seasonal ratings'!$Z$44)-COLUMN('Seasonal ratings'!$B$44)),FALSE) -> 466 | P19: =_xlfn.XLOOKUP($B19,'Coal Min Stable Level'!$B$14:$B$57,'Coal Min Stable Level'!$G$14:$G$57,_xlfn.XLOOKUP($B19,'GPG Min Stable Level'!$B$12:$B$148,'GPG Min Stable Level'!$E$12:$E$148,"not found",0),0) -> 170 | Q19: =_xlfn.XLOOKUP($B19,'Affine Heat rates'!$B$8:$B$188,'Affine Heat rates'!$E$8:$E$188,"not found",0) -> 612 | R19: =_xlfn.XLOOKUP($B19,'Affine Heat rates'!$B$8:$B$188,'Affine Heat rates'!$F$8:$F$188,"not found",0) -> 8.452694818 | S19: =_xlfn.XLOOKUP(_xlfn.XLOOKUP($B19,'Summary Mapping'!$C$7:$C$662,'Summary Mapping'!$Y$7:$Y$662,"not found",0),'Storage properties'!$B$22:$B$28,'Storage properties'!$E$22:$E$28,"not found",0) -> not found | T19: =_xlfn.XLOOKUP($D19,'Storage properties'!$B$6:$B$12,'Storage properties'!$E$6:$E$12, "not found",0) -> not found | U19: =_xlfn.XLOOKUP($D19,'Storage properties'!$B$6:$B$12,'Storage properties'!$F$6:$F$12, "not found",0) -> not found | V19: =_xlfn.XLOOKUP($D19,'Storage properties'!$B$6:$B$12,'Storage properties'!$G$6:$G$12, "not found",0) -> not found | W19: =_xlfn.XLOOKUP($D19,'Storage properties'!$B$6:$B$12,'Storage properties'!$H$6:$H$12, "not found",0) -> not found | X19: =_xlfn.XLOOKUP($D19,'Storage properties'!$B$6:$B$12,'Storage properties'!$I$6:$I$12, "not found",0) -> not found | Y19: =_xlfn.XLOOKUP($D19,'Storage properties'!$B$6:$B$12,'Storage properties'!$J$6:$J$12, "not found",0) -> not found | Z19: =_xlfn.XLOOKUP($B19,'Max Ramp Rates'!$B$9:$B$189,'Max Ramp Rates'!$E$9:$E$189, "not found", 0) -> 4 | AA19: =_xlfn.XLOOKUP($B19,'Max Ramp Rates'!$B$9:$B$189,'Max Ramp Rates'!$F$9:$F$189, "not found", 0) -> 4 | AB19: =_xlfn.XLOOKUP(_xlfn.XLOOKUP($B19,'Summary Mapping'!$C$7:$C$662,'Summary Mapping'!$O$7:$O$662,"not found",0),Maintenance!$B$7:$B$24,Maintenance!$C$7:$C$24,"not found",0) -> 5.479452055 | AC19: =_xlfn.XLOOKUP(_xlfn.XLOOKUP($B19,'Summary Mapping'!$C$7:$C$662,'Summary Mapping'!$O$7:$O$662,"not found",0),Maintenance!$B$7:$B$24,Maintenance!$D$7:$D$24,"not found",0) -> 20 | AD19: =IF($D19="Biomass",IFERROR(VLOOKUP($D19,'Generator Reliability Settings'!$B$58:$G$79,MATCH(AD$11,'Generator Reliability Settings'!$B$58:$G$58,0),FALSE),"not found"),IFERROR(INDEX('Generator Reliability Settings'!$B$23:$M$52,MATCH(_xlfn.XLOOKUP($B19,'Summary Mapping'!$C$7:$C$662,'Summary Mapping'!$P$7:$P$662,"not found",0)&AD$11,'Generator Reliability Settings'!$B$23:$B$52&'Generator Reliability Settings'!$C$23:$C$52,0),MIN(COLUMNS('Generator Reliability Settings'!$B$22:$M$52),MATCH(AD$12,'Generator Reliability Settings'!$B$22:$M$22,0))), "not found")) -> 0.09270884418 | AE19: =IF($D19="Biomass",IFERROR(VLOOKUP($D19,'Generator Reliability Settings'!$B$58:$G$79,MATCH(AE$11,'Generator Reliability Settings'!$B$58:$G$58,0),FALSE),"not found"),IFERROR(INDEX('Generator Reliability Settings'!$B$23:$M$52,MATCH(_xlfn.XLOOKUP($B19,'Summary Mapping'!$C$7:$C$662,'Summary Mapping'!$P$7:$P$662,"not found",0)&AE$11,'Generator Reliability Settings'!$B$23:$B$52&'Generator Reliability Settings'!$C$23:$C$52,0),MIN(COLUMNS('Generator Reliability Settings'!$B$22:$M$52),MATCH(AE$12,'Generator Reliability Settings'!$B$22:$M$22,0))), "not found")) -> 0.2043810551 | AF19: =IF($D19="Biomass",IFERROR(VLOOKUP($D19,'Generator Reliability Settings'!$B$58:$G$79,MATCH(AF$11,'Generator Reliability Settings'!$B$58:$G$58,0),FALSE),"not found"),IFERROR(INDEX('Generator Reliability Settings'!$B$23:$M$52,MATCH(_xlfn.XLOOKUP($B19,'Summary Mapping'!$C$7:$C$662,'Summary Mapping'!$P$7:$P$662,"not found",0)&AF$11,'Generator Reliability Settings'!$B$23:$B$52&'Generator Reliability Settings'!$C$23:$C$52,0),MIN(COLUMNS('Generator Reliability Settings'!$B$22:$M$52),MATCH(AF$12,'Generator Reliability Settings'!$B$22:$M$22,0))), "not found")) -> 153.2102879 | AG19: =IF($D19="Biomass",IFERROR(VLOOKUP($D19,'Generator Reliability Settings'!$B$58:$G$79,MATCH(AG$11,'Generator Reliability Settings'!$B$58:$G$58,0),FALSE),"not found"),IFERROR(INDEX('Generator Reliability Settings'!$B$23:$M$52,MATCH(_xlfn.XLOOKUP($B19,'Summary Mapping'!$C$7:$C$662,'Summary Mapping'!$P$7:$P$662,"not found",0)&AG$11,'Generator Reliability Settings'!$B$23:$B$52&'Generator Reliability Settings'!$C$23:$C$52,0),MIN(COLUMNS('Generator Reliability Settings'!$B$22:$M$52),MATCH(AG$12,'Generator Reliability Settings'!$B$22:$M$22,0))), "not found")) -> 49.09239354 | AH19: =IF($D19="Biomass",IFERROR(VLOOKUP($D19,'Generator Reliability Settings'!$B$58:$G$79,MATCH(AH$11,'Generator Reliability Settings'!$B$58:$G$58,0),FALSE),"not found"),IFERROR(INDEX('Generator Reliability Settings'!$B$23:$M$52,MATCH(_xlfn.XLOOKUP($B19,'Summary Mapping'!$C$7:$C$662,'Summary Mapping'!$P$7:$P$662,"not found",0)&AH$11,'Generator Reliability Settings'!$B$23:$B$52&'Generator Reliability Settings'!$C$23:$C$52,0),MIN(COLUMNS('Generator Reliability Settings'!$B$22:$M$52),MATCH(AH$12,'Generator Reliability Settings'!$B$22:$M$22,0))), "not found")) -> 0.2685711543 | AI19: =_xlfn.XLOOKUP($B19,'Fixed OPEX'!$B$8:$B$663,'Fixed OPEX'!$E$8:$E$663,"not found", 0) -> 52 | AJ19: =_xlfn.XLOOKUP($B19,'Variable OPEX'!$B$8:$B$663,'Variable OPEX'!$E$8:$E$663,"not found",0) -> 8 | AK19: =_xlfn.XLOOKUP($B19,'Heat rates'!$B$9:$B$664,'Heat rates'!$E$9:$E$664,"not found", 0) -> 9.896091044 | AL19: =INDEX('Fuel Price Summary'!$H$12:$AK$668,MATCH($B19,'Fuel Price Summary'!$B$12:$B$668,0),MATCH($AL$12,'Fuel Price Summary'!$H$12:$AK$12,0)) -> 3.319658 | AM19: =_xlfn.XLOOKUP($B19,'Emissions intensity'!$B$8:$B$664,'Emissions intensity'!$E$8:$E$664,"not found",0)*SUMPRODUCT((('GPG emissions reduction - BioM'!$B$9:$B$11)=AM$11)*(('GPG emissions reduction - BioM'!$C$8:$AF$8)=AM$12),'GPG emissions reduction - BioM'!$C$9:$AF$11) +N("this term is the emission intensity as at the current year") -> 570.4931354 | AN19: =_xlfn.XLOOKUP($B19,'Marginal Loss Factors'!$B$13:$B$668,'Marginal Loss Factors'!$F$13:$F$668, "not found", 0) -> 0.9222 | AO19: =_xlfn.XLOOKUP($B19,Auxiliary!$B$7:$B$662,Auxiliary!$E$7:$E$662,"not found",0) -> 6.67097171 | AP19: 40.8516378 | AQ19: =_xlfn.XLOOKUP($B19,Retirement!$B$14:$B$669,Retirement!$F$14:$F$669, "not found", 0) -> 2051 | AR19: =_xlfn.XLOOKUP($D19,Retirement!$I$14:$I$44,Retirement!$J$14:$J$44,"not found",0) -> 247000 | AS19: =_xlfn.XLOOKUP($B19,'Power System Security'!$B$6:$B$49,'Power System Security'!$D$6:$D$49,"not found",0) -> 72.40208854
B20: ='Summary Mapping'!C14 -> CPP_4 | C20: ='Summary Mapping'!D14 -> Callide C | D20: ='Summary Mapping'!E14 -> Steam Super Critical | E20: ='Summary Mapping'!F14 -> QLD | F20: ='Summary Mapping'!G14 -> CQ | G20: ='Summary Mapping'!H14 -> Not Applicable | H20: ='Summary Mapping'!I14 -> Not Applicable | I20: ='Summary Mapping'!J14 -> Existing | J20: ='Summary Mapping'!K14 -> Not Applicable | K20: =_xlfn.XLOOKUP(B20,'Maximum capacity'!$B$10:$B$665,'Maximum capacity'!$G$10:$G$665,"not found",0) -> 420 | L20: =_xlfn.XLOOKUP(B20,'Maximum capacity'!$B$10:$B$665,'Maximum capacity'!$H$10:$H$665,"not found",0) ->  | M20: =VLOOKUP($B20,'Seasonal ratings'!$B$45:$AI$700,(MATCH(M$12,'Seasonal ratings'!$F$44:$O$44,0)+COLUMN('Seasonal ratings'!$F$44)-COLUMN('Seasonal ratings'!$B$44)),FALSE) -> 434 | N20: =VLOOKUP($B20,'Seasonal ratings'!$B$45:$AI$700,(MATCH(N$12,'Seasonal ratings'!$P$44:$Y$44,0)+COLUMN('Seasonal ratings'!$P$44)-COLUMN('Seasonal ratings'!$B$44)),FALSE) -> 466 | O20: =VLOOKUP($B20,'Seasonal ratings'!$B$45:$AI$700,(MATCH(O$12,'Seasonal ratings'!$Z$44:$AI$44,0)+COLUMN('Seasonal ratings'!$Z$44)-COLUMN('Seasonal ratings'!$B$44)),FALSE) -> 466 | P20: =_xlfn.XLOOKUP($B20,'Coal Min Stable Level'!$B$14:$B$57,'Coal Min Stable Level'!$G$14:$G$57,_xlfn.XLOOKUP($B20,'GPG Min Stable Level'!$B$12:$B$148,'GPG Min Stable Level'!$E$12:$E$148,"not found",0),0) -> 126 | Q20: =_xlfn.XLOOKUP($B20,'Affine Heat rates'!$B$8:$B$188,'Affine Heat rates'!$E$8:$E$188,"not found",0) -> 453.6 | R20: =_xlfn.XLOOKUP($B20,'Affine Heat rates'!$B$8:$B$188,'Affine Heat rates'!$F$8:$F$188,"not found",0) -> 8.816091044 | S20: =_xlfn.XLOOKUP(_xlfn.XLOOKUP($B20,'Summary Mapping'!$C$7:$C$662,'Summary Mapping'!$Y$7:$Y$662,"not found",0),'Storage properties'!$B$22:$B$28,'Storage properties'!$E$22:$E$28,"not found",0) -> not found | T20: =_xlfn.XLOOKUP($D20,'Storage properties'!$B$6:$B$12,'Storage properties'!$E$6:$E$12, "not found",0) -> not found | U20: =_xlfn.XLOOKUP($D20,'Storage properties'!$B$6:$B$12,'Storage properties'!$F$6:$F$12, "not found",0) -> not found | V20: =_xlfn.XLOOKUP($D20,'Storage properties'!$B$6:$B$12,'Storage properties'!$G$6:$G$12, "not found",0) -> not found | W20: =_xlfn.XLOOKUP($D20,'Storage properties'!$B$6:$B$12,'Storage properties'!$H$6:$H$12, "not found",0) -> not found | X20: =_xlfn.XLOOKUP($D20,'Storage properties'!$B$6:$B$12,'Storage properties'!$I$6:$I$12, "not found",0) -> not found | Y20: =_xlfn.XLOOKUP($D20,'Storage properties'!$B$6:$B$12,'Storage properties'!$J$6:$J$12, "not found",0) -> not found | Z20: =_xlfn.XLOOKUP($B20,'Max Ramp Rates'!$B$9:$B$189,'Max Ramp Rates'!$E$9:$E$189, "not found", 0) -> 4 | AA20: =_xlfn.XLOOKUP($B20,'Max Ramp Rates'!$B$9:$B$189,'Max Ramp Rates'!$F$9:$F$189, "not found", 0) -> 4 | AB20: =_xlfn.XLOOKUP(_xlfn.XLOOKUP($B20,'Summary Mapping'!$C$7:$C$662,'Summary Mapping'!$O$7:$O$662,"not found",0),Maintenance!$B$7:$B$24,Maintenance!$C$7:$C$24,"not found",0) -> 5.479452055 | AC20: =_xlfn.XLOOKUP(_xlfn.XLOOKUP($B20,'Summary Mapping'!$C$7:$C$662,'Summary Mapping'!$O$7:$O$662,"not found",0),Maintenance!$B$7:$B$24,Maintenance!$D$7:$D$24,"not found",0) -> 20 | AD20: =IF($D20="Biomass",IFERROR(VLOOKUP($D20,'Generator Reliability Settings'!$B$58:$G$79,MATCH(AD$11,'Generator Reliability Settings'!$B$58:$G$58,0),FALSE),"not found"),IFERROR(INDEX('Generator Reliability Settings'!$B$23:$M$52,MATCH(_xlfn.XLOOKUP($B20,'Summary Mapping'!$C$7:$C$662,'Summary Mapping'!$P$7:$P$662,"not found",0)&AD$11,'Generator Reliability Settings'!$B$23:$B$52&'Generator Reliability Settings'!$C$23:$C$52,0),MIN(COLUMNS('Generator Reliability Settings'!$B$22:$M$52),MATCH(AD$12,'Generator Reliability Settings'!$B$22:$M$22,0))), "not found")) -> 0.09270884418 | AE20: =IF($D20="Biomass",IFERROR(VLOOKUP($D20,'Generator Reliability Settings'!$B$58:$G$79,MATCH(AE$11,'Generator Reliability Settings'!$B$58:$G$58,0),FALSE),"not found"),IFERROR(INDEX('Generator Reliability Settings'!$B$23:$M$52,MATCH(_xlfn.XLOOKUP($B20,'Summary Mapping'!$C$7:$C$662,'Summary Mapping'!$P$7:$P$662,"not found",0)&AE$11,'Generator Reliability Settings'!$B$23:$B$52&'Generator Reliability Settings'!$C$23:$C$52,0),MIN(COLUMNS('Generator Reliability Settings'!$B$22:$M$52),MATCH(AE$12,'Generator Reliability Settings'!$B$22:$M$22,0))), "not found")) -> 0.2043810551 | AF20: =IF($D20="Biomass",IFERROR(VLOOKUP($D20,'Generator Reliability Settings'!$B$58:$G$79,MATCH(AF$11,'Generator Reliability Settings'!$B$58:$G$58,0),FALSE),"not found"),IFERROR(INDEX('Generator Reliability Settings'!$B$23:$M$52,MATCH(_xlfn.XLOOKUP($B20,'Summary Mapping'!$C$7:$C$662,'Summary Mapping'!$P$7:$P$662,"not found",0)&AF$11,'Generator Reliability Settings'!$B$23:$B$52&'Generator Reliability Settings'!$C$23:$C$52,0),MIN(COLUMNS('Generator Reliability Settings'!$B$22:$M$52),MATCH(AF$12,'Generator Reliability Settings'!$B$22:$M$22,0))), "not found")) -> 153.2102879 | AG20: =IF($D20="Biomass",IFERROR(VLOOKUP($D20,'Generator Reliability Settings'!$B$58:$G$79,MATCH(AG$11,'Generator Reliability Settings'!$B$58:$G$58,0),FALSE),"not found"),IFERROR(INDEX('Generator Reliability Settings'!$B$23:$M$52,MATCH(_xlfn.XLOOKUP($B20,'Summary Mapping'!$C$7:$C$662,'Summary Mapping'!$P$7:$P$662,"not found",0)&AG$11,'Generator Reliability Settings'!$B$23:$B$52&'Generator Reliability Settings'!$C$23:$C$52,0),MIN(COLUMNS('Generator Reliability Settings'!$B$22:$M$52),MATCH(AG$12,'Generator Reliability Settings'!$B$22:$M$22,0))), "not found")) -> 49.09239354 | AH20: =IF($D20="Biomass",IFERROR(VLOOKUP($D20,'Generator Reliability Settings'!$B$58:$G$79,MATCH(AH$11,'Generator Reliability Settings'!$B$58:$G$58,0),FALSE),"not found"),IFERROR(INDEX('Generator Reliability Settings'!$B$23:$M$52,MATCH(_xlfn.XLOOKUP($B20,'Summary Mapping'!$C$7:$C$662,'Summary Mapping'!$P$7:$P$662,"not found",0)&AH$11,'Generator Reliability Settings'!$B$23:$B$52&'Generator Reliability Settings'!$C$23:$C$52,0),MIN(COLUMNS('Generator Reliability Settings'!$B$22:$M$52),MATCH(AH$12,'Generator Reliability Settings'!$B$22:$M$22,0))), "not found")) -> 0.2685711543 | AI20: =_xlfn.XLOOKUP($B20,'Fixed OPEX'!$B$8:$B$663,'Fixed OPEX'!$E$8:$E$663,"not found", 0) -> 52 | AJ20: =_xlfn.XLOOKUP($B20,'Variable OPEX'!$B$8:$B$663,'Variable OPEX'!$E$8:$E$663,"not found",0) -> 8 | AK20: =_xlfn.XLOOKUP($B20,'Heat rates'!$B$9:$B$664,'Heat rates'!$E$9:$E$664,"not found", 0) -> 9.896091044 | AL20: =INDEX('Fuel Price Summary'!$H$12:$AK$668,MATCH($B20,'Fuel Price Summary'!$B$12:$B$668,0),MATCH($AL$12,'Fuel Price Summary'!$H$12:$AK$12,0)) -> 3.319658 | AM20: =_xlfn.XLOOKUP($B20,'Emissions intensity'!$B$8:$B$664,'Emissions intensity'!$E$8:$E$664,"not found",0)*SUMPRODUCT((('GPG emissions reduction - BioM'!$B$9:$B$11)=AM$11)*(('GPG emissions reduction - BioM'!$C$8:$AF$8)=AM$12),'GPG emissions reduction - BioM'!$C$9:$AF$11) +N("this term is the emission intensity as at the current year") -> 570.4931354 | AN20: =_xlfn.XLOOKUP($B20,'Marginal Loss Factors'!$B$13:$B$668,'Marginal Loss Factors'!$F$13:$F$668, "not found", 0) -> 0.9222 | AO20: =_xlfn.XLOOKUP($B20,Auxiliary!$B$7:$B$662,Auxiliary!$E$7:$E$662,"not found",0) -> 6.67097171 | AP20: 40.8516378 | AQ20: =_xlfn.XLOOKUP($B20,Retirement!$B$14:$B$669,Retirement!$F$14:$F$669, "not found", 0) -> 2051 | AR20: =_xlfn.XLOOKUP($D20,Retirement!$I$14:$I$44,Retirement!$J$14:$J$44,"not found",0) -> 247000 | AS20: =_xlfn.XLOOKUP($B20,'Power System Security'!$B$6:$B$49,'Power System Security'!$D$6:$D$49,"not found",0) -> 71.71904997
B21: ='Summary Mapping'!C15 -> ER01 | C21: ='Summary Mapping'!D15 -> Eraring | D21: ='Summary Mapping'!E15 -> Steam Sub Critical | E21: ='Summary Mapping'!F15 -> NSW | F21: ='Summary Mapping'!G15 -> SNW | G21: ='Summary Mapping'!H15 -> Not Applicable | H21: ='Summary Mapping'!I15 -> Not Applicable | I21: ='Summary Mapping'!J15 -> Existing | J21: ='Summary Mapping'!K15 -> Not Applicable | K21: =_xlfn.XLOOKUP(B21,'Maximum capacity'!$B$10:$B$665,'Maximum capacity'!$G$10:$G$665,"not found",0) -> 720 | L21: =_xlfn.XLOOKUP(B21,'Maximum capacity'!$B$10:$B$665,'Maximum capacity'!$H$10:$H$665,"not found",0) ->  | M21: =VLOOKUP($B21,'Seasonal ratings'!$B$45:$AI$700,(MATCH(M$12,'Seasonal ratings'!$F$44:$O$44,0)+COLUMN('Seasonal ratings'!$F$44)-COLUMN('Seasonal ratings'!$B$44)),FALSE) -> 660 | N21: =VLOOKUP($B21,'Seasonal ratings'!$B$45:$AI$700,(MATCH(N$12,'Seasonal ratings'!$P$44:$Y$44,0)+COLUMN('Seasonal ratings'!$P$44)-COLUMN('Seasonal ratings'!$B$44)),FALSE) -> 0 | O21: =VLOOKUP($B21,'Seasonal ratings'!$B$45:$AI$700,(MATCH(O$12,'Seasonal ratings'!$Z$44:$AI$44,0)+COLUMN('Seasonal ratings'!$Z$44)-COLUMN('Seasonal ratings'!$B$44)),FALSE) -> 0 | P21: =_xlfn.XLOOKUP($B21,'Coal Min Stable Level'!$B$14:$B$57,'Coal Min Stable Level'!$G$14:$G$57,_xlfn.XLOOKUP($B21,'GPG Min Stable Level'!$B$12:$B$148,'GPG Min Stable Level'!$E$12:$E$148,"not found",0),0) -> 180 | Q21: =_xlfn.XLOOKUP($B21,'Affine Heat rates'!$B$8:$B$188,'Affine Heat rates'!$E$8:$E$188,"not found",0) -> 648 | R21: =_xlfn.XLOOKUP($B21,'Affine Heat rates'!$B$8:$B$188,'Affine Heat rates'!$F$8:$F$188,"not found",0) -> 9.258586828 | S21: =_xlfn.XLOOKUP(_xlfn.XLOOKUP($B21,'Summary Mapping'!$C$7:$C$662,'Summary Mapping'!$Y$7:$Y$662,"not found",0),'Storage properties'!$B$22:$B$28,'Storage properties'!$E$22:$E$28,"not found",0) -> not found | T21: =_xlfn.XLOOKUP($D21,'Storage properties'!$B$6:$B$12,'Storage properties'!$E$6:$E$12, "not found",0) -> not found | U21: =_xlfn.XLOOKUP($D21,'Storage properties'!$B$6:$B$12,'Storage properties'!$F$6:$F$12, "not found",0) -> not found | V21: =_xlfn.XLOOKUP($D21,'Storage properties'!$B$6:$B$12,'Storage properties'!$G$6:$G$12, "not found",0) -> not found | W21: =_xlfn.XLOOKUP($D21,'Storage properties'!$B$6:$B$12,'Storage properties'!$H$6:$H$12, "not found",0) -> not found | X21: =_xlfn.XLOOKUP($D21,'Storage properties'!$B$6:$B$12,'Storage properties'!$I$6:$I$12, "not found",0) -> not found | Y21: =_xlfn.XLOOKUP($D21,'Storage properties'!$B$6:$B$12,'Storage properties'!$J$6:$J$12, "not found",0) -> not found | Z21: =_xlfn.XLOOKUP($B21,'Max Ramp Rates'!$B$9:$B$189,'Max Ramp Rates'!$E$9:$E$189, "not found", 0) -> 5 | AA21: =_xlfn.XLOOKUP($B21,'Max Ramp Rates'!$B$9:$B$189,'Max Ramp Rates'!$F$9:$F$189, "not found", 0) -> 5 | AB21: =_xlfn.XLOOKUP(_xlfn.XLOOKUP($B21,'Summary Mapping'!$C$7:$C$662,'Summary Mapping'!$O$7:$O$662,"not found",0),Maintenance!$B$7:$B$24,Maintenance!$C$7:$C$24,"not found",0) -> 5.479452055 | AC21: =_xlfn.XLOOKUP(_xlfn.XLOOKUP($B21,'Summary Mapping'!$C$7:$C$662,'Summary Mapping'!$O$7:$O$662,"not found",0),Maintenance!$B$7:$B$24,Maintenance!$D$7:$D$24,"not found",0) -> 20 | AD21: =IF($D21="Biomass",IFERROR(VLOOKUP($D21,'Generator Reliability Settings'!$B$58:$G$79,MATCH(AD$11,'Generator Reliability Settings'!$B$58:$G$58,0),FALSE),"not found"),IFERROR(INDEX('Generator Reliability Settings'!$B$23:$M$52,MATCH(_xlfn.XLOOKUP($B21,'Summary Mapping'!$C$7:$C$662,'Summary Mapping'!$P$7:$P$662,"not found",0)&AD$11,'Generator Reliability Settings'!$B$23:$B$52&'Generator Reliability Settings'!$C$23:$C$52,0),MIN(COLUMNS('Generator Reliability Settings'!$B$22:$M$52),MATCH(AD$12,'Generator Reliability Settings'!$B$22:$M$22,0))), "not found")) -> 0.05327398277 | AE21: =IF($D21="Biomass",IFERROR(VLOOKUP($D21,'Generator Reliability Settings'!$B$58:$G$79,MATCH(AE$11,'Generator Reliability Settings'!$B$58:$G$58,0),FALSE),"not found"),IFERROR(INDEX('Generator Reliability Settings'!$B$23:$M$52,MATCH(_xlfn.XLOOKUP($B21,'Summary Mapping'!$C$7:$C$662,'Summary Mapping'!$P$7:$P$662,"not found",0)&AE$11,'Generator Reliability Settings'!$B$23:$B$52&'Generator Reliability Settings'!$C$23:$C$52,0),MIN(COLUMNS('Generator Reliability Settings'!$B$22:$M$52),MATCH(AE$12,'Generator Reliability Settings'!$B$22:$M$22,0))), "not found")) -> 0.30516105 | AF21: =IF($D21="Biomass",IFERROR(VLOOKUP($D21,'Generator Reliability Settings'!$B$58:$G$79,MATCH(AF$11,'Generator Reliability Settings'!$B$58:$G$58,0),FALSE),"not found"),IFERROR(INDEX('Generator Reliability Settings'!$B$23:$M$52,MATCH(_xlfn.XLOOKUP($B21,'Summary Mapping'!$C$7:$C$662,'Summary Mapping'!$P$7:$P$662,"not found",0)&AF$11,'Generator Reliability Settings'!$B$23:$B$52&'Generator Reliability Settings'!$C$23:$C$52,0),MIN(COLUMNS('Generator Reliability Settings'!$B$22:$M$52),MATCH(AF$12,'Generator Reliability Settings'!$B$22:$M$22,0))), "not found")) -> 148.7062284 | AG21: =IF($D21="Biomass",IFERROR(VLOOKUP($D21,'Generator Reliability Settings'!$B$58:$G$79,MATCH(AG$11,'Generator Reliability Settings'!$B$58:$G$58,0),FALSE),"not found"),IFERROR(INDEX('Generator Reliability Settings'!$B$23:$M$52,MATCH(_xlfn.XLOOKUP($B21,'Summary Mapping'!$C$7:$C$662,'Summary Mapping'!$P$7:$P$662,"not found",0)&AG$11,'Generator Reliability Settings'!$B$23:$B$52&'Generator Reliability Settings'!$C$23:$C$52,0),MIN(COLUMNS('Generator Reliability Settings'!$B$22:$M$52),MATCH(AG$12,'Generator Reliability Settings'!$B$22:$M$22,0))), "not found")) -> 27.53229991 | AH21: =IF($D21="Biomass",IFERROR(VLOOKUP($D21,'Generator Reliability Settings'!$B$58:$G$79,MATCH(AH$11,'Generator Reliability Settings'!$B$58:$G$58,0),FALSE),"not found"),IFERROR(INDEX('Generator Reliability Settings'!$B$23:$M$52,MATCH(_xlfn.XLOOKUP($B21,'Summary Mapping'!$C$7:$C$662,'Summary Mapping'!$P$7:$P$662,"not found",0)&AH$11,'Generator Reliability Settings'!$B$23:$B$52&'Generator Reliability Settings'!$C$23:$C$52,0),MIN(COLUMNS('Generator Reliability Settings'!$B$22:$M$52),MATCH(AH$12,'Generator Reliability Settings'!$B$22:$M$22,0))), "not found")) -> 0.1864730238 | AI21: =_xlfn.XLOOKUP($B21,'Fixed OPEX'!$B$8:$B$663,'Fixed OPEX'!$E$8:$E$663,"not found", 0) -> 28 | AJ21: =_xlfn.XLOOKUP($B21,'Variable OPEX'!$B$8:$B$663,'Variable OPEX'!$E$8:$E$663,"not found",0) -> 8 | AK21: =_xlfn.XLOOKUP($B21,'Heat rates'!$B$9:$B$664,'Heat rates'!$E$9:$E$664,"not found", 0) -> 10.15858683 | AL21: =INDEX('Fuel Price Summary'!$H$12:$AK$668,MATCH($B21,'Fuel Price Summary'!$B$12:$B$668,0),MATCH($AL$12,'Fuel Price Summary'!$H$12:$AK$12,0)) -> 7.016087 | AM21: =_xlfn.XLOOKUP($B21,'Emissions intensity'!$B$8:$B$664,'Emissions intensity'!$E$8:$E$664,"not found",0)*SUMPRODUCT((('GPG emissions reduction - BioM'!$B$9:$B$11)=AM$11)*(('GPG emissions reduction - BioM'!$C$8:$AF$8)=AM$12),'GPG emissions reduction - BioM'!$C$9:$AF$11) +N("this term is the emission intensity as at the current year") -> 572.6247428 | AN21: =_xlfn.XLOOKUP($B21,'Marginal Loss Factors'!$B$13:$B$668,'Marginal Loss Factors'!$F$13:$F$668, "not found", 0) -> 0.9846 | AO21: =_xlfn.XLOOKUP($B21,Auxiliary!$B$7:$B$662,Auxiliary!$E$7:$E$662,"not found",0) -> 5.48025286 | AP21: 79.27352898 | AQ21: =_xlfn.XLOOKUP($B21,Retirement!$B$14:$B$669,Retirement!$F$14:$F$669, "not found", 0) -> 2027 | AR21: =_xlfn.XLOOKUP($D21,Retirement!$I$14:$I$44,Retirement!$J$14:$J$44,"not found",0) -> 254000 | AS21: =_xlfn.XLOOKUP($B21,'Power System Security'!$B$6:$B$49,'Power System Security'!$D$6:$D$49,"not found",0) -> 122.9469428
B22: ='Summary Mapping'!C16 -> ER02 | C22: ='Summary Mapping'!D16 -> Eraring | D22: ='Summary Mapping'!E16 -> Steam Sub Critical | E22: ='Summary Mapping'!F16 -> NSW | F22: ='Summary Mapping'!G16 -> SNW | G22: ='Summary Mapping'!H16 -> Not Applicable | H22: ='Summary Mapping'!I16 -> Not Applicable | I22: ='Summary Mapping'!J16 -> Existing | J22: ='Summary Mapping'!K16 -> Not Applicable | K22: =_xlfn.XLOOKUP(B22,'Maximum capacity'!$B$10:$B$665,'Maximum capacity'!$G$10:$G$665,"not found",0) -> 720 | L22: =_xlfn.XLOOKUP(B22,'Maximum capacity'!$B$10:$B$665,'Maximum capacity'!$H$10:$H$665,"not found",0) ->  | M22: =VLOOKUP($B22,'Seasonal ratings'!$B$45:$AI$700,(MATCH(M$12,'Seasonal ratings'!$F$44:$O$44,0)+COLUMN('Seasonal ratings'!$F$44)-COLUMN('Seasonal ratings'!$B$44)),FALSE) -> 660 | N22: =VLOOKUP($B22,'Seasonal ratings'!$B$45:$AI$700,(MATCH(N$12,'Seasonal ratings'!$P$44:$Y$44,0)+COLUMN('Seasonal ratings'!$P$44)-COLUMN('Seasonal ratings'!$B$44)),FALSE) -> 0 | O22: =VLOOKUP($B22,'Seasonal ratings'!$B$45:$AI$700,(MATCH(O$12,'Seasonal ratings'!$Z$44:$AI$44,0)+COLUMN('Seasonal ratings'!$Z$44)-COLUMN('Seasonal ratings'!$B$44)),FALSE) -> 0 | P22: =_xlfn.XLOOKUP($B22,'Coal Min Stable Level'!$B$14:$B$57,'Coal Min Stable Level'!$G$14:$G$57,_xlfn.XLOOKUP($B22,'GPG Min Stable Level'!$B$12:$B$148,'GPG Min Stable Level'!$E$12:$E$148,"not found",0),0) -> 180 | Q22: =_xlfn.XLOOKUP($B22,'Affine Heat rates'!$B$8:$B$188,'Affine Heat rates'!$E$8:$E$188,"not found",0) -> 648 | R22: =_xlfn.XLOOKUP($B22,'Affine Heat rates'!$B$8:$B$188,'Affine Heat rates'!$F$8:$F$188,"not found",0) -> 9.258586828 | S22: =_xlfn.XLOOKUP(_xlfn.XLOOKUP($B22,'Summary Mapping'!$C$7:$C$662,'Summary Mapping'!$Y$7:$Y$662,"not found",0),'Storage properties'!$B$22:$B$28,'Storage properties'!$E$22:$E$28,"not found",0) -> not found | T22: =_xlfn.XLOOKUP($D22,'Storage properties'!$B$6:$B$12,'Storage properties'!$E$6:$E$12, "not found",0) -> not found | U22: =_xlfn.XLOOKUP($D22,'Storage properties'!$B$6:$B$12,'Storage properties'!$F$6:$F$12, "not found",0) -> not found | V22: =_xlfn.XLOOKUP($D22,'Storage properties'!$B$6:$B$12,'Storage properties'!$G$6:$G$12, "not found",0) -> not found | W22: =_xlfn.XLOOKUP($D22,'Storage properties'!$B$6:$B$12,'Storage properties'!$H$6:$H$12, "not found",0) -> not found | X22: =_xlfn.XLOOKUP($D22,'Storage properties'!$B$6:$B$12,'Storage properties'!$I$6:$I$12, "not found",0) -> not found | Y22: =_xlfn.XLOOKUP($D22,'Storage properties'!$B$6:$B$12,'Storage properties'!$J$6:$J$12, "not found",0) -> not found | Z22: =_xlfn.XLOOKUP($B22,'Max Ramp Rates'!$B$9:$B$189,'Max Ramp Rates'!$E$9:$E$189, "not found", 0) -> 5 | AA22: =_xlfn.XLOOKUP($B22,'Max Ramp Rates'!$B$9:$B$189,'Max Ramp Rates'!$F$9:$F$189, "not found", 0) -> 5 | AB22: =_xlfn.XLOOKUP(_xlfn.XLOOKUP($B22,'Summary Mapping'!$C$7:$C$662,'Summary Mapping'!$O$7:$O$662,"not found",0),Maintenance!$B$7:$B$24,Maintenance!$C$7:$C$24,"not found",0) -> 5.479452055 | AC22: =_xlfn.XLOOKUP(_xlfn.XLOOKUP($B22,'Summary Mapping'!$C$7:$C$662,'Summary Mapping'!$O$7:$O$662,"not found",0),Maintenance!$B$7:$B$24,Maintenance!$D$7:$D$24,"not found",0) -> 20 | AD22: =IF($D22="Biomass",IFERROR(VLOOKUP($D22,'Generator Reliability Settings'!$B$58:$G$79,MATCH(AD$11,'Generator Reliability Settings'!$B$58:$G$58,0),FALSE),"not found"),IFERROR(INDEX('Generator Reliability Settings'!$B$23:$M$52,MATCH(_xlfn.XLOOKUP($B22,'Summary Mapping'!$C$7:$C$662,'Summary Mapping'!$P$7:$P$662,"not found",0)&AD$11,'Generator Reliability Settings'!$B$23:$B$52&'Generator Reliability Settings'!$C$23:$C$52,0),MIN(COLUMNS('Generator Reliability Settings'!$B$22:$M$52),MATCH(AD$12,'Generator Reliability Settings'!$B$22:$M$22,0))), "not found")) -> 0.05327398277 | AE22: =IF($D22="Biomass",IFERROR(VLOOKUP($D22,'Generator Reliability Settings'!$B$58:$G$79,MATCH(AE$11,'Generator Reliability Settings'!$B$58:$G$58,0),FALSE),"not found"),IFERROR(INDEX('Generator Reliability Settings'!$B$23:$M$52,MATCH(_xlfn.XLOOKUP($B22,'Summary Mapping'!$C$7:$C$662,'Summary Mapping'!$P$7:$P$662,"not found",0)&AE$11,'Generator Reliability Settings'!$B$23:$B$52&'Generator Reliability Settings'!$C$23:$C$52,0),MIN(COLUMNS('Generator Reliability Settings'!$B$22:$M$52),MATCH(AE$12,'Generator Reliability Settings'!$B$22:$M$22,0))), "not found")) -> 0.30516105 | AF22: =IF($D22="Biomass",IFERROR(VLOOKUP($D22,'Generator Reliability Settings'!$B$58:$G$79,MATCH(AF$11,'Generator Reliability Settings'!$B$58:$G$58,0),FALSE),"not found"),IFERROR(INDEX('Generator Reliability Settings'!$B$23:$M$52,MATCH(_xlfn.XLOOKUP($B22,'Summary Mapping'!$C$7:$C$662,'Summary Mapping'!$P$7:$P$662,"not found",0)&AF$11,'Generator Reliability Settings'!$B$23:$B$52&'Generator Reliability Settings'!$C$23:$C$52,0),MIN(COLUMNS('Generator Reliability Settings'!$B$22:$M$52),MATCH(AF$12,'Generator Reliability Settings'!$B$22:$M$22,0))), "not found")) -> 148.7062284 | AG22: =IF($D22="Biomass",IFERROR(VLOOKUP($D22,'Generator Reliability Settings'!$B$58:$G$79,MATCH(AG$11,'Generator Reliability Settings'!$B$58:$G$58,0),FALSE),"not found"),IFERROR(INDEX('Generator Reliability Settings'!$B$23:$M$52,MATCH(_xlfn.XLOOKUP($B22,'Summary Mapping'!$C$7:$C$662,'Summary Mapping'!$P$7:$P$662,"not found",0)&AG$11,'Generator Reliability Settings'!$B$23:$B$52&'Generator Reliability Settings'!$C$23:$C$52,0),MIN(COLUMNS('Generator Reliability Settings'!$B$22:$M$52),MATCH(AG$12,'Generator Reliability Settings'!$B$22:$M$22,0))), "not found")) -> 27.53229991 | AH22: =IF($D22="Biomass",IFERROR(VLOOKUP($D22,'Generator Reliability Settings'!$B$58:$G$79,MATCH(AH$11,'Generator Reliability Settings'!$B$58:$G$58,0),FALSE),"not found"),IFERROR(INDEX('Generator Reliability Settings'!$B$23:$M$52,MATCH(_xlfn.XLOOKUP($B22,'Summary Mapping'!$C$7:$C$662,'Summary Mapping'!$P$7:$P$662,"not found",0)&AH$11,'Generator Reliability Settings'!$B$23:$B$52&'Generator Reliability Settings'!$C$23:$C$52,0),MIN(COLUMNS('Generator Reliability Settings'!$B$22:$M$52),MATCH(AH$12,'Generator Reliability Settings'!$B$22:$M$22,0))), "not found")) -> 0.1864730238 | AI22: =_xlfn.XLOOKUP($B22,'Fixed OPEX'!$B$8:$B$663,'Fixed OPEX'!$E$8:$E$663,"not found", 0) -> 28 | AJ22: =_xlfn.XLOOKUP($B22,'Variable OPEX'!$B$8:$B$663,'Variable OPEX'!$E$8:$E$663,"not found",0) -> 8 | AK22: =_xlfn.XLOOKUP($B22,'Heat rates'!$B$9:$B$664,'Heat rates'!$E$9:$E$664,"not found", 0) -> 10.15858683 | AL22: =INDEX('Fuel Price Summary'!$H$12:$AK$668,MATCH($B22,'Fuel Price Summary'!$B$12:$B$668,0),MATCH($AL$12,'Fuel Price Summary'!$H$12:$AK$12,0)) -> 7.016087 | AM22: =_xlfn.XLOOKUP($B22,'Emissions intensity'!$B$8:$B$664,'Emissions intensity'!$E$8:$E$664,"not found",0)*SUMPRODUCT((('GPG emissions reduction - BioM'!$B$9:$B$11)=AM$11)*(('GPG emissions reduction - BioM'!$C$8:$AF$8)=AM$12),'GPG emissions reduction - BioM'!$C$9:$AF$11) +N("this term is the emission intensity as at the current year") -> 572.6247428 | AN22: =_xlfn.XLOOKUP($B22,'Marginal Loss Factors'!$B$13:$B$668,'Marginal Loss Factors'!$F$13:$F$668, "not found", 0) -> 0.9846 | AO22: =_xlfn.XLOOKUP($B22,Auxiliary!$B$7:$B$662,Auxiliary!$E$7:$E$662,"not found",0) -> 5.48025286 | AP22: 79.27352898 | AQ22: =_xlfn.XLOOKUP($B22,Retirement!$B$14:$B$669,Retirement!$F$14:$F$669, "not found", 0) -> 2027 | AR22: =_xlfn.XLOOKUP($D22,Retirement!$I$14:$I$44,Retirement!$J$14:$J$44,"not found",0) -> 254000 | AS22: =_xlfn.XLOOKUP($B22,'Power System Security'!$B$6:$B$49,'Power System Security'!$D$6:$D$49,"not found",0) -> 122.9469428
B23: ='Summary Mapping'!C17 -> ER03 | C23: ='Summary Mapping'!D17 -> Eraring | D23: ='Summary Mapping'!E17 -> Steam Sub Critical | E23: ='Summary Mapping'!F17 -> NSW | F23: ='Summary Mapping'!G17 -> SNW | G23: ='Summary Mapping'!H17 -> Not Applicable | H23: ='Summary Mapping'!I17 -> Not Applicable | I23: ='Summary Mapping'!J17 -> Existing | J23: ='Summary Mapping'!K17 -> Not Applicable | K23: =_xlfn.XLOOKUP(B23,'Maximum capacity'!$B$10:$B$665,'Maximum capacity'!$G$10:$G$665,"not found",0) -> 720 | L23: =_xlfn.XLOOKUP(B23,'Maximum capacity'!$B$10:$B$665,'Maximum capacity'!$H$10:$H$665,"not found",0) ->  | M23: =VLOOKUP($B23,'Seasonal ratings'!$B$45:$AI$700,(MATCH(M$12,'Seasonal ratings'!$F$44:$O$44,0)+COLUMN('Seasonal ratings'!$F$44)-COLUMN('Seasonal ratings'!$B$44)),FALSE) -> 660 | N23: =VLOOKUP($B23,'Seasonal ratings'!$B$45:$AI$700,(MATCH(N$12,'Seasonal ratings'!$P$44:$Y$44,0)+COLUMN('Seasonal ratings'!$P$44)-COLUMN('Seasonal ratings'!$B$44)),FALSE) -> 0 | O23: =VLOOKUP($B23,'Seasonal ratings'!$B$45:$AI$700,(MATCH(O$12,'Seasonal ratings'!$Z$44:$AI$44,0)+COLUMN('Seasonal ratings'!$Z$44)-COLUMN('Seasonal ratings'!$B$44)),FALSE) -> 0 | P23: =_xlfn.XLOOKUP($B23,'Coal Min Stable Level'!$B$14:$B$57,'Coal Min Stable Level'!$G$14:$G$57,_xlfn.XLOOKUP($B23,'GPG Min Stable Level'!$B$12:$B$148,'GPG Min Stable Level'!$E$12:$E$148,"not found",0),0) -> 180 | Q23: =_xlfn.XLOOKUP($B23,'Affine Heat rates'!$B$8:$B$188,'Affine Heat rates'!$E$8:$E$188,"not found",0) -> 648 | R23: =_xlfn.XLOOKUP($B23,'Affine Heat rates'!$B$8:$B$188,'Affine Heat rates'!$F$8:$F$188,"not found",0) -> 9.258586828 | S23: =_xlfn.XLOOKUP(_xlfn.XLOOKUP($B23,'Summary Mapping'!$C$7:$C$662,'Summary Mapping'!$Y$7:$Y$662,"not found",0),'Storage properties'!$B$22:$B$28,'Storage properties'!$E$22:$E$28,"not found",0) -> not found | T23: =_xlfn.XLOOKUP($D23,'Storage properties'!$B$6:$B$12,'Storage properties'!$E$6:$E$12, "not found",0) -> not found | U23: =_xlfn.XLOOKUP($D23,'Storage properties'!$B$6:$B$12,'Storage properties'!$F$6:$F$12, "not found",0) -> not found | V23: =_xlfn.XLOOKUP($D23,'Storage properties'!$B$6:$B$12,'Storage properties'!$G$6:$G$12, "not found",0) -> not found | W23: =_xlfn.XLOOKUP($D23,'Storage properties'!$B$6:$B$12,'Storage properties'!$H$6:$H$12, "not found",0) -> not found | X23: =_xlfn.XLOOKUP($D23,'Storage properties'!$B$6:$B$12,'Storage properties'!$I$6:$I$12, "not found",0) -> not found | Y23: =_xlfn.XLOOKUP($D23,'Storage properties'!$B$6:$B$12,'Storage properties'!$J$6:$J$12, "not found",0) -> not found | Z23: =_xlfn.XLOOKUP($B23,'Max Ramp Rates'!$B$9:$B$189,'Max Ramp Rates'!$E$9:$E$189, "not found", 0) -> 5 | AA23: =_xlfn.XLOOKUP($B23,'Max Ramp Rates'!$B$9:$B$189,'Max Ramp Rates'!$F$9:$F$189, "not found", 0) -> 5 | AB23: =_xlfn.XLOOKUP(_xlfn.XLOOKUP($B23,'Summary Mapping'!$C$7:$C$662,'Summary Mapping'!$O$7:$O$662,"not found",0),Maintenance!$B$7:$B$24,Maintenance!$C$7:$C$24,"not found",0) -> 5.479452055 | AC23: =_xlfn.XLOOKUP(_xlfn.XLOOKUP($B23,'Summary Mapping'!$C$7:$C$662,'Summary Mapping'!$O$7:$O$662,"not found",0),Maintenance!$B$7:$B$24,Maintenance!$D$7:$D$24,"not found",0) -> 20 | AD23: =IF($D23="Biomass",IFERROR(VLOOKUP($D23,'Generator Reliability Settings'!$B$58:$G$79,MATCH(AD$11,'Generator Reliability Settings'!$B$58:$G$58,0),FALSE),"not found"),IFERROR(INDEX('Generator Reliability Settings'!$B$23:$M$52,MATCH(_xlfn.XLOOKUP($B23,'Summary Mapping'!$C$7:$C$662,'Summary Mapping'!$P$7:$P$662,"not found",0)&AD$11,'Generator Reliability Settings'!$B$23:$B$52&'Generator Reliability Settings'!$C$23:$C$52,0),MIN(COLUMNS('Generator Reliability Settings'!$B$22:$M$52),MATCH(AD$12,'Generator Reliability Settings'!$B$22:$M$22,0))), "not found")) -> 0.05327398277 | AE23: =IF($D23="Biomass",IFERROR(VLOOKUP($D23,'Generator Reliability Settings'!$B$58:$G$79,MATCH(AE$11,'Generator Reliability Settings'!$B$58:$G$58,0),FALSE),"not found"),IFERROR(INDEX('Generator Reliability Settings'!$B$23:$M$52,MATCH(_xlfn.XLOOKUP($B23,'Summary Mapping'!$C$7:$C$662,'Summary Mapping'!$P$7:$P$662,"not found",0)&AE$11,'Generator Reliability Settings'!$B$23:$B$52&'Generator Reliability Settings'!$C$23:$C$52,0),MIN(COLUMNS('Generator Reliability Settings'!$B$22:$M$52),MATCH(AE$12,'Generator Reliability Settings'!$B$22:$M$22,0))), "not found")) -> 0.30516105 | AF23: =IF($D23="Biomass",IFERROR(VLOOKUP($D23,'Generator Reliability Settings'!$B$58:$G$79,MATCH(AF$11,'Generator Reliability Settings'!$B$58:$G$58,0),FALSE),"not found"),IFERROR(INDEX('Generator Reliability Settings'!$B$23:$M$52,MATCH(_xlfn.XLOOKUP($B23,'Summary Mapping'!$C$7:$C$662,'Summary Mapping'!$P$7:$P$662,"not found",0)&AF$11,'Generator Reliability Settings'!$B$23:$B$52&'Generator Reliability Settings'!$C$23:$C$52,0),MIN(COLUMNS('Generator Reliability Settings'!$B$22:$M$52),MATCH(AF$12,'Generator Reliability Settings'!$B$22:$M$22,0))), "not found")) -> 148.7062284 | AG23: =IF($D23="Biomass",IFERROR(VLOOKUP($D23,'Generator Reliability Settings'!$B$58:$G$79,MATCH(AG$11,'Generator Reliability Settings'!$B$58:$G$58,0),FALSE),"not found"),IFERROR(INDEX('Generator Reliability Settings'!$B$23:$M$52,MATCH(_xlfn.XLOOKUP($B23,'Summary Mapping'!$C$7:$C$662,'Summary Mapping'!$P$7:$P$662,"not found",0)&AG$11,'Generator Reliability Settings'!$B$23:$B$52&'Generator Reliability Settings'!$C$23:$C$52,0),MIN(COLUMNS('Generator Reliability Settings'!$B$22:$M$52),MATCH(AG$12,'Generator Reliability Settings'!$B$22:$M$22,0))), "not found")) -> 27.53229991 | AH23: =IF($D23="Biomass",IFERROR(VLOOKUP($D23,'Generator Reliability Settings'!$B$58:$G$79,MATCH(AH$11,'Generator Reliability Settings'!$B$58:$G$58,0),FALSE),"not found"),IFERROR(INDEX('Generator Reliability Settings'!$B$23:$M$52,MATCH(_xlfn.XLOOKUP($B23,'Summary Mapping'!$C$7:$C$662,'Summary Mapping'!$P$7:$P$662,"not found",0)&AH$11,'Generator Reliability Settings'!$B$23:$B$52&'Generator Reliability Settings'!$C$23:$C$52,0),MIN(COLUMNS('Generator Reliability Settings'!$B$22:$M$52),MATCH(AH$12,'Generator Reliability Settings'!$B$22:$M$22,0))), "not found")) -> 0.1864730238 | AI23: =_xlfn.XLOOKUP($B23,'Fixed OPEX'!$B$8:$B$663,'Fixed OPEX'!$E$8:$E$663,"not found", 0) -> 28 | AJ23: =_xlfn.XLOOKUP($B23,'Variable OPEX'!$B$8:$B$663,'Variable OPEX'!$E$8:$E$663,"not found",0) -> 8 | AK23: =_xlfn.XLOOKUP($B23,'Heat rates'!$B$9:$B$664,'Heat rates'!$E$9:$E$664,"not found", 0) -> 10.15858683 | AL23: =INDEX('Fuel Price Summary'!$H$12:$AK$668,MATCH($B23,'Fuel Price Summary'!$B$12:$B$668,0),MATCH($AL$12,'Fuel Price Summary'!$H$12:$AK$12,0)) -> 7.016087 | AM23: =_xlfn.XLOOKUP($B23,'Emissions intensity'!$B$8:$B$664,'Emissions intensity'!$E$8:$E$664,"not found",0)*SUMPRODUCT((('GPG emissions reduction - BioM'!$B$9:$B$11)=AM$11)*(('GPG emissions reduction - BioM'!$C$8:$AF$8)=AM$12),'GPG emissions reduction - BioM'!$C$9:$AF$11) +N("this term is the emission intensity as at the current year") -> 572.6247428 | AN23: =_xlfn.XLOOKUP($B23,'Marginal Loss Factors'!$B$13:$B$668,'Marginal Loss Factors'!$F$13:$F$668, "not found", 0) -> 0.9846 | AO23: =_xlfn.XLOOKUP($B23,Auxiliary!$B$7:$B$662,Auxiliary!$E$7:$E$662,"not found",0) -> 5.48025286 | AP23: 79.27352898 | AQ23: =_xlfn.XLOOKUP($B23,Retirement!$B$14:$B$669,Retirement!$F$14:$F$669, "not found", 0) -> 2027 | AR23: =_xlfn.XLOOKUP($D23,Retirement!$I$14:$I$44,Retirement!$J$14:$J$44,"not found",0) -> 254000 | AS23: =_xlfn.XLOOKUP($B23,'Power System Security'!$B$6:$B$49,'Power System Security'!$D$6:$D$49,"not found",0) -> 122.9469428
B24: ='Summary Mapping'!C18 -> ER04 | C24: ='Summary Mapping'!D18 -> Eraring | D24: ='Summary Mapping'!E18 -> Steam Sub Critical | E24: ='Summary Mapping'!F18 -> NSW | F24: ='Summary Mapping'!G18 -> SNW | G24: ='Summary Mapping'!H18 -> Not Applicable | H24: ='Summary Mapping'!I18 -> Not Applicable | I24: ='Summary Mapping'!J18 -> Existing | J24: ='Summary Mapping'!K18 -> Not Applicable | K24: =_xlfn.XLOOKUP(B24,'Maximum capacity'!$B$10:$B$665,'Maximum capacity'!$G$10:$G$665,"not found",0) -> 720 | L24: =_xlfn.XLOOKUP(B24,'Maximum capacity'!$B$10:$B$665,'Maximum capacity'!$H$10:$H$665,"not found",0) ->  | M24: =VLOOKUP($B24,'Seasonal ratings'!$B$45:$AI$700,(MATCH(M$12,'Seasonal ratings'!$F$44:$O$44,0)+COLUMN('Seasonal ratings'!$F$44)-COLUMN('Seasonal ratings'!$B$44)),FALSE) -> 660 | N24: =VLOOKUP($B24,'Seasonal ratings'!$B$45:$AI$700,(MATCH(N$12,'Seasonal ratings'!$P$44:$Y$44,0)+COLUMN('Seasonal ratings'!$P$44)-COLUMN('Seasonal ratings'!$B$44)),FALSE) -> 0 | O24: =VLOOKUP($B24,'Seasonal ratings'!$B$45:$AI$700,(MATCH(O$12,'Seasonal ratings'!$Z$44:$AI$44,0)+COLUMN('Seasonal ratings'!$Z$44)-COLUMN('Seasonal ratings'!$B$44)),FALSE) -> 0 | P24: =_xlfn.XLOOKUP($B24,'Coal Min Stable Level'!$B$14:$B$57,'Coal Min Stable Level'!$G$14:$G$57,_xlfn.XLOOKUP($B24,'GPG Min Stable Level'!$B$12:$B$148,'GPG Min Stable Level'!$E$12:$E$148,"not found",0),0) -> 180 | Q24: =_xlfn.XLOOKUP($B24,'Affine Heat rates'!$B$8:$B$188,'Affine Heat rates'!$E$8:$E$188,"not found",0) -> 648 | R24: =_xlfn.XLOOKUP($B24,'Affine Heat rates'!$B$8:$B$188,'Affine Heat rates'!$F$8:$F$188,"not found",0) -> 9.258586828 | S24: =_xlfn.XLOOKUP(_xlfn.XLOOKUP($B24,'Summary Mapping'!$C$7:$C$662,'Summary Mapping'!$Y$7:$Y$662,"not found",0),'Storage properties'!$B$22:$B$28,'Storage properties'!$E$22:$E$28,"not found",0) -> not found | T24: =_xlfn.XLOOKUP($D24,'Storage properties'!$B$6:$B$12,'Storage properties'!$E$6:$E$12, "not found",0) -> not found | U24: =_xlfn.XLOOKUP($D24,'Storage properties'!$B$6:$B$12,'Storage properties'!$F$6:$F$12, "not found",0) -> not found | V24: =_xlfn.XLOOKUP($D24,'Storage properties'!$B$6:$B$12,'Storage properties'!$G$6:$G$12, "not found",0) -> not found | W24: =_xlfn.XLOOKUP($D24,'Storage properties'!$B$6:$B$12,'Storage properties'!$H$6:$H$12, "not found",0) -> not found | X24: =_xlfn.XLOOKUP($D24,'Storage properties'!$B$6:$B$12,'Storage properties'!$I$6:$I$12, "not found",0) -> not found | Y24: =_xlfn.XLOOKUP($D24,'Storage properties'!$B$6:$B$12,'Storage properties'!$J$6:$J$12, "not found",0) -> not found | Z24: =_xlfn.XLOOKUP($B24,'Max Ramp Rates'!$B$9:$B$189,'Max Ramp Rates'!$E$9:$E$189, "not found", 0) -> 5 | AA24: =_xlfn.XLOOKUP($B24,'Max Ramp Rates'!$B$9:$B$189,'Max Ramp Rates'!$F$9:$F$189, "not found", 0) -> 5 | AB24: =_xlfn.XLOOKUP(_xlfn.XLOOKUP($B24,'Summary Mapping'!$C$7:$C$662,'Summary Mapping'!$O$7:$O$662,"not found",0),Maintenance!$B$7:$B$24,Maintenance!$C$7:$C$24,"not found",0) -> 5.479452055 | AC24: =_xlfn.XLOOKUP(_xlfn.XLOOKUP($B24,'Summary Mapping'!$C$7:$C$662,'Summary Mapping'!$O$7:$O$662,"not found",0),Maintenance!$B$7:$B$24,Maintenance!$D$7:$D$24,"not found",0) -> 20 | AD24: =IF($D24="Biomass",IFERROR(VLOOKUP($D24,'Generator Reliability Settings'!$B$58:$G$79,MATCH(AD$11,'Generator Reliability Settings'!$B$58:$G$58,0),FALSE),"not found"),IFERROR(INDEX('Generator Reliability Settings'!$B$23:$M$52,MATCH(_xlfn.XLOOKUP($B24,'Summary Mapping'!$C$7:$C$662,'Summary Mapping'!$P$7:$P$662,"not found",0)&AD$11,'Generator Reliability Settings'!$B$23:$B$52&'Generator Reliability Settings'!$C$23:$C$52,0),MIN(COLUMNS('Generator Reliability Settings'!$B$22:$M$52),MATCH(AD$12,'Generator Reliability Settings'!$B$22:$M$22,0))), "not found")) -> 0.05327398277 | AE24: =IF($D24="Biomass",IFERROR(VLOOKUP($D24,'Generator Reliability Settings'!$B$58:$G$79,MATCH(AE$11,'Generator Reliability Settings'!$B$58:$G$58,0),FALSE),"not found"),IFERROR(INDEX('Generator Reliability Settings'!$B$23:$M$52,MATCH(_xlfn.XLOOKUP($B24,'Summary Mapping'!$C$7:$C$662,'Summary Mapping'!$P$7:$P$662,"not found",0)&AE$11,'Generator Reliability Settings'!$B$23:$B$52&'Generator Reliability Settings'!$C$23:$C$52,0),MIN(COLUMNS('Generator Reliability Settings'!$B$22:$M$52),MATCH(AE$12,'Generator Reliability Settings'!$B$22:$M$22,0))), "not found")) -> 0.30516105 | AF24: =IF($D24="Biomass",IFERROR(VLOOKUP($D24,'Generator Reliability Settings'!$B$58:$G$79,MATCH(AF$11,'Generator Reliability Settings'!$B$58:$G$58,0),FALSE),"not found"),IFERROR(INDEX('Generator Reliability Settings'!$B$23:$M$52,MATCH(_xlfn.XLOOKUP($B24,'Summary Mapping'!$C$7:$C$662,'Summary Mapping'!$P$7:$P$662,"not found",0)&AF$11,'Generator Reliability Settings'!$B$23:$B$52&'Generator Reliability Settings'!$C$23:$C$52,0),MIN(COLUMNS('Generator Reliability Settings'!$B$22:$M$52),MATCH(AF$12,'Generator Reliability Settings'!$B$22:$M$22,0))), "not found")) -> 148.7062284 | AG24: =IF($D24="Biomass",IFERROR(VLOOKUP($D24,'Generator Reliability Settings'!$B$58:$G$79,MATCH(AG$11,'Generator Reliability Settings'!$B$58:$G$58,0),FALSE),"not found"),IFERROR(INDEX('Generator Reliability Settings'!$B$23:$M$52,MATCH(_xlfn.XLOOKUP($B24,'Summary Mapping'!$C$7:$C$662,'Summary Mapping'!$P$7:$P$662,"not found",0)&AG$11,'Generator Reliability Settings'!$B$23:$B$52&'Generator Reliability Settings'!$C$23:$C$52,0),MIN(COLUMNS('Generator Reliability Settings'!$B$22:$M$52),MATCH(AG$12,'Generator Reliability Settings'!$B$22:$M$22,0))), "not found")) -> 27.53229991 | AH24: =IF($D24="Biomass",IFERROR(VLOOKUP($D24,'Generator Reliability Settings'!$B$58:$G$79,MATCH(AH$11,'Generator Reliability Settings'!$B$58:$G$58,0),FALSE),"not found"),IFERROR(INDEX('Generator Reliability Settings'!$B$23:$M$52,MATCH(_xlfn.XLOOKUP($B24,'Summary Mapping'!$C$7:$C$662,'Summary Mapping'!$P$7:$P$662,"not found",0)&AH$11,'Generator Reliability Settings'!$B$23:$B$52&'Generator Reliability Settings'!$C$23:$C$52,0),MIN(COLUMNS('Generator Reliability Settings'!$B$22:$M$52),MATCH(AH$12,'Generator Reliability Settings'!$B$22:$M$22,0))), "not found")) -> 0.1864730238 | AI24: =_xlfn.XLOOKUP($B24,'Fixed OPEX'!$B$8:$B$663,'Fixed OPEX'!$E$8:$E$663,"not found", 0) -> 28 | AJ24: =_xlfn.XLOOKUP($B24,'Variable OPEX'!$B$8:$B$663,'Variable OPEX'!$E$8:$E$663,"not found",0) -> 8 | AK24: =_xlfn.XLOOKUP($B24,'Heat rates'!$B$9:$B$664,'Heat rates'!$E$9:$E$664,"not found", 0) -> 10.15858683 | AL24: =INDEX('Fuel Price Summary'!$H$12:$AK$668,MATCH($B24,'Fuel Price Summary'!$B$12:$B$668,0),MATCH($AL$12,'Fuel Price Summary'!$H$12:$AK$12,0)) -> 7.016087 | AM24: =_xlfn.XLOOKUP($B24,'Emissions intensity'!$B$8:$B$664,'Emissions intensity'!$E$8:$E$664,"not found",0)*SUMPRODUCT((('GPG emissions reduction - BioM'!$B$9:$B$11)=AM$11)*(('GPG emissions reduction - BioM'!$C$8:$AF$8)=AM$12),'GPG emissions reduction - BioM'!$C$9:$AF$11) +N("this term is the emission intensity as at the current year") -> 572.6247428 | AN24: =_xlfn.XLOOKUP($B24,'Marginal Loss Factors'!$B$13:$B$668,'Marginal Loss Factors'!$F$13:$F$668, "not found", 0) -> 0.9846 | AO24: =_xlfn.XLOOKUP($B24,Auxiliary!$B$7:$B$662,Auxiliary!$E$7:$E$662,"not found",0) -> 5.48025286 | AP24: 79.27352898 | AQ24: =_xlfn.XLOOKUP($B24,Retirement!$B$14:$B$669,Retirement!$F$14:$F$669, "not found", 0) -> 2027 | AR24: =_xlfn.XLOOKUP($D24,Retirement!$I$14:$I$44,Retirement!$J$14:$J$44,"not found",0) -> 254000 | AS24: =_xlfn.XLOOKUP($B24,'Power System Security'!$B$6:$B$49,'Power System Security'!$D$6:$D$49,"not found",0) -> 122.9469428
B25: ='Summary Mapping'!C19 -> GSTONE1 | C25: ='Summary Mapping'!D19 -> Gladstone | D25: ='Summary Mapping'!E19 -> Steam Sub Critical | E25: ='Summary Mapping'!F19 -> QLD | F25: ='Summary Mapping'!G19 -> GG | G25: ='Summary Mapping'!H19 -> Not Applicable | H25: ='Summary Mapping'!I19 -> Not Applicable | I25: ='Summary Mapping'!J19 -> Existing | J25: ='Summary Mapping'!K19 -> Not Applicable | K25: =_xlfn.XLOOKUP(B25,'Maximum capacity'!$B$10:$B$665,'Maximum capacity'!$G$10:$G$665,"not found",0) -> 280 | L25: =_xlfn.XLOOKUP(B25,'Maximum capacity'!$B$10:$B$665,'Maximum capacity'!$H$10:$H$665,"not found",0) ->  | M25: =VLOOKUP($B25,'Seasonal ratings'!$B$45:$AI$700,(MATCH(M$12,'Seasonal ratings'!$F$44:$O$44,0)+COLUMN('Seasonal ratings'!$F$44)-COLUMN('Seasonal ratings'!$B$44)),FALSE) -> 280 | N25: =VLOOKUP($B25,'Seasonal ratings'!$B$45:$AI$700,(MATCH(N$12,'Seasonal ratings'!$P$44:$Y$44,0)+COLUMN('Seasonal ratings'!$P$44)-COLUMN('Seasonal ratings'!$B$44)),FALSE) -> 280 | O25: =VLOOKUP($B25,'Seasonal ratings'!$B$45:$AI$700,(MATCH(O$12,'Seasonal ratings'!$Z$44:$AI$44,0)+COLUMN('Seasonal ratings'!$Z$44)-COLUMN('Seasonal ratings'!$B$44)),FALSE) -> 280 | P25: =_xlfn.XLOOKUP($B25,'Coal Min Stable Level'!$B$14:$B$57,'Coal Min Stable Level'!$G$14:$G$57,_xlfn.XLOOKUP($B25,'GPG Min Stable Level'!$B$12:$B$148,'GPG Min Stable Level'!$E$12:$E$148,"not found",0),0) -> 110 | Q25: =_xlfn.XLOOKUP($B25,'Affine Heat rates'!$B$8:$B$188,'Affine Heat rates'!$E$8:$E$188,"not found",0) -> 396 | R25: =_xlfn.XLOOKUP($B25,'Affine Heat rates'!$B$8:$B$188,'Affine Heat rates'!$F$8:$F$188,"not found",0) -> 8.883197123 | S25: =_xlfn.XLOOKUP(_xlfn.XLOOKUP($B25,'Summary Mapping'!$C$7:$C$662,'Summary Mapping'!$Y$7:$Y$662,"not found",0),'Storage properties'!$B$22:$B$28,'Storage properties'!$E$22:$E$28,"not found",0) -> not found | T25: =_xlfn.XLOOKUP($D25,'Storage properties'!$B$6:$B$12,'Storage properties'!$E$6:$E$12, "not found",0) -> not found | U25: =_xlfn.XLOOKUP($D25,'Storage properties'!$B$6:$B$12,'Storage properties'!$F$6:$F$12, "not found",0) -> not found | V25: =_xlfn.XLOOKUP($D25,'Storage properties'!$B$6:$B$12,'Storage properties'!$G$6:$G$12, "not found",0) -> not found | W25: =_xlfn.XLOOKUP($D25,'Storage properties'!$B$6:$B$12,'Storage properties'!$H$6:$H$12, "not found",0) -> not found | X25: =_xlfn.XLOOKUP($D25,'Storage properties'!$B$6:$B$12,'Storage properties'!$I$6:$I$12, "not found",0) -> not found | Y25: =_xlfn.XLOOKUP($D25,'Storage properties'!$B$6:$B$12,'Storage properties'!$J$6:$J$12, "not found",0) -> not found | Z25: =_xlfn.XLOOKUP($B25,'Max Ramp Rates'!$B$9:$B$189,'Max Ramp Rates'!$E$9:$E$189, "not found", 0) -> 5 | AA25: =_xlfn.XLOOKUP($B25,'Max Ramp Rates'!$B$9:$B$189,'Max Ramp Rates'!$F$9:$F$189, "not found", 0) -> 5 | AB25: =_xlfn.XLOOKUP(_xlfn.XLOOKUP($B25,'Summary Mapping'!$C$7:$C$662,'Summary Mapping'!$O$7:$O$662,"not found",0),Maintenance!$B$7:$B$24,Maintenance!$C$7:$C$24,"not found",0) -> 5.479452055 | AC25: =_xlfn.XLOOKUP(_xlfn.XLOOKUP($B25,'Summary Mapping'!$C$7:$C$662,'Summary Mapping'!$O$7:$O$662,"not found",0),Maintenance!$B$7:$B$24,Maintenance!$D$7:$D$24,"not found",0) -> 20 | AD25: =IF($D25="Biomass",IFERROR(VLOOKUP($D25,'Generator Reliability Settings'!$B$58:$G$79,MATCH(AD$11,'Generator Reliability Settings'!$B$58:$G$58,0),FALSE),"not found"),IFERROR(INDEX('Generator Reliability Settings'!$B$23:$M$52,MATCH(_xlfn.XLOOKUP($B25,'Summary Mapping'!$C$7:$C$662,'Summary Mapping'!$P$7:$P$662,"not found",0)&AD$11,'Generator Reliability Settings'!$B$23:$B$52&'Generator Reliability Settings'!$C$23:$C$52,0),MIN(COLUMNS('Generator Reliability Settings'!$B$22:$M$52),MATCH(AD$12,'Generator Reliability Settings'!$B$22:$M$22,0))), "not found")) -> 0.09270884418 | AE25: =IF($D25="Biomass",IFERROR(VLOOKUP($D25,'Generator Reliability Settings'!$B$58:$G$79,MATCH(AE$11,'Generator Reliability Settings'!$B$58:$G$58,0),FALSE),"not found"),IFERROR(INDEX('Generator Reliability Settings'!$B$23:$M$52,MATCH(_xlfn.XLOOKUP($B25,'Summary Mapping'!$C$7:$C$662,'Summary Mapping'!$P$7:$P$662,"not found",0)&AE$11,'Generator Reliability Settings'!$B$23:$B$52&'Generator Reliability Settings'!$C$23:$C$52,0),MIN(COLUMNS('Generator Reliability Settings'!$B$22:$M$52),MATCH(AE$12,'Generator Reliability Settings'!$B$22:$M$22,0))), "not found")) -> 0.2043810551 | AF25: =IF($D25="Biomass",IFERROR(VLOOKUP($D25,'Generator Reliability Settings'!$B$58:$G$79,MATCH(AF$11,'Generator Reliability Settings'!$B$58:$G$58,0),FALSE),"not found"),IFERROR(INDEX('Generator Reliability Settings'!$B$23:$M$52,MATCH(_xlfn.XLOOKUP($B25,'Summary Mapping'!$C$7:$C$662,'Summary Mapping'!$P$7:$P$662,"not found",0)&AF$11,'Generator Reliability Settings'!$B$23:$B$52&'Generator Reliability Settings'!$C$23:$C$52,0),MIN(COLUMNS('Generator Reliability Settings'!$B$22:$M$52),MATCH(AF$12,'Generator Reliability Settings'!$B$22:$M$22,0))), "not found")) -> 153.2102879 | AG25: =IF($D25="Biomass",IFERROR(VLOOKUP($D25,'Generator Reliability Settings'!$B$58:$G$79,MATCH(AG$11,'Generator Reliability Settings'!$B$58:$G$58,0),FALSE),"not found"),IFERROR(INDEX('Generator Reliability Settings'!$B$23:$M$52,MATCH(_xlfn.XLOOKUP($B25,'Summary Mapping'!$C$7:$C$662,'Summary Mapping'!$P$7:$P$662,"not found",0)&AG$11,'Generator Reliability Settings'!$B$23:$B$52&'Generator Reliability Settings'!$C$23:$C$52,0),MIN(COLUMNS('Generator Reliability Settings'!$B$22:$M$52),MATCH(AG$12,'Generator Reliability Settings'!$B$22:$M$22,0))), "not found")) -> 49.09239354 | AH25: =IF($D25="Biomass",IFERROR(VLOOKUP($D25,'Generator Reliability Settings'!$B$58:$G$79,MATCH(AH$11,'Generator Reliability Settings'!$B$58:$G$58,0),FALSE),"not found"),IFERROR(INDEX('Generator Reliability Settings'!$B$23:$M$52,MATCH(_xlfn.XLOOKUP($B25,'Summary Mapping'!$C$7:$C$662,'Summary Mapping'!$P$7:$P$662,"not found",0)&AH$11,'Generator Reliability Settings'!$B$23:$B$52&'Generator Reliability Settings'!$C$23:$C$52,0),MIN(COLUMNS('Generator Reliability Settings'!$B$22:$M$52),MATCH(AH$12,'Generator Reliability Settings'!$B$22:$M$22,0))), "not found")) -> 0.2685711543 | AI25: =_xlfn.XLOOKUP($B25,'Fixed OPEX'!$B$8:$B$663,'Fixed OPEX'!$E$8:$E$663,"not found", 0) -> 38 | AJ25: =_xlfn.XLOOKUP($B25,'Variable OPEX'!$B$8:$B$663,'Variable OPEX'!$E$8:$E$663,"not found",0) -> 7 | AK25: =_xlfn.XLOOKUP($B25,'Heat rates'!$B$9:$B$664,'Heat rates'!$E$9:$E$664,"not found", 0) -> 10.29748284 | AL25: =INDEX('Fuel Price Summary'!$H$12:$AK$668,MATCH($B25,'Fuel Price Summary'!$B$12:$B$668,0),MATCH($AL$12,'Fuel Price Summary'!$H$12:$AK$12,0)) -> 6.364375 | AM25: =_xlfn.XLOOKUP($B25,'Emissions intensity'!$B$8:$B$664,'Emissions intensity'!$E$8:$E$664,"not found",0)*SUMPRODUCT((('GPG emissions reduction - BioM'!$B$9:$B$11)=AM$11)*(('GPG emissions reduction - BioM'!$C$8:$AF$8)=AM$12),'GPG emissions reduction - BioM'!$C$9:$AF$11) +N("this term is the emission intensity as at the current year") -> 652.107794 | AN25: =_xlfn.XLOOKUP($B25,'Marginal Loss Factors'!$B$13:$B$668,'Marginal Loss Factors'!$F$13:$F$668, "not found", 0) -> 0.9461 | AO25: =_xlfn.XLOOKUP($B25,Auxiliary!$B$7:$B$662,Auxiliary!$E$7:$E$662,"not found",0) -> 6.67097171 | AP25: 72.53704234 | AQ25: =_xlfn.XLOOKUP($B25,Retirement!$B$14:$B$669,Retirement!$F$14:$F$669, "not found", 0) -> 2035 | AR25: =_xlfn.XLOOKUP($D25,Retirement!$I$14:$I$44,Retirement!$J$14:$J$44,"not found",0) -> 254000 | AS25: =_xlfn.XLOOKUP($B25,'Power System Security'!$B$6:$B$49,'Power System Security'!$D$6:$D$49,"not found",0) -> 47.81269998
B26: ='Summary Mapping'!C20 -> GSTONE2 | C26: ='Summary Mapping'!D20 -> Gladstone | D26: ='Summary Mapping'!E20 -> Steam Sub Critical | E26: ='Summary Mapping'!F20 -> QLD | F26: ='Summary Mapping'!G20 -> GG | G26: ='Summary Mapping'!H20 -> Not Applicable | H26: ='Summary Mapping'!I20 -> Not Applicable | I26: ='Summary Mapping'!J20 -> Existing | J26: ='Summary Mapping'!K20 -> Not Applicable | K26: =_xlfn.XLOOKUP(B26,'Maximum capacity'!$B$10:$B$665,'Maximum capacity'!$G$10:$G$665,"not found",0) -> 280 | L26: =_xlfn.XLOOKUP(B26,'Maximum capacity'!$B$10:$B$665,'Maximum capacity'!$H$10:$H$665,"not found",0) ->  | M26: =VLOOKUP($B26,'Seasonal ratings'!$B$45:$AI$700,(MATCH(M$12,'Seasonal ratings'!$F$44:$O$44,0)+COLUMN('Seasonal ratings'!$F$44)-COLUMN('Seasonal ratings'!$B$44)),FALSE) -> 280 | N26: =VLOOKUP($B26,'Seasonal ratings'!$B$45:$AI$700,(MATCH(N$12,'Seasonal ratings'!$P$44:$Y$44,0)+COLUMN('Seasonal ratings'!$P$44)-COLUMN('Seasonal ratings'!$B$44)),FALSE) -> 280 | O26: =VLOOKUP($B26,'Seasonal ratings'!$B$45:$AI$700,(MATCH(O$12,'Seasonal ratings'!$Z$44:$AI$44,0)+COLUMN('Seasonal ratings'!$Z$44)-COLUMN('Seasonal ratings'!$B$44)),FALSE) -> 280 | P26: =_xlfn.XLOOKUP($B26,'Coal Min Stable Level'!$B$14:$B$57,'Coal Min Stable Level'!$G$14:$G$57,_xlfn.XLOOKUP($B26,'GPG Min Stable Level'!$B$12:$B$148,'GPG Min Stable Level'!$E$12:$E$148,"not found",0),0) -> 110 | Q26: =_xlfn.XLOOKUP($B26,'Affine Heat rates'!$B$8:$B$188,'Affine Heat rates'!$E$8:$E$188,"not found",0) -> 396 | R26: =_xlfn.XLOOKUP($B26,'Affine Heat rates'!$B$8:$B$188,'Affine Heat rates'!$F$8:$F$188,"not found",0) -> 8.883197123 | S26: =_xlfn.XLOOKUP(_xlfn.XLOOKUP($B26,'Summary Mapping'!$C$7:$C$662,'Summary Mapping'!$Y$7:$Y$662,"not found",0),'Storage properties'!$B$22:$B$28,'Storage properties'!$E$22:$E$28,"not found",0) -> not found | T26: =_xlfn.XLOOKUP($D26,'Storage properties'!$B$6:$B$12,'Storage properties'!$E$6:$E$12, "not found",0) -> not found | U26: =_xlfn.XLOOKUP($D26,'Storage properties'!$B$6:$B$12,'Storage properties'!$F$6:$F$12, "not found",0) -> not found | V26: =_xlfn.XLOOKUP($D26,'Storage properties'!$B$6:$B$12,'Storage properties'!$G$6:$G$12, "not found",0) -> not found | W26: =_xlfn.XLOOKUP($D26,'Storage properties'!$B$6:$B$12,'Storage properties'!$H$6:$H$12, "not found",0) -> not found | X26: =_xlfn.XLOOKUP($D26,'Storage properties'!$B$6:$B$12,'Storage properties'!$I$6:$I$12, "not found",0) -> not found | Y26: =_xlfn.XLOOKUP($D26,'Storage properties'!$B$6:$B$12,'Storage properties'!$J$6:$J$12, "not found",0) -> not found | Z26: =_xlfn.XLOOKUP($B26,'Max Ramp Rates'!$B$9:$B$189,'Max Ramp Rates'!$E$9:$E$189, "not found", 0) -> 5 | AA26: =_xlfn.XLOOKUP($B26,'Max Ramp Rates'!$B$9:$B$189,'Max Ramp Rates'!$F$9:$F$189, "not found", 0) -> 5 | AB26: =_xlfn.XLOOKUP(_xlfn.XLOOKUP($B26,'Summary Mapping'!$C$7:$C$662,'Summary Mapping'!$O$7:$O$662,"not found",0),Maintenance!$B$7:$B$24,Maintenance!$C$7:$C$24,"not found",0) -> 5.479452055 | AC26: =_xlfn.XLOOKUP(_xlfn.XLOOKUP($B26,'Summary Mapping'!$C$7:$C$662,'Summary Mapping'!$O$7:$O$662,"not found",0),Maintenance!$B$7:$B$24,Maintenance!$D$7:$D$24,"not found",0) -> 20 | AD26: =IF($D26="Biomass",IFERROR(VLOOKUP($D26,'Generator Reliability Settings'!$B$58:$G$79,MATCH(AD$11,'Generator Reliability Settings'!$B$58:$G$58,0),FALSE),"not found"),IFERROR(INDEX('Generator Reliability Settings'!$B$23:$M$52,MATCH(_xlfn.XLOOKUP($B26,'Summary Mapping'!$C$7:$C$662,'Summary Mapping'!$P$7:$P$662,"not found",0)&AD$11,'Generator Reliability Settings'!$B$23:$B$52&'Generator Reliability Settings'!$C$23:$C$52,0),MIN(COLUMNS('Generator Reliability Settings'!$B$22:$M$52),MATCH(AD$12,'Generator Reliability Settings'!$B$22:$M$22,0))), "not found")) -> 0.09270884418 | AE26: =IF($D26="Biomass",IFERROR(VLOOKUP($D26,'Generator Reliability Settings'!$B$58:$G$79,MATCH(AE$11,'Generator Reliability Settings'!$B$58:$G$58,0),FALSE),"not found"),IFERROR(INDEX('Generator Reliability Settings'!$B$23:$M$52,MATCH(_xlfn.XLOOKUP($B26,'Summary Mapping'!$C$7:$C$662,'Summary Mapping'!$P$7:$P$662,"not found",0)&AE$11,'Generator Reliability Settings'!$B$23:$B$52&'Generator Reliability Settings'!$C$23:$C$52,0),MIN(COLUMNS('Generator Reliability Settings'!$B$22:$M$52),MATCH(AE$12,'Generator Reliability Settings'!$B$22:$M$22,0))), "not found")) -> 0.2043810551 | AF26: =IF($D26="Biomass",IFERROR(VLOOKUP($D26,'Generator Reliability Settings'!$B$58:$G$79,MATCH(AF$11,'Generator Reliability Settings'!$B$58:$G$58,0),FALSE),"not found"),IFERROR(INDEX('Generator Reliability Settings'!$B$23:$M$52,MATCH(_xlfn.XLOOKUP($B26,'Summary Mapping'!$C$7:$C$662,'Summary Mapping'!$P$7:$P$662,"not found",0)&AF$11,'Generator Reliability Settings'!$B$23:$B$52&'Generator Reliability Settings'!$C$23:$C$52,0),MIN(COLUMNS('Generator Reliability Settings'!$B$22:$M$52),MATCH(AF$12,'Generator Reliability Settings'!$B$22:$M$22,0))), "not found")) -> 153.2102879 | AG26: =IF($D26="Biomass",IFERROR(VLOOKUP($D26,'Generator Reliability Settings'!$B$58:$G$79,MATCH(AG$11,'Generator Reliability Settings'!$B$58:$G$58,0),FALSE),"not found"),IFERROR(INDEX('Generator Reliability Settings'!$B$23:$M$52,MATCH(_xlfn.XLOOKUP($B26,'Summary Mapping'!$C$7:$C$662,'Summary Mapping'!$P$7:$P$662,"not found",0)&AG$11,'Generator Reliability Settings'!$B$23:$B$52&'Generator Reliability Settings'!$C$23:$C$52,0),MIN(COLUMNS('Generator Reliability Settings'!$B$22:$M$52),MATCH(AG$12,'Generator Reliability Settings'!$B$22:$M$22,0))), "not found")) -> 49.09239354 | AH26: =IF($D26="Biomass",IFERROR(VLOOKUP($D26,'Generator Reliability Settings'!$B$58:$G$79,MATCH(AH$11,'Generator Reliability Settings'!$B$58:$G$58,0),FALSE),"not found"),IFERROR(INDEX('Generator Reliability Settings'!$B$23:$M$52,MATCH(_xlfn.XLOOKUP($B26,'Summary Mapping'!$C$7:$C$662,'Summary Mapping'!$P$7:$P$662,"not found",0)&AH$11,'Generator Reliability Settings'!$B$23:$B$52&'Generator Reliability Settings'!$C$23:$C$52,0),MIN(COLUMNS('Generator Reliability Settings'!$B$22:$M$52),MATCH(AH$12,'Generator Reliability Settings'!$B$22:$M$22,0))), "not found")) -> 0.2685711543 | AI26: =_xlfn.XLOOKUP($B26,'Fixed OPEX'!$B$8:$B$663,'Fixed OPEX'!$E$8:$E$663,"not found", 0) -> 38 | AJ26: =_xlfn.XLOOKUP($B26,'Variable OPEX'!$B$8:$B$663,'Variable OPEX'!$E$8:$E$663,"not found",0) -> 7 | AK26: =_xlfn.XLOOKUP($B26,'Heat rates'!$B$9:$B$664,'Heat rates'!$E$9:$E$664,"not found", 0) -> 10.29748284 | AL26: =INDEX('Fuel Price Summary'!$H$12:$AK$668,MATCH($B26,'Fuel Price Summary'!$B$12:$B$668,0),MATCH($AL$12,'Fuel Price Summary'!$H$12:$AK$12,0)) -> 6.364375 | AM26: =_xlfn.XLOOKUP($B26,'Emissions intensity'!$B$8:$B$664,'Emissions intensity'!$E$8:$E$664,"not found",0)*SUMPRODUCT((('GPG emissions reduction - BioM'!$B$9:$B$11)=AM$11)*(('GPG emissions reduction - BioM'!$C$8:$AF$8)=AM$12),'GPG emissions reduction - BioM'!$C$9:$AF$11) +N("this term is the emission intensity as at the current year") -> 652.107794 | AN26: =_xlfn.XLOOKUP($B26,'Marginal Loss Factors'!$B$13:$B$668,'Marginal Loss Factors'!$F$13:$F$668, "not found", 0) -> 0.9461 | AO26: =_xlfn.XLOOKUP($B26,Auxiliary!$B$7:$B$662,Auxiliary!$E$7:$E$662,"not found",0) -> 6.67097171 | AP26: 72.53704234 | AQ26: =_xlfn.XLOOKUP($B26,Retirement!$B$14:$B$669,Retirement!$F$14:$F$669, "not found", 0) -> 2035 | AR26: =_xlfn.XLOOKUP($D26,Retirement!$I$14:$I$44,Retirement!$J$14:$J$44,"not found",0) -> 254000 | AS26: =_xlfn.XLOOKUP($B26,'Power System Security'!$B$6:$B$49,'Power System Security'!$D$6:$D$49,"not found",0) -> 47.81269998
B27: ='Summary Mapping'!C21 -> GSTONE3 | C27: ='Summary Mapping'!D21 -> Gladstone | D27: ='Summary Mapping'!E21 -> Steam Sub Critical | E27: ='Summary Mapping'!F21 -> QLD | F27: ='Summary Mapping'!G21 -> GG | G27: ='Summary Mapping'!H21 -> Not Applicable | H27: ='Summary Mapping'!I21 -> Not Applicable | I27: ='Summary Mapping'!J21 -> Existing | J27: ='Summary Mapping'!K21 -> Not Applicable | K27: =_xlfn.XLOOKUP(B27,'Maximum capacity'!$B$10:$B$665,'Maximum capacity'!$G$10:$G$665,"not found",0) -> 280 | L27: =_xlfn.XLOOKUP(B27,'Maximum capacity'!$B$10:$B$665,'Maximum capacity'!$H$10:$H$665,"not found",0) ->  | M27: =VLOOKUP($B27,'Seasonal ratings'!$B$45:$AI$700,(MATCH(M$12,'Seasonal ratings'!$F$44:$O$44,0)+COLUMN('Seasonal ratings'!$F$44)-COLUMN('Seasonal ratings'!$B$44)),FALSE) -> 280 | N27: =VLOOKUP($B27,'Seasonal ratings'!$B$45:$AI$700,(MATCH(N$12,'Seasonal ratings'!$P$44:$Y$44,0)+COLUMN('Seasonal ratings'!$P$44)-COLUMN('Seasonal ratings'!$B$44)),FALSE) -> 280 | O27: =VLOOKUP($B27,'Seasonal ratings'!$B$45:$AI$700,(MATCH(O$12,'Seasonal ratings'!$Z$44:$AI$44,0)+COLUMN('Seasonal ratings'!$Z$44)-COLUMN('Seasonal ratings'!$B$44)),FALSE) -> 280 | P27: =_xlfn.XLOOKUP($B27,'Coal Min Stable Level'!$B$14:$B$57,'Coal Min Stable Level'!$G$14:$G$57,_xlfn.XLOOKUP($B27,'GPG Min Stable Level'!$B$12:$B$148,'GPG Min Stable Level'!$E$12:$E$148,"not found",0),0) -> 110 | Q27: =_xlfn.XLOOKUP($B27,'Affine Heat rates'!$B$8:$B$188,'Affine Heat rates'!$E$8:$E$188,"not found",0) -> 396 | R27: =_xlfn.XLOOKUP($B27,'Affine Heat rates'!$B$8:$B$188,'Affine Heat rates'!$F$8:$F$188,"not found",0) -> 8.883197123 | S27: =_xlfn.XLOOKUP(_xlfn.XLOOKUP($B27,'Summary Mapping'!$C$7:$C$662,'Summary Mapping'!$Y$7:$Y$662,"not found",0),'Storage properties'!$B$22:$B$28,'Storage properties'!$E$22:$E$28,"not found",0) -> not found | T27: =_xlfn.XLOOKUP($D27,'Storage properties'!$B$6:$B$12,'Storage properties'!$E$6:$E$12, "not found",0) -> not found | U27: =_xlfn.XLOOKUP($D27,'Storage properties'!$B$6:$B$12,'Storage properties'!$F$6:$F$12, "not found",0) -> not found | V27: =_xlfn.XLOOKUP($D27,'Storage properties'!$B$6:$B$12,'Storage properties'!$G$6:$G$12, "not found",0) -> not found | W27: =_xlfn.XLOOKUP($D27,'Storage properties'!$B$6:$B$12,'Storage properties'!$H$6:$H$12, "not found",0) -> not found | X27: =_xlfn.XLOOKUP($D27,'Storage properties'!$B$6:$B$12,'Storage properties'!$I$6:$I$12, "not found",0) -> not found | Y27: =_xlfn.XLOOKUP($D27,'Storage properties'!$B$6:$B$12,'Storage properties'!$J$6:$J$12, "not found",0) -> not found | Z27: =_xlfn.XLOOKUP($B27,'Max Ramp Rates'!$B$9:$B$189,'Max Ramp Rates'!$E$9:$E$189, "not found", 0) -> 5 | AA27: =_xlfn.XLOOKUP($B27,'Max Ramp Rates'!$B$9:$B$189,'Max Ramp Rates'!$F$9:$F$189, "not found", 0) -> 5 | AB27: =_xlfn.XLOOKUP(_xlfn.XLOOKUP($B27,'Summary Mapping'!$C$7:$C$662,'Summary Mapping'!$O$7:$O$662,"not found",0),Maintenance!$B$7:$B$24,Maintenance!$C$7:$C$24,"not found",0) -> 5.479452055 | AC27: =_xlfn.XLOOKUP(_xlfn.XLOOKUP($B27,'Summary Mapping'!$C$7:$C$662,'Summary Mapping'!$O$7:$O$662,"not found",0),Maintenance!$B$7:$B$24,Maintenance!$D$7:$D$24,"not found",0) -> 20 | AD27: =IF($D27="Biomass",IFERROR(VLOOKUP($D27,'Generator Reliability Settings'!$B$58:$G$79,MATCH(AD$11,'Generator Reliability Settings'!$B$58:$G$58,0),FALSE),"not found"),IFERROR(INDEX('Generator Reliability Settings'!$B$23:$M$52,MATCH(_xlfn.XLOOKUP($B27,'Summary Mapping'!$C$7:$C$662,'Summary Mapping'!$P$7:$P$662,"not found",0)&AD$11,'Generator Reliability Settings'!$B$23:$B$52&'Generator Reliability Settings'!$C$23:$C$52,0),MIN(COLUMNS('Generator Reliability Settings'!$B$22:$M$52),MATCH(AD$12,'Generator Reliability Settings'!$B$22:$M$22,0))), "not found")) -> 0.09270884418 | AE27: =IF($D27="Biomass",IFERROR(VLOOKUP($D27,'Generator Reliability Settings'!$B$58:$G$79,MATCH(AE$11,'Generator Reliability Settings'!$B$58:$G$58,0),FALSE),"not found"),IFERROR(INDEX('Generator Reliability Settings'!$B$23:$M$52,MATCH(_xlfn.XLOOKUP($B27,'Summary Mapping'!$C$7:$C$662,'Summary Mapping'!$P$7:$P$662,"not found",0)&AE$11,'Generator Reliability Settings'!$B$23:$B$52&'Generator Reliability Settings'!$C$23:$C$52,0),MIN(COLUMNS('Generator Reliability Settings'!$B$22:$M$52),MATCH(AE$12,'Generator Reliability Settings'!$B$22:$M$22,0))), "not found")) -> 0.2043810551 | AF27: =IF($D27="Biomass",IFERROR(VLOOKUP($D27,'Generator Reliability Settings'!$B$58:$G$79,MATCH(AF$11,'Generator Reliability Settings'!$B$58:$G$58,0),FALSE),"not found"),IFERROR(INDEX('Generator Reliability Settings'!$B$23:$M$52,MATCH(_xlfn.XLOOKUP($B27,'Summary Mapping'!$C$7:$C$662,'Summary Mapping'!$P$7:$P$662,"not found",0)&AF$11,'Generator Reliability Settings'!$B$23:$B$52&'Generator Reliability Settings'!$C$23:$C$52,0),MIN(COLUMNS('Generator Reliability Settings'!$B$22:$M$52),MATCH(AF$12,'Generator Reliability Settings'!$B$22:$M$22,0))), "not found")) -> 153.2102879 | AG27: =IF($D27="Biomass",IFERROR(VLOOKUP($D27,'Generator Reliability Settings'!$B$58:$G$79,MATCH(AG$11,'Generator Reliability Settings'!$B$58:$G$58,0),FALSE),"not found"),IFERROR(INDEX('Generator Reliability Settings'!$B$23:$M$52,MATCH(_xlfn.XLOOKUP($B27,'Summary Mapping'!$C$7:$C$662,'Summary Mapping'!$P$7:$P$662,"not found",0)&AG$11,'Generator Reliability Settings'!$B$23:$B$52&'Generator Reliability Settings'!$C$23:$C$52,0),MIN(COLUMNS('Generator Reliability Settings'!$B$22:$M$52),MATCH(AG$12,'Generator Reliability Settings'!$B$22:$M$22,0))), "not found")) -> 49.09239354 | AH27: =IF($D27="Biomass",IFERROR(VLOOKUP($D27,'Generator Reliability Settings'!$B$58:$G$79,MATCH(AH$11,'Generator Reliability Settings'!$B$58:$G$58,0),FALSE),"not found"),IFERROR(INDEX('Generator Reliability Settings'!$B$23:$M$52,MATCH(_xlfn.XLOOKUP($B27,'Summary Mapping'!$C$7:$C$662,'Summary Mapping'!$P$7:$P$662,"not found",0)&AH$11,'Generator Reliability Settings'!$B$23:$B$52&'Generator Reliability Settings'!$C$23:$C$52,0),MIN(COLUMNS('Generator Reliability Settings'!$B$22:$M$52),MATCH(AH$12,'Generator Reliability Settings'!$B$22:$M$22,0))), "not found")) -> 0.2685711543 | AI27: =_xlfn.XLOOKUP($B27,'Fixed OPEX'!$B$8:$B$663,'Fixed OPEX'!$E$8:$E$663,"not found", 0) -> 38 | AJ27: =_xlfn.XLOOKUP($B27,'Variable OPEX'!$B$8:$B$663,'Variable OPEX'!$E$8:$E$663,"not found",0) -> 7 | AK27: =_xlfn.XLOOKUP($B27,'Heat rates'!$B$9:$B$664,'Heat rates'!$E$9:$E$664,"not found", 0) -> 10.29748284 | AL27: =INDEX('Fuel Price Summary'!$H$12:$AK$668,MATCH($B27,'Fuel Price Summary'!$B$12:$B$668,0),MATCH($AL$12,'Fuel Price Summary'!$H$12:$AK$12,0)) -> 6.364375 | AM27: =_xlfn.XLOOKUP($B27,'Emissions intensity'!$B$8:$B$664,'Emissions intensity'!$E$8:$E$664,"not found",0)*SUMPRODUCT((('GPG emissions reduction - BioM'!$B$9:$B$11)=AM$11)*(('GPG emissions reduction - BioM'!$C$8:$AF$8)=AM$12),'GPG emissions reduction - BioM'!$C$9:$AF$11) +N("this term is the emission intensity as at the current year") -> 652.107794 | AN27: =_xlfn.XLOOKUP($B27,'Marginal Loss Factors'!$B$13:$B$668,'Marginal Loss Factors'!$F$13:$F$668, "not found", 0) -> 0.9461 | AO27: =_xlfn.XLOOKUP($B27,Auxiliary!$B$7:$B$662,Auxiliary!$E$7:$E$662,"not found",0) -> 6.67097171 | AP27: 72.53704234 | AQ27: =_xlfn.XLOOKUP($B27,Retirement!$B$14:$B$669,Retirement!$F$14:$F$669, "not found", 0) -> 2035 | AR27: =_xlfn.XLOOKUP($D27,Retirement!$I$14:$I$44,Retirement!$J$14:$J$44,"not found",0) -> 254000 | AS27: =_xlfn.XLOOKUP($B27,'Power System Security'!$B$6:$B$49,'Power System Security'!$D$6:$D$49,"not found",0) -> 47.81269998
B28: ='Summary Mapping'!C22 -> GSTONE4 | C28: ='Summary Mapping'!D22 -> Gladstone | D28: ='Summary Mapping'!E22 -> Steam Sub Critical | E28: ='Summary Mapping'!F22 -> QLD | F28: ='Summary Mapping'!G22 -> GG | G28: ='Summary Mapping'!H22 -> Not Applicable | H28: ='Summary Mapping'!I22 -> Not Applicable | I28: ='Summary Mapping'!J22 -> Existing | J28: ='Summary Mapping'!K22 -> Not Applicable | K28: =_xlfn.XLOOKUP(B28,'Maximum capacity'!$B$10:$B$665,'Maximum capacity'!$G$10:$G$665,"not found",0) -> 280 | L28: =_xlfn.XLOOKUP(B28,'Maximum capacity'!$B$10:$B$665,'Maximum capacity'!$H$10:$H$665,"not found",0) ->  | M28: =VLOOKUP($B28,'Seasonal ratings'!$B$45:$AI$700,(MATCH(M$12,'Seasonal ratings'!$F$44:$O$44,0)+COLUMN('Seasonal ratings'!$F$44)-COLUMN('Seasonal ratings'!$B$44)),FALSE) -> 280 | N28: =VLOOKUP($B28,'Seasonal ratings'!$B$45:$AI$700,(MATCH(N$12,'Seasonal ratings'!$P$44:$Y$44,0)+COLUMN('Seasonal ratings'!$P$44)-COLUMN('Seasonal ratings'!$B$44)),FALSE) -> 280 | O28: =VLOOKUP($B28,'Seasonal ratings'!$B$45:$AI$700,(MATCH(O$12,'Seasonal ratings'!$Z$44:$AI$44,0)+COLUMN('Seasonal ratings'!$Z$44)-COLUMN('Seasonal ratings'!$B$44)),FALSE) -> 280 | P28: =_xlfn.XLOOKUP($B28,'Coal Min Stable Level'!$B$14:$B$57,'Coal Min Stable Level'!$G$14:$G$57,_xlfn.XLOOKUP($B28,'GPG Min Stable Level'!$B$12:$B$148,'GPG Min Stable Level'!$E$12:$E$148,"not found",0),0) -> 110 | Q28: =_xlfn.XLOOKUP($B28,'Affine Heat rates'!$B$8:$B$188,'Affine Heat rates'!$E$8:$E$188,"not found",0) -> 396 | R28: =_xlfn.XLOOKUP($B28,'Affine Heat rates'!$B$8:$B$188,'Affine Heat rates'!$F$8:$F$188,"not found",0) -> 8.883197123 | S28: =_xlfn.XLOOKUP(_xlfn.XLOOKUP($B28,'Summary Mapping'!$C$7:$C$662,'Summary Mapping'!$Y$7:$Y$662,"not found",0),'Storage properties'!$B$22:$B$28,'Storage properties'!$E$22:$E$28,"not found",0) -> not found | T28: =_xlfn.XLOOKUP($D28,'Storage properties'!$B$6:$B$12,'Storage properties'!$E$6:$E$12, "not found",0) -> not found | U28: =_xlfn.XLOOKUP($D28,'Storage properties'!$B$6:$B$12,'Storage properties'!$F$6:$F$12, "not found",0) -> not found | V28: =_xlfn.XLOOKUP($D28,'Storage properties'!$B$6:$B$12,'Storage properties'!$G$6:$G$12, "not found",0) -> not found | W28: =_xlfn.XLOOKUP($D28,'Storage properties'!$B$6:$B$12,'Storage properties'!$H$6:$H$12, "not found",0) -> not found | X28: =_xlfn.XLOOKUP($D28,'Storage properties'!$B$6:$B$12,'Storage properties'!$I$6:$I$12, "not found",0) -> not found | Y28: =_xlfn.XLOOKUP($D28,'Storage properties'!$B$6:$B$12,'Storage properties'!$J$6:$J$12, "not found",0) -> not found | Z28: =_xlfn.XLOOKUP($B28,'Max Ramp Rates'!$B$9:$B$189,'Max Ramp Rates'!$E$9:$E$189, "not found", 0) -> 5 | AA28: =_xlfn.XLOOKUP($B28,'Max Ramp Rates'!$B$9:$B$189,'Max Ramp Rates'!$F$9:$F$189, "not found", 0) -> 5 | AB28: =_xlfn.XLOOKUP(_xlfn.XLOOKUP($B28,'Summary Mapping'!$C$7:$C$662,'Summary Mapping'!$O$7:$O$662,"not found",0),Maintenance!$B$7:$B$24,Maintenance!$C$7:$C$24,"not found",0) -> 5.479452055 | AC28: =_xlfn.XLOOKUP(_xlfn.XLOOKUP($B28,'Summary Mapping'!$C$7:$C$662,'Summary Mapping'!$O$7:$O$662,"not found",0),Maintenance!$B$7:$B$24,Maintenance!$D$7:$D$24,"not found",0) -> 20 | AD28: =IF($D28="Biomass",IFERROR(VLOOKUP($D28,'Generator Reliability Settings'!$B$58:$G$79,MATCH(AD$11,'Generator Reliability Settings'!$B$58:$G$58,0),FALSE),"not found"),IFERROR(INDEX('Generator Reliability Settings'!$B$23:$M$52,MATCH(_xlfn.XLOOKUP($B28,'Summary Mapping'!$C$7:$C$662,'Summary Mapping'!$P$7:$P$662,"not found",0)&AD$11,'Generator Reliability Settings'!$B$23:$B$52&'Generator Reliability Settings'!$C$23:$C$52,0),MIN(COLUMNS('Generator Reliability Settings'!$B$22:$M$52),MATCH(AD$12,'Generator Reliability Settings'!$B$22:$M$22,0))), "not found")) -> 0.09270884418 | AE28: =IF($D28="Biomass",IFERROR(VLOOKUP($D28,'Generator Reliability Settings'!$B$58:$G$79,MATCH(AE$11,'Generator Reliability Settings'!$B$58:$G$58,0),FALSE),"not found"),IFERROR(INDEX('Generator Reliability Settings'!$B$23:$M$52,MATCH(_xlfn.XLOOKUP($B28,'Summary Mapping'!$C$7:$C$662,'Summary Mapping'!$P$7:$P$662,"not found",0)&AE$11,'Generator Reliability Settings'!$B$23:$B$52&'Generator Reliability Settings'!$C$23:$C$52,0),MIN(COLUMNS('Generator Reliability Settings'!$B$22:$M$52),MATCH(AE$12,'Generator Reliability Settings'!$B$22:$M$22,0))), "not found")) -> 0.2043810551 | AF28: =IF($D28="Biomass",IFERROR(VLOOKUP($D28,'Generator Reliability Settings'!$B$58:$G$79,MATCH(AF$11,'Generator Reliability Settings'!$B$58:$G$58,0),FALSE),"not found"),IFERROR(INDEX('Generator Reliability Settings'!$B$23:$M$52,MATCH(_xlfn.XLOOKUP($B28,'Summary Mapping'!$C$7:$C$662,'Summary Mapping'!$P$7:$P$662,"not found",0)&AF$11,'Generator Reliability Settings'!$B$23:$B$52&'Generator Reliability Settings'!$C$23:$C$52,0),MIN(COLUMNS('Generator Reliability Settings'!$B$22:$M$52),MATCH(AF$12,'Generator Reliability Settings'!$B$22:$M$22,0))), "not found")) -> 153.2102879 | AG28: =IF($D28="Biomass",IFERROR(VLOOKUP($D28,'Generator Reliability Settings'!$B$58:$G$79,MATCH(AG$11,'Generator Reliability Settings'!$B$58:$G$58,0),FALSE),"not found"),IFERROR(INDEX('Generator Reliability Settings'!$B$23:$M$52,MATCH(_xlfn.XLOOKUP($B28,'Summary Mapping'!$C$7:$C$662,'Summary Mapping'!$P$7:$P$662,"not found",0)&AG$11,'Generator Reliability Settings'!$B$23:$B$52&'Generator Reliability Settings'!$C$23:$C$52,0),MIN(COLUMNS('Generator Reliability Settings'!$B$22:$M$52),MATCH(AG$12,'Generator Reliability Settings'!$B$22:$M$22,0))), "not found")) -> 49.09239354 | AH28: =IF($D28="Biomass",IFERROR(VLOOKUP($D28,'Generator Reliability Settings'!$B$58:$G$79,MATCH(AH$11,'Generator Reliability Settings'!$B$58:$G$58,0),FALSE),"not found"),IFERROR(INDEX('Generator Reliability Settings'!$B$23:$M$52,MATCH(_xlfn.XLOOKUP($B28,'Summary Mapping'!$C$7:$C$662,'Summary Mapping'!$P$7:$P$662,"not found",0)&AH$11,'Generator Reliability Settings'!$B$23:$B$52&'Generator Reliability Settings'!$C$23:$C$52,0),MIN(COLUMNS('Generator Reliability Settings'!$B$22:$M$52),MATCH(AH$12,'Generator Reliability Settings'!$B$22:$M$22,0))), "not found")) -> 0.2685711543 | AI28: =_xlfn.XLOOKUP($B28,'Fixed OPEX'!$B$8:$B$663,'Fixed OPEX'!$E$8:$E$663,"not found", 0) -> 38 | AJ28: =_xlfn.XLOOKUP($B28,'Variable OPEX'!$B$8:$B$663,'Variable OPEX'!$E$8:$E$663,"not found",0) -> 7 | AK28: =_xlfn.XLOOKUP($B28,'Heat rates'!$B$9:$B$664,'Heat rates'!$E$9:$E$664,"not found", 0) -> 10.29748284 | AL28: =INDEX('Fuel Price Summary'!$H$12:$AK$668,MATCH($B28,'Fuel Price Summary'!$B$12:$B$668,0),MATCH($AL$12,'Fuel Price Summary'!$H$12:$AK$12,0)) -> 6.364375 | AM28: =_xlfn.XLOOKUP($B28,'Emissions intensity'!$B$8:$B$664,'Emissions intensity'!$E$8:$E$664,"not found",0)*SUMPRODUCT((('GPG emissions reduction - BioM'!$B$9:$B$11)=AM$11)*(('GPG emissions reduction - BioM'!$C$8:$AF$8)=AM$12),'GPG emissions reduction - BioM'!$C$9:$AF$11) +N("this term is the emission intensity as at the current year") -> 652.107794 | AN28: =_xlfn.XLOOKUP($B28,'Marginal Loss Factors'!$B$13:$B$668,'Marginal Loss Factors'!$F$13:$F$668, "not found", 0) -> 0.9461 | AO28: =_xlfn.XLOOKUP($B28,Auxiliary!$B$7:$B$662,Auxiliary!$E$7:$E$662,"not found",0) -> 6.67097171 | AP28: 72.53704234 | AQ28: =_xlfn.XLOOKUP($B28,Retirement!$B$14:$B$669,Retirement!$F$14:$F$669, "not found", 0) -> 2035 | AR28: =_xlfn.XLOOKUP($D28,Retirement!$I$14:$I$44,Retirement!$J$14:$J$44,"not found",0) -> 254000 | AS28: =_xlfn.XLOOKUP($B28,'Power System Security'!$B$6:$B$49,'Power System Security'!$D$6:$D$49,"not found",0) -> 47.81269998
B29: ='Summary Mapping'!C23 -> GSTONE5 | C29: ='Summary Mapping'!D23 -> Gladstone | D29: ='Summary Mapping'!E23 -> Steam Sub Critical | E29: ='Summary Mapping'!F23 -> QLD | F29: ='Summary Mapping'!G23 -> GG | G29: ='Summary Mapping'!H23 -> Not Applicable | H29: ='Summary Mapping'!I23 -> Not Applicable | I29: ='Summary Mapping'!J23 -> Existing | J29: ='Summary Mapping'!K23 -> Not Applicable | K29: =_xlfn.XLOOKUP(B29,'Maximum capacity'!$B$10:$B$665,'Maximum capacity'!$G$10:$G$665,"not found",0) -> 280 | L29: =_xlfn.XLOOKUP(B29,'Maximum capacity'!$B$10:$B$665,'Maximum capacity'!$H$10:$H$665,"not found",0) ->  | M29: =VLOOKUP($B29,'Seasonal ratings'!$B$45:$AI$700,(MATCH(M$12,'Seasonal ratings'!$F$44:$O$44,0)+COLUMN('Seasonal ratings'!$F$44)-COLUMN('Seasonal ratings'!$B$44)),FALSE) -> 280 | N29: =VLOOKUP($B29,'Seasonal ratings'!$B$45:$AI$700,(MATCH(N$12,'Seasonal ratings'!$P$44:$Y$44,0)+COLUMN('Seasonal ratings'!$P$44)-COLUMN('Seasonal ratings'!$B$44)),FALSE) -> 280 | O29: =VLOOKUP($B29,'Seasonal ratings'!$B$45:$AI$700,(MATCH(O$12,'Seasonal ratings'!$Z$44:$AI$44,0)+COLUMN('Seasonal ratings'!$Z$44)-COLUMN('Seasonal ratings'!$B$44)),FALSE) -> 280 | P29: =_xlfn.XLOOKUP($B29,'Coal Min Stable Level'!$B$14:$B$57,'Coal Min Stable Level'!$G$14:$G$57,_xlfn.XLOOKUP($B29,'GPG Min Stable Level'!$B$12:$B$148,'GPG Min Stable Level'!$E$12:$E$148,"not found",0),0) -> 110 | Q29: =_xlfn.XLOOKUP($B29,'Affine Heat rates'!$B$8:$B$188,'Affine Heat rates'!$E$8:$E$188,"not found",0) -> 396 | R29: =_xlfn.XLOOKUP($B29,'Affine Heat rates'!$B$8:$B$188,'Affine Heat rates'!$F$8:$F$188,"not found",0) -> 8.883197123 | S29: =_xlfn.XLOOKUP(_xlfn.XLOOKUP($B29,'Summary Mapping'!$C$7:$C$662,'Summary Mapping'!$Y$7:$Y$662,"not found",0),'Storage properties'!$B$22:$B$28,'Storage properties'!$E$22:$E$28,"not found",0) -> not found | T29: =_xlfn.XLOOKUP($D29,'Storage properties'!$B$6:$B$12,'Storage properties'!$E$6:$E$12, "not found",0) -> not found | U29: =_xlfn.XLOOKUP($D29,'Storage properties'!$B$6:$B$12,'Storage properties'!$F$6:$F$12, "not found",0) -> not found | V29: =_xlfn.XLOOKUP($D29,'Storage properties'!$B$6:$B$12,'Storage properties'!$G$6:$G$12, "not found",0) -> not found | W29: =_xlfn.XLOOKUP($D29,'Storage properties'!$B$6:$B$12,'Storage properties'!$H$6:$H$12, "not found",0) -> not found | X29: =_xlfn.XLOOKUP($D29,'Storage properties'!$B$6:$B$12,'Storage properties'!$I$6:$I$12, "not found",0) -> not found | Y29: =_xlfn.XLOOKUP($D29,'Storage properties'!$B$6:$B$12,'Storage properties'!$J$6:$J$12, "not found",0) -> not found | Z29: =_xlfn.XLOOKUP($B29,'Max Ramp Rates'!$B$9:$B$189,'Max Ramp Rates'!$E$9:$E$189, "not found", 0) -> 5 | AA29: =_xlfn.XLOOKUP($B29,'Max Ramp Rates'!$B$9:$B$189,'Max Ramp Rates'!$F$9:$F$189, "not found", 0) -> 5 | AB29: =_xlfn.XLOOKUP(_xlfn.XLOOKUP($B29,'Summary Mapping'!$C$7:$C$662,'Summary Mapping'!$O$7:$O$662,"not found",0),Maintenance!$B$7:$B$24,Maintenance!$C$7:$C$24,"not found",0) -> 5.479452055 | AC29: =_xlfn.XLOOKUP(_xlfn.XLOOKUP($B29,'Summary Mapping'!$C$7:$C$662,'Summary Mapping'!$O$7:$O$662,"not found",0),Maintenance!$B$7:$B$24,Maintenance!$D$7:$D$24,"not found",0) -> 20 | AD29: =IF($D29="Biomass",IFERROR(VLOOKUP($D29,'Generator Reliability Settings'!$B$58:$G$79,MATCH(AD$11,'Generator Reliability Settings'!$B$58:$G$58,0),FALSE),"not found"),IFERROR(INDEX('Generator Reliability Settings'!$B$23:$M$52,MATCH(_xlfn.XLOOKUP($B29,'Summary Mapping'!$C$7:$C$662,'Summary Mapping'!$P$7:$P$662,"not found",0)&AD$11,'Generator Reliability Settings'!$B$23:$B$52&'Generator Reliability Settings'!$C$23:$C$52,0),MIN(COLUMNS('Generator Reliability Settings'!$B$22:$M$52),MATCH(AD$12,'Generator Reliability Settings'!$B$22:$M$22,0))), "not found")) -> 0.09270884418 | AE29: =IF($D29="Biomass",IFERROR(VLOOKUP($D29,'Generator Reliability Settings'!$B$58:$G$79,MATCH(AE$11,'Generator Reliability Settings'!$B$58:$G$58,0),FALSE),"not found"),IFERROR(INDEX('Generator Reliability Settings'!$B$23:$M$52,MATCH(_xlfn.XLOOKUP($B29,'Summary Mapping'!$C$7:$C$662,'Summary Mapping'!$P$7:$P$662,"not found",0)&AE$11,'Generator Reliability Settings'!$B$23:$B$52&'Generator Reliability Settings'!$C$23:$C$52,0),MIN(COLUMNS('Generator Reliability Settings'!$B$22:$M$52),MATCH(AE$12,'Generator Reliability Settings'!$B$22:$M$22,0))), "not found")) -> 0.2043810551 | AF29: =IF($D29="Biomass",IFERROR(VLOOKUP($D29,'Generator Reliability Settings'!$B$58:$G$79,MATCH(AF$11,'Generator Reliability Settings'!$B$58:$G$58,0),FALSE),"not found"),IFERROR(INDEX('Generator Reliability Settings'!$B$23:$M$52,MATCH(_xlfn.XLOOKUP($B29,'Summary Mapping'!$C$7:$C$662,'Summary Mapping'!$P$7:$P$662,"not found",0)&AF$11,'Generator Reliability Settings'!$B$23:$B$52&'Generator Reliability Settings'!$C$23:$C$52,0),MIN(COLUMNS('Generator Reliability Settings'!$B$22:$M$52),MATCH(AF$12,'Generator Reliability Settings'!$B$22:$M$22,0))), "not found")) -> 153.2102879 | AG29: =IF($D29="Biomass",IFERROR(VLOOKUP($D29,'Generator Reliability Settings'!$B$58:$G$79,MATCH(AG$11,'Generator Reliability Settings'!$B$58:$G$58,0),FALSE),"not found"),IFERROR(INDEX('Generator Reliability Settings'!$B$23:$M$52,MATCH(_xlfn.XLOOKUP($B29,'Summary Mapping'!$C$7:$C$662,'Summary Mapping'!$P$7:$P$662,"not found",0)&AG$11,'Generator Reliability Settings'!$B$23:$B$52&'Generator Reliability Settings'!$C$23:$C$52,0),MIN(COLUMNS('Generator Reliability Settings'!$B$22:$M$52),MATCH(AG$12,'Generator Reliability Settings'!$B$22:$M$22,0))), "not found")) -> 49.09239354 | AH29: =IF($D29="Biomass",IFERROR(VLOOKUP($D29,'Generator Reliability Settings'!$B$58:$G$79,MATCH(AH$11,'Generator Reliability Settings'!$B$58:$G$58,0),FALSE),"not found"),IFERROR(INDEX('Generator Reliability Settings'!$B$23:$M$52,MATCH(_xlfn.XLOOKUP($B29,'Summary Mapping'!$C$7:$C$662,'Summary Mapping'!$P$7:$P$662,"not found",0)&AH$11,'Generator Reliability Settings'!$B$23:$B$52&'Generator Reliability Settings'!$C$23:$C$52,0),MIN(COLUMNS('Generator Reliability Settings'!$B$22:$M$52),MATCH(AH$12,'Generator Reliability Settings'!$B$22:$M$22,0))), "not found")) -> 0.2685711543 | AI29: =_xlfn.XLOOKUP($B29,'Fixed OPEX'!$B$8:$B$663,'Fixed OPEX'!$E$8:$E$663,"not found", 0) -> 38 | AJ29: =_xlfn.XLOOKUP($B29,'Variable OPEX'!$B$8:$B$663,'Variable OPEX'!$E$8:$E$663,"not found",0) -> 7 | AK29: =_xlfn.XLOOKUP($B29,'Heat rates'!$B$9:$B$664,'Heat rates'!$E$9:$E$664,"not found", 0) -> 10.29748284 | AL29: =INDEX('Fuel Price Summary'!$H$12:$AK$668,MATCH($B29,'Fuel Price Summary'!$B$12:$B$668,0),MATCH($AL$12,'Fuel Price Summary'!$H$12:$AK$12,0)) -> 6.364375 | AM29: =_xlfn.XLOOKUP($B29,'Emissions intensity'!$B$8:$B$664,'Emissions intensity'!$E$8:$E$664,"not found",0)*SUMPRODUCT((('GPG emissions reduction - BioM'!$B$9:$B$11)=AM$11)*(('GPG emissions reduction - BioM'!$C$8:$AF$8)=AM$12),'GPG emissions reduction - BioM'!$C$9:$AF$11) +N("this term is the emission intensity as at the current year") -> 652.107794 | AN29: =_xlfn.XLOOKUP($B29,'Marginal Loss Factors'!$B$13:$B$668,'Marginal Loss Factors'!$F$13:$F$668, "not found", 0) -> 0.9461 | AO29: =_xlfn.XLOOKUP($B29,Auxiliary!$B$7:$B$662,Auxiliary!$E$7:$E$662,"not found",0) -> 6.67097171 | AP29: 72.53704234 | AQ29: =_xlfn.XLOOKUP($B29,Retirement!$B$14:$B$669,Retirement!$F$14:$F$669, "not found", 0) -> 2035 | AR29: =_xlfn.XLOOKUP($D29,Retirement!$I$14:$I$44,Retirement!$J$14:$J$44,"not found",0) -> 254000 | AS29: =_xlfn.XLOOKUP($B29,'Power System Security'!$B$6:$B$49,'Power System Security'!$D$6:$D$49,"not found",0) -> 47.81269998
B30: ='Summary Mapping'!C24 -> GSTONE6 | C30: ='Summary Mapping'!D24 -> Gladstone | D30: ='Summary Mapping'!E24 -> Steam Sub Critical | E30: ='Summary Mapping'!F24 -> QLD | F30: ='Summary Mapping'!G24 -> GG | G30: ='Summary Mapping'!H24 -> Not Applicable | H30: ='Summary Mapping'!I24 -> Not Applicable | I30: ='Summary Mapping'!J24 -> Existing | J30: ='Summary Mapping'!K24 -> Not Applicable | K30: =_xlfn.XLOOKUP(B30,'Maximum capacity'!$B$10:$B$665,'Maximum capacity'!$G$10:$G$665,"not found",0) -> 280 | L30: =_xlfn.XLOOKUP(B30,'Maximum capacity'!$B$10:$B$665,'Maximum capacity'!$H$10:$H$665,"not found",0) ->  | M30: =VLOOKUP($B30,'Seasonal ratings'!$B$45:$AI$700,(MATCH(M$12,'Seasonal ratings'!$F$44:$O$44,0)+COLUMN('Seasonal ratings'!$F$44)-COLUMN('Seasonal ratings'!$B$44)),FALSE) -> 280 | N30: =VLOOKUP($B30,'Seasonal ratings'!$B$45:$AI$700,(MATCH(N$12,'Seasonal ratings'!$P$44:$Y$44,0)+COLUMN('Seasonal ratings'!$P$44)-COLUMN('Seasonal ratings'!$B$44)),FALSE) -> 280 | O30: =VLOOKUP($B30,'Seasonal ratings'!$B$45:$AI$700,(MATCH(O$12,'Seasonal ratings'!$Z$44:$AI$44,0)+COLUMN('Seasonal ratings'!$Z$44)-COLUMN('Seasonal ratings'!$B$44)),FALSE) -> 280 | P30: =_xlfn.XLOOKUP($B30,'Coal Min Stable Level'!$B$14:$B$57,'Coal Min Stable Level'!$G$14:$G$57,_xlfn.XLOOKUP($B30,'GPG Min Stable Level'!$B$12:$B$148,'GPG Min Stable Level'!$E$12:$E$148,"not found",0),0) -> 110 | Q30: =_xlfn.XLOOKUP($B30,'Affine Heat rates'!$B$8:$B$188,'Affine Heat rates'!$E$8:$E$188,"not found",0) -> 396 | R30: =_xlfn.XLOOKUP($B30,'Affine Heat rates'!$B$8:$B$188,'Affine Heat rates'!$F$8:$F$188,"not found",0) -> 8.883197123 | S30: =_xlfn.XLOOKUP(_xlfn.XLOOKUP($B30,'Summary Mapping'!$C$7:$C$662,'Summary Mapping'!$Y$7:$Y$662,"not found",0),'Storage properties'!$B$22:$B$28,'Storage properties'!$E$22:$E$28,"not found",0) -> not found | T30: =_xlfn.XLOOKUP($D30,'Storage properties'!$B$6:$B$12,'Storage properties'!$E$6:$E$12, "not found",0) -> not found | U30: =_xlfn.XLOOKUP($D30,'Storage properties'!$B$6:$B$12,'Storage properties'!$F$6:$F$12, "not found",0) -> not found | V30: =_xlfn.XLOOKUP($D30,'Storage properties'!$B$6:$B$12,'Storage properties'!$G$6:$G$12, "not found",0) -> not found | W30: =_xlfn.XLOOKUP($D30,'Storage properties'!$B$6:$B$12,'Storage properties'!$H$6:$H$12, "not found",0) -> not found | X30: =_xlfn.XLOOKUP($D30,'Storage properties'!$B$6:$B$12,'Storage properties'!$I$6:$I$12, "not found",0) -> not found | Y30: =_xlfn.XLOOKUP($D30,'Storage properties'!$B$6:$B$12,'Storage properties'!$J$6:$J$12, "not found",0) -> not found | Z30: =_xlfn.XLOOKUP($B30,'Max Ramp Rates'!$B$9:$B$189,'Max Ramp Rates'!$E$9:$E$189, "not found", 0) -> 5 | AA30: =_xlfn.XLOOKUP($B30,'Max Ramp Rates'!$B$9:$B$189,'Max Ramp Rates'!$F$9:$F$189, "not found", 0) -> 5 | AB30: =_xlfn.XLOOKUP(_xlfn.XLOOKUP($B30,'Summary Mapping'!$C$7:$C$662,'Summary Mapping'!$O$7:$O$662,"not found",0),Maintenance!$B$7:$B$24,Maintenance!$C$7:$C$24,"not found",0) -> 5.479452055 | AC30: =_xlfn.XLOOKUP(_xlfn.XLOOKUP($B30,'Summary Mapping'!$C$7:$C$662,'Summary Mapping'!$O$7:$O$662,"not found",0),Maintenance!$B$7:$B$24,Maintenance!$D$7:$D$24,"not found",0) -> 20 | AD30: =IF($D30="Biomass",IFERROR(VLOOKUP($D30,'Generator Reliability Settings'!$B$58:$G$79,MATCH(AD$11,'Generator Reliability Settings'!$B$58:$G$58,0),FALSE),"not found"),IFERROR(INDEX('Generator Reliability Settings'!$B$23:$M$52,MATCH(_xlfn.XLOOKUP($B30,'Summary Mapping'!$C$7:$C$662,'Summary Mapping'!$P$7:$P$662,"not found",0)&AD$11,'Generator Reliability Settings'!$B$23:$B$52&'Generator Reliability Settings'!$C$23:$C$52,0),MIN(COLUMNS('Generator Reliability Settings'!$B$22:$M$52),MATCH(AD$12,'Generator Reliability Settings'!$B$22:$M$22,0))), "not found")) -> 0.09270884418 | AE30: =IF($D30="Biomass",IFERROR(VLOOKUP($D30,'Generator Reliability Settings'!$B$58:$G$79,MATCH(AE$11,'Generator Reliability Settings'!$B$58:$G$58,0),FALSE),"not found"),IFERROR(INDEX('Generator Reliability Settings'!$B$23:$M$52,MATCH(_xlfn.XLOOKUP($B30,'Summary Mapping'!$C$7:$C$662,'Summary Mapping'!$P$7:$P$662,"not found",0)&AE$11,'Generator Reliability Settings'!$B$23:$B$52&'Generator Reliability Settings'!$C$23:$C$52,0),MIN(COLUMNS('Generator Reliability Settings'!$B$22:$M$52),MATCH(AE$12,'Generator Reliability Settings'!$B$22:$M$22,0))), "not found")) -> 0.2043810551 | AF30: =IF($D30="Biomass",IFERROR(VLOOKUP($D30,'Generator Reliability Settings'!$B$58:$G$79,MATCH(AF$11,'Generator Reliability Settings'!$B$58:$G$58,0),FALSE),"not found"),IFERROR(INDEX('Generator Reliability Settings'!$B$23:$M$52,MATCH(_xlfn.XLOOKUP($B30,'Summary Mapping'!$C$7:$C$662,'Summary Mapping'!$P$7:$P$662,"not found",0)&AF$11,'Generator Reliability Settings'!$B$23:$B$52&'Generator Reliability Settings'!$C$23:$C$52,0),MIN(COLUMNS('Generator Reliability Settings'!$B$22:$M$52),MATCH(AF$12,'Generator Reliability Settings'!$B$22:$M$22,0))), "not found")) -> 153.2102879 | AG30: =IF($D30="Biomass",IFERROR(VLOOKUP($D30,'Generator Reliability Settings'!$B$58:$G$79,MATCH(AG$11,'Generator Reliability Settings'!$B$58:$G$58,0),FALSE),"not found"),IFERROR(INDEX('Generator Reliability Settings'!$B$23:$M$52,MATCH(_xlfn.XLOOKUP($B30,'Summary Mapping'!$C$7:$C$662,'Summary Mapping'!$P$7:$P$662,"not found",0)&AG$11,'Generator Reliability Settings'!$B$23:$B$52&'Generator Reliability Settings'!$C$23:$C$52,0),MIN(COLUMNS('Generator Reliability Settings'!$B$22:$M$52),MATCH(AG$12,'Generator Reliability Settings'!$B$22:$M$22,0))), "not found")) -> 49.09239354 | AH30: =IF($D30="Biomass",IFERROR(VLOOKUP($D30,'Generator Reliability Settings'!$B$58:$G$79,MATCH(AH$11,'Generator Reliability Settings'!$B$58:$G$58,0),FALSE),"not found"),IFERROR(INDEX('Generator Reliability Settings'!$B$23:$M$52,MATCH(_xlfn.XLOOKUP($B30,'Summary Mapping'!$C$7:$C$662,'Summary Mapping'!$P$7:$P$662,"not found",0)&AH$11,'Generator Reliability Settings'!$B$23:$B$52&'Generator Reliability Settings'!$C$23:$C$52,0),MIN(COLUMNS('Generator Reliability Settings'!$B$22:$M$52),MATCH(AH$12,'Generator Reliability Settings'!$B$22:$M$22,0))), "not found")) -> 0.2685711543 | AI30: =_xlfn.XLOOKUP($B30,'Fixed OPEX'!$B$8:$B$663,'Fixed OPEX'!$E$8:$E$663,"not found", 0) -> 38 | AJ30: =_xlfn.XLOOKUP($B30,'Variable OPEX'!$B$8:$B$663,'Variable OPEX'!$E$8:$E$663,"not found",0) -> 7 | AK30: =_xlfn.XLOOKUP($B30,'Heat rates'!$B$9:$B$664,'Heat rates'!$E$9:$E$664,"not found", 0) -> 10.29748284 | AL30: =INDEX('Fuel Price Summary'!$H$12:$AK$668,MATCH($B30,'Fuel Price Summary'!$B$12:$B$668,0),MATCH($AL$12,'Fuel Price Summary'!$H$12:$AK$12,0)) -> 6.364375 | AM30: =_xlfn.XLOOKUP($B30,'Emissions intensity'!$B$8:$B$664,'Emissions intensity'!$E$8:$E$664,"not found",0)*SUMPRODUCT((('GPG emissions reduction - BioM'!$B$9:$B$11)=AM$11)*(('GPG emissions reduction - BioM'!$C$8:$AF$8)=AM$12),'GPG emissions reduction - BioM'!$C$9:$AF$11) +N("this term is the emission intensity as at the current year") -> 652.107794 | AN30: =_xlfn.XLOOKUP($B30,'Marginal Loss Factors'!$B$13:$B$668,'Marginal Loss Factors'!$F$13:$F$668, "not found", 0) -> 0.9461 | AO30: =_xlfn.XLOOKUP($B30,Auxiliary!$B$7:$B$662,Auxiliary!$E$7:$E$662,"not found",0) -> 6.67097171 | AP30: 72.53704234 | AQ30: =_xlfn.XLOOKUP($B30,Retirement!$B$14:$B$669,Retirement!$F$14:$F$669, "not found", 0) -> 2035 | AR30: =_xlfn.XLOOKUP($D30,Retirement!$I$14:$I$44,Retirement!$J$14:$J$44,"not found",0) -> 254000 | AS30: =_xlfn.XLOOKUP($B30,'Power System Security'!$B$6:$B$49,'Power System Security'!$D$6:$D$49,"not found",0) -> 47.81269998
B31: ='Summary Mapping'!C25 -> KPP_1 | C31: ='Summary Mapping'!D25 -> Kogan Creek | D31: ='Summary Mapping'!E25 -> Steam Super Critical | E31: ='Summary Mapping'!F25 -> QLD | F31: ='Summary Mapping'!G25 -> SQ | G31: ='Summary Mapping'!H25 -> Not Applicable | H31: ='Summary Mapping'!I25 -> Not Applicable | I31: ='Summary Mapping'!J25 -> Existing | J31: ='Summary Mapping'!K25 -> Not Applicable | K31: =_xlfn.XLOOKUP(B31,'Maximum capacity'!$B$10:$B$665,'Maximum capacity'!$G$10:$G$665,"not found",0) -> 744 | L31: =_xlfn.XLOOKUP(B31,'Maximum capacity'!$B$10:$B$665,'Maximum capacity'!$H$10:$H$665,"not found",0) ->  | M31: =VLOOKUP($B31,'Seasonal ratings'!$B$45:$AI$700,(MATCH(M$12,'Seasonal ratings'!$F$44:$O$44,0)+COLUMN('Seasonal ratings'!$F$44)-COLUMN('Seasonal ratings'!$B$44)),FALSE) -> 715 | N31: =VLOOKUP($B31,'Seasonal ratings'!$B$45:$AI$700,(MATCH(N$12,'Seasonal ratings'!$P$44:$Y$44,0)+COLUMN('Seasonal ratings'!$P$44)-COLUMN('Seasonal ratings'!$B$44)),FALSE) -> 730 | O31: =VLOOKUP($B31,'Seasonal ratings'!$B$45:$AI$700,(MATCH(O$12,'Seasonal ratings'!$Z$44:$AI$44,0)+COLUMN('Seasonal ratings'!$Z$44)-COLUMN('Seasonal ratings'!$B$44)),FALSE) -> 760 | P31: =_xlfn.XLOOKUP($B31,'Coal Min Stable Level'!$B$14:$B$57,'Coal Min Stable Level'!$G$14:$G$57,_xlfn.XLOOKUP($B31,'GPG Min Stable Level'!$B$12:$B$148,'GPG Min Stable Level'!$E$12:$E$148,"not found",0),0) -> 180 | Q31: =_xlfn.XLOOKUP($B31,'Affine Heat rates'!$B$8:$B$188,'Affine Heat rates'!$E$8:$E$188,"not found",0) -> 648 | R31: =_xlfn.XLOOKUP($B31,'Affine Heat rates'!$B$8:$B$188,'Affine Heat rates'!$F$8:$F$188,"not found",0) -> 8.801511368 | S31: =_xlfn.XLOOKUP(_xlfn.XLOOKUP($B31,'Summary Mapping'!$C$7:$C$662,'Summary Mapping'!$Y$7:$Y$662,"not found",0),'Storage properties'!$B$22:$B$28,'Storage properties'!$E$22:$E$28,"not found",0) -> not found | T31: =_xlfn.XLOOKUP($D31,'Storage properties'!$B$6:$B$12,'Storage properties'!$E$6:$E$12, "not found",0) -> not found | U31: =_xlfn.XLOOKUP($D31,'Storage properties'!$B$6:$B$12,'Storage properties'!$F$6:$F$12, "not found",0) -> not found | V31: =_xlfn.XLOOKUP($D31,'Storage properties'!$B$6:$B$12,'Storage properties'!$G$6:$G$12, "not found",0) -> not found | W31: =_xlfn.XLOOKUP($D31,'Storage properties'!$B$6:$B$12,'Storage properties'!$H$6:$H$12, "not found",0) -> not found | X31: =_xlfn.XLOOKUP($D31,'Storage properties'!$B$6:$B$12,'Storage properties'!$I$6:$I$12, "not found",0) -> not found | Y31: =_xlfn.XLOOKUP($D31,'Storage properties'!$B$6:$B$12,'Storage properties'!$J$6:$J$12, "not found",0) -> not found | Z31: =_xlfn.XLOOKUP($B31,'Max Ramp Rates'!$B$9:$B$189,'Max Ramp Rates'!$E$9:$E$189, "not found", 0) -> 8 | AA31: =_xlfn.XLOOKUP($B31,'Max Ramp Rates'!$B$9:$B$189,'Max Ramp Rates'!$F$9:$F$189, "not found", 0) -> 8 | AB31: =_xlfn.XLOOKUP(_xlfn.XLOOKUP($B31,'Summary Mapping'!$C$7:$C$662,'Summary Mapping'!$O$7:$O$662,"not found",0),Maintenance!$B$7:$B$24,Maintenance!$C$7:$C$24,"not found",0) -> 5.479452055 | AC31: =_xlfn.XLOOKUP(_xlfn.XLOOKUP($B31,'Summary Mapping'!$C$7:$C$662,'Summary Mapping'!$O$7:$O$662,"not found",0),Maintenance!$B$7:$B$24,Maintenance!$D$7:$D$24,"not found",0) -> 20 | AD31: =IF($D31="Biomass",IFERROR(VLOOKUP($D31,'Generator Reliability Settings'!$B$58:$G$79,MATCH(AD$11,'Generator Reliability Settings'!$B$58:$G$58,0),FALSE),"not found"),IFERROR(INDEX('Generator Reliability Settings'!$B$23:$M$52,MATCH(_xlfn.XLOOKUP($B31,'Summary Mapping'!$C$7:$C$662,'Summary Mapping'!$P$7:$P$662,"not found",0)&AD$11,'Generator Reliability Settings'!$B$23:$B$52&'Generator Reliability Settings'!$C$23:$C$52,0),MIN(COLUMNS('Generator Reliability Settings'!$B$22:$M$52),MATCH(AD$12,'Generator Reliability Settings'!$B$22:$M$22,0))), "not found")) -> 0.09270884418 | AE31: =IF($D31="Biomass",IFERROR(VLOOKUP($D31,'Generator Reliability Settings'!$B$58:$G$79,MATCH(AE$11,'Generator Reliability Settings'!$B$58:$G$58,0),FALSE),"not found"),IFERROR(INDEX('Generator Reliability Settings'!$B$23:$M$52,MATCH(_xlfn.XLOOKUP($B31,'Summary Mapping'!$C$7:$C$662,'Summary Mapping'!$P$7:$P$662,"not found",0)&AE$11,'Generator Reliability Settings'!$B$23:$B$52&'Generator Reliability Settings'!$C$23:$C$52,0),MIN(COLUMNS('Generator Reliability Settings'!$B$22:$M$52),MATCH(AE$12,'Generator Reliability Settings'!$B$22:$M$22,0))), "not found")) -> 0.2043810551 | AF31: =IF($D31="Biomass",IFERROR(VLOOKUP($D31,'Generator Reliability Settings'!$B$58:$G$79,MATCH(AF$11,'Generator Reliability Settings'!$B$58:$G$58,0),FALSE),"not found"),IFERROR(INDEX('Generator Reliability Settings'!$B$23:$M$52,MATCH(_xlfn.XLOOKUP($B31,'Summary Mapping'!$C$7:$C$662,'Summary Mapping'!$P$7:$P$662,"not found",0)&AF$11,'Generator Reliability Settings'!$B$23:$B$52&'Generator Reliability Settings'!$C$23:$C$52,0),MIN(COLUMNS('Generator Reliability Settings'!$B$22:$M$52),MATCH(AF$12,'Generator Reliability Settings'!$B$22:$M$22,0))), "not found")) -> 153.2102879 | AG31: =IF($D31="Biomass",IFERROR(VLOOKUP($D31,'Generator Reliability Settings'!$B$58:$G$79,MATCH(AG$11,'Generator Reliability Settings'!$B$58:$G$58,0),FALSE),"not found"),IFERROR(INDEX('Generator Reliability Settings'!$B$23:$M$52,MATCH(_xlfn.XLOOKUP($B31,'Summary Mapping'!$C$7:$C$662,'Summary Mapping'!$P$7:$P$662,"not found",0)&AG$11,'Generator Reliability Settings'!$B$23:$B$52&'Generator Reliability Settings'!$C$23:$C$52,0),MIN(COLUMNS('Generator Reliability Settings'!$B$22:$M$52),MATCH(AG$12,'Generator Reliability Settings'!$B$22:$M$22,0))), "not found")) -> 49.09239354 | AH31: =IF($D31="Biomass",IFERROR(VLOOKUP($D31,'Generator Reliability Settings'!$B$58:$G$79,MATCH(AH$11,'Generator Reliability Settings'!$B$58:$G$58,0),FALSE),"not found"),IFERROR(INDEX('Generator Reliability Settings'!$B$23:$M$52,MATCH(_xlfn.XLOOKUP($B31,'Summary Mapping'!$C$7:$C$662,'Summary Mapping'!$P$7:$P$662,"not found",0)&AH$11,'Generator Reliability Settings'!$B$23:$B$52&'Generator Reliability Settings'!$C$23:$C$52,0),MIN(COLUMNS('Generator Reliability Settings'!$B$22:$M$52),MATCH(AH$12,'Generator Reliability Settings'!$B$22:$M$22,0))), "not found")) -> 0.2685711543 | AI31: =_xlfn.XLOOKUP($B31,'Fixed OPEX'!$B$8:$B$663,'Fixed OPEX'!$E$8:$E$663,"not found", 0) -> 52 | AJ31: =_xlfn.XLOOKUP($B31,'Variable OPEX'!$B$8:$B$663,'Variable OPEX'!$E$8:$E$663,"not found",0) -> 8 | AK31: =_xlfn.XLOOKUP($B31,'Heat rates'!$B$9:$B$664,'Heat rates'!$E$9:$E$664,"not found", 0) -> 9.67247911 | AL31: =INDEX('Fuel Price Summary'!$H$12:$AK$668,MATCH($B31,'Fuel Price Summary'!$B$12:$B$668,0),MATCH($AL$12,'Fuel Price Summary'!$H$12:$AK$12,0)) -> 2.321724 | AM31: =_xlfn.XLOOKUP($B31,'Emissions intensity'!$B$8:$B$664,'Emissions intensity'!$E$8:$E$664,"not found",0)*SUMPRODUCT((('GPG emissions reduction - BioM'!$B$9:$B$11)=AM$11)*(('GPG emissions reduction - BioM'!$C$8:$AF$8)=AM$12),'GPG emissions reduction - BioM'!$C$9:$AF$11) +N("this term is the emission intensity as at the current year") -> 545.2329764 | AN31: =_xlfn.XLOOKUP($B31,'Marginal Loss Factors'!$B$13:$B$668,'Marginal Loss Factors'!$F$13:$F$668, "not found", 0) -> 0.9737 | AO31: =_xlfn.XLOOKUP($B31,Auxiliary!$B$7:$B$662,Auxiliary!$E$7:$E$662,"not found",0) -> 6.67097171 | AP31: 30.45682689 | AQ31: =_xlfn.XLOOKUP($B31,Retirement!$B$14:$B$669,Retirement!$F$14:$F$669, "not found", 0) -> 2042 | AR31: =_xlfn.XLOOKUP($D31,Retirement!$I$14:$I$44,Retirement!$J$14:$J$44,"not found",0) -> 247000 | AS31: =_xlfn.XLOOKUP($B31,'Power System Security'!$B$6:$B$49,'Power System Security'!$D$6:$D$49,"not found",0) -> 127.0451742
B32: ='Summary Mapping'!C26 -> MPP_1 | C32: ='Summary Mapping'!D26 -> Millmerran | D32: ='Summary Mapping'!E26 -> Steam Super Critical | E32: ='Summary Mapping'!F26 -> QLD | F32: ='Summary Mapping'!G26 -> SQ | G32: ='Summary Mapping'!H26 -> Not Applicable | H32: ='Summary Mapping'!I26 -> Not Applicable | I32: ='Summary Mapping'!J26 -> Existing | J32: ='Summary Mapping'!K26 -> Not Applicable | K32: =_xlfn.XLOOKUP(B32,'Maximum capacity'!$B$10:$B$665,'Maximum capacity'!$G$10:$G$665,"not found",0) -> 426 | L32: =_xlfn.XLOOKUP(B32,'Maximum capacity'!$B$10:$B$665,'Maximum capacity'!$H$10:$H$665,"not found",0) ->  | M32: =VLOOKUP($B32,'Seasonal ratings'!$B$45:$AI$700,(MATCH(M$12,'Seasonal ratings'!$F$44:$O$44,0)+COLUMN('Seasonal ratings'!$F$44)-COLUMN('Seasonal ratings'!$B$44)),FALSE) -> 335 | N32: =VLOOKUP($B32,'Seasonal ratings'!$B$45:$AI$700,(MATCH(N$12,'Seasonal ratings'!$P$44:$Y$44,0)+COLUMN('Seasonal ratings'!$P$44)-COLUMN('Seasonal ratings'!$B$44)),FALSE) -> 400 | O32: =VLOOKUP($B32,'Seasonal ratings'!$B$45:$AI$700,(MATCH(O$12,'Seasonal ratings'!$Z$44:$AI$44,0)+COLUMN('Seasonal ratings'!$Z$44)-COLUMN('Seasonal ratings'!$B$44)),FALSE) -> 426 | P32: =_xlfn.XLOOKUP($B32,'Coal Min Stable Level'!$B$14:$B$57,'Coal Min Stable Level'!$G$14:$G$57,_xlfn.XLOOKUP($B32,'GPG Min Stable Level'!$B$12:$B$148,'GPG Min Stable Level'!$E$12:$E$148,"not found",0),0) -> 160 | Q32: =_xlfn.XLOOKUP($B32,'Affine Heat rates'!$B$8:$B$188,'Affine Heat rates'!$E$8:$E$188,"not found",0) -> 666 | R32: =_xlfn.XLOOKUP($B32,'Affine Heat rates'!$B$8:$B$188,'Affine Heat rates'!$F$8:$F$188,"not found",0) -> 8.231471979 | S32: =_xlfn.XLOOKUP(_xlfn.XLOOKUP($B32,'Summary Mapping'!$C$7:$C$662,'Summary Mapping'!$Y$7:$Y$662,"not found",0),'Storage properties'!$B$22:$B$28,'Storage properties'!$E$22:$E$28,"not found",0) -> not found | T32: =_xlfn.XLOOKUP($D32,'Storage properties'!$B$6:$B$12,'Storage properties'!$E$6:$E$12, "not found",0) -> not found | U32: =_xlfn.XLOOKUP($D32,'Storage properties'!$B$6:$B$12,'Storage properties'!$F$6:$F$12, "not found",0) -> not found | V32: =_xlfn.XLOOKUP($D32,'Storage properties'!$B$6:$B$12,'Storage properties'!$G$6:$G$12, "not found",0) -> not found | W32: =_xlfn.XLOOKUP($D32,'Storage properties'!$B$6:$B$12,'Storage properties'!$H$6:$H$12, "not found",0) -> not found | X32: =_xlfn.XLOOKUP($D32,'Storage properties'!$B$6:$B$12,'Storage properties'!$I$6:$I$12, "not found",0) -> not found | Y32: =_xlfn.XLOOKUP($D32,'Storage properties'!$B$6:$B$12,'Storage properties'!$J$6:$J$12, "not found",0) -> not found | Z32: =_xlfn.XLOOKUP($B32,'Max Ramp Rates'!$B$9:$B$189,'Max Ramp Rates'!$E$9:$E$189, "not found", 0) -> 5 | AA32: =_xlfn.XLOOKUP($B32,'Max Ramp Rates'!$B$9:$B$189,'Max Ramp Rates'!$F$9:$F$189, "not found", 0) -> 5 | AB32: =_xlfn.XLOOKUP(_xlfn.XLOOKUP($B32,'Summary Mapping'!$C$7:$C$662,'Summary Mapping'!$O$7:$O$662,"not found",0),Maintenance!$B$7:$B$24,Maintenance!$C$7:$C$24,"not found",0) -> 5.479452055 | AC32: =_xlfn.XLOOKUP(_xlfn.XLOOKUP($B32,'Summary Mapping'!$C$7:$C$662,'Summary Mapping'!$O$7:$O$662,"not found",0),Maintenance!$B$7:$B$24,Maintenance!$D$7:$D$24,"not found",0) -> 20 | AD32: =IF($D32="Biomass",IFERROR(VLOOKUP($D32,'Generator Reliability Settings'!$B$58:$G$79,MATCH(AD$11,'Generator Reliability Settings'!$B$58:$G$58,0),FALSE),"not found"),IFERROR(INDEX('Generator Reliability Settings'!$B$23:$M$52,MATCH(_xlfn.XLOOKUP($B32,'Summary Mapping'!$C$7:$C$662,'Summary Mapping'!$P$7:$P$662,"not found",0)&AD$11,'Generator Reliability Settings'!$B$23:$B$52&'Generator Reliability Settings'!$C$23:$C$52,0),MIN(COLUMNS('Generator Reliability Settings'!$B$22:$M$52),MATCH(AD$12,'Generator Reliability Settings'!$B$22:$M$22,0))), "not found")) -> 0.09270884418 | AE32: =IF($D32="Biomass",IFERROR(VLOOKUP($D32,'Generator Reliability Settings'!$B$58:$G$79,MATCH(AE$11,'Generator Reliability Settings'!$B$58:$G$58,0),FALSE),"not found"),IFERROR(INDEX('Generator Reliability Settings'!$B$23:$M$52,MATCH(_xlfn.XLOOKUP($B32,'Summary Mapping'!$C$7:$C$662,'Summary Mapping'!$P$7:$P$662,"not found",0)&AE$11,'Generator Reliability Settings'!$B$23:$B$52&'Generator Reliability Settings'!$C$23:$C$52,0),MIN(COLUMNS('Generator Reliability Settings'!$B$22:$M$52),MATCH(AE$12,'Generator Reliability Settings'!$B$22:$M$22,0))), "not found")) -> 0.2043810551 | AF32: =IF($D32="Biomass",IFERROR(VLOOKUP($D32,'Generator Reliability Settings'!$B$58:$G$79,MATCH(AF$11,'Generator Reliability Settings'!$B$58:$G$58,0),FALSE),"not found"),IFERROR(INDEX('Generator Reliability Settings'!$B$23:$M$52,MATCH(_xlfn.XLOOKUP($B32,'Summary Mapping'!$C$7:$C$662,'Summary Mapping'!$P$7:$P$662,"not found",0)&AF$11,'Generator Reliability Settings'!$B$23:$B$52&'Generator Reliability Settings'!$C$23:$C$52,0),MIN(COLUMNS('Generator Reliability Settings'!$B$22:$M$52),MATCH(AF$12,'Generator Reliability Settings'!$B$22:$M$22,0))), "not found")) -> 153.2102879 | AG32: =IF($D32="Biomass",IFERROR(VLOOKUP($D32,'Generator Reliability Settings'!$B$58:$G$79,MATCH(AG$11,'Generator Reliability Settings'!$B$58:$G$58,0),FALSE),"not found"),IFERROR(INDEX('Generator Reliability Settings'!$B$23:$M$52,MATCH(_xlfn.XLOOKUP($B32,'Summary Mapping'!$C$7:$C$662,'Summary Mapping'!$P$7:$P$662,"not found",0)&AG$11,'Generator Reliability Settings'!$B$23:$B$52&'Generator Reliability Settings'!$C$23:$C$52,0),MIN(COLUMNS('Generator Reliability Settings'!$B$22:$M$52),MATCH(AG$12,'Generator Reliability Settings'!$B$22:$M$22,0))), "not found")) -> 49.09239354 | AH32: =IF($D32="Biomass",IFERROR(VLOOKUP($D32,'Generator Reliability Settings'!$B$58:$G$79,MATCH(AH$11,'Generator Reliability Settings'!$B$58:$G$58,0),FALSE),"not found"),IFERROR(INDEX('Generator Reliability Settings'!$B$23:$M$52,MATCH(_xlfn.XLOOKUP($B32,'Summary Mapping'!$C$7:$C$662,'Summary Mapping'!$P$7:$P$662,"not found",0)&AH$11,'Generator Reliability Settings'!$B$23:$B$52&'Generator Reliability Settings'!$C$23:$C$52,0),MIN(COLUMNS('Generator Reliability Settings'!$B$22:$M$52),MATCH(AH$12,'Generator Reliability Settings'!$B$22:$M$22,0))), "not found")) -> 0.2685711543 | AI32: =_xlfn.XLOOKUP($B32,'Fixed OPEX'!$B$8:$B$663,'Fixed OPEX'!$E$8:$E$663,"not found", 0) -> 52 | AJ32: =_xlfn.XLOOKUP($B32,'Variable OPEX'!$B$8:$B$663,'Variable OPEX'!$E$8:$E$663,"not found",0) -> 8 | AK32: =_xlfn.XLOOKUP($B32,'Heat rates'!$B$9:$B$664,'Heat rates'!$E$9:$E$664,"not found", 0) -> 9.794852261 | AL32: =INDEX('Fuel Price Summary'!$H$12:$AK$668,MATCH($B32,'Fuel Price Summary'!$B$12:$B$668,0),MATCH($AL$12,'Fuel Price Summary'!$H$12:$AK$12,0)) -> 2.056966 | AM32: =_xlfn.XLOOKUP($B32,'Emissions intensity'!$B$8:$B$664,'Emissions intensity'!$E$8:$E$664,"not found",0)*SUMPRODUCT((('GPG emissions reduction - BioM'!$B$9:$B$11)=AM$11)*(('GPG emissions reduction - BioM'!$C$8:$AF$8)=AM$12),'GPG emissions reduction - BioM'!$C$9:$AF$11) +N("this term is the emission intensity as at the current year") -> 550.277734 | AN32: =_xlfn.XLOOKUP($B32,'Marginal Loss Factors'!$B$13:$B$668,'Marginal Loss Factors'!$F$13:$F$668, "not found", 0) -> 0.98 | AO32: =_xlfn.XLOOKUP($B32,Auxiliary!$B$7:$B$662,Auxiliary!$E$7:$E$662,"not found",0) -> 6.67097171 | AP32: 28.14767808 | AQ32: =_xlfn.XLOOKUP($B32,Retirement!$B$14:$B$669,Retirement!$F$14:$F$669, "not found", 0) -> 2051 | AR32: =_xlfn.XLOOKUP($D32,Retirement!$I$14:$I$44,Retirement!$J$14:$J$44,"not found",0) -> 247000 | AS32: =_xlfn.XLOOKUP($B32,'Power System Security'!$B$6:$B$49,'Power System Security'!$D$6:$D$49,"not found",0) -> 72.74360782
B33: ='Summary Mapping'!C27 -> MPP_2 | C33: ='Summary Mapping'!D27 -> Millmerran | D33: ='Summary Mapping'!E27 -> Steam Super Critical | E33: ='Summary Mapping'!F27 -> QLD | F33: ='Summary Mapping'!G27 -> SQ | G33: ='Summary Mapping'!H27 -> Not Applicable | H33: ='Summary Mapping'!I27 -> Not Applicable | I33: ='Summary Mapping'!J27 -> Existing | J33: ='Summary Mapping'!K27 -> Not Applicable | K33: =_xlfn.XLOOKUP(B33,'Maximum capacity'!$B$10:$B$665,'Maximum capacity'!$G$10:$G$665,"not found",0) -> 426 | L33: =_xlfn.XLOOKUP(B33,'Maximum capacity'!$B$10:$B$665,'Maximum capacity'!$H$10:$H$665,"not found",0) ->  | M33: =VLOOKUP($B33,'Seasonal ratings'!$B$45:$AI$700,(MATCH(M$12,'Seasonal ratings'!$F$44:$O$44,0)+COLUMN('Seasonal ratings'!$F$44)-COLUMN('Seasonal ratings'!$B$44)),FALSE) -> 335 | N33: =VLOOKUP($B33,'Seasonal ratings'!$B$45:$AI$700,(MATCH(N$12,'Seasonal ratings'!$P$44:$Y$44,0)+COLUMN('Seasonal ratings'!$P$44)-COLUMN('Seasonal ratings'!$B$44)),FALSE) -> 400 | O33: =VLOOKUP($B33,'Seasonal ratings'!$B$45:$AI$700,(MATCH(O$12,'Seasonal ratings'!$Z$44:$AI$44,0)+COLUMN('Seasonal ratings'!$Z$44)-COLUMN('Seasonal ratings'!$B$44)),FALSE) -> 426 | P33: =_xlfn.XLOOKUP($B33,'Coal Min Stable Level'!$B$14:$B$57,'Coal Min Stable Level'!$G$14:$G$57,_xlfn.XLOOKUP($B33,'GPG Min Stable Level'!$B$12:$B$148,'GPG Min Stable Level'!$E$12:$E$148,"not found",0),0) -> 160 | Q33: =_xlfn.XLOOKUP($B33,'Affine Heat rates'!$B$8:$B$188,'Affine Heat rates'!$E$8:$E$188,"not found",0) -> 666 | R33: =_xlfn.XLOOKUP($B33,'Affine Heat rates'!$B$8:$B$188,'Affine Heat rates'!$F$8:$F$188,"not found",0) -> 8.231471979 | S33: =_xlfn.XLOOKUP(_xlfn.XLOOKUP($B33,'Summary Mapping'!$C$7:$C$662,'Summary Mapping'!$Y$7:$Y$662,"not found",0),'Storage properties'!$B$22:$B$28,'Storage properties'!$E$22:$E$28,"not found",0) -> not found | T33: =_xlfn.XLOOKUP($D33,'Storage properties'!$B$6:$B$12,'Storage properties'!$E$6:$E$12, "not found",0) -> not found | U33: =_xlfn.XLOOKUP($D33,'Storage properties'!$B$6:$B$12,'Storage properties'!$F$6:$F$12, "not found",0) -> not found | V33: =_xlfn.XLOOKUP($D33,'Storage properties'!$B$6:$B$12,'Storage properties'!$G$6:$G$12, "not found",0) -> not found | W33: =_xlfn.XLOOKUP($D33,'Storage properties'!$B$6:$B$12,'Storage properties'!$H$6:$H$12, "not found",0) -> not found | X33: =_xlfn.XLOOKUP($D33,'Storage properties'!$B$6:$B$12,'Storage properties'!$I$6:$I$12, "not found",0) -> not found | Y33: =_xlfn.XLOOKUP($D33,'Storage properties'!$B$6:$B$12,'Storage properties'!$J$6:$J$12, "not found",0) -> not found | Z33: =_xlfn.XLOOKUP($B33,'Max Ramp Rates'!$B$9:$B$189,'Max Ramp Rates'!$E$9:$E$189, "not found", 0) -> 5 | AA33: =_xlfn.XLOOKUP($B33,'Max Ramp Rates'!$B$9:$B$189,'Max Ramp Rates'!$F$9:$F$189, "not found", 0) -> 5 | AB33: =_xlfn.XLOOKUP(_xlfn.XLOOKUP($B33,'Summary Mapping'!$C$7:$C$662,'Summary Mapping'!$O$7:$O$662,"not found",0),Maintenance!$B$7:$B$24,Maintenance!$C$7:$C$24,"not found",0) -> 5.479452055 | AC33: =_xlfn.XLOOKUP(_xlfn.XLOOKUP($B33,'Summary Mapping'!$C$7:$C$662,'Summary Mapping'!$O$7:$O$662,"not found",0),Maintenance!$B$7:$B$24,Maintenance!$D$7:$D$24,"not found",0) -> 20 | AD33: =IF($D33="Biomass",IFERROR(VLOOKUP($D33,'Generator Reliability Settings'!$B$58:$G$79,MATCH(AD$11,'Generator Reliability Settings'!$B$58:$G$58,0),FALSE),"not found"),IFERROR(INDEX('Generator Reliability Settings'!$B$23:$M$52,MATCH(_xlfn.XLOOKUP($B33,'Summary Mapping'!$C$7:$C$662,'Summary Mapping'!$P$7:$P$662,"not found",0)&AD$11,'Generator Reliability Settings'!$B$23:$B$52&'Generator Reliability Settings'!$C$23:$C$52,0),MIN(COLUMNS('Generator Reliability Settings'!$B$22:$M$52),MATCH(AD$12,'Generator Reliability Settings'!$B$22:$M$22,0))), "not found")) -> 0.09270884418 | AE33: =IF($D33="Biomass",IFERROR(VLOOKUP($D33,'Generator Reliability Settings'!$B$58:$G$79,MATCH(AE$11,'Generator Reliability Settings'!$B$58:$G$58,0),FALSE),"not found"),IFERROR(INDEX('Generator Reliability Settings'!$B$23:$M$52,MATCH(_xlfn.XLOOKUP($B33,'Summary Mapping'!$C$7:$C$662,'Summary Mapping'!$P$7:$P$662,"not found",0)&AE$11,'Generator Reliability Settings'!$B$23:$B$52&'Generator Reliability Settings'!$C$23:$C$52,0),MIN(COLUMNS('Generator Reliability Settings'!$B$22:$M$52),MATCH(AE$12,'Generator Reliability Settings'!$B$22:$M$22,0))), "not found")) -> 0.2043810551 | AF33: =IF($D33="Biomass",IFERROR(VLOOKUP($D33,'Generator Reliability Settings'!$B$58:$G$79,MATCH(AF$11,'Generator Reliability Settings'!$B$58:$G$58,0),FALSE),"not found"),IFERROR(INDEX('Generator Reliability Settings'!$B$23:$M$52,MATCH(_xlfn.XLOOKUP($B33,'Summary Mapping'!$C$7:$C$662,'Summary Mapping'!$P$7:$P$662,"not found",0)&AF$11,'Generator Reliability Settings'!$B$23:$B$52&'Generator Reliability Settings'!$C$23:$C$52,0),MIN(COLUMNS('Generator Reliability Settings'!$B$22:$M$52),MATCH(AF$12,'Generator Reliability Settings'!$B$22:$M$22,0))), "not found")) -> 153.2102879 | AG33: =IF($D33="Biomass",IFERROR(VLOOKUP($D33,'Generator Reliability Settings'!$B$58:$G$79,MATCH(AG$11,'Generator Reliability Settings'!$B$58:$G$58,0),FALSE),"not found"),IFERROR(INDEX('Generator Reliability Settings'!$B$23:$M$52,MATCH(_xlfn.XLOOKUP($B33,'Summary Mapping'!$C$7:$C$662,'Summary Mapping'!$P$7:$P$662,"not found",0)&AG$11,'Generator Reliability Settings'!$B$23:$B$52&'Generator Reliability Settings'!$C$23:$C$52,0),MIN(COLUMNS('Generator Reliability Settings'!$B$22:$M$52),MATCH(AG$12,'Generator Reliability Settings'!$B$22:$M$22,0))), "not found")) -> 49.09239354 | AH33: =IF($D33="Biomass",IFERROR(VLOOKUP($D33,'Generator Reliability Settings'!$B$58:$G$79,MATCH(AH$11,'Generator Reliability Settings'!$B$58:$G$58,0),FALSE),"not found"),IFERROR(INDEX('Generator Reliability Settings'!$B$23:$M$52,MATCH(_xlfn.XLOOKUP($B33,'Summary Mapping'!$C$7:$C$662,'Summary Mapping'!$P$7:$P$662,"not found",0)&AH$11,'Generator Reliability Settings'!$B$23:$B$52&'Generator Reliability Settings'!$C$23:$C$52,0),MIN(COLUMNS('Generator Reliability Settings'!$B$22:$M$52),MATCH(AH$12,'Generator Reliability Settings'!$B$22:$M$22,0))), "not found")) -> 0.2685711543 | AI33: =_xlfn.XLOOKUP($B33,'Fixed OPEX'!$B$8:$B$663,'Fixed OPEX'!$E$8:$E$663,"not found", 0) -> 52 | AJ33: =_xlfn.XLOOKUP($B33,'Variable OPEX'!$B$8:$B$663,'Variable OPEX'!$E$8:$E$663,"not found",0) -> 8 | AK33: =_xlfn.XLOOKUP($B33,'Heat rates'!$B$9:$B$664,'Heat rates'!$E$9:$E$664,"not found", 0) -> 9.794852261 | AL33: =INDEX('Fuel Price Summary'!$H$12:$AK$668,MATCH($B33,'Fuel Price Summary'!$B$12:$B$668,0),MATCH($AL$12,'Fuel Price Summary'!$H$12:$AK$12,0)) -> 2.056966 | AM33: =_xlfn.XLOOKUP($B33,'Emissions intensity'!$B$8:$B$664,'Emissions intensity'!$E$8:$E$664,"not found",0)*SUMPRODUCT((('GPG emissions reduction - BioM'!$B$9:$B$11)=AM$11)*(('GPG emissions reduction - BioM'!$C$8:$AF$8)=AM$12),'GPG emissions reduction - BioM'!$C$9:$AF$11) +N("this term is the emission intensity as at the current year") -> 550.277734 | AN33: =_xlfn.XLOOKUP($B33,'Marginal Loss Factors'!$B$13:$B$668,'Marginal Loss Factors'!$F$13:$F$668, "not found", 0) -> 0.98 | AO33: =_xlfn.XLOOKUP($B33,Auxiliary!$B$7:$B$662,Auxiliary!$E$7:$E$662,"not found",0) -> 6.67097171 | AP33: 28.14767808 | AQ33: =_xlfn.XLOOKUP($B33,Retirement!$B$14:$B$669,Retirement!$F$14:$F$669, "not found", 0) -> 2051 | AR33: =_xlfn.XLOOKUP($D33,Retirement!$I$14:$I$44,Retirement!$J$14:$J$44,"not found",0) -> 247000 | AS33: =_xlfn.XLOOKUP($B33,'Power System Security'!$B$6:$B$49,'Power System Security'!$D$6:$D$49,"not found",0) -> 72.74360782
B34: ='Summary Mapping'!C28 -> MP1 | C34: ='Summary Mapping'!D28 -> Mt Piper | D34: ='Summary Mapping'!E28 -> Steam Sub Critical | E34: ='Summary Mapping'!F28 -> NSW | F34: ='Summary Mapping'!G28 -> CNSW | G34: ='Summary Mapping'!H28 -> Not Applicable | H34: ='Summary Mapping'!I28 -> Not Applicable | I34: ='Summary Mapping'!J28 -> Existing | J34: ='Summary Mapping'!K28 -> Not Applicable | K34: =_xlfn.XLOOKUP(B34,'Maximum capacity'!$B$10:$B$665,'Maximum capacity'!$G$10:$G$665,"not found",0) -> 730 | L34: =_xlfn.XLOOKUP(B34,'Maximum capacity'!$B$10:$B$665,'Maximum capacity'!$H$10:$H$665,"not found",0) ->  | M34: =VLOOKUP($B34,'Seasonal ratings'!$B$45:$AI$700,(MATCH(M$12,'Seasonal ratings'!$F$44:$O$44,0)+COLUMN('Seasonal ratings'!$F$44)-COLUMN('Seasonal ratings'!$B$44)),FALSE) -> 705 | N34: =VLOOKUP($B34,'Seasonal ratings'!$B$45:$AI$700,(MATCH(N$12,'Seasonal ratings'!$P$44:$Y$44,0)+COLUMN('Seasonal ratings'!$P$44)-COLUMN('Seasonal ratings'!$B$44)),FALSE) -> 710 | O34: =VLOOKUP($B34,'Seasonal ratings'!$B$45:$AI$700,(MATCH(O$12,'Seasonal ratings'!$Z$44:$AI$44,0)+COLUMN('Seasonal ratings'!$Z$44)-COLUMN('Seasonal ratings'!$B$44)),FALSE) -> 730 | P34: =_xlfn.XLOOKUP($B34,'Coal Min Stable Level'!$B$14:$B$57,'Coal Min Stable Level'!$G$14:$G$57,_xlfn.XLOOKUP($B34,'GPG Min Stable Level'!$B$12:$B$148,'GPG Min Stable Level'!$E$12:$E$148,"not found",0),0) -> 150 | Q34: =_xlfn.XLOOKUP($B34,'Affine Heat rates'!$B$8:$B$188,'Affine Heat rates'!$E$8:$E$188,"not found",0) -> 540 | R34: =_xlfn.XLOOKUP($B34,'Affine Heat rates'!$B$8:$B$188,'Affine Heat rates'!$F$8:$F$188,"not found",0) -> 9.001851567 | S34: =_xlfn.XLOOKUP(_xlfn.XLOOKUP($B34,'Summary Mapping'!$C$7:$C$662,'Summary Mapping'!$Y$7:$Y$662,"not found",0),'Storage properties'!$B$22:$B$28,'Storage properties'!$E$22:$E$28,"not found",0) -> not found | T34: =_xlfn.XLOOKUP($D34,'Storage properties'!$B$6:$B$12,'Storage properties'!$E$6:$E$12, "not found",0) -> not found | U34: =_xlfn.XLOOKUP($D34,'Storage properties'!$B$6:$B$12,'Storage properties'!$F$6:$F$12, "not found",0) -> not found | V34: =_xlfn.XLOOKUP($D34,'Storage properties'!$B$6:$B$12,'Storage properties'!$G$6:$G$12, "not found",0) -> not found | W34: =_xlfn.XLOOKUP($D34,'Storage properties'!$B$6:$B$12,'Storage properties'!$H$6:$H$12, "not found",0) -> not found | X34: =_xlfn.XLOOKUP($D34,'Storage properties'!$B$6:$B$12,'Storage properties'!$I$6:$I$12, "not found",0) -> not found | Y34: =_xlfn.XLOOKUP($D34,'Storage properties'!$B$6:$B$12,'Storage properties'!$J$6:$J$12, "not found",0) -> not found | Z34: =_xlfn.XLOOKUP($B34,'Max Ramp Rates'!$B$9:$B$189,'Max Ramp Rates'!$E$9:$E$189, "not found", 0) -> 6.2 | AA34: =_xlfn.XLOOKUP($B34,'Max Ramp Rates'!$B$9:$B$189,'Max Ramp Rates'!$F$9:$F$189, "not found", 0) -> 6.2 | AB34: =_xlfn.XLOOKUP(_xlfn.XLOOKUP($B34,'Summary Mapping'!$C$7:$C$662,'Summary Mapping'!$O$7:$O$662,"not found",0),Maintenance!$B$7:$B$24,Maintenance!$C$7:$C$24,"not found",0) -> 5.479452055 | AC34: =_xlfn.XLOOKUP(_xlfn.XLOOKUP($B34,'Summary Mapping'!$C$7:$C$662,'Summary Mapping'!$O$7:$O$662,"not found",0),Maintenance!$B$7:$B$24,Maintenance!$D$7:$D$24,"not found",0) -> 20 | AD34: =IF($D34="Biomass",IFERROR(VLOOKUP($D34,'Generator Reliability Settings'!$B$58:$G$79,MATCH(AD$11,'Generator Reliability Settings'!$B$58:$G$58,0),FALSE),"not found"),IFERROR(INDEX('Generator Reliability Settings'!$B$23:$M$52,MATCH(_xlfn.XLOOKUP($B34,'Summary Mapping'!$C$7:$C$662,'Summary Mapping'!$P$7:$P$662,"not found",0)&AD$11,'Generator Reliability Settings'!$B$23:$B$52&'Generator Reliability Settings'!$C$23:$C$52,0),MIN(COLUMNS('Generator Reliability Settings'!$B$22:$M$52),MATCH(AD$12,'Generator Reliability Settings'!$B$22:$M$22,0))), "not found")) -> 0.05327398277 | AE34: =IF($D34="Biomass",IFERROR(VLOOKUP($D34,'Generator Reliability Settings'!$B$58:$G$79,MATCH(AE$11,'Generator Reliability Settings'!$B$58:$G$58,0),FALSE),"not found"),IFERROR(INDEX('Generator Reliability Settings'!$B$23:$M$52,MATCH(_xlfn.XLOOKUP($B34,'Summary Mapping'!$C$7:$C$662,'Summary Mapping'!$P$7:$P$662,"not found",0)&AE$11,'Generator Reliability Settings'!$B$23:$B$52&'Generator Reliability Settings'!$C$23:$C$52,0),MIN(COLUMNS('Generator Reliability Settings'!$B$22:$M$52),MATCH(AE$12,'Generator Reliability Settings'!$B$22:$M$22,0))), "not found")) -> 0.30516105 | AF34: =IF($D34="Biomass",IFERROR(VLOOKUP($D34,'Generator Reliability Settings'!$B$58:$G$79,MATCH(AF$11,'Generator Reliability Settings'!$B$58:$G$58,0),FALSE),"not found"),IFERROR(INDEX('Generator Reliability Settings'!$B$23:$M$52,MATCH(_xlfn.XLOOKUP($B34,'Summary Mapping'!$C$7:$C$662,'Summary Mapping'!$P$7:$P$662,"not found",0)&AF$11,'Generator Reliability Settings'!$B$23:$B$52&'Generator Reliability Settings'!$C$23:$C$52,0),MIN(COLUMNS('Generator Reliability Settings'!$B$22:$M$52),MATCH(AF$12,'Generator Reliability Settings'!$B$22:$M$22,0))), "not found")) -> 148.7062284 | AG34: =IF($D34="Biomass",IFERROR(VLOOKUP($D34,'Generator Reliability Settings'!$B$58:$G$79,MATCH(AG$11,'Generator Reliability Settings'!$B$58:$G$58,0),FALSE),"not found"),IFERROR(INDEX('Generator Reliability Settings'!$B$23:$M$52,MATCH(_xlfn.XLOOKUP($B34,'Summary Mapping'!$C$7:$C$662,'Summary Mapping'!$P$7:$P$662,"not found",0)&AG$11,'Generator Reliability Settings'!$B$23:$B$52&'Generator Reliability Settings'!$C$23:$C$52,0),MIN(COLUMNS('Generator Reliability Settings'!$B$22:$M$52),MATCH(AG$12,'Generator Reliability Settings'!$B$22:$M$22,0))), "not found")) -> 27.53229991 | AH34: =IF($D34="Biomass",IFERROR(VLOOKUP($D34,'Generator Reliability Settings'!$B$58:$G$79,MATCH(AH$11,'Generator Reliability Settings'!$B$58:$G$58,0),FALSE),"not found"),IFERROR(INDEX('Generator Reliability Settings'!$B$23:$M$52,MATCH(_xlfn.XLOOKUP($B34,'Summary Mapping'!$C$7:$C$662,'Summary Mapping'!$P$7:$P$662,"not found",0)&AH$11,'Generator Reliability Settings'!$B$23:$B$52&'Generator Reliability Settings'!$C$23:$C$52,0),MIN(COLUMNS('Generator Reliability Settings'!$B$22:$M$52),MATCH(AH$12,'Generator Reliability Settings'!$B$22:$M$22,0))), "not found")) -> 0.1864730238 | AI34: =_xlfn.XLOOKUP($B34,'Fixed OPEX'!$B$8:$B$663,'Fixed OPEX'!$E$8:$E$663,"not found", 0) -> 28 | AJ34: =_xlfn.XLOOKUP($B34,'Variable OPEX'!$B$8:$B$663,'Variable OPEX'!$E$8:$E$663,"not found",0) -> 8 | AK34: =_xlfn.XLOOKUP($B34,'Heat rates'!$B$9:$B$664,'Heat rates'!$E$9:$E$664,"not found", 0) -> 9.741577595 | AL34: =INDEX('Fuel Price Summary'!$H$12:$AK$668,MATCH($B34,'Fuel Price Summary'!$B$12:$B$668,0),MATCH($AL$12,'Fuel Price Summary'!$H$12:$AK$12,0)) -> 7.219747 | AM34: =_xlfn.XLOOKUP($B34,'Emissions intensity'!$B$8:$B$664,'Emissions intensity'!$E$8:$E$664,"not found",0)*SUMPRODUCT((('GPG emissions reduction - BioM'!$B$9:$B$11)=AM$11)*(('GPG emissions reduction - BioM'!$C$8:$AF$8)=AM$12),'GPG emissions reduction - BioM'!$C$9:$AF$11) +N("this term is the emission intensity as at the current year") -> 564.108451 | AN34: =_xlfn.XLOOKUP($B34,'Marginal Loss Factors'!$B$13:$B$668,'Marginal Loss Factors'!$F$13:$F$668, "not found", 0) -> 0.9727 | AO34: =_xlfn.XLOOKUP($B34,Auxiliary!$B$7:$B$662,Auxiliary!$E$7:$E$662,"not found",0) -> 5.48025286 | AP34: 78.33172561 | AQ34: =_xlfn.XLOOKUP($B34,Retirement!$B$14:$B$669,Retirement!$F$14:$F$669, "not found", 0) -> 2040 | AR34: =_xlfn.XLOOKUP($D34,Retirement!$I$14:$I$44,Retirement!$J$14:$J$44,"not found",0) -> 254000 | AS34: =_xlfn.XLOOKUP($B34,'Power System Security'!$B$6:$B$49,'Power System Security'!$D$6:$D$49,"not found",0) -> 124.6545392
B35: ='Summary Mapping'!C29 -> MP2 | C35: ='Summary Mapping'!D29 -> Mt Piper | D35: ='Summary Mapping'!E29 -> Steam Sub Critical | E35: ='Summary Mapping'!F29 -> NSW | F35: ='Summary Mapping'!G29 -> CNSW | G35: ='Summary Mapping'!H29 -> Not Applicable | H35: ='Summary Mapping'!I29 -> Not Applicable | I35: ='Summary Mapping'!J29 -> Existing | J35: ='Summary Mapping'!K29 -> Not Applicable | K35: =_xlfn.XLOOKUP(B35,'Maximum capacity'!$B$10:$B$665,'Maximum capacity'!$G$10:$G$665,"not found",0) -> 660 | L35: =_xlfn.XLOOKUP(B35,'Maximum capacity'!$B$10:$B$665,'Maximum capacity'!$H$10:$H$665,"not found",0) ->  | M35: =VLOOKUP($B35,'Seasonal ratings'!$B$45:$AI$700,(MATCH(M$12,'Seasonal ratings'!$F$44:$O$44,0)+COLUMN('Seasonal ratings'!$F$44)-COLUMN('Seasonal ratings'!$B$44)),FALSE) -> 705 | N35: =VLOOKUP($B35,'Seasonal ratings'!$B$45:$AI$700,(MATCH(N$12,'Seasonal ratings'!$P$44:$Y$44,0)+COLUMN('Seasonal ratings'!$P$44)-COLUMN('Seasonal ratings'!$B$44)),FALSE) -> 710 | O35: =VLOOKUP($B35,'Seasonal ratings'!$B$45:$AI$700,(MATCH(O$12,'Seasonal ratings'!$Z$44:$AI$44,0)+COLUMN('Seasonal ratings'!$Z$44)-COLUMN('Seasonal ratings'!$B$44)),FALSE) -> 730 | P35: =_xlfn.XLOOKUP($B35,'Coal Min Stable Level'!$B$14:$B$57,'Coal Min Stable Level'!$G$14:$G$57,_xlfn.XLOOKUP($B35,'GPG Min Stable Level'!$B$12:$B$148,'GPG Min Stable Level'!$E$12:$E$148,"not found",0),0) -> 150 | Q35: =_xlfn.XLOOKUP($B35,'Affine Heat rates'!$B$8:$B$188,'Affine Heat rates'!$E$8:$E$188,"not found",0) -> 540 | R35: =_xlfn.XLOOKUP($B35,'Affine Heat rates'!$B$8:$B$188,'Affine Heat rates'!$F$8:$F$188,"not found",0) -> 8.923395776 | S35: =_xlfn.XLOOKUP(_xlfn.XLOOKUP($B35,'Summary Mapping'!$C$7:$C$662,'Summary Mapping'!$Y$7:$Y$662,"not found",0),'Storage properties'!$B$22:$B$28,'Storage properties'!$E$22:$E$28,"not found",0) -> not found | T35: =_xlfn.XLOOKUP($D35,'Storage properties'!$B$6:$B$12,'Storage properties'!$E$6:$E$12, "not found",0) -> not found | U35: =_xlfn.XLOOKUP($D35,'Storage properties'!$B$6:$B$12,'Storage properties'!$F$6:$F$12, "not found",0) -> not found | V35: =_xlfn.XLOOKUP($D35,'Storage properties'!$B$6:$B$12,'Storage properties'!$G$6:$G$12, "not found",0) -> not found | W35: =_xlfn.XLOOKUP($D35,'Storage properties'!$B$6:$B$12,'Storage properties'!$H$6:$H$12, "not found",0) -> not found | X35: =_xlfn.XLOOKUP($D35,'Storage properties'!$B$6:$B$12,'Storage properties'!$I$6:$I$12, "not found",0) -> not found | Y35: =_xlfn.XLOOKUP($D35,'Storage properties'!$B$6:$B$12,'Storage properties'!$J$6:$J$12, "not found",0) -> not found | Z35: =_xlfn.XLOOKUP($B35,'Max Ramp Rates'!$B$9:$B$189,'Max Ramp Rates'!$E$9:$E$189, "not found", 0) -> 6.2 | AA35: =_xlfn.XLOOKUP($B35,'Max Ramp Rates'!$B$9:$B$189,'Max Ramp Rates'!$F$9:$F$189, "not found", 0) -> 6.2 | AB35: =_xlfn.XLOOKUP(_xlfn.XLOOKUP($B35,'Summary Mapping'!$C$7:$C$662,'Summary Mapping'!$O$7:$O$662,"not found",0),Maintenance!$B$7:$B$24,Maintenance!$C$7:$C$24,"not found",0) -> 5.479452055 | AC35: =_xlfn.XLOOKUP(_xlfn.XLOOKUP($B35,'Summary Mapping'!$C$7:$C$662,'Summary Mapping'!$O$7:$O$662,"not found",0),Maintenance!$B$7:$B$24,Maintenance!$D$7:$D$24,"not found",0) -> 20 | AD35: =IF($D35="Biomass",IFERROR(VLOOKUP($D35,'Generator Reliability Settings'!$B$58:$G$79,MATCH(AD$11,'Generator Reliability Settings'!$B$58:$G$58,0),FALSE),"not found"),IFERROR(INDEX('Generator Reliability Settings'!$B$23:$M$52,MATCH(_xlfn.XLOOKUP($B35,'Summary Mapping'!$C$7:$C$662,'Summary Mapping'!$P$7:$P$662,"not found",0)&AD$11,'Generator Reliability Settings'!$B$23:$B$52&'Generator Reliability Settings'!$C$23:$C$52,0),MIN(COLUMNS('Generator Reliability Settings'!$B$22:$M$52),MATCH(AD$12,'Generator Reliability Settings'!$B$22:$M$22,0))), "not found")) -> 0.05327398277 | AE35: =IF($D35="Biomass",IFERROR(VLOOKUP($D35,'Generator Reliability Settings'!$B$58:$G$79,MATCH(AE$11,'Generator Reliability Settings'!$B$58:$G$58,0),FALSE),"not found"),IFERROR(INDEX('Generator Reliability Settings'!$B$23:$M$52,MATCH(_xlfn.XLOOKUP($B35,'Summary Mapping'!$C$7:$C$662,'Summary Mapping'!$P$7:$P$662,"not found",0)&AE$11,'Generator Reliability Settings'!$B$23:$B$52&'Generator Reliability Settings'!$C$23:$C$52,0),MIN(COLUMNS('Generator Reliability Settings'!$B$22:$M$52),MATCH(AE$12,'Generator Reliability Settings'!$B$22:$M$22,0))), "not found")) -> 0.30516105 | AF35: =IF($D35="Biomass",IFERROR(VLOOKUP($D35,'Generator Reliability Settings'!$B$58:$G$79,MATCH(AF$11,'Generator Reliability Settings'!$B$58:$G$58,0),FALSE),"not found"),IFERROR(INDEX('Generator Reliability Settings'!$B$23:$M$52,MATCH(_xlfn.XLOOKUP($B35,'Summary Mapping'!$C$7:$C$662,'Summary Mapping'!$P$7:$P$662,"not found",0)&AF$11,'Generator Reliability Settings'!$B$23:$B$52&'Generator Reliability Settings'!$C$23:$C$52,0),MIN(COLUMNS('Generator Reliability Settings'!$B$22:$M$52),MATCH(AF$12,'Generator Reliability Settings'!$B$22:$M$22,0))), "not found")) -> 148.7062284 | AG35: =IF($D35="Biomass",IFERROR(VLOOKUP($D35,'Generator Reliability Settings'!$B$58:$G$79,MATCH(AG$11,'Generator Reliability Settings'!$B$58:$G$58,0),FALSE),"not found"),IFERROR(INDEX('Generator Reliability Settings'!$B$23:$M$52,MATCH(_xlfn.XLOOKUP($B35,'Summary Mapping'!$C$7:$C$662,'Summary Mapping'!$P$7:$P$662,"not found",0)&AG$11,'Generator Reliability Settings'!$B$23:$B$52&'Generator Reliability Settings'!$C$23:$C$52,0),MIN(COLUMNS('Generator Reliability Settings'!$B$22:$M$52),MATCH(AG$12,'Generator Reliability Settings'!$B$22:$M$22,0))), "not found")) -> 27.53229991 | AH35: =IF($D35="Biomass",IFERROR(VLOOKUP($D35,'Generator Reliability Settings'!$B$58:$G$79,MATCH(AH$11,'Generator Reliability Settings'!$B$58:$G$58,0),FALSE),"not found"),IFERROR(INDEX('Generator Reliability Settings'!$B$23:$M$52,MATCH(_xlfn.XLOOKUP($B35,'Summary Mapping'!$C$7:$C$662,'Summary Mapping'!$P$7:$P$662,"not found",0)&AH$11,'Generator Reliability Settings'!$B$23:$B$52&'Generator Reliability Settings'!$C$23:$C$52,0),MIN(COLUMNS('Generator Reliability Settings'!$B$22:$M$52),MATCH(AH$12,'Generator Reliability Settings'!$B$22:$M$22,0))), "not found")) -> 0.1864730238 | AI35: =_xlfn.XLOOKUP($B35,'Fixed OPEX'!$B$8:$B$663,'Fixed OPEX'!$E$8:$E$663,"not found", 0) -> 28 | AJ35: =_xlfn.XLOOKUP($B35,'Variable OPEX'!$B$8:$B$663,'Variable OPEX'!$E$8:$E$663,"not found",0) -> 8 | AK35: =_xlfn.XLOOKUP($B35,'Heat rates'!$B$9:$B$664,'Heat rates'!$E$9:$E$664,"not found", 0) -> 9.741577595 | AL35: =INDEX('Fuel Price Summary'!$H$12:$AK$668,MATCH($B35,'Fuel Price Summary'!$B$12:$B$668,0),MATCH($AL$12,'Fuel Price Summary'!$H$12:$AK$12,0)) -> 7.219747 | AM35: =_xlfn.XLOOKUP($B35,'Emissions intensity'!$B$8:$B$664,'Emissions intensity'!$E$8:$E$664,"not found",0)*SUMPRODUCT((('GPG emissions reduction - BioM'!$B$9:$B$11)=AM$11)*(('GPG emissions reduction - BioM'!$C$8:$AF$8)=AM$12),'GPG emissions reduction - BioM'!$C$9:$AF$11) +N("this term is the emission intensity as at the current year") -> 564.108451 | AN35: =_xlfn.XLOOKUP($B35,'Marginal Loss Factors'!$B$13:$B$668,'Marginal Loss Factors'!$F$13:$F$668, "not found", 0) -> 0.9727 | AO35: =_xlfn.XLOOKUP($B35,Auxiliary!$B$7:$B$662,Auxiliary!$E$7:$E$662,"not found",0) -> 5.48025286 | AP35: 78.33172561 | AQ35: =_xlfn.XLOOKUP($B35,Retirement!$B$14:$B$669,Retirement!$F$14:$F$669, "not found", 0) -> 2040 | AR35: =_xlfn.XLOOKUP($D35,Retirement!$I$14:$I$44,Retirement!$J$14:$J$44,"not found",0) -> 254000 | AS35: =_xlfn.XLOOKUP($B35,'Power System Security'!$B$6:$B$49,'Power System Security'!$D$6:$D$49,"not found",0) -> 112.7013642
B36: ='Summary Mapping'!C30 -> STAN-1 | C36: ='Summary Mapping'!D30 -> Stanwell | D36: ='Summary Mapping'!E30 -> Steam Sub Critical | E36: ='Summary Mapping'!F30 -> QLD | F36: ='Summary Mapping'!G30 -> CQ | G36: ='Summary Mapping'!H30 -> Not Applicable | H36: ='Summary Mapping'!I30 -> Not Applicable | I36: ='Summary Mapping'!J30 -> Existing | J36: ='Summary Mapping'!K30 -> Not Applicable | K36: =_xlfn.XLOOKUP(B36,'Maximum capacity'!$B$10:$B$665,'Maximum capacity'!$G$10:$G$665,"not found",0) -> 365 | L36: =_xlfn.XLOOKUP(B36,'Maximum capacity'!$B$10:$B$665,'Maximum capacity'!$H$10:$H$665,"not found",0) ->  | M36: =VLOOKUP($B36,'Seasonal ratings'!$B$45:$AI$700,(MATCH(M$12,'Seasonal ratings'!$F$44:$O$44,0)+COLUMN('Seasonal ratings'!$F$44)-COLUMN('Seasonal ratings'!$B$44)),FALSE) -> 365 | N36: =VLOOKUP($B36,'Seasonal ratings'!$B$45:$AI$700,(MATCH(N$12,'Seasonal ratings'!$P$44:$Y$44,0)+COLUMN('Seasonal ratings'!$P$44)-COLUMN('Seasonal ratings'!$B$44)),FALSE) -> 365 | O36: =VLOOKUP($B36,'Seasonal ratings'!$B$45:$AI$700,(MATCH(O$12,'Seasonal ratings'!$Z$44:$AI$44,0)+COLUMN('Seasonal ratings'!$Z$44)-COLUMN('Seasonal ratings'!$B$44)),FALSE) -> 365 | P36: =_xlfn.XLOOKUP($B36,'Coal Min Stable Level'!$B$14:$B$57,'Coal Min Stable Level'!$G$14:$G$57,_xlfn.XLOOKUP($B36,'GPG Min Stable Level'!$B$12:$B$148,'GPG Min Stable Level'!$E$12:$E$148,"not found",0),0) -> 115 | Q36: =_xlfn.XLOOKUP($B36,'Affine Heat rates'!$B$8:$B$188,'Affine Heat rates'!$E$8:$E$188,"not found",0) -> 504 | R36: =_xlfn.XLOOKUP($B36,'Affine Heat rates'!$B$8:$B$188,'Affine Heat rates'!$F$8:$F$188,"not found",0) -> 8.584024319 | S36: =_xlfn.XLOOKUP(_xlfn.XLOOKUP($B36,'Summary Mapping'!$C$7:$C$662,'Summary Mapping'!$Y$7:$Y$662,"not found",0),'Storage properties'!$B$22:$B$28,'Storage properties'!$E$22:$E$28,"not found",0) -> not found | T36: =_xlfn.XLOOKUP($D36,'Storage properties'!$B$6:$B$12,'Storage properties'!$E$6:$E$12, "not found",0) -> not found | U36: =_xlfn.XLOOKUP($D36,'Storage properties'!$B$6:$B$12,'Storage properties'!$F$6:$F$12, "not found",0) -> not found | V36: =_xlfn.XLOOKUP($D36,'Storage properties'!$B$6:$B$12,'Storage properties'!$G$6:$G$12, "not found",0) -> not found | W36: =_xlfn.XLOOKUP($D36,'Storage properties'!$B$6:$B$12,'Storage properties'!$H$6:$H$12, "not found",0) -> not found | X36: =_xlfn.XLOOKUP($D36,'Storage properties'!$B$6:$B$12,'Storage properties'!$I$6:$I$12, "not found",0) -> not found | Y36: =_xlfn.XLOOKUP($D36,'Storage properties'!$B$6:$B$12,'Storage properties'!$J$6:$J$12, "not found",0) -> not found | Z36: =_xlfn.XLOOKUP($B36,'Max Ramp Rates'!$B$9:$B$189,'Max Ramp Rates'!$E$9:$E$189, "not found", 0) -> 4 | AA36: =_xlfn.XLOOKUP($B36,'Max Ramp Rates'!$B$9:$B$189,'Max Ramp Rates'!$F$9:$F$189, "not found", 0) -> 4 | AB36: =_xlfn.XLOOKUP(_xlfn.XLOOKUP($B36,'Summary Mapping'!$C$7:$C$662,'Summary Mapping'!$O$7:$O$662,"not found",0),Maintenance!$B$7:$B$24,Maintenance!$C$7:$C$24,"not found",0) -> 5.479452055 | AC36: =_xlfn.XLOOKUP(_xlfn.XLOOKUP($B36,'Summary Mapping'!$C$7:$C$662,'Summary Mapping'!$O$7:$O$662,"not found",0),Maintenance!$B$7:$B$24,Maintenance!$D$7:$D$24,"not found",0) -> 20 | AD36: =IF($D36="Biomass",IFERROR(VLOOKUP($D36,'Generator Reliability Settings'!$B$58:$G$79,MATCH(AD$11,'Generator Reliability Settings'!$B$58:$G$58,0),FALSE),"not found"),IFERROR(INDEX('Generator Reliability Settings'!$B$23:$M$52,MATCH(_xlfn.XLOOKUP($B36,'Summary Mapping'!$C$7:$C$662,'Summary Mapping'!$P$7:$P$662,"not found",0)&AD$11,'Generator Reliability Settings'!$B$23:$B$52&'Generator Reliability Settings'!$C$23:$C$52,0),MIN(COLUMNS('Generator Reliability Settings'!$B$22:$M$52),MATCH(AD$12,'Generator Reliability Settings'!$B$22:$M$22,0))), "not found")) -> 0.09270884418 | AE36: =IF($D36="Biomass",IFERROR(VLOOKUP($D36,'Generator Reliability Settings'!$B$58:$G$79,MATCH(AE$11,'Generator Reliability Settings'!$B$58:$G$58,0),FALSE),"not found"),IFERROR(INDEX('Generator Reliability Settings'!$B$23:$M$52,MATCH(_xlfn.XLOOKUP($B36,'Summary Mapping'!$C$7:$C$662,'Summary Mapping'!$P$7:$P$662,"not found",0)&AE$11,'Generator Reliability Settings'!$B$23:$B$52&'Generator Reliability Settings'!$C$23:$C$52,0),MIN(COLUMNS('Generator Reliability Settings'!$B$22:$M$52),MATCH(AE$12,'Generator Reliability Settings'!$B$22:$M$22,0))), "not found")) -> 0.2043810551 | AF36: =IF($D36="Biomass",IFERROR(VLOOKUP($D36,'Generator Reliability Settings'!$B$58:$G$79,MATCH(AF$11,'Generator Reliability Settings'!$B$58:$G$58,0),FALSE),"not found"),IFERROR(INDEX('Generator Reliability Settings'!$B$23:$M$52,MATCH(_xlfn.XLOOKUP($B36,'Summary Mapping'!$C$7:$C$662,'Summary Mapping'!$P$7:$P$662,"not found",0)&AF$11,'Generator Reliability Settings'!$B$23:$B$52&'Generator Reliability Settings'!$C$23:$C$52,0),MIN(COLUMNS('Generator Reliability Settings'!$B$22:$M$52),MATCH(AF$12,'Generator Reliability Settings'!$B$22:$M$22,0))), "not found")) -> 153.2102879 | AG36: =IF($D36="Biomass",IFERROR(VLOOKUP($D36,'Generator Reliability Settings'!$B$58:$G$79,MATCH(AG$11,'Generator Reliability Settings'!$B$58:$G$58,0),FALSE),"not found"),IFERROR(INDEX('Generator Reliability Settings'!$B$23:$M$52,MATCH(_xlfn.XLOOKUP($B36,'Summary Mapping'!$C$7:$C$662,'Summary Mapping'!$P$7:$P$662,"not found",0)&AG$11,'Generator Reliability Settings'!$B$23:$B$52&'Generator Reliability Settings'!$C$23:$C$52,0),MIN(COLUMNS('Generator Reliability Settings'!$B$22:$M$52),MATCH(AG$12,'Generator Reliability Settings'!$B$22:$M$22,0))), "not found")) -> 49.09239354 | AH36: =IF($D36="Biomass",IFERROR(VLOOKUP($D36,'Generator Reliability Settings'!$B$58:$G$79,MATCH(AH$11,'Generator Reliability Settings'!$B$58:$G$58,0),FALSE),"not found"),IFERROR(INDEX('Generator Reliability Settings'!$B$23:$M$52,MATCH(_xlfn.XLOOKUP($B36,'Summary Mapping'!$C$7:$C$662,'Summary Mapping'!$P$7:$P$662,"not found",0)&AH$11,'Generator Reliability Settings'!$B$23:$B$52&'Generator Reliability Settings'!$C$23:$C$52,0),MIN(COLUMNS('Generator Reliability Settings'!$B$22:$M$52),MATCH(AH$12,'Generator Reliability Settings'!$B$22:$M$22,0))), "not found")) -> 0.2685711543 | AI36: =_xlfn.XLOOKUP($B36,'Fixed OPEX'!$B$8:$B$663,'Fixed OPEX'!$E$8:$E$663,"not found", 0) -> 38 | AJ36: =_xlfn.XLOOKUP($B36,'Variable OPEX'!$B$8:$B$663,'Variable OPEX'!$E$8:$E$663,"not found",0) -> 8 | AK36: =_xlfn.XLOOKUP($B36,'Heat rates'!$B$9:$B$664,'Heat rates'!$E$9:$E$664,"not found", 0) -> 9.964846237 | AL36: =INDEX('Fuel Price Summary'!$H$12:$AK$668,MATCH($B36,'Fuel Price Summary'!$B$12:$B$668,0),MATCH($AL$12,'Fuel Price Summary'!$H$12:$AK$12,0)) -> 4.959121 | AM36: =_xlfn.XLOOKUP($B36,'Emissions intensity'!$B$8:$B$664,'Emissions intensity'!$E$8:$E$664,"not found",0)*SUMPRODUCT((('GPG emissions reduction - BioM'!$B$9:$B$11)=AM$11)*(('GPG emissions reduction - BioM'!$C$8:$AF$8)=AM$12),'GPG emissions reduction - BioM'!$C$9:$AF$11) +N("this term is the emission intensity as at the current year") -> 572.3201703 | AN36: =_xlfn.XLOOKUP($B36,'Marginal Loss Factors'!$B$13:$B$668,'Marginal Loss Factors'!$F$13:$F$668, "not found", 0) -> 0.9273 | AO36: =_xlfn.XLOOKUP($B36,Auxiliary!$B$7:$B$662,Auxiliary!$E$7:$E$662,"not found",0) -> 6.67097171 | AP36: 57.41687824 | AQ36: =_xlfn.XLOOKUP($B36,Retirement!$B$14:$B$669,Retirement!$F$14:$F$669, "not found", 0) -> 2043 | AR36: =_xlfn.XLOOKUP($D36,Retirement!$I$14:$I$44,Retirement!$J$14:$J$44,"not found",0) -> 254000 | AS36: =_xlfn.XLOOKUP($B36,'Power System Security'!$B$6:$B$49,'Power System Security'!$D$6:$D$49,"not found",0) -> 62.32726961
B37: ='Summary Mapping'!C31 -> STAN-2 | C37: ='Summary Mapping'!D31 -> Stanwell | D37: ='Summary Mapping'!E31 -> Steam Sub Critical | E37: ='Summary Mapping'!F31 -> QLD | F37: ='Summary Mapping'!G31 -> CQ | G37: ='Summary Mapping'!H31 -> Not Applicable | H37: ='Summary Mapping'!I31 -> Not Applicable | I37: ='Summary Mapping'!J31 -> Existing | J37: ='Summary Mapping'!K31 -> Not Applicable | K37: =_xlfn.XLOOKUP(B37,'Maximum capacity'!$B$10:$B$665,'Maximum capacity'!$G$10:$G$665,"not found",0) -> 365 | L37: =_xlfn.XLOOKUP(B37,'Maximum capacity'!$B$10:$B$665,'Maximum capacity'!$H$10:$H$665,"not found",0) ->  | M37: =VLOOKUP($B37,'Seasonal ratings'!$B$45:$AI$700,(MATCH(M$12,'Seasonal ratings'!$F$44:$O$44,0)+COLUMN('Seasonal ratings'!$F$44)-COLUMN('Seasonal ratings'!$B$44)),FALSE) -> 365 | N37: =VLOOKUP($B37,'Seasonal ratings'!$B$45:$AI$700,(MATCH(N$12,'Seasonal ratings'!$P$44:$Y$44,0)+COLUMN('Seasonal ratings'!$P$44)-COLUMN('Seasonal ratings'!$B$44)),FALSE) -> 365 | O37: =VLOOKUP($B37,'Seasonal ratings'!$B$45:$AI$700,(MATCH(O$12,'Seasonal ratings'!$Z$44:$AI$44,0)+COLUMN('Seasonal ratings'!$Z$44)-COLUMN('Seasonal ratings'!$B$44)),FALSE) -> 365 | P37: =_xlfn.XLOOKUP($B37,'Coal Min Stable Level'!$B$14:$B$57,'Coal Min Stable Level'!$G$14:$G$57,_xlfn.XLOOKUP($B37,'GPG Min Stable Level'!$B$12:$B$148,'GPG Min Stable Level'!$E$12:$E$148,"not found",0),0) -> 115 | Q37: =_xlfn.XLOOKUP($B37,'Affine Heat rates'!$B$8:$B$188,'Affine Heat rates'!$E$8:$E$188,"not found",0) -> 504 | R37: =_xlfn.XLOOKUP($B37,'Affine Heat rates'!$B$8:$B$188,'Affine Heat rates'!$F$8:$F$188,"not found",0) -> 8.584024319 | S37: =_xlfn.XLOOKUP(_xlfn.XLOOKUP($B37,'Summary Mapping'!$C$7:$C$662,'Summary Mapping'!$Y$7:$Y$662,"not found",0),'Storage properties'!$B$22:$B$28,'Storage properties'!$E$22:$E$28,"not found",0) -> not found | T37: =_xlfn.XLOOKUP($D37,'Storage properties'!$B$6:$B$12,'Storage properties'!$E$6:$E$12, "not found",0) -> not found | U37: =_xlfn.XLOOKUP($D37,'Storage properties'!$B$6:$B$12,'Storage properties'!$F$6:$F$12, "not found",0) -> not found | V37: =_xlfn.XLOOKUP($D37,'Storage properties'!$B$6:$B$12,'Storage properties'!$G$6:$G$12, "not found",0) -> not found | W37: =_xlfn.XLOOKUP($D37,'Storage properties'!$B$6:$B$12,'Storage properties'!$H$6:$H$12, "not found",0) -> not found | X37: =_xlfn.XLOOKUP($D37,'Storage properties'!$B$6:$B$12,'Storage properties'!$I$6:$I$12, "not found",0) -> not found | Y37: =_xlfn.XLOOKUP($D37,'Storage properties'!$B$6:$B$12,'Storage properties'!$J$6:$J$12, "not found",0) -> not found | Z37: =_xlfn.XLOOKUP($B37,'Max Ramp Rates'!$B$9:$B$189,'Max Ramp Rates'!$E$9:$E$189, "not found", 0) -> 4 | AA37: =_xlfn.XLOOKUP($B37,'Max Ramp Rates'!$B$9:$B$189,'Max Ramp Rates'!$F$9:$F$189, "not found", 0) -> 4 | AB37: =_xlfn.XLOOKUP(_xlfn.XLOOKUP($B37,'Summary Mapping'!$C$7:$C$662,'Summary Mapping'!$O$7:$O$662,"not found",0),Maintenance!$B$7:$B$24,Maintenance!$C$7:$C$24,"not found",0) -> 5.479452055 | AC37: =_xlfn.XLOOKUP(_xlfn.XLOOKUP($B37,'Summary Mapping'!$C$7:$C$662,'Summary Mapping'!$O$7:$O$662,"not found",0),Maintenance!$B$7:$B$24,Maintenance!$D$7:$D$24,"not found",0) -> 20 | AD37: =IF($D37="Biomass",IFERROR(VLOOKUP($D37,'Generator Reliability Settings'!$B$58:$G$79,MATCH(AD$11,'Generator Reliability Settings'!$B$58:$G$58,0),FALSE),"not found"),IFERROR(INDEX('Generator Reliability Settings'!$B$23:$M$52,MATCH(_xlfn.XLOOKUP($B37,'Summary Mapping'!$C$7:$C$662,'Summary Mapping'!$P$7:$P$662,"not found",0)&AD$11,'Generator Reliability Settings'!$B$23:$B$52&'Generator Reliability Settings'!$C$23:$C$52,0),MIN(COLUMNS('Generator Reliability Settings'!$B$22:$M$52),MATCH(AD$12,'Generator Reliability Settings'!$B$22:$M$22,0))), "not found")) -> 0.09270884418 | AE37: =IF($D37="Biomass",IFERROR(VLOOKUP($D37,'Generator Reliability Settings'!$B$58:$G$79,MATCH(AE$11,'Generator Reliability Settings'!$B$58:$G$58,0),FALSE),"not found"),IFERROR(INDEX('Generator Reliability Settings'!$B$23:$M$52,MATCH(_xlfn.XLOOKUP($B37,'Summary Mapping'!$C$7:$C$662,'Summary Mapping'!$P$7:$P$662,"not found",0)&AE$11,'Generator Reliability Settings'!$B$23:$B$52&'Generator Reliability Settings'!$C$23:$C$52,0),MIN(COLUMNS('Generator Reliability Settings'!$B$22:$M$52),MATCH(AE$12,'Generator Reliability Settings'!$B$22:$M$22,0))), "not found")) -> 0.2043810551 | AF37: =IF($D37="Biomass",IFERROR(VLOOKUP($D37,'Generator Reliability Settings'!$B$58:$G$79,MATCH(AF$11,'Generator Reliability Settings'!$B$58:$G$58,0),FALSE),"not found"),IFERROR(INDEX('Generator Reliability Settings'!$B$23:$M$52,MATCH(_xlfn.XLOOKUP($B37,'Summary Mapping'!$C$7:$C$662,'Summary Mapping'!$P$7:$P$662,"not found",0)&AF$11,'Generator Reliability Settings'!$B$23:$B$52&'Generator Reliability Settings'!$C$23:$C$52,0),MIN(COLUMNS('Generator Reliability Settings'!$B$22:$M$52),MATCH(AF$12,'Generator Reliability Settings'!$B$22:$M$22,0))), "not found")) -> 153.2102879 | AG37: =IF($D37="Biomass",IFERROR(VLOOKUP($D37,'Generator Reliability Settings'!$B$58:$G$79,MATCH(AG$11,'Generator Reliability Settings'!$B$58:$G$58,0),FALSE),"not found"),IFERROR(INDEX('Generator Reliability Settings'!$B$23:$M$52,MATCH(_xlfn.XLOOKUP($B37,'Summary Mapping'!$C$7:$C$662,'Summary Mapping'!$P$7:$P$662,"not found",0)&AG$11,'Generator Reliability Settings'!$B$23:$B$52&'Generator Reliability Settings'!$C$23:$C$52,0),MIN(COLUMNS('Generator Reliability Settings'!$B$22:$M$52),MATCH(AG$12,'Generator Reliability Settings'!$B$22:$M$22,0))), "not found")) -> 49.09239354 | AH37: =IF($D37="Biomass",IFERROR(VLOOKUP($D37,'Generator Reliability Settings'!$B$58:$G$79,MATCH(AH$11,'Generator Reliability Settings'!$B$58:$G$58,0),FALSE),"not found"),IFERROR(INDEX('Generator Reliability Settings'!$B$23:$M$52,MATCH(_xlfn.XLOOKUP($B37,'Summary Mapping'!$C$7:$C$662,'Summary Mapping'!$P$7:$P$662,"not found",0)&AH$11,'Generator Reliability Settings'!$B$23:$B$52&'Generator Reliability Settings'!$C$23:$C$52,0),MIN(COLUMNS('Generator Reliability Settings'!$B$22:$M$52),MATCH(AH$12,'Generator Reliability Settings'!$B$22:$M$22,0))), "not found")) -> 0.2685711543 | AI37: =_xlfn.XLOOKUP($B37,'Fixed OPEX'!$B$8:$B$663,'Fixed OPEX'!$E$8:$E$663,"not found", 0) -> 38 | AJ37: =_xlfn.XLOOKUP($B37,'Variable OPEX'!$B$8:$B$663,'Variable OPEX'!$E$8:$E$663,"not found",0) -> 8 | AK37: =_xlfn.XLOOKUP($B37,'Heat rates'!$B$9:$B$664,'Heat rates'!$E$9:$E$664,"not found", 0) -> 9.964846237 | AL37: =INDEX('Fuel Price Summary'!$H$12:$AK$668,MATCH($B37,'Fuel Price Summary'!$B$12:$B$668,0),MATCH($AL$12,'Fuel Price Summary'!$H$12:$AK$12,0)) -> 4.959121 | AM37: =_xlfn.XLOOKUP($B37,'Emissions intensity'!$B$8:$B$664,'Emissions intensity'!$E$8:$E$664,"not found",0)*SUMPRODUCT((('GPG emissions reduction - BioM'!$B$9:$B$11)=AM$11)*(('GPG emissions reduction - BioM'!$C$8:$AF$8)=AM$12),'GPG emissions reduction - BioM'!$C$9:$AF$11) +N("this term is the emission intensity as at the current year") -> 572.3201703 | AN37: =_xlfn.XLOOKUP($B37,'Marginal Loss Factors'!$B$13:$B$668,'Marginal Loss Factors'!$F$13:$F$668, "not found", 0) -> 0.9273 | AO37: =_xlfn.XLOOKUP($B37,Auxiliary!$B$7:$B$662,Auxiliary!$E$7:$E$662,"not found",0) -> 6.67097171 | AP37: 57.41687824 | AQ37: =_xlfn.XLOOKUP($B37,Retirement!$B$14:$B$669,Retirement!$F$14:$F$669, "not found", 0) -> 2044 | AR37: =_xlfn.XLOOKUP($D37,Retirement!$I$14:$I$44,Retirement!$J$14:$J$44,"not found",0) -> 254000 | AS37: =_xlfn.XLOOKUP($B37,'Power System Security'!$B$6:$B$49,'Power System Security'!$D$6:$D$49,"not found",0) -> 62.32726961
B38: ='Summary Mapping'!C32 -> STAN-3 | C38: ='Summary Mapping'!D32 -> Stanwell | D38: ='Summary Mapping'!E32 -> Steam Sub Critical | E38: ='Summary Mapping'!F32 -> QLD | F38: ='Summary Mapping'!G32 -> CQ | G38: ='Summary Mapping'!H32 -> Not Applicable | H38: ='Summary Mapping'!I32 -> Not Applicable | I38: ='Summary Mapping'!J32 -> Existing | J38: ='Summary Mapping'!K32 -> Not Applicable | K38: =_xlfn.XLOOKUP(B38,'Maximum capacity'!$B$10:$B$665,'Maximum capacity'!$G$10:$G$665,"not found",0) -> 365 | L38: =_xlfn.XLOOKUP(B38,'Maximum capacity'!$B$10:$B$665,'Maximum capacity'!$H$10:$H$665,"not found",0) ->  | M38: =VLOOKUP($B38,'Seasonal ratings'!$B$45:$AI$700,(MATCH(M$12,'Seasonal ratings'!$F$44:$O$44,0)+COLUMN('Seasonal ratings'!$F$44)-COLUMN('Seasonal ratings'!$B$44)),FALSE) -> 365 | N38: =VLOOKUP($B38,'Seasonal ratings'!$B$45:$AI$700,(MATCH(N$12,'Seasonal ratings'!$P$44:$Y$44,0)+COLUMN('Seasonal ratings'!$P$44)-COLUMN('Seasonal ratings'!$B$44)),FALSE) -> 365 | O38: =VLOOKUP($B38,'Seasonal ratings'!$B$45:$AI$700,(MATCH(O$12,'Seasonal ratings'!$Z$44:$AI$44,0)+COLUMN('Seasonal ratings'!$Z$44)-COLUMN('Seasonal ratings'!$B$44)),FALSE) -> 365 | P38: =_xlfn.XLOOKUP($B38,'Coal Min Stable Level'!$B$14:$B$57,'Coal Min Stable Level'!$G$14:$G$57,_xlfn.XLOOKUP($B38,'GPG Min Stable Level'!$B$12:$B$148,'GPG Min Stable Level'!$E$12:$E$148,"not found",0),0) -> 115 | Q38: =_xlfn.XLOOKUP($B38,'Affine Heat rates'!$B$8:$B$188,'Affine Heat rates'!$E$8:$E$188,"not found",0) -> 504 | R38: =_xlfn.XLOOKUP($B38,'Affine Heat rates'!$B$8:$B$188,'Affine Heat rates'!$F$8:$F$188,"not found",0) -> 8.584024319 | S38: =_xlfn.XLOOKUP(_xlfn.XLOOKUP($B38,'Summary Mapping'!$C$7:$C$662,'Summary Mapping'!$Y$7:$Y$662,"not found",0),'Storage properties'!$B$22:$B$28,'Storage properties'!$E$22:$E$28,"not found",0) -> not found | T38: =_xlfn.XLOOKUP($D38,'Storage properties'!$B$6:$B$12,'Storage properties'!$E$6:$E$12, "not found",0) -> not found | U38: =_xlfn.XLOOKUP($D38,'Storage properties'!$B$6:$B$12,'Storage properties'!$F$6:$F$12, "not found",0) -> not found | V38: =_xlfn.XLOOKUP($D38,'Storage properties'!$B$6:$B$12,'Storage properties'!$G$6:$G$12, "not found",0) -> not found | W38: =_xlfn.XLOOKUP($D38,'Storage properties'!$B$6:$B$12,'Storage properties'!$H$6:$H$12, "not found",0) -> not found | X38: =_xlfn.XLOOKUP($D38,'Storage properties'!$B$6:$B$12,'Storage properties'!$I$6:$I$12, "not found",0) -> not found | Y38: =_xlfn.XLOOKUP($D38,'Storage properties'!$B$6:$B$12,'Storage properties'!$J$6:$J$12, "not found",0) -> not found | Z38: =_xlfn.XLOOKUP($B38,'Max Ramp Rates'!$B$9:$B$189,'Max Ramp Rates'!$E$9:$E$189, "not found", 0) -> 4 | AA38: =_xlfn.XLOOKUP($B38,'Max Ramp Rates'!$B$9:$B$189,'Max Ramp Rates'!$F$9:$F$189, "not found", 0) -> 4 | AB38: =_xlfn.XLOOKUP(_xlfn.XLOOKUP($B38,'Summary Mapping'!$C$7:$C$662,'Summary Mapping'!$O$7:$O$662,"not found",0),Maintenance!$B$7:$B$24,Maintenance!$C$7:$C$24,"not found",0) -> 5.479452055 | AC38: =_xlfn.XLOOKUP(_xlfn.XLOOKUP($B38,'Summary Mapping'!$C$7:$C$662,'Summary Mapping'!$O$7:$O$662,"not found",0),Maintenance!$B$7:$B$24,Maintenance!$D$7:$D$24,"not found",0) -> 20 | AD38: =IF($D38="Biomass",IFERROR(VLOOKUP($D38,'Generator Reliability Settings'!$B$58:$G$79,MATCH(AD$11,'Generator Reliability Settings'!$B$58:$G$58,0),FALSE),"not found"),IFERROR(INDEX('Generator Reliability Settings'!$B$23:$M$52,MATCH(_xlfn.XLOOKUP($B38,'Summary Mapping'!$C$7:$C$662,'Summary Mapping'!$P$7:$P$662,"not found",0)&AD$11,'Generator Reliability Settings'!$B$23:$B$52&'Generator Reliability Settings'!$C$23:$C$52,0),MIN(COLUMNS('Generator Reliability Settings'!$B$22:$M$52),MATCH(AD$12,'Generator Reliability Settings'!$B$22:$M$22,0))), "not found")) -> 0.09270884418 | AE38: =IF($D38="Biomass",IFERROR(VLOOKUP($D38,'Generator Reliability Settings'!$B$58:$G$79,MATCH(AE$11,'Generator Reliability Settings'!$B$58:$G$58,0),FALSE),"not found"),IFERROR(INDEX('Generator Reliability Settings'!$B$23:$M$52,MATCH(_xlfn.XLOOKUP($B38,'Summary Mapping'!$C$7:$C$662,'Summary Mapping'!$P$7:$P$662,"not found",0)&AE$11,'Generator Reliability Settings'!$B$23:$B$52&'Generator Reliability Settings'!$C$23:$C$52,0),MIN(COLUMNS('Generator Reliability Settings'!$B$22:$M$52),MATCH(AE$12,'Generator Reliability Settings'!$B$22:$M$22,0))), "not found")) -> 0.2043810551 | AF38: =IF($D38="Biomass",IFERROR(VLOOKUP($D38,'Generator Reliability Settings'!$B$58:$G$79,MATCH(AF$11,'Generator Reliability Settings'!$B$58:$G$58,0),FALSE),"not found"),IFERROR(INDEX('Generator Reliability Settings'!$B$23:$M$52,MATCH(_xlfn.XLOOKUP($B38,'Summary Mapping'!$C$7:$C$662,'Summary Mapping'!$P$7:$P$662,"not found",0)&AF$11,'Generator Reliability Settings'!$B$23:$B$52&'Generator Reliability Settings'!$C$23:$C$52,0),MIN(COLUMNS('Generator Reliability Settings'!$B$22:$M$52),MATCH(AF$12,'Generator Reliability Settings'!$B$22:$M$22,0))), "not found")) -> 153.2102879 | AG38: =IF($D38="Biomass",IFERROR(VLOOKUP($D38,'Generator Reliability Settings'!$B$58:$G$79,MATCH(AG$11,'Generator Reliability Settings'!$B$58:$G$58,0),FALSE),"not found"),IFERROR(INDEX('Generator Reliability Settings'!$B$23:$M$52,MATCH(_xlfn.XLOOKUP($B38,'Summary Mapping'!$C$7:$C$662,'Summary Mapping'!$P$7:$P$662,"not found",0)&AG$11,'Generator Reliability Settings'!$B$23:$B$52&'Generator Reliability Settings'!$C$23:$C$52,0),MIN(COLUMNS('Generator Reliability Settings'!$B$22:$M$52),MATCH(AG$12,'Generator Reliability Settings'!$B$22:$M$22,0))), "not found")) -> 49.09239354 | AH38: =IF($D38="Biomass",IFERROR(VLOOKUP($D38,'Generator Reliability Settings'!$B$58:$G$79,MATCH(AH$11,'Generator Reliability Settings'!$B$58:$G$58,0),FALSE),"not found"),IFERROR(INDEX('Generator Reliability Settings'!$B$23:$M$52,MATCH(_xlfn.XLOOKUP($B38,'Summary Mapping'!$C$7:$C$662,'Summary Mapping'!$P$7:$P$662,"not found",0)&AH$11,'Generator Reliability Settings'!$B$23:$B$52&'Generator Reliability Settings'!$C$23:$C$52,0),MIN(COLUMNS('Generator Reliability Settings'!$B$22:$M$52),MATCH(AH$12,'Generator Reliability Settings'!$B$22:$M$22,0))), "not found")) -> 0.2685711543 | AI38: =_xlfn.XLOOKUP($B38,'Fixed OPEX'!$B$8:$B$663,'Fixed OPEX'!$E$8:$E$663,"not found", 0) -> 38 | AJ38: =_xlfn.XLOOKUP($B38,'Variable OPEX'!$B$8:$B$663,'Variable OPEX'!$E$8:$E$663,"not found",0) -> 8 | AK38: =_xlfn.XLOOKUP($B38,'Heat rates'!$B$9:$B$664,'Heat rates'!$E$9:$E$664,"not found", 0) -> 9.964846237 | AL38: =INDEX('Fuel Price Summary'!$H$12:$AK$668,MATCH($B38,'Fuel Price Summary'!$B$12:$B$668,0),MATCH($AL$12,'Fuel Price Summary'!$H$12:$AK$12,0)) -> 4.959121 | AM38: =_xlfn.XLOOKUP($B38,'Emissions intensity'!$B$8:$B$664,'Emissions intensity'!$E$8:$E$664,"not found",0)*SUMPRODUCT((('GPG emissions reduction - BioM'!$B$9:$B$11)=AM$11)*(('GPG emissions reduction - BioM'!$C$8:$AF$8)=AM$12),'GPG emissions reduction - BioM'!$C$9:$AF$11) +N("this term is the emission intensity as at the current year") -> 572.3201703 | AN38: =_xlfn.XLOOKUP($B38,'Marginal Loss Factors'!$B$13:$B$668,'Marginal Loss Factors'!$F$13:$F$668, "not found", 0) -> 0.9273 | AO38: =_xlfn.XLOOKUP($B38,Auxiliary!$B$7:$B$662,Auxiliary!$E$7:$E$662,"not found",0) -> 6.67097171 | AP38: 57.41687824 | AQ38: =_xlfn.XLOOKUP($B38,Retirement!$B$14:$B$669,Retirement!$F$14:$F$669, "not found", 0) -> 2045 | AR38: =_xlfn.XLOOKUP($D38,Retirement!$I$14:$I$44,Retirement!$J$14:$J$44,"not found",0) -> 254000 | AS38: =_xlfn.XLOOKUP($B38,'Power System Security'!$B$6:$B$49,'Power System Security'!$D$6:$D$49,"not found",0) -> 62.32726961
B39: ='Summary Mapping'!C33 -> STAN-4 | C39: ='Summary Mapping'!D33 -> Stanwell | D39: ='Summary Mapping'!E33 -> Steam Sub Critical | E39: ='Summary Mapping'!F33 -> QLD | F39: ='Summary Mapping'!G33 -> CQ | G39: ='Summary Mapping'!H33 -> Not Applicable | H39: ='Summary Mapping'!I33 -> Not Applicable | I39: ='Summary Mapping'!J33 -> Existing | J39: ='Summary Mapping'!K33 -> Not Applicable | K39: =_xlfn.XLOOKUP(B39,'Maximum capacity'!$B$10:$B$665,'Maximum capacity'!$G$10:$G$665,"not found",0) -> 365 | L39: =_xlfn.XLOOKUP(B39,'Maximum capacity'!$B$10:$B$665,'Maximum capacity'!$H$10:$H$665,"not found",0) ->  | M39: =VLOOKUP($B39,'Seasonal ratings'!$B$45:$AI$700,(MATCH(M$12,'Seasonal ratings'!$F$44:$O$44,0)+COLUMN('Seasonal ratings'!$F$44)-COLUMN('Seasonal ratings'!$B$44)),FALSE) -> 365 | N39: =VLOOKUP($B39,'Seasonal ratings'!$B$45:$AI$700,(MATCH(N$12,'Seasonal ratings'!$P$44:$Y$44,0)+COLUMN('Seasonal ratings'!$P$44)-COLUMN('Seasonal ratings'!$B$44)),FALSE) -> 365 | O39: =VLOOKUP($B39,'Seasonal ratings'!$B$45:$AI$700,(MATCH(O$12,'Seasonal ratings'!$Z$44:$AI$44,0)+COLUMN('Seasonal ratings'!$Z$44)-COLUMN('Seasonal ratings'!$B$44)),FALSE) -> 365 | P39: =_xlfn.XLOOKUP($B39,'Coal Min Stable Level'!$B$14:$B$57,'Coal Min Stable Level'!$G$14:$G$57,_xlfn.XLOOKUP($B39,'GPG Min Stable Level'!$B$12:$B$148,'GPG Min Stable Level'!$E$12:$E$148,"not found",0),0) -> 115 | Q39: =_xlfn.XLOOKUP($B39,'Affine Heat rates'!$B$8:$B$188,'Affine Heat rates'!$E$8:$E$188,"not found",0) -> 504 | R39: =_xlfn.XLOOKUP($B39,'Affine Heat rates'!$B$8:$B$188,'Affine Heat rates'!$F$8:$F$188,"not found",0) -> 8.584024319 | S39: =_xlfn.XLOOKUP(_xlfn.XLOOKUP($B39,'Summary Mapping'!$C$7:$C$662,'Summary Mapping'!$Y$7:$Y$662,"not found",0),'Storage properties'!$B$22:$B$28,'Storage properties'!$E$22:$E$28,"not found",0) -> not found | T39: =_xlfn.XLOOKUP($D39,'Storage properties'!$B$6:$B$12,'Storage properties'!$E$6:$E$12, "not found",0) -> not found | U39: =_xlfn.XLOOKUP($D39,'Storage properties'!$B$6:$B$12,'Storage properties'!$F$6:$F$12, "not found",0) -> not found | V39: =_xlfn.XLOOKUP($D39,'Storage properties'!$B$6:$B$12,'Storage properties'!$G$6:$G$12, "not found",0) -> not found | W39: =_xlfn.XLOOKUP($D39,'Storage properties'!$B$6:$B$12,'Storage properties'!$H$6:$H$12, "not found",0) -> not found | X39: =_xlfn.XLOOKUP($D39,'Storage properties'!$B$6:$B$12,'Storage properties'!$I$6:$I$12, "not found",0) -> not found | Y39: =_xlfn.XLOOKUP($D39,'Storage properties'!$B$6:$B$12,'Storage properties'!$J$6:$J$12, "not found",0) -> not found | Z39: =_xlfn.XLOOKUP($B39,'Max Ramp Rates'!$B$9:$B$189,'Max Ramp Rates'!$E$9:$E$189, "not found", 0) -> 4 | AA39: =_xlfn.XLOOKUP($B39,'Max Ramp Rates'!$B$9:$B$189,'Max Ramp Rates'!$F$9:$F$189, "not found", 0) -> 4 | AB39: =_xlfn.XLOOKUP(_xlfn.XLOOKUP($B39,'Summary Mapping'!$C$7:$C$662,'Summary Mapping'!$O$7:$O$662,"not found",0),Maintenance!$B$7:$B$24,Maintenance!$C$7:$C$24,"not found",0) -> 5.479452055 | AC39: =_xlfn.XLOOKUP(_xlfn.XLOOKUP($B39,'Summary Mapping'!$C$7:$C$662,'Summary Mapping'!$O$7:$O$662,"not found",0),Maintenance!$B$7:$B$24,Maintenance!$D$7:$D$24,"not found",0) -> 20 | AD39: =IF($D39="Biomass",IFERROR(VLOOKUP($D39,'Generator Reliability Settings'!$B$58:$G$79,MATCH(AD$11,'Generator Reliability Settings'!$B$58:$G$58,0),FALSE),"not found"),IFERROR(INDEX('Generator Reliability Settings'!$B$23:$M$52,MATCH(_xlfn.XLOOKUP($B39,'Summary Mapping'!$C$7:$C$662,'Summary Mapping'!$P$7:$P$662,"not found",0)&AD$11,'Generator Reliability Settings'!$B$23:$B$52&'Generator Reliability Settings'!$C$23:$C$52,0),MIN(COLUMNS('Generator Reliability Settings'!$B$22:$M$52),MATCH(AD$12,'Generator Reliability Settings'!$B$22:$M$22,0))), "not found")) -> 0.09270884418 | AE39: =IF($D39="Biomass",IFERROR(VLOOKUP($D39,'Generator Reliability Settings'!$B$58:$G$79,MATCH(AE$11,'Generator Reliability Settings'!$B$58:$G$58,0),FALSE),"not found"),IFERROR(INDEX('Generator Reliability Settings'!$B$23:$M$52,MATCH(_xlfn.XLOOKUP($B39,'Summary Mapping'!$C$7:$C$662,'Summary Mapping'!$P$7:$P$662,"not found",0)&AE$11,'Generator Reliability Settings'!$B$23:$B$52&'Generator Reliability Settings'!$C$23:$C$52,0),MIN(COLUMNS('Generator Reliability Settings'!$B$22:$M$52),MATCH(AE$12,'Generator Reliability Settings'!$B$22:$M$22,0))), "not found")) -> 0.2043810551 | AF39: =IF($D39="Biomass",IFERROR(VLOOKUP($D39,'Generator Reliability Settings'!$B$58:$G$79,MATCH(AF$11,'Generator Reliability Settings'!$B$58:$G$58,0),FALSE),"not found"),IFERROR(INDEX('Generator Reliability Settings'!$B$23:$M$52,MATCH(_xlfn.XLOOKUP($B39,'Summary Mapping'!$C$7:$C$662,'Summary Mapping'!$P$7:$P$662,"not found",0)&AF$11,'Generator Reliability Settings'!$B$23:$B$52&'Generator Reliability Settings'!$C$23:$C$52,0),MIN(COLUMNS('Generator Reliability Settings'!$B$22:$M$52),MATCH(AF$12,'Generator Reliability Settings'!$B$22:$M$22,0))), "not found")) -> 153.2102879 | AG39: =IF($D39="Biomass",IFERROR(VLOOKUP($D39,'Generator Reliability Settings'!$B$58:$G$79,MATCH(AG$11,'Generator Reliability Settings'!$B$58:$G$58,0),FALSE),"not found"),IFERROR(INDEX('Generator Reliability Settings'!$B$23:$M$52,MATCH(_xlfn.XLOOKUP($B39,'Summary Mapping'!$C$7:$C$662,'Summary Mapping'!$P$7:$P$662,"not found",0)&AG$11,'Generator Reliability Settings'!$B$23:$B$52&'Generator Reliability Settings'!$C$23:$C$52,0),MIN(COLUMNS('Generator Reliability Settings'!$B$22:$M$52),MATCH(AG$12,'Generator Reliability Settings'!$B$22:$M$22,0))), "not found")) -> 49.09239354 | AH39: =IF($D39="Biomass",IFERROR(VLOOKUP($D39,'Generator Reliability Settings'!$B$58:$G$79,MATCH(AH$11,'Generator Reliability Settings'!$B$58:$G$58,0),FALSE),"not found"),IFERROR(INDEX('Generator Reliability Settings'!$B$23:$M$52,MATCH(_xlfn.XLOOKUP($B39,'Summary Mapping'!$C$7:$C$662,'Summary Mapping'!$P$7:$P$662,"not found",0)&AH$11,'Generator Reliability Settings'!$B$23:$B$52&'Generator Reliability Settings'!$C$23:$C$52,0),MIN(COLUMNS('Generator Reliability Settings'!$B$22:$M$52),MATCH(AH$12,'Generator Reliability Settings'!$B$22:$M$22,0))), "not found")) -> 0.2685711543 | AI39: =_xlfn.XLOOKUP($B39,'Fixed OPEX'!$B$8:$B$663,'Fixed OPEX'!$E$8:$E$663,"not found", 0) -> 38 | AJ39: =_xlfn.XLOOKUP($B39,'Variable OPEX'!$B$8:$B$663,'Variable OPEX'!$E$8:$E$663,"not found",0) -> 8 | AK39: =_xlfn.XLOOKUP($B39,'Heat rates'!$B$9:$B$664,'Heat rates'!$E$9:$E$664,"not found", 0) -> 9.964846237 | AL39: =INDEX('Fuel Price Summary'!$H$12:$AK$668,MATCH($B39,'Fuel Price Summary'!$B$12:$B$668,0),MATCH($AL$12,'Fuel Price Summary'!$H$12:$AK$12,0)) -> 4.959121 | AM39: =_xlfn.XLOOKUP($B39,'Emissions intensity'!$B$8:$B$664,'Emissions intensity'!$E$8:$E$664,"not found",0)*SUMPRODUCT((('GPG emissions reduction - BioM'!$B$9:$B$11)=AM$11)*(('GPG emissions reduction - BioM'!$C$8:$AF$8)=AM$12),'GPG emissions reduction - BioM'!$C$9:$AF$11) +N("this term is the emission intensity as at the current year") -> 572.3201703 | AN39: =_xlfn.XLOOKUP($B39,'Marginal Loss Factors'!$B$13:$B$668,'Marginal Loss Factors'!$F$13:$F$668, "not found", 0) -> 0.9273 | AO39: =_xlfn.XLOOKUP($B39,Auxiliary!$B$7:$B$662,Auxiliary!$E$7:$E$662,"not found",0) -> 6.67097171 | AP39: 57.41687824 | AQ39: =_xlfn.XLOOKUP($B39,Retirement!$B$14:$B$669,Retirement!$F$14:$F$669, "not found", 0) -> 2046 | AR39: =_xlfn.XLOOKUP($D39,Retirement!$I$14:$I$44,Retirement!$J$14:$J$44,"not found",0) -> 254000 | AS39: =_xlfn.XLOOKUP($B39,'Power System Security'!$B$6:$B$49,'Power System Security'!$D$6:$D$49,"not found",0) -> 62.32726961
B40: ='Summary Mapping'!C34 -> TARONG#1 | C40: ='Summary Mapping'!D34 -> Tarong | D40: ='Summary Mapping'!E34 -> Steam Sub Critical | E40: ='Summary Mapping'!F34 -> QLD | F40: ='Summary Mapping'!G34 -> SQ | G40: ='Summary Mapping'!H34 -> Not Applicable | H40: ='Summary Mapping'!I34 -> Not Applicable | I40: ='Summary Mapping'!J34 -> Existing | J40: ='Summary Mapping'!K34 -> Not Applicable | K40: =_xlfn.XLOOKUP(B40,'Maximum capacity'!$B$10:$B$665,'Maximum capacity'!$G$10:$G$665,"not found",0) -> 350 | L40: =_xlfn.XLOOKUP(B40,'Maximum capacity'!$B$10:$B$665,'Maximum capacity'!$H$10:$H$665,"not found",0) ->  | M40: =VLOOKUP($B40,'Seasonal ratings'!$B$45:$AI$700,(MATCH(M$12,'Seasonal ratings'!$F$44:$O$44,0)+COLUMN('Seasonal ratings'!$F$44)-COLUMN('Seasonal ratings'!$B$44)),FALSE) -> 350 | N40: =VLOOKUP($B40,'Seasonal ratings'!$B$45:$AI$700,(MATCH(N$12,'Seasonal ratings'!$P$44:$Y$44,0)+COLUMN('Seasonal ratings'!$P$44)-COLUMN('Seasonal ratings'!$B$44)),FALSE) -> 350 | O40: =VLOOKUP($B40,'Seasonal ratings'!$B$45:$AI$700,(MATCH(O$12,'Seasonal ratings'!$Z$44:$AI$44,0)+COLUMN('Seasonal ratings'!$Z$44)-COLUMN('Seasonal ratings'!$B$44)),FALSE) -> 350 | P40: =_xlfn.XLOOKUP($B40,'Coal Min Stable Level'!$B$14:$B$57,'Coal Min Stable Level'!$G$14:$G$57,_xlfn.XLOOKUP($B40,'GPG Min Stable Level'!$B$12:$B$148,'GPG Min Stable Level'!$E$12:$E$148,"not found",0),0) -> 140 | Q40: =_xlfn.XLOOKUP($B40,'Affine Heat rates'!$B$8:$B$188,'Affine Heat rates'!$E$8:$E$188,"not found",0) -> 504 | R40: =_xlfn.XLOOKUP($B40,'Affine Heat rates'!$B$8:$B$188,'Affine Heat rates'!$F$8:$F$188,"not found",0) -> 8.567783832 | S40: =_xlfn.XLOOKUP(_xlfn.XLOOKUP($B40,'Summary Mapping'!$C$7:$C$662,'Summary Mapping'!$Y$7:$Y$662,"not found",0),'Storage properties'!$B$22:$B$28,'Storage properties'!$E$22:$E$28,"not found",0) -> not found | T40: =_xlfn.XLOOKUP($D40,'Storage properties'!$B$6:$B$12,'Storage properties'!$E$6:$E$12, "not found",0) -> not found | U40: =_xlfn.XLOOKUP($D40,'Storage properties'!$B$6:$B$12,'Storage properties'!$F$6:$F$12, "not found",0) -> not found | V40: =_xlfn.XLOOKUP($D40,'Storage properties'!$B$6:$B$12,'Storage properties'!$G$6:$G$12, "not found",0) -> not found | W40: =_xlfn.XLOOKUP($D40,'Storage properties'!$B$6:$B$12,'Storage properties'!$H$6:$H$12, "not found",0) -> not found | X40: =_xlfn.XLOOKUP($D40,'Storage properties'!$B$6:$B$12,'Storage properties'!$I$6:$I$12, "not found",0) -> not found | Y40: =_xlfn.XLOOKUP($D40,'Storage properties'!$B$6:$B$12,'Storage properties'!$J$6:$J$12, "not found",0) -> not found | Z40: =_xlfn.XLOOKUP($B40,'Max Ramp Rates'!$B$9:$B$189,'Max Ramp Rates'!$E$9:$E$189, "not found", 0) -> 4 | AA40: =_xlfn.XLOOKUP($B40,'Max Ramp Rates'!$B$9:$B$189,'Max Ramp Rates'!$F$9:$F$189, "not found", 0) -> 4 | AB40: =_xlfn.XLOOKUP(_xlfn.XLOOKUP($B40,'Summary Mapping'!$C$7:$C$662,'Summary Mapping'!$O$7:$O$662,"not found",0),Maintenance!$B$7:$B$24,Maintenance!$C$7:$C$24,"not found",0) -> 5.479452055 | AC40: =_xlfn.XLOOKUP(_xlfn.XLOOKUP($B40,'Summary Mapping'!$C$7:$C$662,'Summary Mapping'!$O$7:$O$662,"not found",0),Maintenance!$B$7:$B$24,Maintenance!$D$7:$D$24,"not found",0) -> 20 | AD40: =IF($D40="Biomass",IFERROR(VLOOKUP($D40,'Generator Reliability Settings'!$B$58:$G$79,MATCH(AD$11,'Generator Reliability Settings'!$B$58:$G$58,0),FALSE),"not found"),IFERROR(INDEX('Generator Reliability Settings'!$B$23:$M$52,MATCH(_xlfn.XLOOKUP($B40,'Summary Mapping'!$C$7:$C$662,'Summary Mapping'!$P$7:$P$662,"not found",0)&AD$11,'Generator Reliability Settings'!$B$23:$B$52&'Generator Reliability Settings'!$C$23:$C$52,0),MIN(COLUMNS('Generator Reliability Settings'!$B$22:$M$52),MATCH(AD$12,'Generator Reliability Settings'!$B$22:$M$22,0))), "not found")) -> 0.09270884418 | AE40: =IF($D40="Biomass",IFERROR(VLOOKUP($D40,'Generator Reliability Settings'!$B$58:$G$79,MATCH(AE$11,'Generator Reliability Settings'!$B$58:$G$58,0),FALSE),"not found"),IFERROR(INDEX('Generator Reliability Settings'!$B$23:$M$52,MATCH(_xlfn.XLOOKUP($B40,'Summary Mapping'!$C$7:$C$662,'Summary Mapping'!$P$7:$P$662,"not found",0)&AE$11,'Generator Reliability Settings'!$B$23:$B$52&'Generator Reliability Settings'!$C$23:$C$52,0),MIN(COLUMNS('Generator Reliability Settings'!$B$22:$M$52),MATCH(AE$12,'Generator Reliability Settings'!$B$22:$M$22,0))), "not found")) -> 0.2043810551 | AF40: =IF($D40="Biomass",IFERROR(VLOOKUP($D40,'Generator Reliability Settings'!$B$58:$G$79,MATCH(AF$11,'Generator Reliability Settings'!$B$58:$G$58,0),FALSE),"not found"),IFERROR(INDEX('Generator Reliability Settings'!$B$23:$M$52,MATCH(_xlfn.XLOOKUP($B40,'Summary Mapping'!$C$7:$C$662,'Summary Mapping'!$P$7:$P$662,"not found",0)&AF$11,'Generator Reliability Settings'!$B$23:$B$52&'Generator Reliability Settings'!$C$23:$C$52,0),MIN(COLUMNS('Generator Reliability Settings'!$B$22:$M$52),MATCH(AF$12,'Generator Reliability Settings'!$B$22:$M$22,0))), "not found")) -> 153.2102879 | AG40: =IF($D40="Biomass",IFERROR(VLOOKUP($D40,'Generator Reliability Settings'!$B$58:$G$79,MATCH(AG$11,'Generator Reliability Settings'!$B$58:$G$58,0),FALSE),"not found"),IFERROR(INDEX('Generator Reliability Settings'!$B$23:$M$52,MATCH(_xlfn.XLOOKUP($B40,'Summary Mapping'!$C$7:$C$662,'Summary Mapping'!$P$7:$P$662,"not found",0)&AG$11,'Generator Reliability Settings'!$B$23:$B$52&'Generator Reliability Settings'!$C$23:$C$52,0),MIN(COLUMNS('Generator Reliability Settings'!$B$22:$M$52),MATCH(AG$12,'Generator Reliability Settings'!$B$22:$M$22,0))), "not found")) -> 49.09239354 | AH40: =IF($D40="Biomass",IFERROR(VLOOKUP($D40,'Generator Reliability Settings'!$B$58:$G$79,MATCH(AH$11,'Generator Reliability Settings'!$B$58:$G$58,0),FALSE),"not found"),IFERROR(INDEX('Generator Reliability Settings'!$B$23:$M$52,MATCH(_xlfn.XLOOKUP($B40,'Summary Mapping'!$C$7:$C$662,'Summary Mapping'!$P$7:$P$662,"not found",0)&AH$11,'Generator Reliability Settings'!$B$23:$B$52&'Generator Reliability Settings'!$C$23:$C$52,0),MIN(COLUMNS('Generator Reliability Settings'!$B$22:$M$52),MATCH(AH$12,'Generator Reliability Settings'!$B$22:$M$22,0))), "not found")) -> 0.2685711543 | AI40: =_xlfn.XLOOKUP($B40,'Fixed OPEX'!$B$8:$B$663,'Fixed OPEX'!$E$8:$E$663,"not found", 0) -> 38 | AJ40: =_xlfn.XLOOKUP($B40,'Variable OPEX'!$B$8:$B$663,'Variable OPEX'!$E$8:$E$663,"not found",0) -> 7 | AK40: =_xlfn.XLOOKUP($B40,'Heat rates'!$B$9:$B$664,'Heat rates'!$E$9:$E$664,"not found", 0) -> 10.00778383 | AL40: =INDEX('Fuel Price Summary'!$H$12:$AK$668,MATCH($B40,'Fuel Price Summary'!$B$12:$B$668,0),MATCH($AL$12,'Fuel Price Summary'!$H$12:$AK$12,0)) -> 3.859357 | AM40: =_xlfn.XLOOKUP($B40,'Emissions intensity'!$B$8:$B$664,'Emissions intensity'!$E$8:$E$664,"not found",0)*SUMPRODUCT((('GPG emissions reduction - BioM'!$B$9:$B$11)=AM$11)*(('GPG emissions reduction - BioM'!$C$8:$AF$8)=AM$12),'GPG emissions reduction - BioM'!$C$9:$AF$11) +N("this term is the emission intensity as at the current year") -> 572.9508847 | AN40: =_xlfn.XLOOKUP($B40,'Marginal Loss Factors'!$B$13:$B$668,'Marginal Loss Factors'!$F$13:$F$668, "not found", 0) -> 0.973 | AO40: =_xlfn.XLOOKUP($B40,Auxiliary!$B$7:$B$662,Auxiliary!$E$7:$E$662,"not found",0) -> 6.67097171 | AP40: 45.62361058 | AQ40: =_xlfn.XLOOKUP($B40,Retirement!$B$14:$B$669,Retirement!$F$14:$F$669, "not found", 0) -> 2036 | AR40: =_xlfn.XLOOKUP($D40,Retirement!$I$14:$I$44,Retirement!$J$14:$J$44,"not found",0) -> 254000 | AS40: =_xlfn.XLOOKUP($B40,'Power System Security'!$B$6:$B$49,'Power System Security'!$D$6:$D$49,"not found",0) -> 59.76587497
B41: ='Summary Mapping'!C35 -> TARONG#2 | C41: ='Summary Mapping'!D35 -> Tarong | D41: ='Summary Mapping'!E35 -> Steam Sub Critical | E41: ='Summary Mapping'!F35 -> QLD | F41: ='Summary Mapping'!G35 -> SQ | G41: ='Summary Mapping'!H35 -> Not Applicable | H41: ='Summary Mapping'!I35 -> Not Applicable | I41: ='Summary Mapping'!J35 -> Existing | J41: ='Summary Mapping'!K35 -> Not Applicable | K41: =_xlfn.XLOOKUP(B41,'Maximum capacity'!$B$10:$B$665,'Maximum capacity'!$G$10:$G$665,"not found",0) -> 350 | L41: =_xlfn.XLOOKUP(B41,'Maximum capacity'!$B$10:$B$665,'Maximum capacity'!$H$10:$H$665,"not found",0) ->  | M41: =VLOOKUP($B41,'Seasonal ratings'!$B$45:$AI$700,(MATCH(M$12,'Seasonal ratings'!$F$44:$O$44,0)+COLUMN('Seasonal ratings'!$F$44)-COLUMN('Seasonal ratings'!$B$44)),FALSE) -> 350 | N41: =VLOOKUP($B41,'Seasonal ratings'!$B$45:$AI$700,(MATCH(N$12,'Seasonal ratings'!$P$44:$Y$44,0)+COLUMN('Seasonal ratings'!$P$44)-COLUMN('Seasonal ratings'!$B$44)),FALSE) -> 350 | O41: =VLOOKUP($B41,'Seasonal ratings'!$B$45:$AI$700,(MATCH(O$12,'Seasonal ratings'!$Z$44:$AI$44,0)+COLUMN('Seasonal ratings'!$Z$44)-COLUMN('Seasonal ratings'!$B$44)),FALSE) -> 350 | P41: =_xlfn.XLOOKUP($B41,'Coal Min Stable Level'!$B$14:$B$57,'Coal Min Stable Level'!$G$14:$G$57,_xlfn.XLOOKUP($B41,'GPG Min Stable Level'!$B$12:$B$148,'GPG Min Stable Level'!$E$12:$E$148,"not found",0),0) -> 140 | Q41: =_xlfn.XLOOKUP($B41,'Affine Heat rates'!$B$8:$B$188,'Affine Heat rates'!$E$8:$E$188,"not found",0) -> 504 | R41: =_xlfn.XLOOKUP($B41,'Affine Heat rates'!$B$8:$B$188,'Affine Heat rates'!$F$8:$F$188,"not found",0) -> 8.567783832 | S41: =_xlfn.XLOOKUP(_xlfn.XLOOKUP($B41,'Summary Mapping'!$C$7:$C$662,'Summary Mapping'!$Y$7:$Y$662,"not found",0),'Storage properties'!$B$22:$B$28,'Storage properties'!$E$22:$E$28,"not found",0) -> not found | T41: =_xlfn.XLOOKUP($D41,'Storage properties'!$B$6:$B$12,'Storage properties'!$E$6:$E$12, "not found",0) -> not found | U41: =_xlfn.XLOOKUP($D41,'Storage properties'!$B$6:$B$12,'Storage properties'!$F$6:$F$12, "not found",0) -> not found | V41: =_xlfn.XLOOKUP($D41,'Storage properties'!$B$6:$B$12,'Storage properties'!$G$6:$G$12, "not found",0) -> not found | W41: =_xlfn.XLOOKUP($D41,'Storage properties'!$B$6:$B$12,'Storage properties'!$H$6:$H$12, "not found",0) -> not found | X41: =_xlfn.XLOOKUP($D41,'Storage properties'!$B$6:$B$12,'Storage properties'!$I$6:$I$12, "not found",0) -> not found | Y41: =_xlfn.XLOOKUP($D41,'Storage properties'!$B$6:$B$12,'Storage properties'!$J$6:$J$12, "not found",0) -> not found | Z41: =_xlfn.XLOOKUP($B41,'Max Ramp Rates'!$B$9:$B$189,'Max Ramp Rates'!$E$9:$E$189, "not found", 0) -> 4 | AA41: =_xlfn.XLOOKUP($B41,'Max Ramp Rates'!$B$9:$B$189,'Max Ramp Rates'!$F$9:$F$189, "not found", 0) -> 4 | AB41: =_xlfn.XLOOKUP(_xlfn.XLOOKUP($B41,'Summary Mapping'!$C$7:$C$662,'Summary Mapping'!$O$7:$O$662,"not found",0),Maintenance!$B$7:$B$24,Maintenance!$C$7:$C$24,"not found",0) -> 5.479452055 | AC41: =_xlfn.XLOOKUP(_xlfn.XLOOKUP($B41,'Summary Mapping'!$C$7:$C$662,'Summary Mapping'!$O$7:$O$662,"not found",0),Maintenance!$B$7:$B$24,Maintenance!$D$7:$D$24,"not found",0) -> 20 | AD41: =IF($D41="Biomass",IFERROR(VLOOKUP($D41,'Generator Reliability Settings'!$B$58:$G$79,MATCH(AD$11,'Generator Reliability Settings'!$B$58:$G$58,0),FALSE),"not found"),IFERROR(INDEX('Generator Reliability Settings'!$B$23:$M$52,MATCH(_xlfn.XLOOKUP($B41,'Summary Mapping'!$C$7:$C$662,'Summary Mapping'!$P$7:$P$662,"not found",0)&AD$11,'Generator Reliability Settings'!$B$23:$B$52&'Generator Reliability Settings'!$C$23:$C$52,0),MIN(COLUMNS('Generator Reliability Settings'!$B$22:$M$52),MATCH(AD$12,'Generator Reliability Settings'!$B$22:$M$22,0))), "not found")) -> 0.09270884418 | AE41: =IF($D41="Biomass",IFERROR(VLOOKUP($D41,'Generator Reliability Settings'!$B$58:$G$79,MATCH(AE$11,'Generator Reliability Settings'!$B$58:$G$58,0),FALSE),"not found"),IFERROR(INDEX('Generator Reliability Settings'!$B$23:$M$52,MATCH(_xlfn.XLOOKUP($B41,'Summary Mapping'!$C$7:$C$662,'Summary Mapping'!$P$7:$P$662,"not found",0)&AE$11,'Generator Reliability Settings'!$B$23:$B$52&'Generator Reliability Settings'!$C$23:$C$52,0),MIN(COLUMNS('Generator Reliability Settings'!$B$22:$M$52),MATCH(AE$12,'Generator Reliability Settings'!$B$22:$M$22,0))), "not found")) -> 0.2043810551 | AF41: =IF($D41="Biomass",IFERROR(VLOOKUP($D41,'Generator Reliability Settings'!$B$58:$G$79,MATCH(AF$11,'Generator Reliability Settings'!$B$58:$G$58,0),FALSE),"not found"),IFERROR(INDEX('Generator Reliability Settings'!$B$23:$M$52,MATCH(_xlfn.XLOOKUP($B41,'Summary Mapping'!$C$7:$C$662,'Summary Mapping'!$P$7:$P$662,"not found",0)&AF$11,'Generator Reliability Settings'!$B$23:$B$52&'Generator Reliability Settings'!$C$23:$C$52,0),MIN(COLUMNS('Generator Reliability Settings'!$B$22:$M$52),MATCH(AF$12,'Generator Reliability Settings'!$B$22:$M$22,0))), "not found")) -> 153.2102879 | AG41: =IF($D41="Biomass",IFERROR(VLOOKUP($D41,'Generator Reliability Settings'!$B$58:$G$79,MATCH(AG$11,'Generator Reliability Settings'!$B$58:$G$58,0),FALSE),"not found"),IFERROR(INDEX('Generator Reliability Settings'!$B$23:$M$52,MATCH(_xlfn.XLOOKUP($B41,'Summary Mapping'!$C$7:$C$662,'Summary Mapping'!$P$7:$P$662,"not found",0)&AG$11,'Generator Reliability Settings'!$B$23:$B$52&'Generator Reliability Settings'!$C$23:$C$52,0),MIN(COLUMNS('Generator Reliability Settings'!$B$22:$M$52),MATCH(AG$12,'Generator Reliability Settings'!$B$22:$M$22,0))), "not found")) -> 49.09239354 | AH41: =IF($D41="Biomass",IFERROR(VLOOKUP($D41,'Generator Reliability Settings'!$B$58:$G$79,MATCH(AH$11,'Generator Reliability Settings'!$B$58:$G$58,0),FALSE),"not found"),IFERROR(INDEX('Generator Reliability Settings'!$B$23:$M$52,MATCH(_xlfn.XLOOKUP($B41,'Summary Mapping'!$C$7:$C$662,'Summary Mapping'!$P$7:$P$662,"not found",0)&AH$11,'Generator Reliability Settings'!$B$23:$B$52&'Generator Reliability Settings'!$C$23:$C$52,0),MIN(COLUMNS('Generator Reliability Settings'!$B$22:$M$52),MATCH(AH$12,'Generator Reliability Settings'!$B$22:$M$22,0))), "not found")) -> 0.2685711543 | AI41: =_xlfn.XLOOKUP($B41,'Fixed OPEX'!$B$8:$B$663,'Fixed OPEX'!$E$8:$E$663,"not found", 0) -> 38 | AJ41: =_xlfn.XLOOKUP($B41,'Variable OPEX'!$B$8:$B$663,'Variable OPEX'!$E$8:$E$663,"not found",0) -> 7 | AK41: =_xlfn.XLOOKUP($B41,'Heat rates'!$B$9:$B$664,'Heat rates'!$E$9:$E$664,"not found", 0) -> 10.00778383 | AL41: =INDEX('Fuel Price Summary'!$H$12:$AK$668,MATCH($B41,'Fuel Price Summary'!$B$12:$B$668,0),MATCH($AL$12,'Fuel Price Summary'!$H$12:$AK$12,0)) -> 3.859357 | AM41: =_xlfn.XLOOKUP($B41,'Emissions intensity'!$B$8:$B$664,'Emissions intensity'!$E$8:$E$664,"not found",0)*SUMPRODUCT((('GPG emissions reduction - BioM'!$B$9:$B$11)=AM$11)*(('GPG emissions reduction - BioM'!$C$8:$AF$8)=AM$12),'GPG emissions reduction - BioM'!$C$9:$AF$11) +N("this term is the emission intensity as at the current year") -> 572.9508847 | AN41: =_xlfn.XLOOKUP($B41,'Marginal Loss Factors'!$B$13:$B$668,'Marginal Loss Factors'!$F$13:$F$668, "not found", 0) -> 0.973 | AO41: =_xlfn.XLOOKUP($B41,Auxiliary!$B$7:$B$662,Auxiliary!$E$7:$E$662,"not found",0) -> 6.67097171 | AP41: 45.62361058 | AQ41: =_xlfn.XLOOKUP($B41,Retirement!$B$14:$B$669,Retirement!$F$14:$F$669, "not found", 0) -> 2036 | AR41: =_xlfn.XLOOKUP($D41,Retirement!$I$14:$I$44,Retirement!$J$14:$J$44,"not found",0) -> 254000 | AS41: =_xlfn.XLOOKUP($B41,'Power System Security'!$B$6:$B$49,'Power System Security'!$D$6:$D$49,"not found",0) -> 59.76587497
B42: ='Summary Mapping'!C36 -> TARONG#3 | C42: ='Summary Mapping'!D36 -> Tarong | D42: ='Summary Mapping'!E36 -> Steam Sub Critical | E42: ='Summary Mapping'!F36 -> QLD | F42: ='Summary Mapping'!G36 -> SQ | G42: ='Summary Mapping'!H36 -> Not Applicable | H42: ='Summary Mapping'!I36 -> Not Applicable | I42: ='Summary Mapping'!J36 -> Existing | J42: ='Summary Mapping'!K36 -> Not Applicable | K42: =_xlfn.XLOOKUP(B42,'Maximum capacity'!$B$10:$B$665,'Maximum capacity'!$G$10:$G$665,"not found",0) -> 350 | L42: =_xlfn.XLOOKUP(B42,'Maximum capacity'!$B$10:$B$665,'Maximum capacity'!$H$10:$H$665,"not found",0) ->  | M42: =VLOOKUP($B42,'Seasonal ratings'!$B$45:$AI$700,(MATCH(M$12,'Seasonal ratings'!$F$44:$O$44,0)+COLUMN('Seasonal ratings'!$F$44)-COLUMN('Seasonal ratings'!$B$44)),FALSE) -> 350 | N42: =VLOOKUP($B42,'Seasonal ratings'!$B$45:$AI$700,(MATCH(N$12,'Seasonal ratings'!$P$44:$Y$44,0)+COLUMN('Seasonal ratings'!$P$44)-COLUMN('Seasonal ratings'!$B$44)),FALSE) -> 350 | O42: =VLOOKUP($B42,'Seasonal ratings'!$B$45:$AI$700,(MATCH(O$12,'Seasonal ratings'!$Z$44:$AI$44,0)+COLUMN('Seasonal ratings'!$Z$44)-COLUMN('Seasonal ratings'!$B$44)),FALSE) -> 350 | P42: =_xlfn.XLOOKUP($B42,'Coal Min Stable Level'!$B$14:$B$57,'Coal Min Stable Level'!$G$14:$G$57,_xlfn.XLOOKUP($B42,'GPG Min Stable Level'!$B$12:$B$148,'GPG Min Stable Level'!$E$12:$E$148,"not found",0),0) -> 140 | Q42: =_xlfn.XLOOKUP($B42,'Affine Heat rates'!$B$8:$B$188,'Affine Heat rates'!$E$8:$E$188,"not found",0) -> 504 | R42: =_xlfn.XLOOKUP($B42,'Affine Heat rates'!$B$8:$B$188,'Affine Heat rates'!$F$8:$F$188,"not found",0) -> 8.567783832 | S42: =_xlfn.XLOOKUP(_xlfn.XLOOKUP($B42,'Summary Mapping'!$C$7:$C$662,'Summary Mapping'!$Y$7:$Y$662,"not found",0),'Storage properties'!$B$22:$B$28,'Storage properties'!$E$22:$E$28,"not found",0) -> not found | T42: =_xlfn.XLOOKUP($D42,'Storage properties'!$B$6:$B$12,'Storage properties'!$E$6:$E$12, "not found",0) -> not found | U42: =_xlfn.XLOOKUP($D42,'Storage properties'!$B$6:$B$12,'Storage properties'!$F$6:$F$12, "not found",0) -> not found | V42: =_xlfn.XLOOKUP($D42,'Storage properties'!$B$6:$B$12,'Storage properties'!$G$6:$G$12, "not found",0) -> not found | W42: =_xlfn.XLOOKUP($D42,'Storage properties'!$B$6:$B$12,'Storage properties'!$H$6:$H$12, "not found",0) -> not found | X42: =_xlfn.XLOOKUP($D42,'Storage properties'!$B$6:$B$12,'Storage properties'!$I$6:$I$12, "not found",0) -> not found | Y42: =_xlfn.XLOOKUP($D42,'Storage properties'!$B$6:$B$12,'Storage properties'!$J$6:$J$12, "not found",0) -> not found | Z42: =_xlfn.XLOOKUP($B42,'Max Ramp Rates'!$B$9:$B$189,'Max Ramp Rates'!$E$9:$E$189, "not found", 0) -> 4 | AA42: =_xlfn.XLOOKUP($B42,'Max Ramp Rates'!$B$9:$B$189,'Max Ramp Rates'!$F$9:$F$189, "not found", 0) -> 4 | AB42: =_xlfn.XLOOKUP(_xlfn.XLOOKUP($B42,'Summary Mapping'!$C$7:$C$662,'Summary Mapping'!$O$7:$O$662,"not found",0),Maintenance!$B$7:$B$24,Maintenance!$C$7:$C$24,"not found",0) -> 5.479452055 | AC42: =_xlfn.XLOOKUP(_xlfn.XLOOKUP($B42,'Summary Mapping'!$C$7:$C$662,'Summary Mapping'!$O$7:$O$662,"not found",0),Maintenance!$B$7:$B$24,Maintenance!$D$7:$D$24,"not found",0) -> 20 | AD42: =IF($D42="Biomass",IFERROR(VLOOKUP($D42,'Generator Reliability Settings'!$B$58:$G$79,MATCH(AD$11,'Generator Reliability Settings'!$B$58:$G$58,0),FALSE),"not found"),IFERROR(INDEX('Generator Reliability Settings'!$B$23:$M$52,MATCH(_xlfn.XLOOKUP($B42,'Summary Mapping'!$C$7:$C$662,'Summary Mapping'!$P$7:$P$662,"not found",0)&AD$11,'Generator Reliability Settings'!$B$23:$B$52&'Generator Reliability Settings'!$C$23:$C$52,0),MIN(COLUMNS('Generator Reliability Settings'!$B$22:$M$52),MATCH(AD$12,'Generator Reliability Settings'!$B$22:$M$22,0))), "not found")) -> 0.09270884418 | AE42: =IF($D42="Biomass",IFERROR(VLOOKUP($D42,'Generator Reliability Settings'!$B$58:$G$79,MATCH(AE$11,'Generator Reliability Settings'!$B$58:$G$58,0),FALSE),"not found"),IFERROR(INDEX('Generator Reliability Settings'!$B$23:$M$52,MATCH(_xlfn.XLOOKUP($B42,'Summary Mapping'!$C$7:$C$662,'Summary Mapping'!$P$7:$P$662,"not found",0)&AE$11,'Generator Reliability Settings'!$B$23:$B$52&'Generator Reliability Settings'!$C$23:$C$52,0),MIN(COLUMNS('Generator Reliability Settings'!$B$22:$M$52),MATCH(AE$12,'Generator Reliability Settings'!$B$22:$M$22,0))), "not found")) -> 0.2043810551 | AF42: =IF($D42="Biomass",IFERROR(VLOOKUP($D42,'Generator Reliability Settings'!$B$58:$G$79,MATCH(AF$11,'Generator Reliability Settings'!$B$58:$G$58,0),FALSE),"not found"),IFERROR(INDEX('Generator Reliability Settings'!$B$23:$M$52,MATCH(_xlfn.XLOOKUP($B42,'Summary Mapping'!$C$7:$C$662,'Summary Mapping'!$P$7:$P$662,"not found",0)&AF$11,'Generator Reliability Settings'!$B$23:$B$52&'Generator Reliability Settings'!$C$23:$C$52,0),MIN(COLUMNS('Generator Reliability Settings'!$B$22:$M$52),MATCH(AF$12,'Generator Reliability Settings'!$B$22:$M$22,0))), "not found")) -> 153.2102879 | AG42: =IF($D42="Biomass",IFERROR(VLOOKUP($D42,'Generator Reliability Settings'!$B$58:$G$79,MATCH(AG$11,'Generator Reliability Settings'!$B$58:$G$58,0),FALSE),"not found"),IFERROR(INDEX('Generator Reliability Settings'!$B$23:$M$52,MATCH(_xlfn.XLOOKUP($B42,'Summary Mapping'!$C$7:$C$662,'Summary Mapping'!$P$7:$P$662,"not found",0)&AG$11,'Generator Reliability Settings'!$B$23:$B$52&'Generator Reliability Settings'!$C$23:$C$52,0),MIN(COLUMNS('Generator Reliability Settings'!$B$22:$M$52),MATCH(AG$12,'Generator Reliability Settings'!$B$22:$M$22,0))), "not found")) -> 49.09239354 | AH42: =IF($D42="Biomass",IFERROR(VLOOKUP($D42,'Generator Reliability Settings'!$B$58:$G$79,MATCH(AH$11,'Generator Reliability Settings'!$B$58:$G$58,0),FALSE),"not found"),IFERROR(INDEX('Generator Reliability Settings'!$B$23:$M$52,MATCH(_xlfn.XLOOKUP($B42,'Summary Mapping'!$C$7:$C$662,'Summary Mapping'!$P$7:$P$662,"not found",0)&AH$11,'Generator Reliability Settings'!$B$23:$B$52&'Generator Reliability Settings'!$C$23:$C$52,0),MIN(COLUMNS('Generator Reliability Settings'!$B$22:$M$52),MATCH(AH$12,'Generator Reliability Settings'!$B$22:$M$22,0))), "not found")) -> 0.2685711543 | AI42: =_xlfn.XLOOKUP($B42,'Fixed OPEX'!$B$8:$B$663,'Fixed OPEX'!$E$8:$E$663,"not found", 0) -> 38 | AJ42: =_xlfn.XLOOKUP($B42,'Variable OPEX'!$B$8:$B$663,'Variable OPEX'!$E$8:$E$663,"not found",0) -> 7 | AK42: =_xlfn.XLOOKUP($B42,'Heat rates'!$B$9:$B$664,'Heat rates'!$E$9:$E$664,"not found", 0) -> 10.00778383 | AL42: =INDEX('Fuel Price Summary'!$H$12:$AK$668,MATCH($B42,'Fuel Price Summary'!$B$12:$B$668,0),MATCH($AL$12,'Fuel Price Summary'!$H$12:$AK$12,0)) -> 3.859357 | AM42: =_xlfn.XLOOKUP($B42,'Emissions intensity'!$B$8:$B$664,'Emissions intensity'!$E$8:$E$664,"not found",0)*SUMPRODUCT((('GPG emissions reduction - BioM'!$B$9:$B$11)=AM$11)*(('GPG emissions reduction - BioM'!$C$8:$AF$8)=AM$12),'GPG emissions reduction - BioM'!$C$9:$AF$11) +N("this term is the emission intensity as at the current year") -> 572.9508847 | AN42: =_xlfn.XLOOKUP($B42,'Marginal Loss Factors'!$B$13:$B$668,'Marginal Loss Factors'!$F$13:$F$668, "not found", 0) -> 0.973 | AO42: =_xlfn.XLOOKUP($B42,Auxiliary!$B$7:$B$662,Auxiliary!$E$7:$E$662,"not found",0) -> 6.67097171 | AP42: 45.62361058 | AQ42: =_xlfn.XLOOKUP($B42,Retirement!$B$14:$B$669,Retirement!$F$14:$F$669, "not found", 0) -> 2037 | AR42: =_xlfn.XLOOKUP($D42,Retirement!$I$14:$I$44,Retirement!$J$14:$J$44,"not found",0) -> 254000 | AS42: =_xlfn.XLOOKUP($B42,'Power System Security'!$B$6:$B$49,'Power System Security'!$D$6:$D$49,"not found",0) -> 59.76587497
B43: ='Summary Mapping'!C37 -> TARONG#4 | C43: ='Summary Mapping'!D37 -> Tarong | D43: ='Summary Mapping'!E37 -> Steam Sub Critical | E43: ='Summary Mapping'!F37 -> QLD | F43: ='Summary Mapping'!G37 -> SQ | G43: ='Summary Mapping'!H37 -> Not Applicable | H43: ='Summary Mapping'!I37 -> Not Applicable | I43: ='Summary Mapping'!J37 -> Existing | J43: ='Summary Mapping'!K37 -> Not Applicable | K43: =_xlfn.XLOOKUP(B43,'Maximum capacity'!$B$10:$B$665,'Maximum capacity'!$G$10:$G$665,"not found",0) -> 350 | L43: =_xlfn.XLOOKUP(B43,'Maximum capacity'!$B$10:$B$665,'Maximum capacity'!$H$10:$H$665,"not found",0) ->  | M43: =VLOOKUP($B43,'Seasonal ratings'!$B$45:$AI$700,(MATCH(M$12,'Seasonal ratings'!$F$44:$O$44,0)+COLUMN('Seasonal ratings'!$F$44)-COLUMN('Seasonal ratings'!$B$44)),FALSE) -> 350 | N43: =VLOOKUP($B43,'Seasonal ratings'!$B$45:$AI$700,(MATCH(N$12,'Seasonal ratings'!$P$44:$Y$44,0)+COLUMN('Seasonal ratings'!$P$44)-COLUMN('Seasonal ratings'!$B$44)),FALSE) -> 350 | O43: =VLOOKUP($B43,'Seasonal ratings'!$B$45:$AI$700,(MATCH(O$12,'Seasonal ratings'!$Z$44:$AI$44,0)+COLUMN('Seasonal ratings'!$Z$44)-COLUMN('Seasonal ratings'!$B$44)),FALSE) -> 350 | P43: =_xlfn.XLOOKUP($B43,'Coal Min Stable Level'!$B$14:$B$57,'Coal Min Stable Level'!$G$14:$G$57,_xlfn.XLOOKUP($B43,'GPG Min Stable Level'!$B$12:$B$148,'GPG Min Stable Level'!$E$12:$E$148,"not found",0),0) -> 140 | Q43: =_xlfn.XLOOKUP($B43,'Affine Heat rates'!$B$8:$B$188,'Affine Heat rates'!$E$8:$E$188,"not found",0) -> 504 | R43: =_xlfn.XLOOKUP($B43,'Affine Heat rates'!$B$8:$B$188,'Affine Heat rates'!$F$8:$F$188,"not found",0) -> 8.567783832 | S43: =_xlfn.XLOOKUP(_xlfn.XLOOKUP($B43,'Summary Mapping'!$C$7:$C$662,'Summary Mapping'!$Y$7:$Y$662,"not found",0),'Storage properties'!$B$22:$B$28,'Storage properties'!$E$22:$E$28,"not found",0) -> not found | T43: =_xlfn.XLOOKUP($D43,'Storage properties'!$B$6:$B$12,'Storage properties'!$E$6:$E$12, "not found",0) -> not found | U43: =_xlfn.XLOOKUP($D43,'Storage properties'!$B$6:$B$12,'Storage properties'!$F$6:$F$12, "not found",0) -> not found | V43: =_xlfn.XLOOKUP($D43,'Storage properties'!$B$6:$B$12,'Storage properties'!$G$6:$G$12, "not found",0) -> not found | W43: =_xlfn.XLOOKUP($D43,'Storage properties'!$B$6:$B$12,'Storage properties'!$H$6:$H$12, "not found",0) -> not found | X43: =_xlfn.XLOOKUP($D43,'Storage properties'!$B$6:$B$12,'Storage properties'!$I$6:$I$12, "not found",0) -> not found | Y43: =_xlfn.XLOOKUP($D43,'Storage properties'!$B$6:$B$12,'Storage properties'!$J$6:$J$12, "not found",0) -> not found | Z43: =_xlfn.XLOOKUP($B43,'Max Ramp Rates'!$B$9:$B$189,'Max Ramp Rates'!$E$9:$E$189, "not found", 0) -> 4 | AA43: =_xlfn.XLOOKUP($B43,'Max Ramp Rates'!$B$9:$B$189,'Max Ramp Rates'!$F$9:$F$189, "not found", 0) -> 4 | AB43: =_xlfn.XLOOKUP(_xlfn.XLOOKUP($B43,'Summary Mapping'!$C$7:$C$662,'Summary Mapping'!$O$7:$O$662,"not found",0),Maintenance!$B$7:$B$24,Maintenance!$C$7:$C$24,"not found",0) -> 5.479452055 | AC43: =_xlfn.XLOOKUP(_xlfn.XLOOKUP($B43,'Summary Mapping'!$C$7:$C$662,'Summary Mapping'!$O$7:$O$662,"not found",0),Maintenance!$B$7:$B$24,Maintenance!$D$7:$D$24,"not found",0) -> 20 | AD43: =IF($D43="Biomass",IFERROR(VLOOKUP($D43,'Generator Reliability Settings'!$B$58:$G$79,MATCH(AD$11,'Generator Reliability Settings'!$B$58:$G$58,0),FALSE),"not found"),IFERROR(INDEX('Generator Reliability Settings'!$B$23:$M$52,MATCH(_xlfn.XLOOKUP($B43,'Summary Mapping'!$C$7:$C$662,'Summary Mapping'!$P$7:$P$662,"not found",0)&AD$11,'Generator Reliability Settings'!$B$23:$B$52&'Generator Reliability Settings'!$C$23:$C$52,0),MIN(COLUMNS('Generator Reliability Settings'!$B$22:$M$52),MATCH(AD$12,'Generator Reliability Settings'!$B$22:$M$22,0))), "not found")) -> 0.09270884418 | AE43: =IF($D43="Biomass",IFERROR(VLOOKUP($D43,'Generator Reliability Settings'!$B$58:$G$79,MATCH(AE$11,'Generator Reliability Settings'!$B$58:$G$58,0),FALSE),"not found"),IFERROR(INDEX('Generator Reliability Settings'!$B$23:$M$52,MATCH(_xlfn.XLOOKUP($B43,'Summary Mapping'!$C$7:$C$662,'Summary Mapping'!$P$7:$P$662,"not found",0)&AE$11,'Generator Reliability Settings'!$B$23:$B$52&'Generator Reliability Settings'!$C$23:$C$52,0),MIN(COLUMNS('Generator Reliability Settings'!$B$22:$M$52),MATCH(AE$12,'Generator Reliability Settings'!$B$22:$M$22,0))), "not found")) -> 0.2043810551 | AF43: =IF($D43="Biomass",IFERROR(VLOOKUP($D43,'Generator Reliability Settings'!$B$58:$G$79,MATCH(AF$11,'Generator Reliability Settings'!$B$58:$G$58,0),FALSE),"not found"),IFERROR(INDEX('Generator Reliability Settings'!$B$23:$M$52,MATCH(_xlfn.XLOOKUP($B43,'Summary Mapping'!$C$7:$C$662,'Summary Mapping'!$P$7:$P$662,"not found",0)&AF$11,'Generator Reliability Settings'!$B$23:$B$52&'Generator Reliability Settings'!$C$23:$C$52,0),MIN(COLUMNS('Generator Reliability Settings'!$B$22:$M$52),MATCH(AF$12,'Generator Reliability Settings'!$B$22:$M$22,0))), "not found")) -> 153.2102879 | AG43: =IF($D43="Biomass",IFERROR(VLOOKUP($D43,'Generator Reliability Settings'!$B$58:$G$79,MATCH(AG$11,'Generator Reliability Settings'!$B$58:$G$58,0),FALSE),"not found"),IFERROR(INDEX('Generator Reliability Settings'!$B$23:$M$52,MATCH(_xlfn.XLOOKUP($B43,'Summary Mapping'!$C$7:$C$662,'Summary Mapping'!$P$7:$P$662,"not found",0)&AG$11,'Generator Reliability Settings'!$B$23:$B$52&'Generator Reliability Settings'!$C$23:$C$52,0),MIN(COLUMNS('Generator Reliability Settings'!$B$22:$M$52),MATCH(AG$12,'Generator Reliability Settings'!$B$22:$M$22,0))), "not found")) -> 49.09239354 | AH43: =IF($D43="Biomass",IFERROR(VLOOKUP($D43,'Generator Reliability Settings'!$B$58:$G$79,MATCH(AH$11,'Generator Reliability Settings'!$B$58:$G$58,0),FALSE),"not found"),IFERROR(INDEX('Generator Reliability Settings'!$B$23:$M$52,MATCH(_xlfn.XLOOKUP($B43,'Summary Mapping'!$C$7:$C$662,'Summary Mapping'!$P$7:$P$662,"not found",0)&AH$11,'Generator Reliability Settings'!$B$23:$B$52&'Generator Reliability Settings'!$C$23:$C$52,0),MIN(COLUMNS('Generator Reliability Settings'!$B$22:$M$52),MATCH(AH$12,'Generator Reliability Settings'!$B$22:$M$22,0))), "not found")) -> 0.2685711543 | AI43: =_xlfn.XLOOKUP($B43,'Fixed OPEX'!$B$8:$B$663,'Fixed OPEX'!$E$8:$E$663,"not found", 0) -> 38 | AJ43: =_xlfn.XLOOKUP($B43,'Variable OPEX'!$B$8:$B$663,'Variable OPEX'!$E$8:$E$663,"not found",0) -> 7 | AK43: =_xlfn.XLOOKUP($B43,'Heat rates'!$B$9:$B$664,'Heat rates'!$E$9:$E$664,"not found", 0) -> 10.00778383 | AL43: =INDEX('Fuel Price Summary'!$H$12:$AK$668,MATCH($B43,'Fuel Price Summary'!$B$12:$B$668,0),MATCH($AL$12,'Fuel Price Summary'!$H$12:$AK$12,0)) -> 3.859357 | AM43: =_xlfn.XLOOKUP($B43,'Emissions intensity'!$B$8:$B$664,'Emissions intensity'!$E$8:$E$664,"not found",0)*SUMPRODUCT((('GPG emissions reduction - BioM'!$B$9:$B$11)=AM$11)*(('GPG emissions reduction - BioM'!$C$8:$AF$8)=AM$12),'GPG emissions reduction - BioM'!$C$9:$AF$11) +N("this term is the emission intensity as at the current year") -> 572.9508847 | AN43: =_xlfn.XLOOKUP($B43,'Marginal Loss Factors'!$B$13:$B$668,'Marginal Loss Factors'!$F$13:$F$668, "not found", 0) -> 0.973 | AO43: =_xlfn.XLOOKUP($B43,Auxiliary!$B$7:$B$662,Auxiliary!$E$7:$E$662,"not found",0) -> 6.67097171 | AP43: 45.62361058 | AQ43: =_xlfn.XLOOKUP($B43,Retirement!$B$14:$B$669,Retirement!$F$14:$F$669, "not found", 0) -> 2037 | AR43: =_xlfn.XLOOKUP($D43,Retirement!$I$14:$I$44,Retirement!$J$14:$J$44,"not found",0) -> 254000 | AS43: =_xlfn.XLOOKUP($B43,'Power System Security'!$B$6:$B$49,'Power System Security'!$D$6:$D$49,"not found",0) -> 59.76587497
B44: ='Summary Mapping'!C38 -> TNPS1 | C44: ='Summary Mapping'!D38 -> Tarong North | D44: ='Summary Mapping'!E38 -> Steam Super Critical | E44: ='Summary Mapping'!F38 -> QLD | F44: ='Summary Mapping'!G38 -> SQ | G44: ='Summary Mapping'!H38 -> Not Applicable | H44: ='Summary Mapping'!I38 -> Not Applicable | I44: ='Summary Mapping'!J38 -> Existing | J44: ='Summary Mapping'!K38 -> Not Applicable | K44: =_xlfn.XLOOKUP(B44,'Maximum capacity'!$B$10:$B$665,'Maximum capacity'!$G$10:$G$665,"not found",0) -> 450 | L44: =_xlfn.XLOOKUP(B44,'Maximum capacity'!$B$10:$B$665,'Maximum capacity'!$H$10:$H$665,"not found",0) ->  | M44: =VLOOKUP($B44,'Seasonal ratings'!$B$45:$AI$700,(MATCH(M$12,'Seasonal ratings'!$F$44:$O$44,0)+COLUMN('Seasonal ratings'!$F$44)-COLUMN('Seasonal ratings'!$B$44)),FALSE) -> 443 | N44: =VLOOKUP($B44,'Seasonal ratings'!$B$45:$AI$700,(MATCH(N$12,'Seasonal ratings'!$P$44:$Y$44,0)+COLUMN('Seasonal ratings'!$P$44)-COLUMN('Seasonal ratings'!$B$44)),FALSE) -> 443 | O44: =VLOOKUP($B44,'Seasonal ratings'!$B$45:$AI$700,(MATCH(O$12,'Seasonal ratings'!$Z$44:$AI$44,0)+COLUMN('Seasonal ratings'!$Z$44)-COLUMN('Seasonal ratings'!$B$44)),FALSE) -> 443 | P44: =_xlfn.XLOOKUP($B44,'Coal Min Stable Level'!$B$14:$B$57,'Coal Min Stable Level'!$G$14:$G$57,_xlfn.XLOOKUP($B44,'GPG Min Stable Level'!$B$12:$B$148,'GPG Min Stable Level'!$E$12:$E$148,"not found",0),0) -> 180 | Q44: =_xlfn.XLOOKUP($B44,'Affine Heat rates'!$B$8:$B$188,'Affine Heat rates'!$E$8:$E$188,"not found",0) -> 648 | R44: =_xlfn.XLOOKUP($B44,'Affine Heat rates'!$B$8:$B$188,'Affine Heat rates'!$F$8:$F$188,"not found",0) -> 7.766219313 | S44: =_xlfn.XLOOKUP(_xlfn.XLOOKUP($B44,'Summary Mapping'!$C$7:$C$662,'Summary Mapping'!$Y$7:$Y$662,"not found",0),'Storage properties'!$B$22:$B$28,'Storage properties'!$E$22:$E$28,"not found",0) -> not found | T44: =_xlfn.XLOOKUP($D44,'Storage properties'!$B$6:$B$12,'Storage properties'!$E$6:$E$12, "not found",0) -> not found | U44: =_xlfn.XLOOKUP($D44,'Storage properties'!$B$6:$B$12,'Storage properties'!$F$6:$F$12, "not found",0) -> not found | V44: =_xlfn.XLOOKUP($D44,'Storage properties'!$B$6:$B$12,'Storage properties'!$G$6:$G$12, "not found",0) -> not found | W44: =_xlfn.XLOOKUP($D44,'Storage properties'!$B$6:$B$12,'Storage properties'!$H$6:$H$12, "not found",0) -> not found | X44: =_xlfn.XLOOKUP($D44,'Storage properties'!$B$6:$B$12,'Storage properties'!$I$6:$I$12, "not found",0) -> not found | Y44: =_xlfn.XLOOKUP($D44,'Storage properties'!$B$6:$B$12,'Storage properties'!$J$6:$J$12, "not found",0) -> not found | Z44: =_xlfn.XLOOKUP($B44,'Max Ramp Rates'!$B$9:$B$189,'Max Ramp Rates'!$E$9:$E$189, "not found", 0) -> 4 | AA44: =_xlfn.XLOOKUP($B44,'Max Ramp Rates'!$B$9:$B$189,'Max Ramp Rates'!$F$9:$F$189, "not found", 0) -> 4 | AB44: =_xlfn.XLOOKUP(_xlfn.XLOOKUP($B44,'Summary Mapping'!$C$7:$C$662,'Summary Mapping'!$O$7:$O$662,"not found",0),Maintenance!$B$7:$B$24,Maintenance!$C$7:$C$24,"not found",0) -> 5.479452055 | AC44: =_xlfn.XLOOKUP(_xlfn.XLOOKUP($B44,'Summary Mapping'!$C$7:$C$662,'Summary Mapping'!$O$7:$O$662,"not found",0),Maintenance!$B$7:$B$24,Maintenance!$D$7:$D$24,"not found",0) -> 20 | AD44: =IF($D44="Biomass",IFERROR(VLOOKUP($D44,'Generator Reliability Settings'!$B$58:$G$79,MATCH(AD$11,'Generator Reliability Settings'!$B$58:$G$58,0),FALSE),"not found"),IFERROR(INDEX('Generator Reliability Settings'!$B$23:$M$52,MATCH(_xlfn.XLOOKUP($B44,'Summary Mapping'!$C$7:$C$662,'Summary Mapping'!$P$7:$P$662,"not found",0)&AD$11,'Generator Reliability Settings'!$B$23:$B$52&'Generator Reliability Settings'!$C$23:$C$52,0),MIN(COLUMNS('Generator Reliability Settings'!$B$22:$M$52),MATCH(AD$12,'Generator Reliability Settings'!$B$22:$M$22,0))), "not found")) -> 0.09270884418 | AE44: =IF($D44="Biomass",IFERROR(VLOOKUP($D44,'Generator Reliability Settings'!$B$58:$G$79,MATCH(AE$11,'Generator Reliability Settings'!$B$58:$G$58,0),FALSE),"not found"),IFERROR(INDEX('Generator Reliability Settings'!$B$23:$M$52,MATCH(_xlfn.XLOOKUP($B44,'Summary Mapping'!$C$7:$C$662,'Summary Mapping'!$P$7:$P$662,"not found",0)&AE$11,'Generator Reliability Settings'!$B$23:$B$52&'Generator Reliability Settings'!$C$23:$C$52,0),MIN(COLUMNS('Generator Reliability Settings'!$B$22:$M$52),MATCH(AE$12,'Generator Reliability Settings'!$B$22:$M$22,0))), "not found")) -> 0.2043810551 | AF44: =IF($D44="Biomass",IFERROR(VLOOKUP($D44,'Generator Reliability Settings'!$B$58:$G$79,MATCH(AF$11,'Generator Reliability Settings'!$B$58:$G$58,0),FALSE),"not found"),IFERROR(INDEX('Generator Reliability Settings'!$B$23:$M$52,MATCH(_xlfn.XLOOKUP($B44,'Summary Mapping'!$C$7:$C$662,'Summary Mapping'!$P$7:$P$662,"not found",0)&AF$11,'Generator Reliability Settings'!$B$23:$B$52&'Generator Reliability Settings'!$C$23:$C$52,0),MIN(COLUMNS('Generator Reliability Settings'!$B$22:$M$52),MATCH(AF$12,'Generator Reliability Settings'!$B$22:$M$22,0))), "not found")) -> 153.2102879 | AG44: =IF($D44="Biomass",IFERROR(VLOOKUP($D44,'Generator Reliability Settings'!$B$58:$G$79,MATCH(AG$11,'Generator Reliability Settings'!$B$58:$G$58,0),FALSE),"not found"),IFERROR(INDEX('Generator Reliability Settings'!$B$23:$M$52,MATCH(_xlfn.XLOOKUP($B44,'Summary Mapping'!$C$7:$C$662,'Summary Mapping'!$P$7:$P$662,"not found",0)&AG$11,'Generator Reliability Settings'!$B$23:$B$52&'Generator Reliability Settings'!$C$23:$C$52,0),MIN(COLUMNS('Generator Reliability Settings'!$B$22:$M$52),MATCH(AG$12,'Generator Reliability Settings'!$B$22:$M$22,0))), "not found")) -> 49.09239354 | AH44: =IF($D44="Biomass",IFERROR(VLOOKUP($D44,'Generator Reliability Settings'!$B$58:$G$79,MATCH(AH$11,'Generator Reliability Settings'!$B$58:$G$58,0),FALSE),"not found"),IFERROR(INDEX('Generator Reliability Settings'!$B$23:$M$52,MATCH(_xlfn.XLOOKUP($B44,'Summary Mapping'!$C$7:$C$662,'Summary Mapping'!$P$7:$P$662,"not found",0)&AH$11,'Generator Reliability Settings'!$B$23:$B$52&'Generator Reliability Settings'!$C$23:$C$52,0),MIN(COLUMNS('Generator Reliability Settings'!$B$22:$M$52),MATCH(AH$12,'Generator Reliability Settings'!$B$22:$M$22,0))), "not found")) -> 0.2685711543 | AI44: =_xlfn.XLOOKUP($B44,'Fixed OPEX'!$B$8:$B$663,'Fixed OPEX'!$E$8:$E$663,"not found", 0) -> 52 | AJ44: =_xlfn.XLOOKUP($B44,'Variable OPEX'!$B$8:$B$663,'Variable OPEX'!$E$8:$E$663,"not found",0) -> 8 | AK44: =_xlfn.XLOOKUP($B44,'Heat rates'!$B$9:$B$664,'Heat rates'!$E$9:$E$664,"not found", 0) -> 9.206219313 | AL44: =INDEX('Fuel Price Summary'!$H$12:$AK$668,MATCH($B44,'Fuel Price Summary'!$B$12:$B$668,0),MATCH($AL$12,'Fuel Price Summary'!$H$12:$AK$12,0)) -> 3.859357 | AM44: =_xlfn.XLOOKUP($B44,'Emissions intensity'!$B$8:$B$664,'Emissions intensity'!$E$8:$E$664,"not found",0)*SUMPRODUCT((('GPG emissions reduction - BioM'!$B$9:$B$11)=AM$11)*(('GPG emissions reduction - BioM'!$C$8:$AF$8)=AM$12),'GPG emissions reduction - BioM'!$C$9:$AF$11) +N("this term is the emission intensity as at the current year") -> 572.9508847 | AN44: =_xlfn.XLOOKUP($B44,'Marginal Loss Factors'!$B$13:$B$668,'Marginal Loss Factors'!$F$13:$F$668, "not found", 0) -> 0.9736 | AO44: =_xlfn.XLOOKUP($B44,Auxiliary!$B$7:$B$662,Auxiliary!$E$7:$E$662,"not found",0) -> 6.67097171 | AP44: 43.53008695 | AQ44: =_xlfn.XLOOKUP($B44,Retirement!$B$14:$B$669,Retirement!$F$14:$F$669, "not found", 0) -> 2037 | AR44: =_xlfn.XLOOKUP($D44,Retirement!$I$14:$I$44,Retirement!$J$14:$J$44,"not found",0) -> 247000 | AS44: =_xlfn.XLOOKUP($B44,'Power System Security'!$B$6:$B$49,'Power System Security'!$D$6:$D$49,"not found",0) -> 76.84183925
B45: ='Summary Mapping'!C39 -> VP5 | C45: ='Summary Mapping'!D39 -> Vales Point B | D45: ='Summary Mapping'!E39 -> Steam Sub Critical | E45: ='Summary Mapping'!F39 -> NSW | F45: ='Summary Mapping'!G39 -> SNW | G45: ='Summary Mapping'!H39 -> Not Applicable | H45: ='Summary Mapping'!I39 -> Not Applicable | I45: ='Summary Mapping'!J39 -> Existing | J45: ='Summary Mapping'!K39 -> Not Applicable | K45: =_xlfn.XLOOKUP(B45,'Maximum capacity'!$B$10:$B$665,'Maximum capacity'!$G$10:$G$665,"not found",0) -> 660 | L45: =_xlfn.XLOOKUP(B45,'Maximum capacity'!$B$10:$B$665,'Maximum capacity'!$H$10:$H$665,"not found",0) ->  | M45: =VLOOKUP($B45,'Seasonal ratings'!$B$45:$AI$700,(MATCH(M$12,'Seasonal ratings'!$F$44:$O$44,0)+COLUMN('Seasonal ratings'!$F$44)-COLUMN('Seasonal ratings'!$B$44)),FALSE) -> 660 | N45: =VLOOKUP($B45,'Seasonal ratings'!$B$45:$AI$700,(MATCH(N$12,'Seasonal ratings'!$P$44:$Y$44,0)+COLUMN('Seasonal ratings'!$P$44)-COLUMN('Seasonal ratings'!$B$44)),FALSE) -> 660 | O45: =VLOOKUP($B45,'Seasonal ratings'!$B$45:$AI$700,(MATCH(O$12,'Seasonal ratings'!$Z$44:$AI$44,0)+COLUMN('Seasonal ratings'!$Z$44)-COLUMN('Seasonal ratings'!$B$44)),FALSE) -> 660 | P45: =_xlfn.XLOOKUP($B45,'Coal Min Stable Level'!$B$14:$B$57,'Coal Min Stable Level'!$G$14:$G$57,_xlfn.XLOOKUP($B45,'GPG Min Stable Level'!$B$12:$B$148,'GPG Min Stable Level'!$E$12:$E$148,"not found",0),0) -> 180 | Q45: =_xlfn.XLOOKUP($B45,'Affine Heat rates'!$B$8:$B$188,'Affine Heat rates'!$E$8:$E$188,"not found",0) -> 648 | R45: =_xlfn.XLOOKUP($B45,'Affine Heat rates'!$B$8:$B$188,'Affine Heat rates'!$F$8:$F$188,"not found",0) -> 9.204939034 | S45: =_xlfn.XLOOKUP(_xlfn.XLOOKUP($B45,'Summary Mapping'!$C$7:$C$662,'Summary Mapping'!$Y$7:$Y$662,"not found",0),'Storage properties'!$B$22:$B$28,'Storage properties'!$E$22:$E$28,"not found",0) -> not found | T45: =_xlfn.XLOOKUP($D45,'Storage properties'!$B$6:$B$12,'Storage properties'!$E$6:$E$12, "not found",0) -> not found | U45: =_xlfn.XLOOKUP($D45,'Storage properties'!$B$6:$B$12,'Storage properties'!$F$6:$F$12, "not found",0) -> not found | V45: =_xlfn.XLOOKUP($D45,'Storage properties'!$B$6:$B$12,'Storage properties'!$G$6:$G$12, "not found",0) -> not found | W45: =_xlfn.XLOOKUP($D45,'Storage properties'!$B$6:$B$12,'Storage properties'!$H$6:$H$12, "not found",0) -> not found | X45: =_xlfn.XLOOKUP($D45,'Storage properties'!$B$6:$B$12,'Storage properties'!$I$6:$I$12, "not found",0) -> not found | Y45: =_xlfn.XLOOKUP($D45,'Storage properties'!$B$6:$B$12,'Storage properties'!$J$6:$J$12, "not found",0) -> not found | Z45: =_xlfn.XLOOKUP($B45,'Max Ramp Rates'!$B$9:$B$189,'Max Ramp Rates'!$E$9:$E$189, "not found", 0) -> 6 | AA45: =_xlfn.XLOOKUP($B45,'Max Ramp Rates'!$B$9:$B$189,'Max Ramp Rates'!$F$9:$F$189, "not found", 0) -> 6 | AB45: =_xlfn.XLOOKUP(_xlfn.XLOOKUP($B45,'Summary Mapping'!$C$7:$C$662,'Summary Mapping'!$O$7:$O$662,"not found",0),Maintenance!$B$7:$B$24,Maintenance!$C$7:$C$24,"not found",0) -> 5.479452055 | AC45: =_xlfn.XLOOKUP(_xlfn.XLOOKUP($B45,'Summary Mapping'!$C$7:$C$662,'Summary Mapping'!$O$7:$O$662,"not found",0),Maintenance!$B$7:$B$24,Maintenance!$D$7:$D$24,"not found",0) -> 20 | AD45: =IF($D45="Biomass",IFERROR(VLOOKUP($D45,'Generator Reliability Settings'!$B$58:$G$79,MATCH(AD$11,'Generator Reliability Settings'!$B$58:$G$58,0),FALSE),"not found"),IFERROR(INDEX('Generator Reliability Settings'!$B$23:$M$52,MATCH(_xlfn.XLOOKUP($B45,'Summary Mapping'!$C$7:$C$662,'Summary Mapping'!$P$7:$P$662,"not found",0)&AD$11,'Generator Reliability Settings'!$B$23:$B$52&'Generator Reliability Settings'!$C$23:$C$52,0),MIN(COLUMNS('Generator Reliability Settings'!$B$22:$M$52),MATCH(AD$12,'Generator Reliability Settings'!$B$22:$M$22,0))), "not found")) -> 0.05327398277 | AE45: =IF($D45="Biomass",IFERROR(VLOOKUP($D45,'Generator Reliability Settings'!$B$58:$G$79,MATCH(AE$11,'Generator Reliability Settings'!$B$58:$G$58,0),FALSE),"not found"),IFERROR(INDEX('Generator Reliability Settings'!$B$23:$M$52,MATCH(_xlfn.XLOOKUP($B45,'Summary Mapping'!$C$7:$C$662,'Summary Mapping'!$P$7:$P$662,"not found",0)&AE$11,'Generator Reliability Settings'!$B$23:$B$52&'Generator Reliability Settings'!$C$23:$C$52,0),MIN(COLUMNS('Generator Reliability Settings'!$B$22:$M$52),MATCH(AE$12,'Generator Reliability Settings'!$B$22:$M$22,0))), "not found")) -> 0.30516105 | AF45: =IF($D45="Biomass",IFERROR(VLOOKUP($D45,'Generator Reliability Settings'!$B$58:$G$79,MATCH(AF$11,'Generator Reliability Settings'!$B$58:$G$58,0),FALSE),"not found"),IFERROR(INDEX('Generator Reliability Settings'!$B$23:$M$52,MATCH(_xlfn.XLOOKUP($B45,'Summary Mapping'!$C$7:$C$662,'Summary Mapping'!$P$7:$P$662,"not found",0)&AF$11,'Generator Reliability Settings'!$B$23:$B$52&'Generator Reliability Settings'!$C$23:$C$52,0),MIN(COLUMNS('Generator Reliability Settings'!$B$22:$M$52),MATCH(AF$12,'Generator Reliability Settings'!$B$22:$M$22,0))), "not found")) -> 148.7062284 | AG45: =IF($D45="Biomass",IFERROR(VLOOKUP($D45,'Generator Reliability Settings'!$B$58:$G$79,MATCH(AG$11,'Generator Reliability Settings'!$B$58:$G$58,0),FALSE),"not found"),IFERROR(INDEX('Generator Reliability Settings'!$B$23:$M$52,MATCH(_xlfn.XLOOKUP($B45,'Summary Mapping'!$C$7:$C$662,'Summary Mapping'!$P$7:$P$662,"not found",0)&AG$11,'Generator Reliability Settings'!$B$23:$B$52&'Generator Reliability Settings'!$C$23:$C$52,0),MIN(COLUMNS('Generator Reliability Settings'!$B$22:$M$52),MATCH(AG$12,'Generator Reliability Settings'!$B$22:$M$22,0))), "not found")) -> 27.53229991 | AH45: =IF($D45="Biomass",IFERROR(VLOOKUP($D45,'Generator Reliability Settings'!$B$58:$G$79,MATCH(AH$11,'Generator Reliability Settings'!$B$58:$G$58,0),FALSE),"not found"),IFERROR(INDEX('Generator Reliability Settings'!$B$23:$M$52,MATCH(_xlfn.XLOOKUP($B45,'Summary Mapping'!$C$7:$C$662,'Summary Mapping'!$P$7:$P$662,"not found",0)&AH$11,'Generator Reliability Settings'!$B$23:$B$52&'Generator Reliability Settings'!$C$23:$C$52,0),MIN(COLUMNS('Generator Reliability Settings'!$B$22:$M$52),MATCH(AH$12,'Generator Reliability Settings'!$B$22:$M$22,0))), "not found")) -> 0.1864730238 | AI45: =_xlfn.XLOOKUP($B45,'Fixed OPEX'!$B$8:$B$663,'Fixed OPEX'!$E$8:$E$663,"not found", 0) -> 28 | AJ45: =_xlfn.XLOOKUP($B45,'Variable OPEX'!$B$8:$B$663,'Variable OPEX'!$E$8:$E$663,"not found",0) -> 8 | AK45: =_xlfn.XLOOKUP($B45,'Heat rates'!$B$9:$B$664,'Heat rates'!$E$9:$E$664,"not found", 0) -> 10.18675722 | AL45: =INDEX('Fuel Price Summary'!$H$12:$AK$668,MATCH($B45,'Fuel Price Summary'!$B$12:$B$668,0),MATCH($AL$12,'Fuel Price Summary'!$H$12:$AK$12,0)) -> 7.016087 | AM45: =_xlfn.XLOOKUP($B45,'Emissions intensity'!$B$8:$B$664,'Emissions intensity'!$E$8:$E$664,"not found",0)*SUMPRODUCT((('GPG emissions reduction - BioM'!$B$9:$B$11)=AM$11)*(('GPG emissions reduction - BioM'!$C$8:$AF$8)=AM$12),'GPG emissions reduction - BioM'!$C$9:$AF$11) +N("this term is the emission intensity as at the current year") -> 641.0164675 | AN45: =_xlfn.XLOOKUP($B45,'Marginal Loss Factors'!$B$13:$B$668,'Marginal Loss Factors'!$F$13:$F$668, "not found", 0) -> 0.9868 | AO45: =_xlfn.XLOOKUP($B45,Auxiliary!$B$7:$B$662,Auxiliary!$E$7:$E$662,"not found",0) -> 5.48025286 | AP45: 79.47117487 | AQ45: =_xlfn.XLOOKUP($B45,Retirement!$B$14:$B$669,Retirement!$F$14:$F$669, "not found", 0) -> 2033 | AR45: =_xlfn.XLOOKUP($D45,Retirement!$I$14:$I$44,Retirement!$J$14:$J$44,"not found",0) -> 254000 | AS45: =_xlfn.XLOOKUP($B45,'Power System Security'!$B$6:$B$49,'Power System Security'!$D$6:$D$49,"not found",0) -> 112.7013642
B46: ='Summary Mapping'!C40 -> VP6 | C46: ='Summary Mapping'!D40 -> Vales Point B | D46: ='Summary Mapping'!E40 -> Steam Sub Critical | E46: ='Summary Mapping'!F40 -> NSW | F46: ='Summary Mapping'!G40 -> SNW | G46: ='Summary Mapping'!H40 -> Not Applicable | H46: ='Summary Mapping'!I40 -> Not Applicable | I46: ='Summary Mapping'!J40 -> Existing | J46: ='Summary Mapping'!K40 -> Not Applicable | K46: =_xlfn.XLOOKUP(B46,'Maximum capacity'!$B$10:$B$665,'Maximum capacity'!$G$10:$G$665,"not found",0) -> 660 | L46: =_xlfn.XLOOKUP(B46,'Maximum capacity'!$B$10:$B$665,'Maximum capacity'!$H$10:$H$665,"not found",0) ->  | M46: =VLOOKUP($B46,'Seasonal ratings'!$B$45:$AI$700,(MATCH(M$12,'Seasonal ratings'!$F$44:$O$44,0)+COLUMN('Seasonal ratings'!$F$44)-COLUMN('Seasonal ratings'!$B$44)),FALSE) -> 660 | N46: =VLOOKUP($B46,'Seasonal ratings'!$B$45:$AI$700,(MATCH(N$12,'Seasonal ratings'!$P$44:$Y$44,0)+COLUMN('Seasonal ratings'!$P$44)-COLUMN('Seasonal ratings'!$B$44)),FALSE) -> 660 | O46: =VLOOKUP($B46,'Seasonal ratings'!$B$45:$AI$700,(MATCH(O$12,'Seasonal ratings'!$Z$44:$AI$44,0)+COLUMN('Seasonal ratings'!$Z$44)-COLUMN('Seasonal ratings'!$B$44)),FALSE) -> 660 | P46: =_xlfn.XLOOKUP($B46,'Coal Min Stable Level'!$B$14:$B$57,'Coal Min Stable Level'!$G$14:$G$57,_xlfn.XLOOKUP($B46,'GPG Min Stable Level'!$B$12:$B$148,'GPG Min Stable Level'!$E$12:$E$148,"not found",0),0) -> 180 | Q46: =_xlfn.XLOOKUP($B46,'Affine Heat rates'!$B$8:$B$188,'Affine Heat rates'!$E$8:$E$188,"not found",0) -> 648 | R46: =_xlfn.XLOOKUP($B46,'Affine Heat rates'!$B$8:$B$188,'Affine Heat rates'!$F$8:$F$188,"not found",0) -> 9.204939034 | S46: =_xlfn.XLOOKUP(_xlfn.XLOOKUP($B46,'Summary Mapping'!$C$7:$C$662,'Summary Mapping'!$Y$7:$Y$662,"not found",0),'Storage properties'!$B$22:$B$28,'Storage properties'!$E$22:$E$28,"not found",0) -> not found | T46: =_xlfn.XLOOKUP($D46,'Storage properties'!$B$6:$B$12,'Storage properties'!$E$6:$E$12, "not found",0) -> not found | U46: =_xlfn.XLOOKUP($D46,'Storage properties'!$B$6:$B$12,'Storage properties'!$F$6:$F$12, "not found",0) -> not found | V46: =_xlfn.XLOOKUP($D46,'Storage properties'!$B$6:$B$12,'Storage properties'!$G$6:$G$12, "not found",0) -> not found | W46: =_xlfn.XLOOKUP($D46,'Storage properties'!$B$6:$B$12,'Storage properties'!$H$6:$H$12, "not found",0) -> not found | X46: =_xlfn.XLOOKUP($D46,'Storage properties'!$B$6:$B$12,'Storage properties'!$I$6:$I$12, "not found",0) -> not found | Y46: =_xlfn.XLOOKUP($D46,'Storage properties'!$B$6:$B$12,'Storage properties'!$J$6:$J$12, "not found",0) -> not found | Z46: =_xlfn.XLOOKUP($B46,'Max Ramp Rates'!$B$9:$B$189,'Max Ramp Rates'!$E$9:$E$189, "not found", 0) -> 6 | AA46: =_xlfn.XLOOKUP($B46,'Max Ramp Rates'!$B$9:$B$189,'Max Ramp Rates'!$F$9:$F$189, "not found", 0) -> 6 | AB46: =_xlfn.XLOOKUP(_xlfn.XLOOKUP($B46,'Summary Mapping'!$C$7:$C$662,'Summary Mapping'!$O$7:$O$662,"not found",0),Maintenance!$B$7:$B$24,Maintenance!$C$7:$C$24,"not found",0) -> 5.479452055 | AC46: =_xlfn.XLOOKUP(_xlfn.XLOOKUP($B46,'Summary Mapping'!$C$7:$C$662,'Summary Mapping'!$O$7:$O$662,"not found",0),Maintenance!$B$7:$B$24,Maintenance!$D$7:$D$24,"not found",0) -> 20 | AD46: =IF($D46="Biomass",IFERROR(VLOOKUP($D46,'Generator Reliability Settings'!$B$58:$G$79,MATCH(AD$11,'Generator Reliability Settings'!$B$58:$G$58,0),FALSE),"not found"),IFERROR(INDEX('Generator Reliability Settings'!$B$23:$M$52,MATCH(_xlfn.XLOOKUP($B46,'Summary Mapping'!$C$7:$C$662,'Summary Mapping'!$P$7:$P$662,"not found",0)&AD$11,'Generator Reliability Settings'!$B$23:$B$52&'Generator Reliability Settings'!$C$23:$C$52,0),MIN(COLUMNS('Generator Reliability Settings'!$B$22:$M$52),MATCH(AD$12,'Generator Reliability Settings'!$B$22:$M$22,0))), "not found")) -> 0.05327398277 | AE46: =IF($D46="Biomass",IFERROR(VLOOKUP($D46,'Generator Reliability Settings'!$B$58:$G$79,MATCH(AE$11,'Generator Reliability Settings'!$B$58:$G$58,0),FALSE),"not found"),IFERROR(INDEX('Generator Reliability Settings'!$B$23:$M$52,MATCH(_xlfn.XLOOKUP($B46,'Summary Mapping'!$C$7:$C$662,'Summary Mapping'!$P$7:$P$662,"not found",0)&AE$11,'Generator Reliability Settings'!$B$23:$B$52&'Generator Reliability Settings'!$C$23:$C$52,0),MIN(COLUMNS('Generator Reliability Settings'!$B$22:$M$52),MATCH(AE$12,'Generator Reliability Settings'!$B$22:$M$22,0))), "not found")) -> 0.30516105 | AF46: =IF($D46="Biomass",IFERROR(VLOOKUP($D46,'Generator Reliability Settings'!$B$58:$G$79,MATCH(AF$11,'Generator Reliability Settings'!$B$58:$G$58,0),FALSE),"not found"),IFERROR(INDEX('Generator Reliability Settings'!$B$23:$M$52,MATCH(_xlfn.XLOOKUP($B46,'Summary Mapping'!$C$7:$C$662,'Summary Mapping'!$P$7:$P$662,"not found",0)&AF$11,'Generator Reliability Settings'!$B$23:$B$52&'Generator Reliability Settings'!$C$23:$C$52,0),MIN(COLUMNS('Generator Reliability Settings'!$B$22:$M$52),MATCH(AF$12,'Generator Reliability Settings'!$B$22:$M$22,0))), "not found")) -> 148.7062284 | AG46: =IF($D46="Biomass",IFERROR(VLOOKUP($D46,'Generator Reliability Settings'!$B$58:$G$79,MATCH(AG$11,'Generator Reliability Settings'!$B$58:$G$58,0),FALSE),"not found"),IFERROR(INDEX('Generator Reliability Settings'!$B$23:$M$52,MATCH(_xlfn.XLOOKUP($B46,'Summary Mapping'!$C$7:$C$662,'Summary Mapping'!$P$7:$P$662,"not found",0)&AG$11,'Generator Reliability Settings'!$B$23:$B$52&'Generator Reliability Settings'!$C$23:$C$52,0),MIN(COLUMNS('Generator Reliability Settings'!$B$22:$M$52),MATCH(AG$12,'Generator Reliability Settings'!$B$22:$M$22,0))), "not found")) -> 27.53229991 | AH46: =IF($D46="Biomass",IFERROR(VLOOKUP($D46,'Generator Reliability Settings'!$B$58:$G$79,MATCH(AH$11,'Generator Reliability Settings'!$B$58:$G$58,0),FALSE),"not found"),IFERROR(INDEX('Generator Reliability Settings'!$B$23:$M$52,MATCH(_xlfn.XLOOKUP($B46,'Summary Mapping'!$C$7:$C$662,'Summary Mapping'!$P$7:$P$662,"not found",0)&AH$11,'Generator Reliability Settings'!$B$23:$B$52&'Generator Reliability Settings'!$C$23:$C$52,0),MIN(COLUMNS('Generator Reliability Settings'!$B$22:$M$52),MATCH(AH$12,'Generator Reliability Settings'!$B$22:$M$22,0))), "not found")) -> 0.1864730238 | AI46: =_xlfn.XLOOKUP($B46,'Fixed OPEX'!$B$8:$B$663,'Fixed OPEX'!$E$8:$E$663,"not found", 0) -> 28 | AJ46: =_xlfn.XLOOKUP($B46,'Variable OPEX'!$B$8:$B$663,'Variable OPEX'!$E$8:$E$663,"not found",0) -> 8 | AK46: =_xlfn.XLOOKUP($B46,'Heat rates'!$B$9:$B$664,'Heat rates'!$E$9:$E$664,"not found", 0) -> 10.18675722 | AL46: =INDEX('Fuel Price Summary'!$H$12:$AK$668,MATCH($B46,'Fuel Price Summary'!$B$12:$B$668,0),MATCH($AL$12,'Fuel Price Summary'!$H$12:$AK$12,0)) -> 7.016087 | AM46: =_xlfn.XLOOKUP($B46,'Emissions intensity'!$B$8:$B$664,'Emissions intensity'!$E$8:$E$664,"not found",0)*SUMPRODUCT((('GPG emissions reduction - BioM'!$B$9:$B$11)=AM$11)*(('GPG emissions reduction - BioM'!$C$8:$AF$8)=AM$12),'GPG emissions reduction - BioM'!$C$9:$AF$11) +N("this term is the emission intensity as at the current year") -> 641.0164675 | AN46: =_xlfn.XLOOKUP($B46,'Marginal Loss Factors'!$B$13:$B$668,'Marginal Loss Factors'!$F$13:$F$668, "not found", 0) -> 0.9868 | AO46: =_xlfn.XLOOKUP($B46,Auxiliary!$B$7:$B$662,Auxiliary!$E$7:$E$662,"not found",0) -> 5.48025286 | AP46: 79.47117487 | AQ46: =_xlfn.XLOOKUP($B46,Retirement!$B$14:$B$669,Retirement!$F$14:$F$669, "not found", 0) -> 2033 | AR46: =_xlfn.XLOOKUP($D46,Retirement!$I$14:$I$44,Retirement!$J$14:$J$44,"not found",0) -> 254000 | AS46: =_xlfn.XLOOKUP($B46,'Power System Security'!$B$6:$B$49,'Power System Security'!$D$6:$D$49,"not found",0) -> 112.7013642
